Workbook

Sheet Summary (hidden)
A2: Non-Labor
C3: 12 mos End 9/15 | D3: '15 to '16 | F3: 2016 | G3: '16 to '17 | I3: 2017 | J3: '17 to '18 | L3: 2018
A4: 500000 | C4: 222.62 | D4: -222.62
A5: 556000 | C5: 122220.99 | D5: -8533.99 | F5: 113687 | G5: =I5-F5 -> 5685 | I5: 119372 | J5: =L5-I5 -> 5968 | L5: 125340
A6: 560000 | D6: 212683 | F6: 212683 | G6: 10635 | I6: 223318 | J6: 11166 | L6: 234484
A7: 561210 | C7: 217744.42 | D7: -217744.42 | G7: 0 | J7: 0
A8: 580000 | C8: 10 | D8: -10 | G8: 0 | J8: 0
A9: 586000 | C9: 439.61 | D9: -439.61 | G9: 0 | J9: 0
A10: 587000 | C10: 192.91 | D10: -192.91 | F10: 0 | G10: 40000 | I10: 40000 | J10: 0 | L10: 40000
A11: 588000 | C11: 5120.5 | D11: -5120.5 | G11: 0 | J11: 0
A12: 902000 | C12: 41870.21 | D12: 8529.79 | F12: 50400 | G12: 2520 | I12: 52920 | J12: 2646 | L12: 55566
A13: 903000 | C13: 181814.4 | D13: -181814.4 | G13: 0 | J13: 0
A14: 905000 | C14: 650 | D14: -650 | G14: 0 | J14: 0
A15: 920000 | C15: 16479.81 | D15: -16479.81 | G15: 0 | J15: 0
A16: 921000 | C16: 3262369.5 | D16: 675849.5 | F16: 3938219 | G16: 216494 | I16: 4154713 | J16: 176085 | L16: 4330798
A17: 923000 | C17: 10048092.72 | D17: -3197010.72 | F17: 6851082 | G17: 3063947 | I17: 9915029 | J17: 545480 | L17: 10460509
A18: 926100 | C18: 339031.23 | D18: -233732.23 | F18: 105299 | G18: 0 | I18: 105299 | J18: 0 | L18: 105299
A19: 928000 | C19: 90681.43 | D19: 10118.57 | F19: 100800 | G19: 5040 | I19: 105840 | J19: 5292 | L19: 111132
A20: 930100 | C20: 332.82 | D20: -332.82 | G20: 0 | J20: 0
A21: 930200 | C21: 19302.51 | D21: -3552.51 | F21: 15750 | G21: 788 | I21: 16538 | J21: 826 | L21: 17364
A22: 931000 | C22: 247597.38 | D22: 61238.62 | F22: 308836 | G22: 15441 | I22: 324277 | J22: 16215 | L22: 340492
A23: 935000 | C23: 7001382.48 | D23: 1127752.52 | F23: 8129135 | G23: 481838 | I23: 8610973 | J23: 613990 | L23: 9224963
C25: 21595555.54 | D25: -1769664.54 | F25: 19825891 | G25: 3842388 | I25: 23668279 | J25: 3842388 | L25: 25045947
D27: -0.08194577522 | F27: 19825891 | G27: 0.1938065734 | I27: 23668279 | J27: 0.05820735846 | L27: 25045947
A32: 903000 | D32: =F32-C32 -> 521415 | F32: 521415 | G32: =I32-F32 -> 15478 | I32: 536893 | J32: =L32-I32 -> 15770 | L32: 552663
A33: 920000 | D33: =F33-C33 -> 7460446 | F33: 7460446 | G33: 1052234 | I33: 8512680 | J33: =L33-I33 -> 265661 | L33: 8778341
A34: 923000 | D34: 5255 | F34: 5255 | G34: 157 | I34: 5412 | J34: 163 | L34: 5575
D36: 7987116 | F36: =SUM(F32:F34) -> 7987116 | G36: 1067869 | I36: =SUM(I32:I34) -> 9054985 | J36: 281594 | L36: =SUM(L32:L34) -> 9336579

Sheet Annual FERC by Org (hidden)
A1: 2016 | B1: Sum | C1: N09 | D1: A09 | E1: P99 | F1: P59 | G1: P09 | H1: C09 | I1: C19 | J1: C29 | K1: C59 | L1: B09 | M1: E19 | N1: M19 | O1: R19 | P1: J09 | Q1: J29 | R1: E09 | S1: M09 | T1: R09 | U1: E29 | V1: M29 | W1: R29 | X1: W09 | Y1: S09 | Z1: X09 | AA1: Q19 | AB1: A19 | AC1: F19 | AD1: K19 | AE1: X19 | AF1: S19 | AG1: T19 | AH1: V19 | AI1: W39 | AJ1: G39 | AK1: Y39 | AL1: K39 | AM1: F39 | AN1: A39 | AO1: L39 | AP1: X39 | AQ1: S39 | AR1: T39 | AS1: V39
A2: 556000 | B2: =SUM(C2:AS2) -> 113687 | C2: =SUMIFS('2016'!$M$6:$M$251,'2016'!$E$6:$E$251,C$1,'2016'!$H$6:$H$251,$A2) -> 0 | D2: =SUMIFS('2016'!$M$6:$M$251,'2016'!$E$6:$E$251,D$1,'2016'!$H$6:$H$251,$A2) -> 0 | E2: =SUMIFS('2016'!$M$6:$M$251,'2016'!$E$6:$E$251,E$1,'2016'!$H$6:$H$251,$A2) -> 0 | F2: =SUMIFS('2016'!$M$6:$M$251,'2016'!$E$6:$E$251,F$1,'2016'!$H$6:$H$251,$A2) -> 0 | G2: =SUMIFS('2016'!$M$6:$M$251,'2016'!$E$6:$E$251,G$1,'2016'!$H$6:$H$251,$A2) -> 0 | H2: =SUMIFS('2016'!$M$6:$M$251,'2016'!$E$6:$E$251,H$1,'2016'!$H$6:$H$251,$A2) -> 0 | I2: =SUMIFS('2016'!$M$6:$M$251,'2016'!$E$6:$E$251,I$1,'2016'!$H$6:$H$251,$A2) -> 0 | J2: =SUMIFS('2016'!$M$6:$M$251,'2016'!$E$6:$E$251,J$1,'2016'!$H$6:$H$251,$A2) -> 0 | K2: =SUMIFS('2016'!$M$6:$M$251,'2016'!$E$6:$E$251,K$1,'2016'!$H$6:$H$251,$A2) -> 0 | L2: =SUMIFS('2016'!$M$6:$M$251,'2016'!$E$6:$E$251,L$1,'2016'!$H$6:$H$251,$A2) -> 0 | M2: =SUMIFS('2016'!$M$6:$M$251,'2016'!$E$6:$E$251,M$1,'2016'!$H$6:$H$251,$A2) -> 0 | N2: =SUMIFS('2016'!$M$6:$M$251,'2016'!$E$6:$E$251,N$1,'2016'!$H$6:$H$251,$A2) -> 0 | O2: =SUMIFS('2016'!$M$6:$M$251,'2016'!$E$6:$E$251,O$1,'2016'!$H$6:$H$251,$A2) -> 0 | P2: =SUMIFS('2016'!$M$6:$M$251,'2016'!$E$6:$E$251,P$1,'2016'!$H$6:$H$251,$A2) -> 0 | Q2: =SUMIFS('2016'!$M$6:$M$251,'2016'!$E$6:$E$251,Q$1,'2016'!$H$6:$H$251,$A2) -> 0 | R2: =SUMIFS('2016'!$M$6:$M$251,'2016'!$E$6:$E$251,R$1,'2016'!$H$6:$H$251,$A2) -> 0 | S2: =SUMIFS('2016'!$M$6:$M$251,'2016'!$E$6:$E$251,S$1,'2016'!$H$6:$H$251,$A2) -> 0 | T2: =SUMIFS('2016'!$M$6:$M$251,'2016'!$E$6:$E$251,T$1,'2016'!$H$6:$H$251,$A2) -> 0 | U2: =SUMIFS('2016'!$M$6:$M$251,'2016'!$E$6:$E$251,U$1,'2016'!$H$6:$H$251,$A2) -> 0 | V2: =SUMIFS('2016'!$M$6:$M$251,'2016'!$E$6:$E$251,V$1,'2016'!$H$6:$H$251,$A2) -> 0 | W2: =SUMIFS('2016'!$M$6:$M$251,'2016'!$E$6:$E$251,W$1,'2016'!$H$6:$H$251,$A2) -> 0 | X2: =SUMIFS('2016'!$M$6:$M$251,'2016'!$E$6:$E$251,X$1,'2016'!$H$6:$H$251,$A2) -> 0 | Y2: =SUMIFS('2016'!$M$6:$M$251,'2016'!$E$6:$E$251,Y$1,'2016'!$H$6:$H$251,$A2) -> 113687 | Z2: =SUMIFS('2016'!$M$6:$M$251,'2016'!$E$6:$E$251,Z$1,'2016'!$H$6:$H$251,$A2) -> 0 | AA2: =SUMIFS('2016'!$M$6:$M$251,'2016'!$E$6:$E$251,AA$1,'2016'!$H$6:$H$251,$A2) -> 0 | AB2: =SUMIFS('2016'!$M$6:$M$251,'2016'!$E$6:$E$251,AB$1,'2016'!$H$6:$H$251,$A2) -> 0 | AC2: =SUMIFS('2016'!$M$6:$M$251,'2016'!$E$6:$E$251,AC$1,'2016'!$H$6:$H$251,$A2) -> 0 | AD2: =SUMIFS('2016'!$M$6:$M$251,'2016'!$E$6:$E$251,AD$1,'2016'!$H$6:$H$251,$A2) -> 0 | AE2: =SUMIFS('2016'!$M$6:$M$251,'2016'!$E$6:$E$251,AE$1,'2016'!$H$6:$H$251,$A2) -> 0 | AF2: =SUMIFS('2016'!$M$6:$M$251,'2016'!$E$6:$E$251,AF$1,'2016'!$H$6:$H$251,$A2) -> 0 | AG2: =SUMIFS('2016'!$M$6:$M$251,'2016'!$E$6:$E$251,AG$1,'2016'!$H$6:$H$251,$A2) -> 0 | AH2: =SUMIFS('2016'!$M$6:$M$251,'2016'!$E$6:$E$251,AH$1,'2016'!$H$6:$H$251,$A2) -> 0 | AI2: =SUMIFS('2016'!$M$6:$M$251,'2016'!$E$6:$E$251,AI$1,'2016'!$H$6:$H$251,$A2) -> 0 | AJ2: =SUMIFS('2016'!$M$6:$M$251,'2016'!$E$6:$E$251,AJ$1,'2016'!$H$6:$H$251,$A2) -> 0 | AK2: =SUMIFS('2016'!$M$6:$M$251,'2016'!$E$6:$E$251,AK$1,'2016'!$H$6:$H$251,$A2) -> 0 | AL2: =SUMIFS('2016'!$M$6:$M$251,'2016'!$E$6:$E$251,AL$1,'2016'!$H$6:$H$251,$A2) -> 0 | AM2: =SUMIFS('2016'!$M$6:$M$251,'2016'!$E$6:$E$251,AM$1,'2016'!$H$6:$H$251,$A2) -> 0 | AN2: =SUMIFS('2016'!$M$6:$M$251,'2016'!$E$6:$E$251,AN$1,'2016'!$H$6:$H$251,$A2) -> 0 | AO2: =SUMIFS('2016'!$M$6:$M$251,'2016'!$E$6:$E$251,AO$1,'2016'!$H$6:$H$251,$A2) -> 0 | AP2: =SUMIFS('2016'!$M$6:$M$251,'2016'!$E$6:$E$251,AP$1,'2016'!$H$6:$H$251,$A2) -> 0 | AQ2: =SUMIFS('2016'!$M$6:$M$251,'2016'!$E$6:$E$251,AQ$1,'2016'!$H$6:$H$251,$A2) -> 0 | AR2: =SUMIFS('2016'!$M$6:$M$251,'2016'!$E$6:$E$251,AR$1,'2016'!$H$6:$H$251,$A2) -> 0 | AS2: =SUMIFS('2016'!$M$6:$M$251,'2016'!$E$6:$E$251,AS$1,'2016'!$H$6:$H$251,$A2) -> 0
A3: 560000 | B3: =SUM(C3:AS3) -> 212683 | C3: =SUMIFS('2016'!$M$6:$M$251,'2016'!$E$6:$E$251,C$1,'2016'!$H$6:$H$251,$A3) -> 0 | D3: =SUMIFS('2016'!$M$6:$M$251,'2016'!$E$6:$E$251,D$1,'2016'!$H$6:$H$251,$A3) -> 0 | E3: =SUMIFS('2016'!$M$6:$M$251,'2016'!$E$6:$E$251,E$1,'2016'!$H$6:$H$251,$A3) -> 0 | F3: =SUMIFS('2016'!$M$6:$M$251,'2016'!$E$6:$E$251,F$1,'2016'!$H$6:$H$251,$A3) -> 0 | G3: =SUMIFS('2016'!$M$6:$M$251,'2016'!$E$6:$E$251,G$1,'2016'!$H$6:$H$251,$A3) -> 0 | H3: =SUMIFS('2016'!$M$6:$M$251,'2016'!$E$6:$E$251,H$1,'2016'!$H$6:$H$251,$A3) -> 0 | I3: =SUMIFS('2016'!$M$6:$M$251,'2016'!$E$6:$E$251,I$1,'2016'!$H$6:$H$251,$A3) -> 0 | J3: =SUMIFS('2016'!$M$6:$M$251,'2016'!$E$6:$E$251,J$1,'2016'!$H$6:$H$251,$A3) -> 0 | K3: =SUMIFS('2016'!$M$6:$M$251,'2016'!$E$6:$E$251,K$1,'2016'!$H$6:$H$251,$A3) -> 0 | L3: =SUMIFS('2016'!$M$6:$M$251,'2016'!$E$6:$E$251,L$1,'2016'!$H$6:$H$251,$A3) -> 0 | M3: =SUMIFS('2016'!$M$6:$M$251,'2016'!$E$6:$E$251,M$1,'2016'!$H$6:$H$251,$A3) -> 0 | N3: =SUMIFS('2016'!$M$6:$M$251,'2016'!$E$6:$E$251,N$1,'2016'!$H$6:$H$251,$A3) -> 0 | O3: =SUMIFS('2016'!$M$6:$M$251,'2016'!$E$6:$E$251,O$1,'2016'!$H$6:$H$251,$A3) -> 0 | P3: =SUMIFS('2016'!$M$6:$M$251,'2016'!$E$6:$E$251,P$1,'2016'!$H$6:$H$251,$A3) -> 0 | Q3: =SUMIFS('2016'!$M$6:$M$251,'2016'!$E$6:$E$251,Q$1,'2016'!$H$6:$H$251,$A3) -> 0 | R3: =SUMIFS('2016'!$M$6:$M$251,'2016'!$E$6:$E$251,R$1,'2016'!$H$6:$H$251,$A3) -> 0 | S3: =SUMIFS('2016'!$M$6:$M$251,'2016'!$E$6:$E$251,S$1,'2016'!$H$6:$H$251,$A3) -> 0 | T3: =SUMIFS('2016'!$M$6:$M$251,'2016'!$E$6:$E$251,T$1,'2016'!$H$6:$H$251,$A3) -> 0 | U3: =SUMIFS('2016'!$M$6:$M$251,'2016'!$E$6:$E$251,U$1,'2016'!$H$6:$H$251,$A3) -> 0 | V3: =SUMIFS('2016'!$M$6:$M$251,'2016'!$E$6:$E$251,V$1,'2016'!$H$6:$H$251,$A3) -> 0 | W3: =SUMIFS('2016'!$M$6:$M$251,'2016'!$E$6:$E$251,W$1,'2016'!$H$6:$H$251,$A3) -> 0 | X3: =SUMIFS('2016'!$M$6:$M$251,'2016'!$E$6:$E$251,X$1,'2016'!$H$6:$H$251,$A3) -> 0 | Y3: =SUMIFS('2016'!$M$6:$M$251,'2016'!$E$6:$E$251,Y$1,'2016'!$H$6:$H$251,$A3) -> 212683 | Z3: =SUMIFS('2016'!$M$6:$M$251,'2016'!$E$6:$E$251,Z$1,'2016'!$H$6:$H$251,$A3) -> 0 | AA3: =SUMIFS('2016'!$M$6:$M$251,'2016'!$E$6:$E$251,AA$1,'2016'!$H$6:$H$251,$A3) -> 0 | AB3: =SUMIFS('2016'!$M$6:$M$251,'2016'!$E$6:$E$251,AB$1,'2016'!$H$6:$H$251,$A3) -> 0 | AC3: =SUMIFS('2016'!$M$6:$M$251,'2016'!$E$6:$E$251,AC$1,'2016'!$H$6:$H$251,$A3) -> 0 | AD3: =SUMIFS('2016'!$M$6:$M$251,'2016'!$E$6:$E$251,AD$1,'2016'!$H$6:$H$251,$A3) -> 0 | AE3: =SUMIFS('2016'!$M$6:$M$251,'2016'!$E$6:$E$251,AE$1,'2016'!$H$6:$H$251,$A3) -> 0 | AF3: =SUMIFS('2016'!$M$6:$M$251,'2016'!$E$6:$E$251,AF$1,'2016'!$H$6:$H$251,$A3) -> 0 | AG3: =SUMIFS('2016'!$M$6:$M$251,'2016'!$E$6:$E$251,AG$1,'2016'!$H$6:$H$251,$A3) -> 0 | AH3: =SUMIFS('2016'!$M$6:$M$251,'2016'!$E$6:$E$251,AH$1,'2016'!$H$6:$H$251,$A3) -> 0 | AI3: =SUMIFS('2016'!$M$6:$M$251,'2016'!$E$6:$E$251,AI$1,'2016'!$H$6:$H$251,$A3) -> 0 | AJ3: =SUMIFS('2016'!$M$6:$M$251,'2016'!$E$6:$E$251,AJ$1,'2016'!$H$6:$H$251,$A3) -> 0 | AK3: =SUMIFS('2016'!$M$6:$M$251,'2016'!$E$6:$E$251,AK$1,'2016'!$H$6:$H$251,$A3) -> 0 | AL3: =SUMIFS('2016'!$M$6:$M$251,'2016'!$E$6:$E$251,AL$1,'2016'!$H$6:$H$251,$A3) -> 0 | AM3: =SUMIFS('2016'!$M$6:$M$251,'2016'!$E$6:$E$251,AM$1,'2016'!$H$6:$H$251,$A3) -> 0 | AN3: =SUMIFS('2016'!$M$6:$M$251,'2016'!$E$6:$E$251,AN$1,'2016'!$H$6:$H$251,$A3) -> 0 | AO3: =SUMIFS('2016'!$M$6:$M$251,'2016'!$E$6:$E$251,AO$1,'2016'!$H$6:$H$251,$A3) -> 0 | AP3: =SUMIFS('2016'!$M$6:$M$251,'2016'!$E$6:$E$251,AP$1,'2016'!$H$6:$H$251,$A3) -> 0 | AQ3: =SUMIFS('2016'!$M$6:$M$251,'2016'!$E$6:$E$251,AQ$1,'2016'!$H$6:$H$251,$A3) -> 0 | AR3: =SUMIFS('2016'!$M$6:$M$251,'2016'!$E$6:$E$251,AR$1,'2016'!$H$6:$H$251,$A3) -> 0 | AS3: =SUMIFS('2016'!$M$6:$M$251,'2016'!$E$6:$E$251,AS$1,'2016'!$H$6:$H$251,$A3) -> 0
A4: 587000 | B4: 0 | C4: =SUMIFS('2016'!$M$6:$M$251,'2016'!$E$6:$E$251,C$1,'2016'!$H$6:$H$251,$A4) -> 0 | D4: =SUMIFS('2016'!$M$6:$M$251,'2016'!$E$6:$E$251,D$1,'2016'!$H$6:$H$251,$A4) -> 0 | E4: =SUMIFS('2016'!$M$6:$M$251,'2016'!$E$6:$E$251,E$1,'2016'!$H$6:$H$251,$A4) -> 0 | F4: =SUMIFS('2016'!$M$6:$M$251,'2016'!$E$6:$E$251,F$1,'2016'!$H$6:$H$251,$A4) -> 0 | G4: =SUMIFS('2016'!$M$6:$M$251,'2016'!$E$6:$E$251,G$1,'2016'!$H$6:$H$251,$A4) -> 0 | H4: =SUMIFS('2016'!$M$6:$M$251,'2016'!$E$6:$E$251,H$1,'2016'!$H$6:$H$251,$A4) -> 0 | I4: =SUMIFS('2016'!$M$6:$M$251,'2016'!$E$6:$E$251,I$1,'2016'!$H$6:$H$251,$A4) -> 0 | J4: =SUMIFS('2016'!$M$6:$M$251,'2016'!$E$6:$E$251,J$1,'2016'!$H$6:$H$251,$A4) -> 0 | K4: =SUMIFS('2016'!$M$6:$M$251,'2016'!$E$6:$E$251,K$1,'2016'!$H$6:$H$251,$A4) -> 0 | L4: =SUMIFS('2016'!$M$6:$M$251,'2016'!$E$6:$E$251,L$1,'2016'!$H$6:$H$251,$A4) -> 0 | M4: =SUMIFS('2016'!$M$6:$M$251,'2016'!$E$6:$E$251,M$1,'2016'!$H$6:$H$251,$A4) -> 0 | N4: =SUMIFS('2016'!$M$6:$M$251,'2016'!$E$6:$E$251,N$1,'2016'!$H$6:$H$251,$A4) -> 0 | O4: =SUMIFS('2016'!$M$6:$M$251,'2016'!$E$6:$E$251,O$1,'2016'!$H$6:$H$251,$A4) -> 0 | P4: =SUMIFS('2016'!$M$6:$M$251,'2016'!$E$6:$E$251,P$1,'2016'!$H$6:$H$251,$A4) -> 0 | Q4: =SUMIFS('2016'!$M$6:$M$251,'2016'!$E$6:$E$251,Q$1,'2016'!$H$6:$H$251,$A4) -> 0 | R4: =SUMIFS('2016'!$M$6:$M$251,'2016'!$E$6:$E$251,R$1,'2016'!$H$6:$H$251,$A4) -> 0 | S4: =SUMIFS('2016'!$M$6:$M$251,'2016'!$E$6:$E$251,S$1,'2016'!$H$6:$H$251,$A4) -> 0 | T4: =SUMIFS('2016'!$M$6:$M$251,'2016'!$E$6:$E$251,T$1,'2016'!$H$6:$H$251,$A4) -> 0 | U4: =SUMIFS('2016'!$M$6:$M$251,'2016'!$E$6:$E$251,U$1,'2016'!$H$6:$H$251,$A4) -> 0 | V4: =SUMIFS('2016'!$M$6:$M$251,'2016'!$E$6:$E$251,V$1,'2016'!$H$6:$H$251,$A4) -> 0 | W4: =SUMIFS('2016'!$M$6:$M$251,'2016'!$E$6:$E$251,W$1,'2016'!$H$6:$H$251,$A4) -> 0 | X4: =SUMIFS('2016'!$M$6:$M$251,'2016'!$E$6:$E$251,X$1,'2016'!$H$6:$H$251,$A4) -> 0 | Y4: =SUMIFS('2016'!$M$6:$M$251,'2016'!$E$6:$E$251,Y$1,'2016'!$H$6:$H$251,$A4) -> 0 | Z4: =SUMIFS('2016'!$M$6:$M$251,'2016'!$E$6:$E$251,Z$1,'2016'!$H$6:$H$251,$A4) -> 0 | AA4: =SUMIFS('2016'!$M$6:$M$251,'2016'!$E$6:$E$251,AA$1,'2016'!$H$6:$H$251,$A4) -> 0 | AB4: =SUMIFS('2016'!$M$6:$M$251,'2016'!$E$6:$E$251,AB$1,'2016'!$H$6:$H$251,$A4) -> 0 | AC4: =SUMIFS('2016'!$M$6:$M$251,'2016'!$E$6:$E$251,AC$1,'2016'!$H$6:$H$251,$A4) -> 0 | AD4: =SUMIFS('2016'!$M$6:$M$251,'2016'!$E$6:$E$251,AD$1,'2016'!$H$6:$H$251,$A4) -> 0 | AE4: =SUMIFS('2016'!$M$6:$M$251,'2016'!$E$6:$E$251,AE$1,'2016'!$H$6:$H$251,$A4) -> 0 | AF4: =SUMIFS('2016'!$M$6:$M$251,'2016'!$E$6:$E$251,AF$1,'2016'!$H$6:$H$251,$A4) -> 0 | AG4: =SUMIFS('2016'!$M$6:$M$251,'2016'!$E$6:$E$251,AG$1,'2016'!$H$6:$H$251,$A4) -> 0 | AH4: =SUMIFS('2016'!$M$6:$M$251,'2016'!$E$6:$E$251,AH$1,'2016'!$H$6:$H$251,$A4) -> 0 | AI4: =SUMIFS('2016'!$M$6:$M$251,'2016'!$E$6:$E$251,AI$1,'2016'!$H$6:$H$251,$A4) -> 0 | AJ4: =SUMIFS('2016'!$M$6:$M$251,'2016'!$E$6:$E$251,AJ$1,'2016'!$H$6:$H$251,$A4) -> 0 | AK4: =SUMIFS('2016'!$M$6:$M$251,'2016'!$E$6:$E$251,AK$1,'2016'!$H$6:$H$251,$A4) -> 0 | AL4: =SUMIFS('2016'!$M$6:$M$251,'2016'!$E$6:$E$251,AL$1,'2016'!$H$6:$H$251,$A4) -> 0 | AM4: =SUMIFS('2016'!$M$6:$M$251,'2016'!$E$6:$E$251,AM$1,'2016'!$H$6:$H$251,$A4) -> 0 | AN4: =SUMIFS('2016'!$M$6:$M$251,'2016'!$E$6:$E$251,AN$1,'2016'!$H$6:$H$251,$A4) -> 0 | AO4: =SUMIFS('2016'!$M$6:$M$251,'2016'!$E$6:$E$251,AO$1,'2016'!$H$6:$H$251,$A4) -> 0 | AP4: =SUMIFS('2016'!$M$6:$M$251,'2016'!$E$6:$E$251,AP$1,'2016'!$H$6:$H$251,$A4) -> 0 | AQ4: =SUMIFS('2016'!$M$6:$M$251,'2016'!$E$6:$E$251,AQ$1,'2016'!$H$6:$H$251,$A4) -> 0 | AR4: =SUMIFS('2016'!$M$6:$M$251,'2016'!$E$6:$E$251,AR$1,'2016'!$H$6:$H$251,$A4) -> 0 | AS4: =SUMIFS('2016'!$M$6:$M$251,'2016'!$E$6:$E$251,AS$1,'2016'!$H$6:$H$251,$A4) -> 0
A5: 902000 | B5: 50400 | C5: =SUMIFS('2016'!$M$6:$M$251,'2016'!$E$6:$E$251,C$1,'2016'!$H$6:$H$251,$A5) -> 0 | D5: =SUMIFS('2016'!$M$6:$M$251,'2016'!$E$6:$E$251,D$1,'2016'!$H$6:$H$251,$A5) -> 0 | E5: =SUMIFS('2016'!$M$6:$M$251,'2016'!$E$6:$E$251,E$1,'2016'!$H$6:$H$251,$A5) -> 0 | F5: =SUMIFS('2016'!$M$6:$M$251,'2016'!$E$6:$E$251,F$1,'2016'!$H$6:$H$251,$A5) -> 0 | G5: =SUMIFS('2016'!$M$6:$M$251,'2016'!$E$6:$E$251,G$1,'2016'!$H$6:$H$251,$A5) -> 0 | H5: =SUMIFS('2016'!$M$6:$M$251,'2016'!$E$6:$E$251,H$1,'2016'!$H$6:$H$251,$A5) -> 0 | I5: =SUMIFS('2016'!$M$6:$M$251,'2016'!$E$6:$E$251,I$1,'2016'!$H$6:$H$251,$A5) -> 0 | J5: =SUMIFS('2016'!$M$6:$M$251,'2016'!$E$6:$E$251,J$1,'2016'!$H$6:$H$251,$A5) -> 0 | K5: =SUMIFS('2016'!$M$6:$M$251,'2016'!$E$6:$E$251,K$1,'2016'!$H$6:$H$251,$A5) -> 0 | L5: =SUMIFS('2016'!$M$6:$M$251,'2016'!$E$6:$E$251,L$1,'2016'!$H$6:$H$251,$A5) -> 0 | M5: =SUMIFS('2016'!$M$6:$M$251,'2016'!$E$6:$E$251,M$1,'2016'!$H$6:$H$251,$A5) -> 0 | N5: =SUMIFS('2016'!$M$6:$M$251,'2016'!$E$6:$E$251,N$1,'2016'!$H$6:$H$251,$A5) -> 0 | O5: =SUMIFS('2016'!$M$6:$M$251,'2016'!$E$6:$E$251,O$1,'2016'!$H$6:$H$251,$A5) -> 0 | P5: =SUMIFS('2016'!$M$6:$M$251,'2016'!$E$6:$E$251,P$1,'2016'!$H$6:$H$251,$A5) -> 0 | Q5: =SUMIFS('2016'!$M$6:$M$251,'2016'!$E$6:$E$251,Q$1,'2016'!$H$6:$H$251,$A5) -> 50400 | R5: =SUMIFS('2016'!$M$6:$M$251,'2016'!$E$6:$E$251,R$1,'2016'!$H$6:$H$251,$A5) -> 0 | S5: =SUMIFS('2016'!$M$6:$M$251,'2016'!$E$6:$E$251,S$1,'2016'!$H$6:$H$251,$A5) -> 0 | T5: =SUMIFS('2016'!$M$6:$M$251,'2016'!$E$6:$E$251,T$1,'2016'!$H$6:$H$251,$A5) -> 0 | U5: =SUMIFS('2016'!$M$6:$M$251,'2016'!$E$6:$E$251,U$1,'2016'!$H$6:$H$251,$A5) -> 0 | V5: =SUMIFS('2016'!$M$6:$M$251,'2016'!$E$6:$E$251,V$1,'2016'!$H$6:$H$251,$A5) -> 0 | W5: =SUMIFS('2016'!$M$6:$M$251,'2016'!$E$6:$E$251,W$1,'2016'!$H$6:$H$251,$A5) -> 0 | X5: =SUMIFS('2016'!$M$6:$M$251,'2016'!$E$6:$E$251,X$1,'2016'!$H$6:$H$251,$A5) -> 0 | Y5: =SUMIFS('2016'!$M$6:$M$251,'2016'!$E$6:$E$251,Y$1,'2016'!$H$6:$H$251,$A5) -> 0 | Z5: =SUMIFS('2016'!$M$6:$M$251,'2016'!$E$6:$E$251,Z$1,'2016'!$H$6:$H$251,$A5) -> 0 | AA5: =SUMIFS('2016'!$M$6:$M$251,'2016'!$E$6:$E$251,AA$1,'2016'!$H$6:$H$251,$A5) -> 0 | AB5: =SUMIFS('2016'!$M$6:$M$251,'2016'!$E$6:$E$251,AB$1,'2016'!$H$6:$H$251,$A5) -> 0 | AC5: =SUMIFS('2016'!$M$6:$M$251,'2016'!$E$6:$E$251,AC$1,'2016'!$H$6:$H$251,$A5) -> 0 | AD5: =SUMIFS('2016'!$M$6:$M$251,'2016'!$E$6:$E$251,AD$1,'2016'!$H$6:$H$251,$A5) -> 0 | AE5: =SUMIFS('2016'!$M$6:$M$251,'2016'!$E$6:$E$251,AE$1,'2016'!$H$6:$H$251,$A5) -> 0 | AF5: =SUMIFS('2016'!$M$6:$M$251,'2016'!$E$6:$E$251,AF$1,'2016'!$H$6:$H$251,$A5) -> 0 | AG5: =SUMIFS('2016'!$M$6:$M$251,'2016'!$E$6:$E$251,AG$1,'2016'!$H$6:$H$251,$A5) -> 0 | AH5: =SUMIFS('2016'!$M$6:$M$251,'2016'!$E$6:$E$251,AH$1,'2016'!$H$6:$H$251,$A5) -> 0 | AI5: =SUMIFS('2016'!$M$6:$M$251,'2016'!$E$6:$E$251,AI$1,'2016'!$H$6:$H$251,$A5) -> 0 | AJ5: =SUMIFS('2016'!$M$6:$M$251,'2016'!$E$6:$E$251,AJ$1,'2016'!$H$6:$H$251,$A5) -> 0 | AK5: =SUMIFS('2016'!$M$6:$M$251,'2016'!$E$6:$E$251,AK$1,'2016'!$H$6:$H$251,$A5) -> 0 | AL5: =SUMIFS('2016'!$M$6:$M$251,'2016'!$E$6:$E$251,AL$1,'2016'!$H$6:$H$251,$A5) -> 0 | AM5: =SUMIFS('2016'!$M$6:$M$251,'2016'!$E$6:$E$251,AM$1,'2016'!$H$6:$H$251,$A5) -> 0 | AN5: =SUMIFS('2016'!$M$6:$M$251,'2016'!$E$6:$E$251,AN$1,'2016'!$H$6:$H$251,$A5) -> 0 | AO5: =SUMIFS('2016'!$M$6:$M$251,'2016'!$E$6:$E$251,AO$1,'2016'!$H$6:$H$251,$A5) -> 0 | AP5: =SUMIFS('2016'!$M$6:$M$251,'2016'!$E$6:$E$251,AP$1,'2016'!$H$6:$H$251,$A5) -> 0 | AQ5: =SUMIFS('2016'!$M$6:$M$251,'2016'!$E$6:$E$251,AQ$1,'2016'!$H$6:$H$251,$A5) -> 0 | AR5: =SUMIFS('2016'!$M$6:$M$251,'2016'!$E$6:$E$251,AR$1,'2016'!$H$6:$H$251,$A5) -> 0 | AS5: =SUMIFS('2016'!$M$6:$M$251,'2016'!$E$6:$E$251,AS$1,'2016'!$H$6:$H$251,$A5) -> 0
A6: 903000 | B6: 521415 | C6: =SUMIFS('2016'!$M$6:$M$251,'2016'!$E$6:$E$251,C$1,'2016'!$H$6:$H$251,$A6) -> 0 | D6: =SUMIFS('2016'!$M$6:$M$251,'2016'!$E$6:$E$251,D$1,'2016'!$H$6:$H$251,$A6) -> 0 | E6: =SUMIFS('2016'!$M$6:$M$251,'2016'!$E$6:$E$251,E$1,'2016'!$H$6:$H$251,$A6) -> 0 | F6: =SUMIFS('2016'!$M$6:$M$251,'2016'!$E$6:$E$251,F$1,'2016'!$H$6:$H$251,$A6) -> 0 | G6: =SUMIFS('2016'!$M$6:$M$251,'2016'!$E$6:$E$251,G$1,'2016'!$H$6:$H$251,$A6) -> 0 | H6: =SUMIFS('2016'!$M$6:$M$251,'2016'!$E$6:$E$251,H$1,'2016'!$H$6:$H$251,$A6) -> 0 | I6: =SUMIFS('2016'!$M$6:$M$251,'2016'!$E$6:$E$251,I$1,'2016'!$H$6:$H$251,$A6) -> 0 | J6: =SUMIFS('2016'!$M$6:$M$251,'2016'!$E$6:$E$251,J$1,'2016'!$H$6:$H$251,$A6) -> 0 | K6: =SUMIFS('2016'!$M$6:$M$251,'2016'!$E$6:$E$251,K$1,'2016'!$H$6:$H$251,$A6) -> 0 | L6: =SUMIFS('2016'!$M$6:$M$251,'2016'!$E$6:$E$251,L$1,'2016'!$H$6:$H$251,$A6) -> 0 | M6: =SUMIFS('2016'!$M$6:$M$251,'2016'!$E$6:$E$251,M$1,'2016'!$H$6:$H$251,$A6) -> 0 | N6: =SUMIFS('2016'!$M$6:$M$251,'2016'!$E$6:$E$251,N$1,'2016'!$H$6:$H$251,$A6) -> 521415 | O6: =SUMIFS('2016'!$M$6:$M$251,'2016'!$E$6:$E$251,O$1,'2016'!$H$6:$H$251,$A6) -> 0 | P6: =SUMIFS('2016'!$M$6:$M$251,'2016'!$E$6:$E$251,P$1,'2016'!$H$6:$H$251,$A6) -> 0 | Q6: =SUMIFS('2016'!$M$6:$M$251,'2016'!$E$6:$E$251,Q$1,'2016'!$H$6:$H$251,$A6) -> 0 | R6: =SUMIFS('2016'!$M$6:$M$251,'2016'!$E$6:$E$251,R$1,'2016'!$H$6:$H$251,$A6) -> 0 | S6: =SUMIFS('2016'!$M$6:$M$251,'2016'!$E$6:$E$251,S$1,'2016'!$H$6:$H$251,$A6) -> 0 | T6: =SUMIFS('2016'!$M$6:$M$251,'2016'!$E$6:$E$251,T$1,'2016'!$H$6:$H$251,$A6) -> 0 | U6: =SUMIFS('2016'!$M$6:$M$251,'2016'!$E$6:$E$251,U$1,'2016'!$H$6:$H$251,$A6) -> 0 | V6: =SUMIFS('2016'!$M$6:$M$251,'2016'!$E$6:$E$251,V$1,'2016'!$H$6:$H$251,$A6) -> 0 | W6: =SUMIFS('2016'!$M$6:$M$251,'2016'!$E$6:$E$251,W$1,'2016'!$H$6:$H$251,$A6) -> 0 | X6: =SUMIFS('2016'!$M$6:$M$251,'2016'!$E$6:$E$251,X$1,'2016'!$H$6:$H$251,$A6) -> 0 | Y6: =SUMIFS('2016'!$M$6:$M$251,'2016'!$E$6:$E$251,Y$1,'2016'!$H$6:$H$251,$A6) -> 0 | Z6: =SUMIFS('2016'!$M$6:$M$251,'2016'!$E$6:$E$251,Z$1,'2016'!$H$6:$H$251,$A6) -> 0 | AA6: =SUMIFS('2016'!$M$6:$M$251,'2016'!$E$6:$E$251,AA$1,'2016'!$H$6:$H$251,$A6) -> 0 | AB6: =SUMIFS('2016'!$M$6:$M$251,'2016'!$E$6:$E$251,AB$1,'2016'!$H$6:$H$251,$A6) -> 0 | AC6: =SUMIFS('2016'!$M$6:$M$251,'2016'!$E$6:$E$251,AC$1,'2016'!$H$6:$H$251,$A6) -> 0 | AD6: =SUMIFS('2016'!$M$6:$M$251,'2016'!$E$6:$E$251,AD$1,'2016'!$H$6:$H$251,$A6) -> 0 | AE6: =SUMIFS('2016'!$M$6:$M$251,'2016'!$E$6:$E$251,AE$1,'2016'!$H$6:$H$251,$A6) -> 0 | AF6: =SUMIFS('2016'!$M$6:$M$251,'2016'!$E$6:$E$251,AF$1,'2016'!$H$6:$H$251,$A6) -> 0 | AG6: =SUMIFS('2016'!$M$6:$M$251,'2016'!$E$6:$E$251,AG$1,'2016'!$H$6:$H$251,$A6) -> 0 | AH6: =SUMIFS('2016'!$M$6:$M$251,'2016'!$E$6:$E$251,AH$1,'2016'!$H$6:$H$251,$A6) -> 0 | AI6: =SUMIFS('2016'!$M$6:$M$251,'2016'!$E$6:$E$251,AI$1,'2016'!$H$6:$H$251,$A6) -> 0 | AJ6: =SUMIFS('2016'!$M$6:$M$251,'2016'!$E$6:$E$251,AJ$1,'2016'!$H$6:$H$251,$A6) -> 0 | AK6: =SUMIFS('2016'!$M$6:$M$251,'2016'!$E$6:$E$251,AK$1,'2016'!$H$6:$H$251,$A6) -> 0 | AL6: =SUMIFS('2016'!$M$6:$M$251,'2016'!$E$6:$E$251,AL$1,'2016'!$H$6:$H$251,$A6) -> 0 | AM6: =SUMIFS('2016'!$M$6:$M$251,'2016'!$E$6:$E$251,AM$1,'2016'!$H$6:$H$251,$A6) -> 0 | AN6: =SUMIFS('2016'!$M$6:$M$251,'2016'!$E$6:$E$251,AN$1,'2016'!$H$6:$H$251,$A6) -> 0 | AO6: =SUMIFS('2016'!$M$6:$M$251,'2016'!$E$6:$E$251,AO$1,'2016'!$H$6:$H$251,$A6) -> 0 | AP6: =SUMIFS('2016'!$M$6:$M$251,'2016'!$E$6:$E$251,AP$1,'2016'!$H$6:$H$251,$A6) -> 0 | AQ6: =SUMIFS('2016'!$M$6:$M$251,'2016'!$E$6:$E$251,AQ$1,'2016'!$H$6:$H$251,$A6) -> 0 | AR6: =SUMIFS('2016'!$M$6:$M$251,'2016'!$E$6:$E$251,AR$1,'2016'!$H$6:$H$251,$A6) -> 0 | AS6: =SUMIFS('2016'!$M$6:$M$251,'2016'!$E$6:$E$251,AS$1,'2016'!$H$6:$H$251,$A6) -> 0
A7: 920000 | B7: 7460446 | C7: =SUMIFS('2016'!$M$6:$M$251,'2016'!$E$6:$E$251,C$1,'2016'!$H$6:$H$251,$A7) -> 777284 | D7: =SUMIFS('2016'!$M$6:$M$251,'2016'!$E$6:$E$251,D$1,'2016'!$H$6:$H$251,$A7) -> 0 | E7: =SUMIFS('2016'!$M$6:$M$251,'2016'!$E$6:$E$251,E$1,'2016'!$H$6:$H$251,$A7) -> 725104 | F7: =SUMIFS('2016'!$M$6:$M$251,'2016'!$E$6:$E$251,F$1,'2016'!$H$6:$H$251,$A7) -> 185749 | G7: =SUMIFS('2016'!$M$6:$M$251,'2016'!$E$6:$E$251,G$1,'2016'!$H$6:$H$251,$A7) -> 395132 | H7: =SUMIFS('2016'!$M$6:$M$251,'2016'!$E$6:$E$251,H$1,'2016'!$H$6:$H$251,$A7) -> 313429 | I7: =SUMIFS('2016'!$M$6:$M$251,'2016'!$E$6:$E$251,I$1,'2016'!$H$6:$H$251,$A7) -> 438634 | J7: =SUMIFS('2016'!$M$6:$M$251,'2016'!$E$6:$E$251,J$1,'2016'!$H$6:$H$251,$A7) -> 0 | K7: =SUMIFS('2016'!$M$6:$M$251,'2016'!$E$6:$E$251,K$1,'2016'!$H$6:$H$251,$A7) -> 93142 | L7: =SUMIFS('2016'!$M$6:$M$251,'2016'!$E$6:$E$251,L$1,'2016'!$H$6:$H$251,$A7) -> 1232888 | M7: =SUMIFS('2016'!$M$6:$M$251,'2016'!$E$6:$E$251,M$1,'2016'!$H$6:$H$251,$A7) -> 483115 | N7: =SUMIFS('2016'!$M$6:$M$251,'2016'!$E$6:$E$251,N$1,'2016'!$H$6:$H$251,$A7) -> 18535 | O7: =SUMIFS('2016'!$M$6:$M$251,'2016'!$E$6:$E$251,O$1,'2016'!$H$6:$H$251,$A7) -> 0 | P7: =SUMIFS('2016'!$M$6:$M$251,'2016'!$E$6:$E$251,P$1,'2016'!$H$6:$H$251,$A7) -> 125381 | Q7: =SUMIFS('2016'!$M$6:$M$251,'2016'!$E$6:$E$251,Q$1,'2016'!$H$6:$H$251,$A7) -> 0 | R7: =SUMIFS('2016'!$M$6:$M$251,'2016'!$E$6:$E$251,R$1,'2016'!$H$6:$H$251,$A7) -> 47731 | S7: =SUMIFS('2016'!$M$6:$M$251,'2016'!$E$6:$E$251,S$1,'2016'!$H$6:$H$251,$A7) -> 45837 | T7: =SUMIFS('2016'!$M$6:$M$251,'2016'!$E$6:$E$251,T$1,'2016'!$H$6:$H$251,$A7) -> 50227 | U7: =SUMIFS('2016'!$M$6:$M$251,'2016'!$E$6:$E$251,U$1,'2016'!$H$6:$H$251,$A7) -> 0 | V7: =SUMIFS('2016'!$M$6:$M$251,'2016'!$E$6:$E$251,V$1,'2016'!$H$6:$H$251,$A7) -> 0 | W7: =SUMIFS('2016'!$M$6:$M$251,'2016'!$E$6:$E$251,W$1,'2016'!$H$6:$H$251,$A7) -> 0 | X7: =SUMIFS('2016'!$M$6:$M$251,'2016'!$E$6:$E$251,X$1,'2016'!$H$6:$H$251,$A7) -> 511329 | Y7: =SUMIFS('2016'!$M$6:$M$251,'2016'!$E$6:$E$251,Y$1,'2016'!$H$6:$H$251,$A7) -> 0 | Z7: =SUMIFS('2016'!$M$6:$M$251,'2016'!$E$6:$E$251,Z$1,'2016'!$H$6:$H$251,$A7) -> 0 | AA7: =SUMIFS('2016'!$M$6:$M$251,'2016'!$E$6:$E$251,AA$1,'2016'!$H$6:$H$251,$A7) -> 188533 | AB7: =SUMIFS('2016'!$M$6:$M$251,'2016'!$E$6:$E$251,AB$1,'2016'!$H$6:$H$251,$A7) -> 394742 | AC7: =SUMIFS('2016'!$M$6:$M$251,'2016'!$E$6:$E$251,AC$1,'2016'!$H$6:$H$251,$A7) -> 166852 | AD7: =SUMIFS('2016'!$M$6:$M$251,'2016'!$E$6:$E$251,AD$1,'2016'!$H$6:$H$251,$A7) -> 226207 | AE7: =SUMIFS('2016'!$M$6:$M$251,'2016'!$E$6:$E$251,AE$1,'2016'!$H$6:$H$251,$A7) -> 387548 | AF7: =SUMIFS('2016'!$M$6:$M$251,'2016'!$E$6:$E$251,AF$1,'2016'!$H$6:$H$251,$A7) -> 233570 | AG7: =SUMIFS('2016'!$M$6:$M$251,'2016'!$E$6:$E$251,AG$1,'2016'!$H$6:$H$251,$A7) -> 0 | AH7: =SUMIFS('2016'!$M$6:$M$251,'2016'!$E$6:$E$251,AH$1,'2016'!$H$6:$H$251,$A7) -> 0 | AI7: =SUMIFS('2016'!$M$6:$M$251,'2016'!$E$6:$E$251,AI$1,'2016'!$H$6:$H$251,$A7) -> 294471 | AJ7: =SUMIFS('2016'!$M$6:$M$251,'2016'!$E$6:$E$251,AJ$1,'2016'!$H$6:$H$251,$A7) -> 26351 | AK7: =SUMIFS('2016'!$M$6:$M$251,'2016'!$E$6:$E$251,AK$1,'2016'!$H$6:$H$251,$A7) -> 6066 | AL7: =SUMIFS('2016'!$M$6:$M$251,'2016'!$E$6:$E$251,AL$1,'2016'!$H$6:$H$251,$A7) -> 0 | AM7: =SUMIFS('2016'!$M$6:$M$251,'2016'!$E$6:$E$251,AM$1,'2016'!$H$6:$H$251,$A7) -> 6837 | AN7: =SUMIFS('2016'!$M$6:$M$251,'2016'!$E$6:$E$251,AN$1,'2016'!$H$6:$H$251,$A7) -> 8584 | AO7: =SUMIFS('2016'!$M$6:$M$251,'2016'!$E$6:$E$251,AO$1,'2016'!$H$6:$H$251,$A7) -> 35036 | AP7: =SUMIFS('2016'!$M$6:$M$251,'2016'!$E$6:$E$251,AP$1,'2016'!$H$6:$H$251,$A7) -> 42132 | AQ7: =SUMIFS('2016'!$M$6:$M$251,'2016'!$E$6:$E$251,AQ$1,'2016'!$H$6:$H$251,$A7) -> 0 | AR7: =SUMIFS('2016'!$M$6:$M$251,'2016'!$E$6:$E$251,AR$1,'2016'!$H$6:$H$251,$A7) -> 0 | AS7: =SUMIFS('2016'!$M$6:$M$251,'2016'!$E$6:$E$251,AS$1,'2016'!$H$6:$H$251,$A7) -> 0
A8: 921000 | B8: 3938219 | C8: =SUMIFS('2016'!$M$6:$M$251,'2016'!$E$6:$E$251,C$1,'2016'!$H$6:$H$251,$A8) -> 15000 | D8: =SUMIFS('2016'!$M$6:$M$251,'2016'!$E$6:$E$251,D$1,'2016'!$H$6:$H$251,$A8) -> 0 | E8: =SUMIFS('2016'!$M$6:$M$251,'2016'!$E$6:$E$251,E$1,'2016'!$H$6:$H$251,$A8) -> 0 | F8: =SUMIFS('2016'!$M$6:$M$251,'2016'!$E$6:$E$251,F$1,'2016'!$H$6:$H$251,$A8) -> 0 | G8: =SUMIFS('2016'!$M$6:$M$251,'2016'!$E$6:$E$251,G$1,'2016'!$H$6:$H$251,$A8) -> 54180 | H8: =SUMIFS('2016'!$M$6:$M$251,'2016'!$E$6:$E$251,H$1,'2016'!$H$6:$H$251,$A8) -> 0 | I8: =SUMIFS('2016'!$M$6:$M$251,'2016'!$E$6:$E$251,I$1,'2016'!$H$6:$H$251,$A8) -> 0 | J8: =SUMIFS('2016'!$M$6:$M$251,'2016'!$E$6:$E$251,J$1,'2016'!$H$6:$H$251,$A8) -> 9154 | K8: =SUMIFS('2016'!$M$6:$M$251,'2016'!$E$6:$E$251,K$1,'2016'!$H$6:$H$251,$A8) -> 14000 | L8: =SUMIFS('2016'!$M$6:$M$251,'2016'!$E$6:$E$251,L$1,'2016'!$H$6:$H$251,$A8) -> 34450 | M8: =SUMIFS('2016'!$M$6:$M$251,'2016'!$E$6:$E$251,M$1,'2016'!$H$6:$H$251,$A8) -> 5500 | N8: =SUMIFS('2016'!$M$6:$M$251,'2016'!$E$6:$E$251,N$1,'2016'!$H$6:$H$251,$A8) -> 1400 | O8: =SUMIFS('2016'!$M$6:$M$251,'2016'!$E$6:$E$251,O$1,'2016'!$H$6:$H$251,$A8) -> 0 | P8: =SUMIFS('2016'!$M$6:$M$251,'2016'!$E$6:$E$251,P$1,'2016'!$H$6:$H$251,$A8) -> 0 | Q8: =SUMIFS('2016'!$M$6:$M$251,'2016'!$E$6:$E$251,Q$1,'2016'!$H$6:$H$251,$A8) -> 1674885 | R8: =SUMIFS('2016'!$M$6:$M$251,'2016'!$E$6:$E$251,R$1,'2016'!$H$6:$H$251,$A8) -> 0 | S8: =SUMIFS('2016'!$M$6:$M$251,'2016'!$E$6:$E$251,S$1,'2016'!$H$6:$H$251,$A8) -> 0 | T8: =SUMIFS('2016'!$M$6:$M$251,'2016'!$E$6:$E$251,T$1,'2016'!$H$6:$H$251,$A8) -> 0 | U8: =SUMIFS('2016'!$M$6:$M$251,'2016'!$E$6:$E$251,U$1,'2016'!$H$6:$H$251,$A8) -> 283985 | V8: =SUMIFS('2016'!$M$6:$M$251,'2016'!$E$6:$E$251,V$1,'2016'!$H$6:$H$251,$A8) -> 5408 | W8: =SUMIFS('2016'!$M$6:$M$251,'2016'!$E$6:$E$251,W$1,'2016'!$H$6:$H$251,$A8) -> 1834744 | X8: =SUMIFS('2016'!$M$6:$M$251,'2016'!$E$6:$E$251,X$1,'2016'!$H$6:$H$251,$A8) -> 0 | Y8: =SUMIFS('2016'!$M$6:$M$251,'2016'!$E$6:$E$251,Y$1,'2016'!$H$6:$H$251,$A8) -> 5513 | Z8: =SUMIFS('2016'!$M$6:$M$251,'2016'!$E$6:$E$251,Z$1,'2016'!$H$6:$H$251,$A8) -> 0 | AA8: =SUMIFS('2016'!$M$6:$M$251,'2016'!$E$6:$E$251,AA$1,'2016'!$H$6:$H$251,$A8) -> 0 | AB8: =SUMIFS('2016'!$M$6:$M$251,'2016'!$E$6:$E$251,AB$1,'2016'!$H$6:$H$251,$A8) -> 0 | AC8: =SUMIFS('2016'!$M$6:$M$251,'2016'!$E$6:$E$251,AC$1,'2016'!$H$6:$H$251,$A8) -> 0 | AD8: =SUMIFS('2016'!$M$6:$M$251,'2016'!$E$6:$E$251,AD$1,'2016'!$H$6:$H$251,$A8) -> 0 | AE8: =SUMIFS('2016'!$M$6:$M$251,'2016'!$E$6:$E$251,AE$1,'2016'!$H$6:$H$251,$A8) -> 0 | AF8: =SUMIFS('2016'!$M$6:$M$251,'2016'!$E$6:$E$251,AF$1,'2016'!$H$6:$H$251,$A8) -> 0 | AG8: =SUMIFS('2016'!$M$6:$M$251,'2016'!$E$6:$E$251,AG$1,'2016'!$H$6:$H$251,$A8) -> 0 | AH8: =SUMIFS('2016'!$M$6:$M$251,'2016'!$E$6:$E$251,AH$1,'2016'!$H$6:$H$251,$A8) -> 0 | AI8: =SUMIFS('2016'!$M$6:$M$251,'2016'!$E$6:$E$251,AI$1,'2016'!$H$6:$H$251,$A8) -> 0 | AJ8: =SUMIFS('2016'!$M$6:$M$251,'2016'!$E$6:$E$251,AJ$1,'2016'!$H$6:$H$251,$A8) -> 0 | AK8: =SUMIFS('2016'!$M$6:$M$251,'2016'!$E$6:$E$251,AK$1,'2016'!$H$6:$H$251,$A8) -> 0 | AL8: =SUMIFS('2016'!$M$6:$M$251,'2016'!$E$6:$E$251,AL$1,'2016'!$H$6:$H$251,$A8) -> 0 | AM8: =SUMIFS('2016'!$M$6:$M$251,'2016'!$E$6:$E$251,AM$1,'2016'!$H$6:$H$251,$A8) -> 0 | AN8: =SUMIFS('2016'!$M$6:$M$251,'2016'!$E$6:$E$251,AN$1,'2016'!$H$6:$H$251,$A8) -> 0 | AO8: =SUMIFS('2016'!$M$6:$M$251,'2016'!$E$6:$E$251,AO$1,'2016'!$H$6:$H$251,$A8) -> 0 | AP8: =SUMIFS('2016'!$M$6:$M$251,'2016'!$E$6:$E$251,AP$1,'2016'!$H$6:$H$251,$A8) -> 0 | AQ8: =SUMIFS('2016'!$M$6:$M$251,'2016'!$E$6:$E$251,AQ$1,'2016'!$H$6:$H$251,$A8) -> 0 | AR8: =SUMIFS('2016'!$M$6:$M$251,'2016'!$E$6:$E$251,AR$1,'2016'!$H$6:$H$251,$A8) -> 0 | AS8: =SUMIFS('2016'!$M$6:$M$251,'2016'!$E$6:$E$251,AS$1,'2016'!$H$6:$H$251,$A8) -> 0
A9: 923000 | B9: 6856337 | C9: =SUMIFS('2016'!$M$6:$M$251,'2016'!$E$6:$E$251,C$1,'2016'!$H$6:$H$251,$A9) -> 380409 | D9: =SUMIFS('2016'!$M$6:$M$251,'2016'!$E$6:$E$251,D$1,'2016'!$H$6:$H$251,$A9) -> 1354211 | E9: =SUMIFS('2016'!$M$6:$M$251,'2016'!$E$6:$E$251,E$1,'2016'!$H$6:$H$251,$A9) -> 0 | F9: =SUMIFS('2016'!$M$6:$M$251,'2016'!$E$6:$E$251,F$1,'2016'!$H$6:$H$251,$A9) -> 61121 | G9: =SUMIFS('2016'!$M$6:$M$251,'2016'!$E$6:$E$251,G$1,'2016'!$H$6:$H$251,$A9) -> 580694 | H9: =SUMIFS('2016'!$M$6:$M$251,'2016'!$E$6:$E$251,H$1,'2016'!$H$6:$H$251,$A9) -> 54897 | I9: =SUMIFS('2016'!$M$6:$M$251,'2016'!$E$6:$E$251,I$1,'2016'!$H$6:$H$251,$A9) -> 0 | J9: =SUMIFS('2016'!$M$6:$M$251,'2016'!$E$6:$E$251,J$1,'2016'!$H$6:$H$251,$A9) -> 180000 | K9: =SUMIFS('2016'!$M$6:$M$251,'2016'!$E$6:$E$251,K$1,'2016'!$H$6:$H$251,$A9) -> 0 | L9: =SUMIFS('2016'!$M$6:$M$251,'2016'!$E$6:$E$251,L$1,'2016'!$H$6:$H$251,$A9) -> 0 | M9: =SUMIFS('2016'!$M$6:$M$251,'2016'!$E$6:$E$251,M$1,'2016'!$H$6:$H$251,$A9) -> 0 | N9: =SUMIFS('2016'!$M$6:$M$251,'2016'!$E$6:$E$251,N$1,'2016'!$H$6:$H$251,$A9) -> 0 | O9: =SUMIFS('2016'!$M$6:$M$251,'2016'!$E$6:$E$251,O$1,'2016'!$H$6:$H$251,$A9) -> 297874 | P9: =SUMIFS('2016'!$M$6:$M$251,'2016'!$E$6:$E$251,P$1,'2016'!$H$6:$H$251,$A9) -> 104918 | Q9: =SUMIFS('2016'!$M$6:$M$251,'2016'!$E$6:$E$251,Q$1,'2016'!$H$6:$H$251,$A9) -> 81207 | R9: =SUMIFS('2016'!$M$6:$M$251,'2016'!$E$6:$E$251,R$1,'2016'!$H$6:$H$251,$A9) -> 47252 | S9: =SUMIFS('2016'!$M$6:$M$251,'2016'!$E$6:$E$251,S$1,'2016'!$H$6:$H$251,$A9) -> 0 | T9: =SUMIFS('2016'!$M$6:$M$251,'2016'!$E$6:$E$251,T$1,'2016'!$H$6:$H$251,$A9) -> 27792 | U9: =SUMIFS('2016'!$M$6:$M$251,'2016'!$E$6:$E$251,U$1,'2016'!$H$6:$H$251,$A9) -> 85230 | V9: =SUMIFS('2016'!$M$6:$M$251,'2016'!$E$6:$E$251,V$1,'2016'!$H$6:$H$251,$A9) -> 210672 | W9: =SUMIFS('2016'!$M$6:$M$251,'2016'!$E$6:$E$251,W$1,'2016'!$H$6:$H$251,$A9) -> 34725 | X9: =SUMIFS('2016'!$M$6:$M$251,'2016'!$E$6:$E$251,X$1,'2016'!$H$6:$H$251,$A9) -> 0 | Y9: =SUMIFS('2016'!$M$6:$M$251,'2016'!$E$6:$E$251,Y$1,'2016'!$H$6:$H$251,$A9) -> 1050686 | Z9: =SUMIFS('2016'!$M$6:$M$251,'2016'!$E$6:$E$251,Z$1,'2016'!$H$6:$H$251,$A9) -> 0 | AA9: =SUMIFS('2016'!$M$6:$M$251,'2016'!$E$6:$E$251,AA$1,'2016'!$H$6:$H$251,$A9) -> 332356 | AB9: =SUMIFS('2016'!$M$6:$M$251,'2016'!$E$6:$E$251,AB$1,'2016'!$H$6:$H$251,$A9) -> 0 | AC9: =SUMIFS('2016'!$M$6:$M$251,'2016'!$E$6:$E$251,AC$1,'2016'!$H$6:$H$251,$A9) -> 0 | AD9: =SUMIFS('2016'!$M$6:$M$251,'2016'!$E$6:$E$251,AD$1,'2016'!$H$6:$H$251,$A9) -> 0 | AE9: =SUMIFS('2016'!$M$6:$M$251,'2016'!$E$6:$E$251,AE$1,'2016'!$H$6:$H$251,$A9) -> 0 | AF9: =SUMIFS('2016'!$M$6:$M$251,'2016'!$E$6:$E$251,AF$1,'2016'!$H$6:$H$251,$A9) -> 0 | AG9: =SUMIFS('2016'!$M$6:$M$251,'2016'!$E$6:$E$251,AG$1,'2016'!$H$6:$H$251,$A9) -> 985980 | AH9: =SUMIFS('2016'!$M$6:$M$251,'2016'!$E$6:$E$251,AH$1,'2016'!$H$6:$H$251,$A9) -> 600093 | AI9: =SUMIFS('2016'!$M$6:$M$251,'2016'!$E$6:$E$251,AI$1,'2016'!$H$6:$H$251,$A9) -> 62854 | AJ9: =SUMIFS('2016'!$M$6:$M$251,'2016'!$E$6:$E$251,AJ$1,'2016'!$H$6:$H$251,$A9) -> 101049 | AK9: =SUMIFS('2016'!$M$6:$M$251,'2016'!$E$6:$E$251,AK$1,'2016'!$H$6:$H$251,$A9) -> 27925 | AL9: =SUMIFS('2016'!$M$6:$M$251,'2016'!$E$6:$E$251,AL$1,'2016'!$H$6:$H$251,$A9) -> 15079 | AM9: =SUMIFS('2016'!$M$6:$M$251,'2016'!$E$6:$E$251,AM$1,'2016'!$H$6:$H$251,$A9) -> 26539 | AN9: =SUMIFS('2016'!$M$6:$M$251,'2016'!$E$6:$E$251,AN$1,'2016'!$H$6:$H$251,$A9) -> 40463 | AO9: =SUMIFS('2016'!$M$6:$M$251,'2016'!$E$6:$E$251,AO$1,'2016'!$H$6:$H$251,$A9) -> 17090 | AP9: =SUMIFS('2016'!$M$6:$M$251,'2016'!$E$6:$E$251,AP$1,'2016'!$H$6:$H$251,$A9) -> 35909 | AQ9: =SUMIFS('2016'!$M$6:$M$251,'2016'!$E$6:$E$251,AQ$1,'2016'!$H$6:$H$251,$A9) -> 59312 | AR9: =SUMIFS('2016'!$M$6:$M$251,'2016'!$E$6:$E$251,AR$1,'2016'!$H$6:$H$251,$A9) -> 0 | AS9: =SUMIFS('2016'!$M$6:$M$251,'2016'!$E$6:$E$251,AS$1,'2016'!$H$6:$H$251,$A9) -> 0
A10: 926100 | B10: 105299 | C10: =SUMIFS('2016'!$M$6:$M$251,'2016'!$E$6:$E$251,C$1,'2016'!$H$6:$H$251,$A10) -> 105299 | D10: =SUMIFS('2016'!$M$6:$M$251,'2016'!$E$6:$E$251,D$1,'2016'!$H$6:$H$251,$A10) -> 0 | E10: =SUMIFS('2016'!$M$6:$M$251,'2016'!$E$6:$E$251,E$1,'2016'!$H$6:$H$251,$A10) -> 0 | F10: =SUMIFS('2016'!$M$6:$M$251,'2016'!$E$6:$E$251,F$1,'2016'!$H$6:$H$251,$A10) -> 0 | G10: =SUMIFS('2016'!$M$6:$M$251,'2016'!$E$6:$E$251,G$1,'2016'!$H$6:$H$251,$A10) -> 0 | H10: =SUMIFS('2016'!$M$6:$M$251,'2016'!$E$6:$E$251,H$1,'2016'!$H$6:$H$251,$A10) -> 0 | I10: =SUMIFS('2016'!$M$6:$M$251,'2016'!$E$6:$E$251,I$1,'2016'!$H$6:$H$251,$A10) -> 0 | J10: =SUMIFS('2016'!$M$6:$M$251,'2016'!$E$6:$E$251,J$1,'2016'!$H$6:$H$251,$A10) -> 0 | K10: =SUMIFS('2016'!$M$6:$M$251,'2016'!$E$6:$E$251,K$1,'2016'!$H$6:$H$251,$A10) -> 0 | L10: =SUMIFS('2016'!$M$6:$M$251,'2016'!$E$6:$E$251,L$1,'2016'!$H$6:$H$251,$A10) -> 0 | M10: =SUMIFS('2016'!$M$6:$M$251,'2016'!$E$6:$E$251,M$1,'2016'!$H$6:$H$251,$A10) -> 0 | N10: =SUMIFS('2016'!$M$6:$M$251,'2016'!$E$6:$E$251,N$1,'2016'!$H$6:$H$251,$A10) -> 0 | O10: =SUMIFS('2016'!$M$6:$M$251,'2016'!$E$6:$E$251,O$1,'2016'!$H$6:$H$251,$A10) -> 0 | P10: =SUMIFS('2016'!$M$6:$M$251,'2016'!$E$6:$E$251,P$1,'2016'!$H$6:$H$251,$A10) -> 0 | Q10: =SUMIFS('2016'!$M$6:$M$251,'2016'!$E$6:$E$251,Q$1,'2016'!$H$6:$H$251,$A10) -> 0 | R10: =SUMIFS('2016'!$M$6:$M$251,'2016'!$E$6:$E$251,R$1,'2016'!$H$6:$H$251,$A10) -> 0 | S10: =SUMIFS('2016'!$M$6:$M$251,'2016'!$E$6:$E$251,S$1,'2016'!$H$6:$H$251,$A10) -> 0 | T10: =SUMIFS('2016'!$M$6:$M$251,'2016'!$E$6:$E$251,T$1,'2016'!$H$6:$H$251,$A10) -> 0 | U10: =SUMIFS('2016'!$M$6:$M$251,'2016'!$E$6:$E$251,U$1,'2016'!$H$6:$H$251,$A10) -> 0 | V10: =SUMIFS('2016'!$M$6:$M$251,'2016'!$E$6:$E$251,V$1,'2016'!$H$6:$H$251,$A10) -> 0 | W10: =SUMIFS('2016'!$M$6:$M$251,'2016'!$E$6:$E$251,W$1,'2016'!$H$6:$H$251,$A10) -> 0 | X10: =SUMIFS('2016'!$M$6:$M$251,'2016'!$E$6:$E$251,X$1,'2016'!$H$6:$H$251,$A10) -> 0 | Y10: =SUMIFS('2016'!$M$6:$M$251,'2016'!$E$6:$E$251,Y$1,'2016'!$H$6:$H$251,$A10) -> 0 | Z10: =SUMIFS('2016'!$M$6:$M$251,'2016'!$E$6:$E$251,Z$1,'2016'!$H$6:$H$251,$A10) -> 0 | AA10: =SUMIFS('2016'!$M$6:$M$251,'2016'!$E$6:$E$251,AA$1,'2016'!$H$6:$H$251,$A10) -> 0 | AB10: =SUMIFS('2016'!$M$6:$M$251,'2016'!$E$6:$E$251,AB$1,'2016'!$H$6:$H$251,$A10) -> 0 | AC10: =SUMIFS('2016'!$M$6:$M$251,'2016'!$E$6:$E$251,AC$1,'2016'!$H$6:$H$251,$A10) -> 0 | AD10: =SUMIFS('2016'!$M$6:$M$251,'2016'!$E$6:$E$251,AD$1,'2016'!$H$6:$H$251,$A10) -> 0 | AE10: =SUMIFS('2016'!$M$6:$M$251,'2016'!$E$6:$E$251,AE$1,'2016'!$H$6:$H$251,$A10) -> 0 | AF10: =SUMIFS('2016'!$M$6:$M$251,'2016'!$E$6:$E$251,AF$1,'2016'!$H$6:$H$251,$A10) -> 0 | AG10: =SUMIFS('2016'!$M$6:$M$251,'2016'!$E$6:$E$251,AG$1,'2016'!$H$6:$H$251,$A10) -> 0 | AH10: =SUMIFS('2016'!$M$6:$M$251,'2016'!$E$6:$E$251,AH$1,'2016'!$H$6:$H$251,$A10) -> 0 | AI10: =SUMIFS('2016'!$M$6:$M$251,'2016'!$E$6:$E$251,AI$1,'2016'!$H$6:$H$251,$A10) -> 0 | AJ10: =SUMIFS('2016'!$M$6:$M$251,'2016'!$E$6:$E$251,AJ$1,'2016'!$H$6:$H$251,$A10) -> 0 | AK10: =SUMIFS('2016'!$M$6:$M$251,'2016'!$E$6:$E$251,AK$1,'2016'!$H$6:$H$251,$A10) -> 0 | AL10: =SUMIFS('2016'!$M$6:$M$251,'2016'!$E$6:$E$251,AL$1,'2016'!$H$6:$H$251,$A10) -> 0 | AM10: =SUMIFS('2016'!$M$6:$M$251,'2016'!$E$6:$E$251,AM$1,'2016'!$H$6:$H$251,$A10) -> 0 | AN10: =SUMIFS('2016'!$M$6:$M$251,'2016'!$E$6:$E$251,AN$1,'2016'!$H$6:$H$251,$A10) -> 0 | AO10: =SUMIFS('2016'!$M$6:$M$251,'2016'!$E$6:$E$251,AO$1,'2016'!$H$6:$H$251,$A10) -> 0 | AP10: =SUMIFS('2016'!$M$6:$M$251,'2016'!$E$6:$E$251,AP$1,'2016'!$H$6:$H$251,$A10) -> 0 | AQ10: =SUMIFS('2016'!$M$6:$M$251,'2016'!$E$6:$E$251,AQ$1,'2016'!$H$6:$H$251,$A10) -> 0 | AR10: =SUMIFS('2016'!$M$6:$M$251,'2016'!$E$6:$E$251,AR$1,'2016'!$H$6:$H$251,$A10) -> 0 | AS10: =SUMIFS('2016'!$M$6:$M$251,'2016'!$E$6:$E$251,AS$1,'2016'!$H$6:$H$251,$A10) -> 0
A11: 928000 | B11: 100800 | C11: =SUMIFS('2016'!$M$6:$M$251,'2016'!$E$6:$E$251,C$1,'2016'!$H$6:$H$251,$A11) -> 0 | D11: =SUMIFS('2016'!$M$6:$M$251,'2016'!$E$6:$E$251,D$1,'2016'!$H$6:$H$251,$A11) -> 0 | E11: =SUMIFS('2016'!$M$6:$M$251,'2016'!$E$6:$E$251,E$1,'2016'!$H$6:$H$251,$A11) -> 0 | F11: =SUMIFS('2016'!$M$6:$M$251,'2016'!$E$6:$E$251,F$1,'2016'!$H$6:$H$251,$A11) -> 0 | G11: =SUMIFS('2016'!$M$6:$M$251,'2016'!$E$6:$E$251,G$1,'2016'!$H$6:$H$251,$A11) -> 0 | H11: =SUMIFS('2016'!$M$6:$M$251,'2016'!$E$6:$E$251,H$1,'2016'!$H$6:$H$251,$A11) -> 0 | I11: =SUMIFS('2016'!$M$6:$M$251,'2016'!$E$6:$E$251,I$1,'2016'!$H$6:$H$251,$A11) -> 0 | J11: =SUMIFS('2016'!$M$6:$M$251,'2016'!$E$6:$E$251,J$1,'2016'!$H$6:$H$251,$A11) -> 0 | K11: =SUMIFS('2016'!$M$6:$M$251,'2016'!$E$6:$E$251,K$1,'2016'!$H$6:$H$251,$A11) -> 0 | L11: =SUMIFS('2016'!$M$6:$M$251,'2016'!$E$6:$E$251,L$1,'2016'!$H$6:$H$251,$A11) -> 0 | M11: =SUMIFS('2016'!$M$6:$M$251,'2016'!$E$6:$E$251,M$1,'2016'!$H$6:$H$251,$A11) -> 0 | N11: =SUMIFS('2016'!$M$6:$M$251,'2016'!$E$6:$E$251,N$1,'2016'!$H$6:$H$251,$A11) -> 0 | O11: =SUMIFS('2016'!$M$6:$M$251,'2016'!$E$6:$E$251,O$1,'2016'!$H$6:$H$251,$A11) -> 0 | P11: =SUMIFS('2016'!$M$6:$M$251,'2016'!$E$6:$E$251,P$1,'2016'!$H$6:$H$251,$A11) -> 0 | Q11: =SUMIFS('2016'!$M$6:$M$251,'2016'!$E$6:$E$251,Q$1,'2016'!$H$6:$H$251,$A11) -> 100800 | R11: =SUMIFS('2016'!$M$6:$M$251,'2016'!$E$6:$E$251,R$1,'2016'!$H$6:$H$251,$A11) -> 0 | S11: =SUMIFS('2016'!$M$6:$M$251,'2016'!$E$6:$E$251,S$1,'2016'!$H$6:$H$251,$A11) -> 0 | T11: =SUMIFS('2016'!$M$6:$M$251,'2016'!$E$6:$E$251,T$1,'2016'!$H$6:$H$251,$A11) -> 0 | U11: =SUMIFS('2016'!$M$6:$M$251,'2016'!$E$6:$E$251,U$1,'2016'!$H$6:$H$251,$A11) -> 0 | V11: =SUMIFS('2016'!$M$6:$M$251,'2016'!$E$6:$E$251,V$1,'2016'!$H$6:$H$251,$A11) -> 0 | W11: =SUMIFS('2016'!$M$6:$M$251,'2016'!$E$6:$E$251,W$1,'2016'!$H$6:$H$251,$A11) -> 0 | X11: =SUMIFS('2016'!$M$6:$M$251,'2016'!$E$6:$E$251,X$1,'2016'!$H$6:$H$251,$A11) -> 0 | Y11: =SUMIFS('2016'!$M$6:$M$251,'2016'!$E$6:$E$251,Y$1,'2016'!$H$6:$H$251,$A11) -> 0 | Z11: =SUMIFS('2016'!$M$6:$M$251,'2016'!$E$6:$E$251,Z$1,'2016'!$H$6:$H$251,$A11) -> 0 | AA11: =SUMIFS('2016'!$M$6:$M$251,'2016'!$E$6:$E$251,AA$1,'2016'!$H$6:$H$251,$A11) -> 0 | AB11: =SUMIFS('2016'!$M$6:$M$251,'2016'!$E$6:$E$251,AB$1,'2016'!$H$6:$H$251,$A11) -> 0 | AC11: =SUMIFS('2016'!$M$6:$M$251,'2016'!$E$6:$E$251,AC$1,'2016'!$H$6:$H$251,$A11) -> 0 | AD11: =SUMIFS('2016'!$M$6:$M$251,'2016'!$E$6:$E$251,AD$1,'2016'!$H$6:$H$251,$A11) -> 0 | AE11: =SUMIFS('2016'!$M$6:$M$251,'2016'!$E$6:$E$251,AE$1,'2016'!$H$6:$H$251,$A11) -> 0 | AF11: =SUMIFS('2016'!$M$6:$M$251,'2016'!$E$6:$E$251,AF$1,'2016'!$H$6:$H$251,$A11) -> 0 | AG11: =SUMIFS('2016'!$M$6:$M$251,'2016'!$E$6:$E$251,AG$1,'2016'!$H$6:$H$251,$A11) -> 0 | AH11: =SUMIFS('2016'!$M$6:$M$251,'2016'!$E$6:$E$251,AH$1,'2016'!$H$6:$H$251,$A11) -> 0 | AI11: =SUMIFS('2016'!$M$6:$M$251,'2016'!$E$6:$E$251,AI$1,'2016'!$H$6:$H$251,$A11) -> 0 | AJ11: =SUMIFS('2016'!$M$6:$M$251,'2016'!$E$6:$E$251,AJ$1,'2016'!$H$6:$H$251,$A11) -> 0 | AK11: =SUMIFS('2016'!$M$6:$M$251,'2016'!$E$6:$E$251,AK$1,'2016'!$H$6:$H$251,$A11) -> 0 | AL11: =SUMIFS('2016'!$M$6:$M$251,'2016'!$E$6:$E$251,AL$1,'2016'!$H$6:$H$251,$A11) -> 0 | AM11: =SUMIFS('2016'!$M$6:$M$251,'2016'!$E$6:$E$251,AM$1,'2016'!$H$6:$H$251,$A11) -> 0 | AN11: =SUMIFS('2016'!$M$6:$M$251,'2016'!$E$6:$E$251,AN$1,'2016'!$H$6:$H$251,$A11) -> 0 | AO11: =SUMIFS('2016'!$M$6:$M$251,'2016'!$E$6:$E$251,AO$1,'2016'!$H$6:$H$251,$A11) -> 0 | AP11: =SUMIFS('2016'!$M$6:$M$251,'2016'!$E$6:$E$251,AP$1,'2016'!$H$6:$H$251,$A11) -> 0 | AQ11: =SUMIFS('2016'!$M$6:$M$251,'2016'!$E$6:$E$251,AQ$1,'2016'!$H$6:$H$251,$A11) -> 0 | AR11: =SUMIFS('2016'!$M$6:$M$251,'2016'!$E$6:$E$251,AR$1,'2016'!$H$6:$H$251,$A11) -> 0 | AS11: =SUMIFS('2016'!$M$6:$M$251,'2016'!$E$6:$E$251,AS$1,'2016'!$H$6:$H$251,$A11) -> 0
A12: 930200 | B12: 15750 | C12: =SUMIFS('2016'!$M$6:$M$251,'2016'!$E$6:$E$251,C$1,'2016'!$H$6:$H$251,$A12) -> 0 | D12: =SUMIFS('2016'!$M$6:$M$251,'2016'!$E$6:$E$251,D$1,'2016'!$H$6:$H$251,$A12) -> 0 | E12: =SUMIFS('2016'!$M$6:$M$251,'2016'!$E$6:$E$251,E$1,'2016'!$H$6:$H$251,$A12) -> 0 | F12: =SUMIFS('2016'!$M$6:$M$251,'2016'!$E$6:$E$251,F$1,'2016'!$H$6:$H$251,$A12) -> 0 | G12: =SUMIFS('2016'!$M$6:$M$251,'2016'!$E$6:$E$251,G$1,'2016'!$H$6:$H$251,$A12) -> 0 | H12: =SUMIFS('2016'!$M$6:$M$251,'2016'!$E$6:$E$251,H$1,'2016'!$H$6:$H$251,$A12) -> 0 | I12: =SUMIFS('2016'!$M$6:$M$251,'2016'!$E$6:$E$251,I$1,'2016'!$H$6:$H$251,$A12) -> 0 | J12: =SUMIFS('2016'!$M$6:$M$251,'2016'!$E$6:$E$251,J$1,'2016'!$H$6:$H$251,$A12) -> 0 | K12: =SUMIFS('2016'!$M$6:$M$251,'2016'!$E$6:$E$251,K$1,'2016'!$H$6:$H$251,$A12) -> 0 | L12: =SUMIFS('2016'!$M$6:$M$251,'2016'!$E$6:$E$251,L$1,'2016'!$H$6:$H$251,$A12) -> 0 | M12: =SUMIFS('2016'!$M$6:$M$251,'2016'!$E$6:$E$251,M$1,'2016'!$H$6:$H$251,$A12) -> 0 | N12: =SUMIFS('2016'!$M$6:$M$251,'2016'!$E$6:$E$251,N$1,'2016'!$H$6:$H$251,$A12) -> 0 | O12: =SUMIFS('2016'!$M$6:$M$251,'2016'!$E$6:$E$251,O$1,'2016'!$H$6:$H$251,$A12) -> 0 | P12: =SUMIFS('2016'!$M$6:$M$251,'2016'!$E$6:$E$251,P$1,'2016'!$H$6:$H$251,$A12) -> 0 | Q12: =SUMIFS('2016'!$M$6:$M$251,'2016'!$E$6:$E$251,Q$1,'2016'!$H$6:$H$251,$A12) -> 15750 | R12: =SUMIFS('2016'!$M$6:$M$251,'2016'!$E$6:$E$251,R$1,'2016'!$H$6:$H$251,$A12) -> 0 | S12: =SUMIFS('2016'!$M$6:$M$251,'2016'!$E$6:$E$251,S$1,'2016'!$H$6:$H$251,$A12) -> 0 | T12: =SUMIFS('2016'!$M$6:$M$251,'2016'!$E$6:$E$251,T$1,'2016'!$H$6:$H$251,$A12) -> 0 | U12: =SUMIFS('2016'!$M$6:$M$251,'2016'!$E$6:$E$251,U$1,'2016'!$H$6:$H$251,$A12) -> 0 | V12: =SUMIFS('2016'!$M$6:$M$251,'2016'!$E$6:$E$251,V$1,'2016'!$H$6:$H$251,$A12) -> 0 | W12: =SUMIFS('2016'!$M$6:$M$251,'2016'!$E$6:$E$251,W$1,'2016'!$H$6:$H$251,$A12) -> 0 | X12: =SUMIFS('2016'!$M$6:$M$251,'2016'!$E$6:$E$251,X$1,'2016'!$H$6:$H$251,$A12) -> 0 | Y12: =SUMIFS('2016'!$M$6:$M$251,'2016'!$E$6:$E$251,Y$1,'2016'!$H$6:$H$251,$A12) -> 0 | Z12: =SUMIFS('2016'!$M$6:$M$251,'2016'!$E$6:$E$251,Z$1,'2016'!$H$6:$H$251,$A12) -> 0 | AA12: =SUMIFS('2016'!$M$6:$M$251,'2016'!$E$6:$E$251,AA$1,'2016'!$H$6:$H$251,$A12) -> 0 | AB12: =SUMIFS('2016'!$M$6:$M$251,'2016'!$E$6:$E$251,AB$1,'2016'!$H$6:$H$251,$A12) -> 0 | AC12: =SUMIFS('2016'!$M$6:$M$251,'2016'!$E$6:$E$251,AC$1,'2016'!$H$6:$H$251,$A12) -> 0 | AD12: =SUMIFS('2016'!$M$6:$M$251,'2016'!$E$6:$E$251,AD$1,'2016'!$H$6:$H$251,$A12) -> 0 | AE12: =SUMIFS('2016'!$M$6:$M$251,'2016'!$E$6:$E$251,AE$1,'2016'!$H$6:$H$251,$A12) -> 0 | AF12: =SUMIFS('2016'!$M$6:$M$251,'2016'!$E$6:$E$251,AF$1,'2016'!$H$6:$H$251,$A12) -> 0 | AG12: =SUMIFS('2016'!$M$6:$M$251,'2016'!$E$6:$E$251,AG$1,'2016'!$H$6:$H$251,$A12) -> 0 | AH12: =SUMIFS('2016'!$M$6:$M$251,'2016'!$E$6:$E$251,AH$1,'2016'!$H$6:$H$251,$A12) -> 0 | AI12: =SUMIFS('2016'!$M$6:$M$251,'2016'!$E$6:$E$251,AI$1,'2016'!$H$6:$H$251,$A12) -> 0 | AJ12: =SUMIFS('2016'!$M$6:$M$251,'2016'!$E$6:$E$251,AJ$1,'2016'!$H$6:$H$251,$A12) -> 0 | AK12: =SUMIFS('2016'!$M$6:$M$251,'2016'!$E$6:$E$251,AK$1,'2016'!$H$6:$H$251,$A12) -> 0 | AL12: =SUMIFS('2016'!$M$6:$M$251,'2016'!$E$6:$E$251,AL$1,'2016'!$H$6:$H$251,$A12) -> 0 | AM12: =SUMIFS('2016'!$M$6:$M$251,'2016'!$E$6:$E$251,AM$1,'2016'!$H$6:$H$251,$A12) -> 0 | AN12: =SUMIFS('2016'!$M$6:$M$251,'2016'!$E$6:$E$251,AN$1,'2016'!$H$6:$H$251,$A12) -> 0 | AO12: =SUMIFS('2016'!$M$6:$M$251,'2016'!$E$6:$E$251,AO$1,'2016'!$H$6:$H$251,$A12) -> 0 | AP12: =SUMIFS('2016'!$M$6:$M$251,'2016'!$E$6:$E$251,AP$1,'2016'!$H$6:$H$251,$A12) -> 0 | AQ12: =SUMIFS('2016'!$M$6:$M$251,'2016'!$E$6:$E$251,AQ$1,'2016'!$H$6:$H$251,$A12) -> 0 | AR12: =SUMIFS('2016'!$M$6:$M$251,'2016'!$E$6:$E$251,AR$1,'2016'!$H$6:$H$251,$A12) -> 0 | AS12: =SUMIFS('2016'!$M$6:$M$251,'2016'!$E$6:$E$251,AS$1,'2016'!$H$6:$H$251,$A12) -> 0
A13: 931000 | B13: 308836 | C13: =SUMIFS('2016'!$M$6:$M$251,'2016'!$E$6:$E$251,C$1,'2016'!$H$6:$H$251,$A13) -> 0 | D13: =SUMIFS('2016'!$M$6:$M$251,'2016'!$E$6:$E$251,D$1,'2016'!$H$6:$H$251,$A13) -> 190728 | E13: =SUMIFS('2016'!$M$6:$M$251,'2016'!$E$6:$E$251,E$1,'2016'!$H$6:$H$251,$A13) -> 0 | F13: =SUMIFS('2016'!$M$6:$M$251,'2016'!$E$6:$E$251,F$1,'2016'!$H$6:$H$251,$A13) -> 0 | G13: =SUMIFS('2016'!$M$6:$M$251,'2016'!$E$6:$E$251,G$1,'2016'!$H$6:$H$251,$A13) -> 0 | H13: =SUMIFS('2016'!$M$6:$M$251,'2016'!$E$6:$E$251,H$1,'2016'!$H$6:$H$251,$A13) -> 0 | I13: =SUMIFS('2016'!$M$6:$M$251,'2016'!$E$6:$E$251,I$1,'2016'!$H$6:$H$251,$A13) -> 0 | J13: =SUMIFS('2016'!$M$6:$M$251,'2016'!$E$6:$E$251,J$1,'2016'!$H$6:$H$251,$A13) -> 0 | K13: =SUMIFS('2016'!$M$6:$M$251,'2016'!$E$6:$E$251,K$1,'2016'!$H$6:$H$251,$A13) -> 0 | L13: =SUMIFS('2016'!$M$6:$M$251,'2016'!$E$6:$E$251,L$1,'2016'!$H$6:$H$251,$A13) -> 0 | M13: =SUMIFS('2016'!$M$6:$M$251,'2016'!$E$6:$E$251,M$1,'2016'!$H$6:$H$251,$A13) -> 0 | N13: =SUMIFS('2016'!$M$6:$M$251,'2016'!$E$6:$E$251,N$1,'2016'!$H$6:$H$251,$A13) -> 0 | O13: =SUMIFS('2016'!$M$6:$M$251,'2016'!$E$6:$E$251,O$1,'2016'!$H$6:$H$251,$A13) -> 0 | P13: =SUMIFS('2016'!$M$6:$M$251,'2016'!$E$6:$E$251,P$1,'2016'!$H$6:$H$251,$A13) -> 0 | Q13: =SUMIFS('2016'!$M$6:$M$251,'2016'!$E$6:$E$251,Q$1,'2016'!$H$6:$H$251,$A13) -> 118108 | R13: =SUMIFS('2016'!$M$6:$M$251,'2016'!$E$6:$E$251,R$1,'2016'!$H$6:$H$251,$A13) -> 0 | S13: =SUMIFS('2016'!$M$6:$M$251,'2016'!$E$6:$E$251,S$1,'2016'!$H$6:$H$251,$A13) -> 0 | T13: =SUMIFS('2016'!$M$6:$M$251,'2016'!$E$6:$E$251,T$1,'2016'!$H$6:$H$251,$A13) -> 0 | U13: =SUMIFS('2016'!$M$6:$M$251,'2016'!$E$6:$E$251,U$1,'2016'!$H$6:$H$251,$A13) -> 0 | V13: =SUMIFS('2016'!$M$6:$M$251,'2016'!$E$6:$E$251,V$1,'2016'!$H$6:$H$251,$A13) -> 0 | W13: =SUMIFS('2016'!$M$6:$M$251,'2016'!$E$6:$E$251,W$1,'2016'!$H$6:$H$251,$A13) -> 0 | X13: =SUMIFS('2016'!$M$6:$M$251,'2016'!$E$6:$E$251,X$1,'2016'!$H$6:$H$251,$A13) -> 0 | Y13: =SUMIFS('2016'!$M$6:$M$251,'2016'!$E$6:$E$251,Y$1,'2016'!$H$6:$H$251,$A13) -> 0 | Z13: =SUMIFS('2016'!$M$6:$M$251,'2016'!$E$6:$E$251,Z$1,'2016'!$H$6:$H$251,$A13) -> 0 | AA13: =SUMIFS('2016'!$M$6:$M$251,'2016'!$E$6:$E$251,AA$1,'2016'!$H$6:$H$251,$A13) -> 0 | AB13: =SUMIFS('2016'!$M$6:$M$251,'2016'!$E$6:$E$251,AB$1,'2016'!$H$6:$H$251,$A13) -> 0 | AC13: =SUMIFS('2016'!$M$6:$M$251,'2016'!$E$6:$E$251,AC$1,'2016'!$H$6:$H$251,$A13) -> 0 | AD13: =SUMIFS('2016'!$M$6:$M$251,'2016'!$E$6:$E$251,AD$1,'2016'!$H$6:$H$251,$A13) -> 0 | AE13: =SUMIFS('2016'!$M$6:$M$251,'2016'!$E$6:$E$251,AE$1,'2016'!$H$6:$H$251,$A13) -> 0 | AF13: =SUMIFS('2016'!$M$6:$M$251,'2016'!$E$6:$E$251,AF$1,'2016'!$H$6:$H$251,$A13) -> 0 | AG13: =SUMIFS('2016'!$M$6:$M$251,'2016'!$E$6:$E$251,AG$1,'2016'!$H$6:$H$251,$A13) -> 0 | AH13: =SUMIFS('2016'!$M$6:$M$251,'2016'!$E$6:$E$251,AH$1,'2016'!$H$6:$H$251,$A13) -> 0 | AI13: =SUMIFS('2016'!$M$6:$M$251,'2016'!$E$6:$E$251,AI$1,'2016'!$H$6:$H$251,$A13) -> 0 | AJ13: =SUMIFS('2016'!$M$6:$M$251,'2016'!$E$6:$E$251,AJ$1,'2016'!$H$6:$H$251,$A13) -> 0 | AK13: =SUMIFS('2016'!$M$6:$M$251,'2016'!$E$6:$E$251,AK$1,'2016'!$H$6:$H$251,$A13) -> 0 | AL13: =SUMIFS('2016'!$M$6:$M$251,'2016'!$E$6:$E$251,AL$1,'2016'!$H$6:$H$251,$A13) -> 0 | AM13: =SUMIFS('2016'!$M$6:$M$251,'2016'!$E$6:$E$251,AM$1,'2016'!$H$6:$H$251,$A13) -> 0 | AN13: =SUMIFS('2016'!$M$6:$M$251,'2016'!$E$6:$E$251,AN$1,'2016'!$H$6:$H$251,$A13) -> 0 | AO13: =SUMIFS('2016'!$M$6:$M$251,'2016'!$E$6:$E$251,AO$1,'2016'!$H$6:$H$251,$A13) -> 0 | AP13: =SUMIFS('2016'!$M$6:$M$251,'2016'!$E$6:$E$251,AP$1,'2016'!$H$6:$H$251,$A13) -> 0 | AQ13: =SUMIFS('2016'!$M$6:$M$251,'2016'!$E$6:$E$251,AQ$1,'2016'!$H$6:$H$251,$A13) -> 0 | AR13: =SUMIFS('2016'!$M$6:$M$251,'2016'!$E$6:$E$251,AR$1,'2016'!$H$6:$H$251,$A13) -> 0 | AS13: =SUMIFS('2016'!$M$6:$M$251,'2016'!$E$6:$E$251,AS$1,'2016'!$H$6:$H$251,$A13) -> 0
A14: 935000 | B14: 8129135 | C14: =SUMIFS('2016'!$M$6:$M$251,'2016'!$E$6:$E$251,C$1,'2016'!$H$6:$H$251,$A14) -> 0 | D14: =SUMIFS('2016'!$M$6:$M$251,'2016'!$E$6:$E$251,D$1,'2016'!$H$6:$H$251,$A14) -> 7232588 | E14: =SUMIFS('2016'!$M$6:$M$251,'2016'!$E$6:$E$251,E$1,'2016'!$H$6:$H$251,$A14) -> 0 | F14: =SUMIFS('2016'!$M$6:$M$251,'2016'!$E$6:$E$251,F$1,'2016'!$H$6:$H$251,$A14) -> 0 | G14: =SUMIFS('2016'!$M$6:$M$251,'2016'!$E$6:$E$251,G$1,'2016'!$H$6:$H$251,$A14) -> 0 | H14: =SUMIFS('2016'!$M$6:$M$251,'2016'!$E$6:$E$251,H$1,'2016'!$H$6:$H$251,$A14) -> 0 | I14: =SUMIFS('2016'!$M$6:$M$251,'2016'!$E$6:$E$251,I$1,'2016'!$H$6:$H$251,$A14) -> 0 | J14: =SUMIFS('2016'!$M$6:$M$251,'2016'!$E$6:$E$251,J$1,'2016'!$H$6:$H$251,$A14) -> 44806 | K14: =SUMIFS('2016'!$M$6:$M$251,'2016'!$E$6:$E$251,K$1,'2016'!$H$6:$H$251,$A14) -> 0 | L14: =SUMIFS('2016'!$M$6:$M$251,'2016'!$E$6:$E$251,L$1,'2016'!$H$6:$H$251,$A14) -> 0 | M14: =SUMIFS('2016'!$M$6:$M$251,'2016'!$E$6:$E$251,M$1,'2016'!$H$6:$H$251,$A14) -> 0 | N14: =SUMIFS('2016'!$M$6:$M$251,'2016'!$E$6:$E$251,N$1,'2016'!$H$6:$H$251,$A14) -> 0 | O14: =SUMIFS('2016'!$M$6:$M$251,'2016'!$E$6:$E$251,O$1,'2016'!$H$6:$H$251,$A14) -> 0 | P14: =SUMIFS('2016'!$M$6:$M$251,'2016'!$E$6:$E$251,P$1,'2016'!$H$6:$H$251,$A14) -> 0 | Q14: =SUMIFS('2016'!$M$6:$M$251,'2016'!$E$6:$E$251,Q$1,'2016'!$H$6:$H$251,$A14) -> 137626 | R14: =SUMIFS('2016'!$M$6:$M$251,'2016'!$E$6:$E$251,R$1,'2016'!$H$6:$H$251,$A14) -> 0 | S14: =SUMIFS('2016'!$M$6:$M$251,'2016'!$E$6:$E$251,S$1,'2016'!$H$6:$H$251,$A14) -> 0 | T14: =SUMIFS('2016'!$M$6:$M$251,'2016'!$E$6:$E$251,T$1,'2016'!$H$6:$H$251,$A14) -> 0 | U14: =SUMIFS('2016'!$M$6:$M$251,'2016'!$E$6:$E$251,U$1,'2016'!$H$6:$H$251,$A14) -> 83094 | V14: =SUMIFS('2016'!$M$6:$M$251,'2016'!$E$6:$E$251,V$1,'2016'!$H$6:$H$251,$A14) -> 48017 | W14: =SUMIFS('2016'!$M$6:$M$251,'2016'!$E$6:$E$251,W$1,'2016'!$H$6:$H$251,$A14) -> 23076 | X14: =SUMIFS('2016'!$M$6:$M$251,'2016'!$E$6:$E$251,X$1,'2016'!$H$6:$H$251,$A14) -> 0 | Y14: =SUMIFS('2016'!$M$6:$M$251,'2016'!$E$6:$E$251,Y$1,'2016'!$H$6:$H$251,$A14) -> 559928 | Z14: =SUMIFS('2016'!$M$6:$M$251,'2016'!$E$6:$E$251,Z$1,'2016'!$H$6:$H$251,$A14) -> 0 | AA14: =SUMIFS('2016'!$M$6:$M$251,'2016'!$E$6:$E$251,AA$1,'2016'!$H$6:$H$251,$A14) -> 0 | AB14: =SUMIFS('2016'!$M$6:$M$251,'2016'!$E$6:$E$251,AB$1,'2016'!$H$6:$H$251,$A14) -> 0 | AC14: =SUMIFS('2016'!$M$6:$M$251,'2016'!$E$6:$E$251,AC$1,'2016'!$H$6:$H$251,$A14) -> 0 | AD14: =SUMIFS('2016'!$M$6:$M$251,'2016'!$E$6:$E$251,AD$1,'2016'!$H$6:$H$251,$A14) -> 0 | AE14: =SUMIFS('2016'!$M$6:$M$251,'2016'!$E$6:$E$251,AE$1,'2016'!$H$6:$H$251,$A14) -> 0 | AF14: =SUMIFS('2016'!$M$6:$M$251,'2016'!$E$6:$E$251,AF$1,'2016'!$H$6:$H$251,$A14) -> 0 | AG14: =SUMIFS('2016'!$M$6:$M$251,'2016'!$E$6:$E$251,AG$1,'2016'!$H$6:$H$251,$A14) -> 0 | AH14: =SUMIFS('2016'!$M$6:$M$251,'2016'!$E$6:$E$251,AH$1,'2016'!$H$6:$H$251,$A14) -> 0 | AI14: =SUMIFS('2016'!$M$6:$M$251,'2016'!$E$6:$E$251,AI$1,'2016'!$H$6:$H$251,$A14) -> 0 | AJ14: =SUMIFS('2016'!$M$6:$M$251,'2016'!$E$6:$E$251,AJ$1,'2016'!$H$6:$H$251,$A14) -> 0 | AK14: =SUMIFS('2016'!$M$6:$M$251,'2016'!$E$6:$E$251,AK$1,'2016'!$H$6:$H$251,$A14) -> 0 | AL14: =SUMIFS('2016'!$M$6:$M$251,'2016'!$E$6:$E$251,AL$1,'2016'!$H$6:$H$251,$A14) -> 0 | AM14: =SUMIFS('2016'!$M$6:$M$251,'2016'!$E$6:$E$251,AM$1,'2016'!$H$6:$H$251,$A14) -> 0 | AN14: =SUMIFS('2016'!$M$6:$M$251,'2016'!$E$6:$E$251,AN$1,'2016'!$H$6:$H$251,$A14) -> 0 | AO14: =SUMIFS('2016'!$M$6:$M$251,'2016'!$E$6:$E$251,AO$1,'2016'!$H$6:$H$251,$A14) -> 0 | AP14: =SUMIFS('2016'!$M$6:$M$251,'2016'!$E$6:$E$251,AP$1,'2016'!$H$6:$H$251,$A14) -> 0 | AQ14: =SUMIFS('2016'!$M$6:$M$251,'2016'!$E$6:$E$251,AQ$1,'2016'!$H$6:$H$251,$A14) -> 0 | AR14: =SUMIFS('2016'!$M$6:$M$251,'2016'!$E$6:$E$251,AR$1,'2016'!$H$6:$H$251,$A14) -> 0 | AS14: =SUMIFS('2016'!$M$6:$M$251,'2016'!$E$6:$E$251,AS$1,'2016'!$H$6:$H$251,$A14) -> 0
B16: =SUM(B2:B15) -> 27813007 | C16: 1277992 | D16: 8777527 | E16: =SUM(E2:E15) -> 725104 | F16: =SUM(F2:F15) -> 246870 | G16: =SUM(G2:G15) -> 1030006 | H16: =SUM(H2:H15) -> 368326 | I16: =SUM(I2:I15) -> 438634 | J16: =SUM(J2:J15) -> 233960 | K16: =SUM(K2:K15) -> 107142 | L16: =SUM(L2:L15) -> 1267338 | M16: =SUM(M2:M15) -> 488615 | N16: =SUM(N2:N15) -> 541350 | O16: =SUM(O2:O15) -> 297874 | P16: =SUM(P2:P15) -> 230299 | Q16: =SUM(Q2:Q15) -> 2178776 | R16: =SUM(R2:R15) -> 94983 | S16: =SUM(S2:S15) -> 45837 | T16: =SUM(T2:T15) -> 78019 | U16: =SUM(U2:U15) -> 452309 | V16: =SUM(V2:V15) -> 264097 | W16: =SUM(W2:W15) -> 1892545 | X16: =SUM(X2:X15) -> 511329 | Y16: =SUM(Y2:Y15) -> 1942497 | Z16: =SUM(Z2:Z15) -> 0 | AA16: =SUM(AA2:AA15) -> 520889 | AB16: =SUM(AB2:AB15) -> 394742 | AC16: =SUM(AC2:AC15) -> 166852 | AD16: =SUM(AD2:AD15) -> 226207 | AE16: =SUM(AE2:AE15) -> 387548 | AF16: =SUM(AF2:AF15) -> 233570 | AG16: =SUM(AG2:AG15) -> 985980 | AH16: =SUM(AH2:AH15) -> 600093 | AI16: =SUM(AI2:AI15) -> 357325 | AJ16: =SUM(AJ2:AJ15) -> 127400 | AK16: =SUM(AK2:AK15) -> 33991 | AL16: =SUM(AL2:AL15) -> 15079 | AM16: =SUM(AM2:AM15) -> 33376 | AN16: =SUM(AN2:AN15) -> 49047 | AO16: =SUM(AO2:AO15) -> 52126 | AP16: =SUM(AP2:AP15) -> 78041 | AQ16: =SUM(AQ2:AQ15) -> 59312 | AR16: =SUM(AR2:AR15) -> 0 | AS16: =SUM(AS2:AS15) -> 0
B18: ='2016'!M4 -> 27813007
B20: =B18-B16 -> 0
A23: 2017 | B23: Sum | C23: N09 | D23: A09 | E23: P99 | F23: P59 | G23: P09 | H23: C09 | I23: C19 | J23: C29 | K23: C59 | L23: B09 | M23: E19 | N23: M19 | O23: R19 | P23: J09 | Q23: J29 | R23: E09 | S23: M09 | T23: R09 | U23: E29 | V23: M29 | W23: R29 | X23: W09 | Y23: S09 | Z23: X09 | AA23: Q19 | AB23: A19 | AC23: F19 | AD23: K19 | AE23: X19 | AF23: S19 | AG23: T19 | AH23: V19 | AI23: W39 | AJ23: G39 | AK23: Y39 | AL23: K39 | AM23: F39 | AN23: A39 | AO23: L39 | AP23: X39 | AQ23: S39 | AR23: T39 | AS23: V39
A24: 556000 | B24: =SUM(C24:AS24) -> 119372 | C24: =SUMIFS('2017'!$M$6:$M$258,'2017'!$E$6:$E$258,C$1,'2017'!$H$6:$H$258,$A24) -> 0 | D24: =SUMIFS('2017'!$M$6:$M$258,'2017'!$E$6:$E$258,D$1,'2017'!$H$6:$H$258,$A24) -> 0 | E24: =SUMIFS('2017'!$M$6:$M$258,'2017'!$E$6:$E$258,E$1,'2017'!$H$6:$H$258,$A24) -> 0 | F24: =SUMIFS('2017'!$M$6:$M$258,'2017'!$E$6:$E$258,F$1,'2017'!$H$6:$H$258,$A24) -> 0 | G24: =SUMIFS('2017'!$M$6:$M$258,'2017'!$E$6:$E$258,G$1,'2017'!$H$6:$H$258,$A24) -> 0 | H24: =SUMIFS('2017'!$M$6:$M$258,'2017'!$E$6:$E$258,H$1,'2017'!$H$6:$H$258,$A24) -> 0 | I24: =SUMIFS('2017'!$M$6:$M$258,'2017'!$E$6:$E$258,I$1,'2017'!$H$6:$H$258,$A24) -> 0 | J24: =SUMIFS('2017'!$M$6:$M$258,'2017'!$E$6:$E$258,J$1,'2017'!$H$6:$H$258,$A24) -> 0 | K24: =SUMIFS('2017'!$M$6:$M$258,'2017'!$E$6:$E$258,K$1,'2017'!$H$6:$H$258,$A24) -> 0 | L24: =SUMIFS('2017'!$M$6:$M$258,'2017'!$E$6:$E$258,L$1,'2017'!$H$6:$H$258,$A24) -> 0 | M24: =SUMIFS('2017'!$M$6:$M$258,'2017'!$E$6:$E$258,M$1,'2017'!$H$6:$H$258,$A24) -> 0 | N24: =SUMIFS('2017'!$M$6:$M$258,'2017'!$E$6:$E$258,N$1,'2017'!$H$6:$H$258,$A24) -> 0 | O24: =SUMIFS('2017'!$M$6:$M$258,'2017'!$E$6:$E$258,O$1,'2017'!$H$6:$H$258,$A24) -> 0 | P24: =SUMIFS('2017'!$M$6:$M$258,'2017'!$E$6:$E$258,P$1,'2017'!$H$6:$H$258,$A24) -> 0 | Q24: =SUMIFS('2017'!$M$6:$M$258,'2017'!$E$6:$E$258,Q$1,'2017'!$H$6:$H$258,$A24) -> 0 | R24: =SUMIFS('2017'!$M$6:$M$258,'2017'!$E$6:$E$258,R$1,'2017'!$H$6:$H$258,$A24) -> 0 | S24: =SUMIFS('2017'!$M$6:$M$258,'2017'!$E$6:$E$258,S$1,'2017'!$H$6:$H$258,$A24) -> 0 | T24: =SUMIFS('2017'!$M$6:$M$258,'2017'!$E$6:$E$258,T$1,'2017'!$H$6:$H$258,$A24) -> 0 | U24: =SUMIFS('2017'!$M$6:$M$258,'2017'!$E$6:$E$258,U$1,'2017'!$H$6:$H$258,$A24) -> 0 | V24: =SUMIFS('2017'!$M$6:$M$258,'2017'!$E$6:$E$258,V$1,'2017'!$H$6:$H$258,$A24) -> 0 | W24: =SUMIFS('2017'!$M$6:$M$258,'2017'!$E$6:$E$258,W$1,'2017'!$H$6:$H$258,$A24) -> 0 | X24: =SUMIFS('2017'!$M$6:$M$258,'2017'!$E$6:$E$258,X$1,'2017'!$H$6:$H$258,$A24) -> 0 | Y24: =SUMIFS('2017'!$M$6:$M$258,'2017'!$E$6:$E$258,Y$1,'2017'!$H$6:$H$258,$A24) -> 119372 | Z24: =SUMIFS('2017'!$M$6:$M$258,'2017'!$E$6:$E$258,Z$1,'2017'!$H$6:$H$258,$A24) -> 0 | AA24: =SUMIFS('2017'!$M$6:$M$258,'2017'!$E$6:$E$258,AA$1,'2017'!$H$6:$H$258,$A24) -> 0 | AB24: =SUMIFS('2017'!$M$6:$M$258,'2017'!$E$6:$E$258,AB$1,'2017'!$H$6:$H$258,$A24) -> 0 | AC24: =SUMIFS('2017'!$M$6:$M$258,'2017'!$E$6:$E$258,AC$1,'2017'!$H$6:$H$258,$A24) -> 0 | AD24: =SUMIFS('2017'!$M$6:$M$258,'2017'!$E$6:$E$258,AD$1,'2017'!$H$6:$H$258,$A24) -> 0 | AE24: =SUMIFS('2017'!$M$6:$M$258,'2017'!$E$6:$E$258,AE$1,'2017'!$H$6:$H$258,$A24) -> 0 | AF24: =SUMIFS('2017'!$M$6:$M$258,'2017'!$E$6:$E$258,AF$1,'2017'!$H$6:$H$258,$A24) -> 0 | AG24: =SUMIFS('2017'!$M$6:$M$258,'2017'!$E$6:$E$258,AG$1,'2017'!$H$6:$H$258,$A24) -> 0 | AH24: =SUMIFS('2017'!$M$6:$M$258,'2017'!$E$6:$E$258,AH$1,'2017'!$H$6:$H$258,$A24) -> 0 | AI24: =SUMIFS('2017'!$M$6:$M$258,'2017'!$E$6:$E$258,AI$1,'2017'!$H$6:$H$258,$A24) -> 0 | AJ24: =SUMIFS('2017'!$M$6:$M$258,'2017'!$E$6:$E$258,AJ$1,'2017'!$H$6:$H$258,$A24) -> 0 | AK24: =SUMIFS('2017'!$M$6:$M$258,'2017'!$E$6:$E$258,AK$1,'2017'!$H$6:$H$258,$A24) -> 0 | AL24: =SUMIFS('2017'!$M$6:$M$258,'2017'!$E$6:$E$258,AL$1,'2017'!$H$6:$H$258,$A24) -> 0 | AM24: =SUMIFS('2017'!$M$6:$M$258,'2017'!$E$6:$E$258,AM$1,'2017'!$H$6:$H$258,$A24) -> 0 | AN24: =SUMIFS('2017'!$M$6:$M$258,'2017'!$E$6:$E$258,AN$1,'2017'!$H$6:$H$258,$A24) -> 0 | AO24: =SUMIFS('2017'!$M$6:$M$258,'2017'!$E$6:$E$258,AO$1,'2017'!$H$6:$H$258,$A24) -> 0 | AP24: =SUMIFS('2017'!$M$6:$M$258,'2017'!$E$6:$E$258,AP$1,'2017'!$H$6:$H$258,$A24) -> 0 | AQ24: =SUMIFS('2017'!$M$6:$M$258,'2017'!$E$6:$E$258,AQ$1,'2017'!$H$6:$H$258,$A24) -> 0 | AR24: =SUMIFS('2017'!$M$6:$M$258,'2017'!$E$6:$E$258,AR$1,'2017'!$H$6:$H$258,$A24) -> 0 | AS24: =SUMIFS('2017'!$M$6:$M$258,'2017'!$E$6:$E$258,AS$1,'2017'!$H$6:$H$258,$A24) -> 0
A25: 560000 | B25: =SUM(C25:AS25) -> 223318 | C25: =SUMIFS('2017'!$M$6:$M$258,'2017'!$E$6:$E$258,C$1,'2017'!$H$6:$H$258,$A25) -> 0 | D25: =SUMIFS('2017'!$M$6:$M$258,'2017'!$E$6:$E$258,D$1,'2017'!$H$6:$H$258,$A25) -> 0 | E25: =SUMIFS('2017'!$M$6:$M$258,'2017'!$E$6:$E$258,E$1,'2017'!$H$6:$H$258,$A25) -> 0 | F25: =SUMIFS('2017'!$M$6:$M$258,'2017'!$E$6:$E$258,F$1,'2017'!$H$6:$H$258,$A25) -> 0 | G25: =SUMIFS('2017'!$M$6:$M$258,'2017'!$E$6:$E$258,G$1,'2017'!$H$6:$H$258,$A25) -> 0 | H25: =SUMIFS('2017'!$M$6:$M$258,'2017'!$E$6:$E$258,H$1,'2017'!$H$6:$H$258,$A25) -> 0 | I25: =SUMIFS('2017'!$M$6:$M$258,'2017'!$E$6:$E$258,I$1,'2017'!$H$6:$H$258,$A25) -> 0 | J25: =SUMIFS('2017'!$M$6:$M$258,'2017'!$E$6:$E$258,J$1,'2017'!$H$6:$H$258,$A25) -> 0 | K25: =SUMIFS('2017'!$M$6:$M$258,'2017'!$E$6:$E$258,K$1,'2017'!$H$6:$H$258,$A25) -> 0 | L25: =SUMIFS('2017'!$M$6:$M$258,'2017'!$E$6:$E$258,L$1,'2017'!$H$6:$H$258,$A25) -> 0 | M25: =SUMIFS('2017'!$M$6:$M$258,'2017'!$E$6:$E$258,M$1,'2017'!$H$6:$H$258,$A25) -> 0 | N25: =SUMIFS('2017'!$M$6:$M$258,'2017'!$E$6:$E$258,N$1,'2017'!$H$6:$H$258,$A25) -> 0 | O25: =SUMIFS('2017'!$M$6:$M$258,'2017'!$E$6:$E$258,O$1,'2017'!$H$6:$H$258,$A25) -> 0 | P25: =SUMIFS('2017'!$M$6:$M$258,'2017'!$E$6:$E$258,P$1,'2017'!$H$6:$H$258,$A25) -> 0 | Q25: =SUMIFS('2017'!$M$6:$M$258,'2017'!$E$6:$E$258,Q$1,'2017'!$H$6:$H$258,$A25) -> 0 | R25: =SUMIFS('2017'!$M$6:$M$258,'2017'!$E$6:$E$258,R$1,'2017'!$H$6:$H$258,$A25) -> 0 | S25: =SUMIFS('2017'!$M$6:$M$258,'2017'!$E$6:$E$258,S$1,'2017'!$H$6:$H$258,$A25) -> 0 | T25: =SUMIFS('2017'!$M$6:$M$258,'2017'!$E$6:$E$258,T$1,'2017'!$H$6:$H$258,$A25) -> 0 | U25: =SUMIFS('2017'!$M$6:$M$258,'2017'!$E$6:$E$258,U$1,'2017'!$H$6:$H$258,$A25) -> 0 | V25: =SUMIFS('2017'!$M$6:$M$258,'2017'!$E$6:$E$258,V$1,'2017'!$H$6:$H$258,$A25) -> 0 | W25: =SUMIFS('2017'!$M$6:$M$258,'2017'!$E$6:$E$258,W$1,'2017'!$H$6:$H$258,$A25) -> 0 | X25: =SUMIFS('2017'!$M$6:$M$258,'2017'!$E$6:$E$258,X$1,'2017'!$H$6:$H$258,$A25) -> 0 | Y25: =SUMIFS('2017'!$M$6:$M$258,'2017'!$E$6:$E$258,Y$1,'2017'!$H$6:$H$258,$A25) -> 223318 | Z25: =SUMIFS('2017'!$M$6:$M$258,'2017'!$E$6:$E$258,Z$1,'2017'!$H$6:$H$258,$A25) -> 0 | AA25: =SUMIFS('2017'!$M$6:$M$258,'2017'!$E$6:$E$258,AA$1,'2017'!$H$6:$H$258,$A25) -> 0 | AB25: =SUMIFS('2017'!$M$6:$M$258,'2017'!$E$6:$E$258,AB$1,'2017'!$H$6:$H$258,$A25) -> 0 | AC25: =SUMIFS('2017'!$M$6:$M$258,'2017'!$E$6:$E$258,AC$1,'2017'!$H$6:$H$258,$A25) -> 0 | AD25: =SUMIFS('2017'!$M$6:$M$258,'2017'!$E$6:$E$258,AD$1,'2017'!$H$6:$H$258,$A25) -> 0 | AE25: =SUMIFS('2017'!$M$6:$M$258,'2017'!$E$6:$E$258,AE$1,'2017'!$H$6:$H$258,$A25) -> 0 | AF25: =SUMIFS('2017'!$M$6:$M$258,'2017'!$E$6:$E$258,AF$1,'2017'!$H$6:$H$258,$A25) -> 0 | AG25: =SUMIFS('2017'!$M$6:$M$258,'2017'!$E$6:$E$258,AG$1,'2017'!$H$6:$H$258,$A25) -> 0 | AH25: =SUMIFS('2017'!$M$6:$M$258,'2017'!$E$6:$E$258,AH$1,'2017'!$H$6:$H$258,$A25) -> 0 | AI25: =SUMIFS('2017'!$M$6:$M$258,'2017'!$E$6:$E$258,AI$1,'2017'!$H$6:$H$258,$A25) -> 0 | AJ25: =SUMIFS('2017'!$M$6:$M$258,'2017'!$E$6:$E$258,AJ$1,'2017'!$H$6:$H$258,$A25) -> 0 | AK25: =SUMIFS('2017'!$M$6:$M$258,'2017'!$E$6:$E$258,AK$1,'2017'!$H$6:$H$258,$A25) -> 0 | AL25: =SUMIFS('2017'!$M$6:$M$258,'2017'!$E$6:$E$258,AL$1,'2017'!$H$6:$H$258,$A25) -> 0 | AM25: =SUMIFS('2017'!$M$6:$M$258,'2017'!$E$6:$E$258,AM$1,'2017'!$H$6:$H$258,$A25) -> 0 | AN25: =SUMIFS('2017'!$M$6:$M$258,'2017'!$E$6:$E$258,AN$1,'2017'!$H$6:$H$258,$A25) -> 0 | AO25: =SUMIFS('2017'!$M$6:$M$258,'2017'!$E$6:$E$258,AO$1,'2017'!$H$6:$H$258,$A25) -> 0 | AP25: =SUMIFS('2017'!$M$6:$M$258,'2017'!$E$6:$E$258,AP$1,'2017'!$H$6:$H$258,$A25) -> 0 | AQ25: =SUMIFS('2017'!$M$6:$M$258,'2017'!$E$6:$E$258,AQ$1,'2017'!$H$6:$H$258,$A25) -> 0 | AR25: =SUMIFS('2017'!$M$6:$M$258,'2017'!$E$6:$E$258,AR$1,'2017'!$H$6:$H$258,$A25) -> 0 | AS25: =SUMIFS('2017'!$M$6:$M$258,'2017'!$E$6:$E$258,AS$1,'2017'!$H$6:$H$258,$A25) -> 0
A26: 587000 | B26: 40000 | C26: =SUMIFS('2017'!$M$6:$M$258,'2017'!$E$6:$E$258,C$1,'2017'!$H$6:$H$258,$A26) -> 0 | D26: =SUMIFS('2017'!$M$6:$M$258,'2017'!$E$6:$E$258,D$1,'2017'!$H$6:$H$258,$A26) -> 0 | E26: =SUMIFS('2017'!$M$6:$M$258,'2017'!$E$6:$E$258,E$1,'2017'!$H$6:$H$258,$A26) -> 0 | F26: =SUMIFS('2017'!$M$6:$M$258,'2017'!$E$6:$E$258,F$1,'2017'!$H$6:$H$258,$A26) -> 0 | G26: =SUMIFS('2017'!$M$6:$M$258,'2017'!$E$6:$E$258,G$1,'2017'!$H$6:$H$258,$A26) -> 0 | H26: =SUMIFS('2017'!$M$6:$M$258,'2017'!$E$6:$E$258,H$1,'2017'!$H$6:$H$258,$A26) -> 0 | I26: =SUMIFS('2017'!$M$6:$M$258,'2017'!$E$6:$E$258,I$1,'2017'!$H$6:$H$258,$A26) -> 0 | J26: =SUMIFS('2017'!$M$6:$M$258,'2017'!$E$6:$E$258,J$1,'2017'!$H$6:$H$258,$A26) -> 0 | K26: =SUMIFS('2017'!$M$6:$M$258,'2017'!$E$6:$E$258,K$1,'2017'!$H$6:$H$258,$A26) -> 0 | L26: =SUMIFS('2017'!$M$6:$M$258,'2017'!$E$6:$E$258,L$1,'2017'!$H$6:$H$258,$A26) -> 0 | M26: =SUMIFS('2017'!$M$6:$M$258,'2017'!$E$6:$E$258,M$1,'2017'!$H$6:$H$258,$A26) -> 0 | N26: =SUMIFS('2017'!$M$6:$M$258,'2017'!$E$6:$E$258,N$1,'2017'!$H$6:$H$258,$A26) -> 0 | O26: =SUMIFS('2017'!$M$6:$M$258,'2017'!$E$6:$E$258,O$1,'2017'!$H$6:$H$258,$A26) -> 0 | P26: =SUMIFS('2017'!$M$6:$M$258,'2017'!$E$6:$E$258,P$1,'2017'!$H$6:$H$258,$A26) -> 0 | Q26: =SUMIFS('2017'!$M$6:$M$258,'2017'!$E$6:$E$258,Q$1,'2017'!$H$6:$H$258,$A26) -> 40000 | R26: =SUMIFS('2017'!$M$6:$M$258,'2017'!$E$6:$E$258,R$1,'2017'!$H$6:$H$258,$A26) -> 0 | S26: =SUMIFS('2017'!$M$6:$M$258,'2017'!$E$6:$E$258,S$1,'2017'!$H$6:$H$258,$A26) -> 0 | T26: =SUMIFS('2017'!$M$6:$M$258,'2017'!$E$6:$E$258,T$1,'2017'!$H$6:$H$258,$A26) -> 0 | U26: =SUMIFS('2017'!$M$6:$M$258,'2017'!$E$6:$E$258,U$1,'2017'!$H$6:$H$258,$A26) -> 0 | V26: =SUMIFS('2017'!$M$6:$M$258,'2017'!$E$6:$E$258,V$1,'2017'!$H$6:$H$258,$A26) -> 0 | W26: =SUMIFS('2017'!$M$6:$M$258,'2017'!$E$6:$E$258,W$1,'2017'!$H$6:$H$258,$A26) -> 0 | X26: =SUMIFS('2017'!$M$6:$M$258,'2017'!$E$6:$E$258,X$1,'2017'!$H$6:$H$258,$A26) -> 0 | Y26: =SUMIFS('2017'!$M$6:$M$258,'2017'!$E$6:$E$258,Y$1,'2017'!$H$6:$H$258,$A26) -> 0 | Z26: =SUMIFS('2017'!$M$6:$M$258,'2017'!$E$6:$E$258,Z$1,'2017'!$H$6:$H$258,$A26) -> 0 | AA26: =SUMIFS('2017'!$M$6:$M$258,'2017'!$E$6:$E$258,AA$1,'2017'!$H$6:$H$258,$A26) -> 0 | AB26: =SUMIFS('2017'!$M$6:$M$258,'2017'!$E$6:$E$258,AB$1,'2017'!$H$6:$H$258,$A26) -> 0 | AC26: =SUMIFS('2017'!$M$6:$M$258,'2017'!$E$6:$E$258,AC$1,'2017'!$H$6:$H$258,$A26) -> 0 | AD26: =SUMIFS('2017'!$M$6:$M$258,'2017'!$E$6:$E$258,AD$1,'2017'!$H$6:$H$258,$A26) -> 0 | AE26: =SUMIFS('2017'!$M$6:$M$258,'2017'!$E$6:$E$258,AE$1,'2017'!$H$6:$H$258,$A26) -> 0 | AF26: =SUMIFS('2017'!$M$6:$M$258,'2017'!$E$6:$E$258,AF$1,'2017'!$H$6:$H$258,$A26) -> 0 | AG26: =SUMIFS('2017'!$M$6:$M$258,'2017'!$E$6:$E$258,AG$1,'2017'!$H$6:$H$258,$A26) -> 0 | AH26: =SUMIFS('2017'!$M$6:$M$258,'2017'!$E$6:$E$258,AH$1,'2017'!$H$6:$H$258,$A26) -> 0 | AI26: =SUMIFS('2017'!$M$6:$M$258,'2017'!$E$6:$E$258,AI$1,'2017'!$H$6:$H$258,$A26) -> 0 | AJ26: =SUMIFS('2017'!$M$6:$M$258,'2017'!$E$6:$E$258,AJ$1,'2017'!$H$6:$H$258,$A26) -> 0 | AK26: =SUMIFS('2017'!$M$6:$M$258,'2017'!$E$6:$E$258,AK$1,'2017'!$H$6:$H$258,$A26) -> 0 | AL26: =SUMIFS('2017'!$M$6:$M$258,'2017'!$E$6:$E$258,AL$1,'2017'!$H$6:$H$258,$A26) -> 0 | AM26: =SUMIFS('2017'!$M$6:$M$258,'2017'!$E$6:$E$258,AM$1,'2017'!$H$6:$H$258,$A26) -> 0 | AN26: =SUMIFS('2017'!$M$6:$M$258,'2017'!$E$6:$E$258,AN$1,'2017'!$H$6:$H$258,$A26) -> 0 | AO26: =SUMIFS('2017'!$M$6:$M$258,'2017'!$E$6:$E$258,AO$1,'2017'!$H$6:$H$258,$A26) -> 0 | AP26: =SUMIFS('2017'!$M$6:$M$258,'2017'!$E$6:$E$258,AP$1,'2017'!$H$6:$H$258,$A26) -> 0 | AQ26: =SUMIFS('2017'!$M$6:$M$258,'2017'!$E$6:$E$258,AQ$1,'2017'!$H$6:$H$258,$A26) -> 0 | AR26: =SUMIFS('2017'!$M$6:$M$258,'2017'!$E$6:$E$258,AR$1,'2017'!$H$6:$H$258,$A26) -> 0 | AS26: =SUMIFS('2017'!$M$6:$M$258,'2017'!$E$6:$E$258,AS$1,'2017'!$H$6:$H$258,$A26) -> 0
A27: 902000 | B27: 52920 | C27: =SUMIFS('2017'!$M$6:$M$258,'2017'!$E$6:$E$258,C$1,'2017'!$H$6:$H$258,$A27) -> 0 | D27: =SUMIFS('2017'!$M$6:$M$258,'2017'!$E$6:$E$258,D$1,'2017'!$H$6:$H$258,$A27) -> 0 | E27: =SUMIFS('2017'!$M$6:$M$258,'2017'!$E$6:$E$258,E$1,'2017'!$H$6:$H$258,$A27) -> 0 | F27: =SUMIFS('2017'!$M$6:$M$258,'2017'!$E$6:$E$258,F$1,'2017'!$H$6:$H$258,$A27) -> 0 | G27: =SUMIFS('2017'!$M$6:$M$258,'2017'!$E$6:$E$258,G$1,'2017'!$H$6:$H$258,$A27) -> 0 | H27: =SUMIFS('2017'!$M$6:$M$258,'2017'!$E$6:$E$258,H$1,'2017'!$H$6:$H$258,$A27) -> 0 | I27: =SUMIFS('2017'!$M$6:$M$258,'2017'!$E$6:$E$258,I$1,'2017'!$H$6:$H$258,$A27) -> 0 | J27: =SUMIFS('2017'!$M$6:$M$258,'2017'!$E$6:$E$258,J$1,'2017'!$H$6:$H$258,$A27) -> 0 | K27: =SUMIFS('2017'!$M$6:$M$258,'2017'!$E$6:$E$258,K$1,'2017'!$H$6:$H$258,$A27) -> 0 | L27: =SUMIFS('2017'!$M$6:$M$258,'2017'!$E$6:$E$258,L$1,'2017'!$H$6:$H$258,$A27) -> 0 | M27: =SUMIFS('2017'!$M$6:$M$258,'2017'!$E$6:$E$258,M$1,'2017'!$H$6:$H$258,$A27) -> 0 | N27: =SUMIFS('2017'!$M$6:$M$258,'2017'!$E$6:$E$258,N$1,'2017'!$H$6:$H$258,$A27) -> 0 | O27: =SUMIFS('2017'!$M$6:$M$258,'2017'!$E$6:$E$258,O$1,'2017'!$H$6:$H$258,$A27) -> 0 | P27: =SUMIFS('2017'!$M$6:$M$258,'2017'!$E$6:$E$258,P$1,'2017'!$H$6:$H$258,$A27) -> 0 | Q27: =SUMIFS('2017'!$M$6:$M$258,'2017'!$E$6:$E$258,Q$1,'2017'!$H$6:$H$258,$A27) -> 52920 | R27: =SUMIFS('2017'!$M$6:$M$258,'2017'!$E$6:$E$258,R$1,'2017'!$H$6:$H$258,$A27) -> 0 | S27: =SUMIFS('2017'!$M$6:$M$258,'2017'!$E$6:$E$258,S$1,'2017'!$H$6:$H$258,$A27) -> 0 | T27: =SUMIFS('2017'!$M$6:$M$258,'2017'!$E$6:$E$258,T$1,'2017'!$H$6:$H$258,$A27) -> 0 | U27: =SUMIFS('2017'!$M$6:$M$258,'2017'!$E$6:$E$258,U$1,'2017'!$H$6:$H$258,$A27) -> 0 | V27: =SUMIFS('2017'!$M$6:$M$258,'2017'!$E$6:$E$258,V$1,'2017'!$H$6:$H$258,$A27) -> 0 | W27: =SUMIFS('2017'!$M$6:$M$258,'2017'!$E$6:$E$258,W$1,'2017'!$H$6:$H$258,$A27) -> 0 | X27: =SUMIFS('2017'!$M$6:$M$258,'2017'!$E$6:$E$258,X$1,'2017'!$H$6:$H$258,$A27) -> 0 | Y27: =SUMIFS('2017'!$M$6:$M$258,'2017'!$E$6:$E$258,Y$1,'2017'!$H$6:$H$258,$A27) -> 0 | Z27: =SUMIFS('2017'!$M$6:$M$258,'2017'!$E$6:$E$258,Z$1,'2017'!$H$6:$H$258,$A27) -> 0 | AA27: =SUMIFS('2017'!$M$6:$M$258,'2017'!$E$6:$E$258,AA$1,'2017'!$H$6:$H$258,$A27) -> 0 | AB27: =SUMIFS('2017'!$M$6:$M$258,'2017'!$E$6:$E$258,AB$1,'2017'!$H$6:$H$258,$A27) -> 0 | AC27: =SUMIFS('2017'!$M$6:$M$258,'2017'!$E$6:$E$258,AC$1,'2017'!$H$6:$H$258,$A27) -> 0 | AD27: =SUMIFS('2017'!$M$6:$M$258,'2017'!$E$6:$E$258,AD$1,'2017'!$H$6:$H$258,$A27) -> 0 | AE27: =SUMIFS('2017'!$M$6:$M$258,'2017'!$E$6:$E$258,AE$1,'2017'!$H$6:$H$258,$A27) -> 0 | AF27: =SUMIFS('2017'!$M$6:$M$258,'2017'!$E$6:$E$258,AF$1,'2017'!$H$6:$H$258,$A27) -> 0 | AG27: =SUMIFS('2017'!$M$6:$M$258,'2017'!$E$6:$E$258,AG$1,'2017'!$H$6:$H$258,$A27) -> 0 | AH27: =SUMIFS('2017'!$M$6:$M$258,'2017'!$E$6:$E$258,AH$1,'2017'!$H$6:$H$258,$A27) -> 0 | AI27: =SUMIFS('2017'!$M$6:$M$258,'2017'!$E$6:$E$258,AI$1,'2017'!$H$6:$H$258,$A27) -> 0 | AJ27: =SUMIFS('2017'!$M$6:$M$258,'2017'!$E$6:$E$258,AJ$1,'2017'!$H$6:$H$258,$A27) -> 0 | AK27: =SUMIFS('2017'!$M$6:$M$258,'2017'!$E$6:$E$258,AK$1,'2017'!$H$6:$H$258,$A27) -> 0 | AL27: =SUMIFS('2017'!$M$6:$M$258,'2017'!$E$6:$E$258,AL$1,'2017'!$H$6:$H$258,$A27) -> 0 | AM27: =SUMIFS('2017'!$M$6:$M$258,'2017'!$E$6:$E$258,AM$1,'2017'!$H$6:$H$258,$A27) -> 0 | AN27: =SUMIFS('2017'!$M$6:$M$258,'2017'!$E$6:$E$258,AN$1,'2017'!$H$6:$H$258,$A27) -> 0 | AO27: =SUMIFS('2017'!$M$6:$M$258,'2017'!$E$6:$E$258,AO$1,'2017'!$H$6:$H$258,$A27) -> 0 | AP27: =SUMIFS('2017'!$M$6:$M$258,'2017'!$E$6:$E$258,AP$1,'2017'!$H$6:$H$258,$A27) -> 0 | AQ27: =SUMIFS('2017'!$M$6:$M$258,'2017'!$E$6:$E$258,AQ$1,'2017'!$H$6:$H$258,$A27) -> 0 | AR27: =SUMIFS('2017'!$M$6:$M$258,'2017'!$E$6:$E$258,AR$1,'2017'!$H$6:$H$258,$A27) -> 0 | AS27: =SUMIFS('2017'!$M$6:$M$258,'2017'!$E$6:$E$258,AS$1,'2017'!$H$6:$H$258,$A27) -> 0
A28: 903000 | B28: 536893 | C28: =SUMIFS('2017'!$M$6:$M$258,'2017'!$E$6:$E$258,C$1,'2017'!$H$6:$H$258,$A28) -> 0 | D28: =SUMIFS('2017'!$M$6:$M$258,'2017'!$E$6:$E$258,D$1,'2017'!$H$6:$H$258,$A28) -> 0 | E28: =SUMIFS('2017'!$M$6:$M$258,'2017'!$E$6:$E$258,E$1,'2017'!$H$6:$H$258,$A28) -> 0 | F28: =SUMIFS('2017'!$M$6:$M$258,'2017'!$E$6:$E$258,F$1,'2017'!$H$6:$H$258,$A28) -> 0 | G28: =SUMIFS('2017'!$M$6:$M$258,'2017'!$E$6:$E$258,G$1,'2017'!$H$6:$H$258,$A28) -> 0 | H28: =SUMIFS('2017'!$M$6:$M$258,'2017'!$E$6:$E$258,H$1,'2017'!$H$6:$H$258,$A28) -> 0 | I28: =SUMIFS('2017'!$M$6:$M$258,'2017'!$E$6:$E$258,I$1,'2017'!$H$6:$H$258,$A28) -> 0 | J28: =SUMIFS('2017'!$M$6:$M$258,'2017'!$E$6:$E$258,J$1,'2017'!$H$6:$H$258,$A28) -> 0 | K28: =SUMIFS('2017'!$M$6:$M$258,'2017'!$E$6:$E$258,K$1,'2017'!$H$6:$H$258,$A28) -> 0 | L28: =SUMIFS('2017'!$M$6:$M$258,'2017'!$E$6:$E$258,L$1,'2017'!$H$6:$H$258,$A28) -> 0 | M28: =SUMIFS('2017'!$M$6:$M$258,'2017'!$E$6:$E$258,M$1,'2017'!$H$6:$H$258,$A28) -> 0 | N28: =SUMIFS('2017'!$M$6:$M$258,'2017'!$E$6:$E$258,N$1,'2017'!$H$6:$H$258,$A28) -> 536893 | O28: =SUMIFS('2017'!$M$6:$M$258,'2017'!$E$6:$E$258,O$1,'2017'!$H$6:$H$258,$A28) -> 0 | P28: =SUMIFS('2017'!$M$6:$M$258,'2017'!$E$6:$E$258,P$1,'2017'!$H$6:$H$258,$A28) -> 0 | Q28: =SUMIFS('2017'!$M$6:$M$258,'2017'!$E$6:$E$258,Q$1,'2017'!$H$6:$H$258,$A28) -> 0 | R28: =SUMIFS('2017'!$M$6:$M$258,'2017'!$E$6:$E$258,R$1,'2017'!$H$6:$H$258,$A28) -> 0 | S28: =SUMIFS('2017'!$M$6:$M$258,'2017'!$E$6:$E$258,S$1,'2017'!$H$6:$H$258,$A28) -> 0 | T28: =SUMIFS('2017'!$M$6:$M$258,'2017'!$E$6:$E$258,T$1,'2017'!$H$6:$H$258,$A28) -> 0 | U28: =SUMIFS('2017'!$M$6:$M$258,'2017'!$E$6:$E$258,U$1,'2017'!$H$6:$H$258,$A28) -> 0 | V28: =SUMIFS('2017'!$M$6:$M$258,'2017'!$E$6:$E$258,V$1,'2017'!$H$6:$H$258,$A28) -> 0 | W28: =SUMIFS('2017'!$M$6:$M$258,'2017'!$E$6:$E$258,W$1,'2017'!$H$6:$H$258,$A28) -> 0 | X28: =SUMIFS('2017'!$M$6:$M$258,'2017'!$E$6:$E$258,X$1,'2017'!$H$6:$H$258,$A28) -> 0 | Y28: =SUMIFS('2017'!$M$6:$M$258,'2017'!$E$6:$E$258,Y$1,'2017'!$H$6:$H$258,$A28) -> 0 | Z28: =SUMIFS('2017'!$M$6:$M$258,'2017'!$E$6:$E$258,Z$1,'2017'!$H$6:$H$258,$A28) -> 0 | AA28: =SUMIFS('2017'!$M$6:$M$258,'2017'!$E$6:$E$258,AA$1,'2017'!$H$6:$H$258,$A28) -> 0 | AB28: =SUMIFS('2017'!$M$6:$M$258,'2017'!$E$6:$E$258,AB$1,'2017'!$H$6:$H$258,$A28) -> 0 | AC28: =SUMIFS('2017'!$M$6:$M$258,'2017'!$E$6:$E$258,AC$1,'2017'!$H$6:$H$258,$A28) -> 0 | AD28: =SUMIFS('2017'!$M$6:$M$258,'2017'!$E$6:$E$258,AD$1,'2017'!$H$6:$H$258,$A28) -> 0 | AE28: =SUMIFS('2017'!$M$6:$M$258,'2017'!$E$6:$E$258,AE$1,'2017'!$H$6:$H$258,$A28) -> 0 | AF28: =SUMIFS('2017'!$M$6:$M$258,'2017'!$E$6:$E$258,AF$1,'2017'!$H$6:$H$258,$A28) -> 0 | AG28: =SUMIFS('2017'!$M$6:$M$258,'2017'!$E$6:$E$258,AG$1,'2017'!$H$6:$H$258,$A28) -> 0 | AH28: =SUMIFS('2017'!$M$6:$M$258,'2017'!$E$6:$E$258,AH$1,'2017'!$H$6:$H$258,$A28) -> 0 | AI28: =SUMIFS('2017'!$M$6:$M$258,'2017'!$E$6:$E$258,AI$1,'2017'!$H$6:$H$258,$A28) -> 0 | AJ28: =SUMIFS('2017'!$M$6:$M$258,'2017'!$E$6:$E$258,AJ$1,'2017'!$H$6:$H$258,$A28) -> 0 | AK28: =SUMIFS('2017'!$M$6:$M$258,'2017'!$E$6:$E$258,AK$1,'2017'!$H$6:$H$258,$A28) -> 0 | AL28: =SUMIFS('2017'!$M$6:$M$258,'2017'!$E$6:$E$258,AL$1,'2017'!$H$6:$H$258,$A28) -> 0 | AM28: =SUMIFS('2017'!$M$6:$M$258,'2017'!$E$6:$E$258,AM$1,'2017'!$H$6:$H$258,$A28) -> 0 | AN28: =SUMIFS('2017'!$M$6:$M$258,'2017'!$E$6:$E$258,AN$1,'2017'!$H$6:$H$258,$A28) -> 0 | AO28: =SUMIFS('2017'!$M$6:$M$258,'2017'!$E$6:$E$258,AO$1,'2017'!$H$6:$H$258,$A28) -> 0 | AP28: =SUMIFS('2017'!$M$6:$M$258,'2017'!$E$6:$E$258,AP$1,'2017'!$H$6:$H$258,$A28) -> 0 | AQ28: =SUMIFS('2017'!$M$6:$M$258,'2017'!$E$6:$E$258,AQ$1,'2017'!$H$6:$H$258,$A28) -> 0 | AR28: =SUMIFS('2017'!$M$6:$M$258,'2017'!$E$6:$E$258,AR$1,'2017'!$H$6:$H$258,$A28) -> 0 | AS28: =SUMIFS('2017'!$M$6:$M$258,'2017'!$E$6:$E$258,AS$1,'2017'!$H$6:$H$258,$A28) -> 0
A29: 920000 | B29: 8512680 | C29: =SUMIFS('2017'!$M$6:$M$258,'2017'!$E$6:$E$258,C$1,'2017'!$H$6:$H$258,$A29) -> 800602 | D29: =SUMIFS('2017'!$M$6:$M$258,'2017'!$E$6:$E$258,D$1,'2017'!$H$6:$H$258,$A29) -> 0 | E29: =SUMIFS('2017'!$M$6:$M$258,'2017'!$E$6:$E$258,E$1,'2017'!$H$6:$H$258,$A29) -> 746858 | F29: =SUMIFS('2017'!$M$6:$M$258,'2017'!$E$6:$E$258,F$1,'2017'!$H$6:$H$258,$A29) -> 191322 | G29: =SUMIFS('2017'!$M$6:$M$258,'2017'!$E$6:$E$258,G$1,'2017'!$H$6:$H$258,$A29) -> 406537 | H29: =SUMIFS('2017'!$M$6:$M$258,'2017'!$E$6:$E$258,H$1,'2017'!$H$6:$H$258,$A29) -> 322831 | I29: =SUMIFS('2017'!$M$6:$M$258,'2017'!$E$6:$E$258,I$1,'2017'!$H$6:$H$258,$A29) -> 451793 | J29: =SUMIFS('2017'!$M$6:$M$258,'2017'!$E$6:$E$258,J$1,'2017'!$H$6:$H$258,$A29) -> 0 | K29: =SUMIFS('2017'!$M$6:$M$258,'2017'!$E$6:$E$258,K$1,'2017'!$H$6:$H$258,$A29) -> 95936 | L29: =SUMIFS('2017'!$M$6:$M$258,'2017'!$E$6:$E$258,L$1,'2017'!$H$6:$H$258,$A29) -> 1335765 | M29: =SUMIFS('2017'!$M$6:$M$258,'2017'!$E$6:$E$258,M$1,'2017'!$H$6:$H$258,$A29) -> 497608 | N29: =SUMIFS('2017'!$M$6:$M$258,'2017'!$E$6:$E$258,N$1,'2017'!$H$6:$H$258,$A29) -> 19296 | O29: =SUMIFS('2017'!$M$6:$M$258,'2017'!$E$6:$E$258,O$1,'2017'!$H$6:$H$258,$A29) -> 0 | P29: =SUMIFS('2017'!$M$6:$M$258,'2017'!$E$6:$E$258,P$1,'2017'!$H$6:$H$258,$A29) -> 129143 | Q29: =SUMIFS('2017'!$M$6:$M$258,'2017'!$E$6:$E$258,Q$1,'2017'!$H$6:$H$258,$A29) -> 0 | R29: =SUMIFS('2017'!$M$6:$M$258,'2017'!$E$6:$E$258,R$1,'2017'!$H$6:$H$258,$A29) -> 49163 | S29: =SUMIFS('2017'!$M$6:$M$258,'2017'!$E$6:$E$258,S$1,'2017'!$H$6:$H$258,$A29) -> 51539 | T29: =SUMIFS('2017'!$M$6:$M$258,'2017'!$E$6:$E$258,T$1,'2017'!$H$6:$H$258,$A29) -> 51735 | U29: =SUMIFS('2017'!$M$6:$M$258,'2017'!$E$6:$E$258,U$1,'2017'!$H$6:$H$258,$A29) -> 0 | V29: =SUMIFS('2017'!$M$6:$M$258,'2017'!$E$6:$E$258,V$1,'2017'!$H$6:$H$258,$A29) -> 0 | W29: =SUMIFS('2017'!$M$6:$M$258,'2017'!$E$6:$E$258,W$1,'2017'!$H$6:$H$258,$A29) -> 0 | X29: =SUMIFS('2017'!$M$6:$M$258,'2017'!$E$6:$E$258,X$1,'2017'!$H$6:$H$258,$A29) -> 526668 | Y29: =SUMIFS('2017'!$M$6:$M$258,'2017'!$E$6:$E$258,Y$1,'2017'!$H$6:$H$258,$A29) -> 0 | Z29: =SUMIFS('2017'!$M$6:$M$258,'2017'!$E$6:$E$258,Z$1,'2017'!$H$6:$H$258,$A29) -> 0 | AA29: =SUMIFS('2017'!$M$6:$M$258,'2017'!$E$6:$E$258,AA$1,'2017'!$H$6:$H$258,$A29) -> 317725 | AB29: =SUMIFS('2017'!$M$6:$M$258,'2017'!$E$6:$E$258,AB$1,'2017'!$H$6:$H$258,$A29) -> 406584 | AC29: =SUMIFS('2017'!$M$6:$M$258,'2017'!$E$6:$E$258,AC$1,'2017'!$H$6:$H$258,$A29) -> 258152 | AD29: =SUMIFS('2017'!$M$6:$M$258,'2017'!$E$6:$E$258,AD$1,'2017'!$H$6:$H$258,$A29) -> 453043 | AE29: =SUMIFS('2017'!$M$6:$M$258,'2017'!$E$6:$E$258,AE$1,'2017'!$H$6:$H$258,$A29) -> 489783 | AF29: =SUMIFS('2017'!$M$6:$M$258,'2017'!$E$6:$E$258,AF$1,'2017'!$H$6:$H$258,$A29) -> 240578 | AG29: =SUMIFS('2017'!$M$6:$M$258,'2017'!$E$6:$E$258,AG$1,'2017'!$H$6:$H$258,$A29) -> 0 | AH29: =SUMIFS('2017'!$M$6:$M$258,'2017'!$E$6:$E$258,AH$1,'2017'!$H$6:$H$258,$A29) -> 0 | AI29: =SUMIFS('2017'!$M$6:$M$258,'2017'!$E$6:$E$258,AI$1,'2017'!$H$6:$H$258,$A29) -> 333119 | AJ29: =SUMIFS('2017'!$M$6:$M$258,'2017'!$E$6:$E$258,AJ$1,'2017'!$H$6:$H$258,$A29) -> 27141 | AK29: =SUMIFS('2017'!$M$6:$M$258,'2017'!$E$6:$E$258,AK$1,'2017'!$H$6:$H$258,$A29) -> 16120 | AL29: =SUMIFS('2017'!$M$6:$M$258,'2017'!$E$6:$E$258,AL$1,'2017'!$H$6:$H$258,$A29) -> 0 | AM29: =SUMIFS('2017'!$M$6:$M$258,'2017'!$E$6:$E$258,AM$1,'2017'!$H$6:$H$258,$A29) -> 15962 | AN29: =SUMIFS('2017'!$M$6:$M$258,'2017'!$E$6:$E$258,AN$1,'2017'!$H$6:$H$258,$A29) -> 88810 | AO29: =SUMIFS('2017'!$M$6:$M$258,'2017'!$E$6:$E$258,AO$1,'2017'!$H$6:$H$258,$A29) -> 36087 | AP29: =SUMIFS('2017'!$M$6:$M$258,'2017'!$E$6:$E$258,AP$1,'2017'!$H$6:$H$258,$A29) -> 54190 | AQ29: =SUMIFS('2017'!$M$6:$M$258,'2017'!$E$6:$E$258,AQ$1,'2017'!$H$6:$H$258,$A29) -> 0 | AR29: =SUMIFS('2017'!$M$6:$M$258,'2017'!$E$6:$E$258,AR$1,'2017'!$H$6:$H$258,$A29) -> 49295 | AS29: =SUMIFS('2017'!$M$6:$M$258,'2017'!$E$6:$E$258,AS$1,'2017'!$H$6:$H$258,$A29) -> 49295
A30: 921000 | B30: 4154713 | C30: =SUMIFS('2017'!$M$6:$M$258,'2017'!$E$6:$E$258,C$1,'2017'!$H$6:$H$258,$A30) -> 15750 | D30: =SUMIFS('2017'!$M$6:$M$258,'2017'!$E$6:$E$258,D$1,'2017'!$H$6:$H$258,$A30) -> 0 | E30: =SUMIFS('2017'!$M$6:$M$258,'2017'!$E$6:$E$258,E$1,'2017'!$H$6:$H$258,$A30) -> 0 | F30: =SUMIFS('2017'!$M$6:$M$258,'2017'!$E$6:$E$258,F$1,'2017'!$H$6:$H$258,$A30) -> 0 | G30: =SUMIFS('2017'!$M$6:$M$258,'2017'!$E$6:$E$258,G$1,'2017'!$H$6:$H$258,$A30) -> 54180 | H30: =SUMIFS('2017'!$M$6:$M$258,'2017'!$E$6:$E$258,H$1,'2017'!$H$6:$H$258,$A30) -> 0 | I30: =SUMIFS('2017'!$M$6:$M$258,'2017'!$E$6:$E$258,I$1,'2017'!$H$6:$H$258,$A30) -> 0 | J30: =SUMIFS('2017'!$M$6:$M$258,'2017'!$E$6:$E$258,J$1,'2017'!$H$6:$H$258,$A30) -> 9400 | K30: =SUMIFS('2017'!$M$6:$M$258,'2017'!$E$6:$E$258,K$1,'2017'!$H$6:$H$258,$A30) -> 14000 | L30: =SUMIFS('2017'!$M$6:$M$258,'2017'!$E$6:$E$258,L$1,'2017'!$H$6:$H$258,$A30) -> 34450 | M30: =SUMIFS('2017'!$M$6:$M$258,'2017'!$E$6:$E$258,M$1,'2017'!$H$6:$H$258,$A30) -> 5500 | N30: =SUMIFS('2017'!$M$6:$M$258,'2017'!$E$6:$E$258,N$1,'2017'!$H$6:$H$258,$A30) -> 1400 | O30: =SUMIFS('2017'!$M$6:$M$258,'2017'!$E$6:$E$258,O$1,'2017'!$H$6:$H$258,$A30) -> 0 | P30: =SUMIFS('2017'!$M$6:$M$258,'2017'!$E$6:$E$258,P$1,'2017'!$H$6:$H$258,$A30) -> 0 | Q30: =SUMIFS('2017'!$M$6:$M$258,'2017'!$E$6:$E$258,Q$1,'2017'!$H$6:$H$258,$A30) -> 1844766 | R30: =SUMIFS('2017'!$M$6:$M$258,'2017'!$E$6:$E$258,R$1,'2017'!$H$6:$H$258,$A30) -> 0 | S30: =SUMIFS('2017'!$M$6:$M$258,'2017'!$E$6:$E$258,S$1,'2017'!$H$6:$H$258,$A30) -> 0 | T30: =SUMIFS('2017'!$M$6:$M$258,'2017'!$E$6:$E$258,T$1,'2017'!$H$6:$H$258,$A30) -> 0 | U30: =SUMIFS('2017'!$M$6:$M$258,'2017'!$E$6:$E$258,U$1,'2017'!$H$6:$H$258,$A30) -> 312285 | V30: =SUMIFS('2017'!$M$6:$M$258,'2017'!$E$6:$E$258,V$1,'2017'!$H$6:$H$258,$A30) -> 5408 | W30: =SUMIFS('2017'!$M$6:$M$258,'2017'!$E$6:$E$258,W$1,'2017'!$H$6:$H$258,$A30) -> 1852061 | X30: =SUMIFS('2017'!$M$6:$M$258,'2017'!$E$6:$E$258,X$1,'2017'!$H$6:$H$258,$A30) -> 0 | Y30: =SUMIFS('2017'!$M$6:$M$258,'2017'!$E$6:$E$258,Y$1,'2017'!$H$6:$H$258,$A30) -> 5513 | Z30: =SUMIFS('2017'!$M$6:$M$258,'2017'!$E$6:$E$258,Z$1,'2017'!$H$6:$H$258,$A30) -> 0 | AA30: =SUMIFS('2017'!$M$6:$M$258,'2017'!$E$6:$E$258,AA$1,'2017'!$H$6:$H$258,$A30) -> 0 | AB30: =SUMIFS('2017'!$M$6:$M$258,'2017'!$E$6:$E$258,AB$1,'2017'!$H$6:$H$258,$A30) -> 0 | AC30: =SUMIFS('2017'!$M$6:$M$258,'2017'!$E$6:$E$258,AC$1,'2017'!$H$6:$H$258,$A30) -> 0 | AD30: =SUMIFS('2017'!$M$6:$M$258,'2017'!$E$6:$E$258,AD$1,'2017'!$H$6:$H$258,$A30) -> 0 | AE30: =SUMIFS('2017'!$M$6:$M$258,'2017'!$E$6:$E$258,AE$1,'2017'!$H$6:$H$258,$A30) -> 0 | AF30: =SUMIFS('2017'!$M$6:$M$258,'2017'!$E$6:$E$258,AF$1,'2017'!$H$6:$H$258,$A30) -> 0 | AG30: =SUMIFS('2017'!$M$6:$M$258,'2017'!$E$6:$E$258,AG$1,'2017'!$H$6:$H$258,$A30) -> 0 | AH30: =SUMIFS('2017'!$M$6:$M$258,'2017'!$E$6:$E$258,AH$1,'2017'!$H$6:$H$258,$A30) -> 0 | AI30: =SUMIFS('2017'!$M$6:$M$258,'2017'!$E$6:$E$258,AI$1,'2017'!$H$6:$H$258,$A30) -> 0 | AJ30: =SUMIFS('2017'!$M$6:$M$258,'2017'!$E$6:$E$258,AJ$1,'2017'!$H$6:$H$258,$A30) -> 0 | AK30: =SUMIFS('2017'!$M$6:$M$258,'2017'!$E$6:$E$258,AK$1,'2017'!$H$6:$H$258,$A30) -> 0 | AL30: =SUMIFS('2017'!$M$6:$M$258,'2017'!$E$6:$E$258,AL$1,'2017'!$H$6:$H$258,$A30) -> 0 | AM30: =SUMIFS('2017'!$M$6:$M$258,'2017'!$E$6:$E$258,AM$1,'2017'!$H$6:$H$258,$A30) -> 0 | AN30: =SUMIFS('2017'!$M$6:$M$258,'2017'!$E$6:$E$258,AN$1,'2017'!$H$6:$H$258,$A30) -> 0 | AO30: =SUMIFS('2017'!$M$6:$M$258,'2017'!$E$6:$E$258,AO$1,'2017'!$H$6:$H$258,$A30) -> 0 | AP30: =SUMIFS('2017'!$M$6:$M$258,'2017'!$E$6:$E$258,AP$1,'2017'!$H$6:$H$258,$A30) -> 0 | AQ30: =SUMIFS('2017'!$M$6:$M$258,'2017'!$E$6:$E$258,AQ$1,'2017'!$H$6:$H$258,$A30) -> 0 | AR30: =SUMIFS('2017'!$M$6:$M$258,'2017'!$E$6:$E$258,AR$1,'2017'!$H$6:$H$258,$A30) -> 0 | AS30: =SUMIFS('2017'!$M$6:$M$258,'2017'!$E$6:$E$258,AS$1,'2017'!$H$6:$H$258,$A30) -> 0
A31: 923000 | B31: 9920441 | C31: =SUMIFS('2017'!$M$6:$M$258,'2017'!$E$6:$E$258,C$1,'2017'!$H$6:$H$258,$A31) -> 261570 | D31: =SUMIFS('2017'!$M$6:$M$258,'2017'!$E$6:$E$258,D$1,'2017'!$H$6:$H$258,$A31) -> 1471494 | E31: =SUMIFS('2017'!$M$6:$M$258,'2017'!$E$6:$E$258,E$1,'2017'!$H$6:$H$258,$A31) -> 0 | F31: =SUMIFS('2017'!$M$6:$M$258,'2017'!$E$6:$E$258,F$1,'2017'!$H$6:$H$258,$A31) -> 62955 | G31: =SUMIFS('2017'!$M$6:$M$258,'2017'!$E$6:$E$258,G$1,'2017'!$H$6:$H$258,$A31) -> 611579 | H31: =SUMIFS('2017'!$M$6:$M$258,'2017'!$E$6:$E$258,H$1,'2017'!$H$6:$H$258,$A31) -> 58034 | I31: =SUMIFS('2017'!$M$6:$M$258,'2017'!$E$6:$E$258,I$1,'2017'!$H$6:$H$258,$A31) -> 0 | J31: =SUMIFS('2017'!$M$6:$M$258,'2017'!$E$6:$E$258,J$1,'2017'!$H$6:$H$258,$A31) -> 155000 | K31: =SUMIFS('2017'!$M$6:$M$258,'2017'!$E$6:$E$258,K$1,'2017'!$H$6:$H$258,$A31) -> 0 | L31: =SUMIFS('2017'!$M$6:$M$258,'2017'!$E$6:$E$258,L$1,'2017'!$H$6:$H$258,$A31) -> 0 | M31: =SUMIFS('2017'!$M$6:$M$258,'2017'!$E$6:$E$258,M$1,'2017'!$H$6:$H$258,$A31) -> 0 | N31: =SUMIFS('2017'!$M$6:$M$258,'2017'!$E$6:$E$258,N$1,'2017'!$H$6:$H$258,$A31) -> 0 | O31: =SUMIFS('2017'!$M$6:$M$258,'2017'!$E$6:$E$258,O$1,'2017'!$H$6:$H$258,$A31) -> 305910 | P31: =SUMIFS('2017'!$M$6:$M$258,'2017'!$E$6:$E$258,P$1,'2017'!$H$6:$H$258,$A31) -> 107910 | Q31: =SUMIFS('2017'!$M$6:$M$258,'2017'!$E$6:$E$258,Q$1,'2017'!$H$6:$H$258,$A31) -> 85130 | R31: =SUMIFS('2017'!$M$6:$M$258,'2017'!$E$6:$E$258,R$1,'2017'!$H$6:$H$258,$A31) -> 62287 | S31: =SUMIFS('2017'!$M$6:$M$258,'2017'!$E$6:$E$258,S$1,'2017'!$H$6:$H$258,$A31) -> 0 | T31: =SUMIFS('2017'!$M$6:$M$258,'2017'!$E$6:$E$258,T$1,'2017'!$H$6:$H$258,$A31) -> 58805 | U31: =SUMIFS('2017'!$M$6:$M$258,'2017'!$E$6:$E$258,U$1,'2017'!$H$6:$H$258,$A31) -> 89492 | V31: =SUMIFS('2017'!$M$6:$M$258,'2017'!$E$6:$E$258,V$1,'2017'!$H$6:$H$258,$A31) -> 210672 | W31: =SUMIFS('2017'!$M$6:$M$258,'2017'!$E$6:$E$258,W$1,'2017'!$H$6:$H$258,$A31) -> 34725 | X31: =SUMIFS('2017'!$M$6:$M$258,'2017'!$E$6:$E$258,X$1,'2017'!$H$6:$H$258,$A31) -> 0 | Y31: =SUMIFS('2017'!$M$6:$M$258,'2017'!$E$6:$E$258,Y$1,'2017'!$H$6:$H$258,$A31) -> 1097835 | Z31: =SUMIFS('2017'!$M$6:$M$258,'2017'!$E$6:$E$258,Z$1,'2017'!$H$6:$H$258,$A31) -> 0 | AA31: =SUMIFS('2017'!$M$6:$M$258,'2017'!$E$6:$E$258,AA$1,'2017'!$H$6:$H$258,$A31) -> 580902 | AB31: =SUMIFS('2017'!$M$6:$M$258,'2017'!$E$6:$E$258,AB$1,'2017'!$H$6:$H$258,$A31) -> 0 | AC31: =SUMIFS('2017'!$M$6:$M$258,'2017'!$E$6:$E$258,AC$1,'2017'!$H$6:$H$258,$A31) -> 0 | AD31: =SUMIFS('2017'!$M$6:$M$258,'2017'!$E$6:$E$258,AD$1,'2017'!$H$6:$H$258,$A31) -> 0 | AE31: =SUMIFS('2017'!$M$6:$M$258,'2017'!$E$6:$E$258,AE$1,'2017'!$H$6:$H$258,$A31) -> 0 | AF31: =SUMIFS('2017'!$M$6:$M$258,'2017'!$E$6:$E$258,AF$1,'2017'!$H$6:$H$258,$A31) -> 649970 | AG31: =SUMIFS('2017'!$M$6:$M$258,'2017'!$E$6:$E$258,AG$1,'2017'!$H$6:$H$258,$A31) -> 1099763 | AH31: =SUMIFS('2017'!$M$6:$M$258,'2017'!$E$6:$E$258,AH$1,'2017'!$H$6:$H$258,$A31) -> 711197 | AI31: =SUMIFS('2017'!$M$6:$M$258,'2017'!$E$6:$E$258,AI$1,'2017'!$H$6:$H$258,$A31) -> 410662 | AJ31: =SUMIFS('2017'!$M$6:$M$258,'2017'!$E$6:$E$258,AJ$1,'2017'!$H$6:$H$258,$A31) -> 186915 | AK31: =SUMIFS('2017'!$M$6:$M$258,'2017'!$E$6:$E$258,AK$1,'2017'!$H$6:$H$258,$A31) -> 154617 | AL31: =SUMIFS('2017'!$M$6:$M$258,'2017'!$E$6:$E$258,AL$1,'2017'!$H$6:$H$258,$A31) -> 68281 | AM31: =SUMIFS('2017'!$M$6:$M$258,'2017'!$E$6:$E$258,AM$1,'2017'!$H$6:$H$258,$A31) -> 27336 | AN31: =SUMIFS('2017'!$M$6:$M$258,'2017'!$E$6:$E$258,AN$1,'2017'!$H$6:$H$258,$A31) -> 416764 | AO31: =SUMIFS('2017'!$M$6:$M$258,'2017'!$E$6:$E$258,AO$1,'2017'!$H$6:$H$258,$A31) -> 17602 | AP31: =SUMIFS('2017'!$M$6:$M$258,'2017'!$E$6:$E$258,AP$1,'2017'!$H$6:$H$258,$A31) -> 72131 | AQ31: =SUMIFS('2017'!$M$6:$M$258,'2017'!$E$6:$E$258,AQ$1,'2017'!$H$6:$H$258,$A31) -> 171754 | AR31: =SUMIFS('2017'!$M$6:$M$258,'2017'!$E$6:$E$258,AR$1,'2017'!$H$6:$H$258,$A31) -> 446434 | AS31: =SUMIFS('2017'!$M$6:$M$258,'2017'!$E$6:$E$258,AS$1,'2017'!$H$6:$H$258,$A31) -> 232715
A32: 926100 | B32: 105299 | C32: =SUMIFS('2017'!$M$6:$M$258,'2017'!$E$6:$E$258,C$1,'2017'!$H$6:$H$258,$A32) -> 105299 | D32: =SUMIFS('2017'!$M$6:$M$258,'2017'!$E$6:$E$258,D$1,'2017'!$H$6:$H$258,$A32) -> 0 | E32: =SUMIFS('2017'!$M$6:$M$258,'2017'!$E$6:$E$258,E$1,'2017'!$H$6:$H$258,$A32) -> 0 | F32: =SUMIFS('2017'!$M$6:$M$258,'2017'!$E$6:$E$258,F$1,'2017'!$H$6:$H$258,$A32) -> 0 | G32: =SUMIFS('2017'!$M$6:$M$258,'2017'!$E$6:$E$258,G$1,'2017'!$H$6:$H$258,$A32) -> 0 | H32: =SUMIFS('2017'!$M$6:$M$258,'2017'!$E$6:$E$258,H$1,'2017'!$H$6:$H$258,$A32) -> 0 | I32: =SUMIFS('2017'!$M$6:$M$258,'2017'!$E$6:$E$258,I$1,'2017'!$H$6:$H$258,$A32) -> 0 | J32: =SUMIFS('2017'!$M$6:$M$258,'2017'!$E$6:$E$258,J$1,'2017'!$H$6:$H$258,$A32) -> 0 | K32: =SUMIFS('2017'!$M$6:$M$258,'2017'!$E$6:$E$258,K$1,'2017'!$H$6:$H$258,$A32) -> 0 | L32: =SUMIFS('2017'!$M$6:$M$258,'2017'!$E$6:$E$258,L$1,'2017'!$H$6:$H$258,$A32) -> 0 | M32: =SUMIFS('2017'!$M$6:$M$258,'2017'!$E$6:$E$258,M$1,'2017'!$H$6:$H$258,$A32) -> 0 | N32: =SUMIFS('2017'!$M$6:$M$258,'2017'!$E$6:$E$258,N$1,'2017'!$H$6:$H$258,$A32) -> 0 | O32: =SUMIFS('2017'!$M$6:$M$258,'2017'!$E$6:$E$258,O$1,'2017'!$H$6:$H$258,$A32) -> 0 | P32: =SUMIFS('2017'!$M$6:$M$258,'2017'!$E$6:$E$258,P$1,'2017'!$H$6:$H$258,$A32) -> 0 | Q32: =SUMIFS('2017'!$M$6:$M$258,'2017'!$E$6:$E$258,Q$1,'2017'!$H$6:$H$258,$A32) -> 0 | R32: =SUMIFS('2017'!$M$6:$M$258,'2017'!$E$6:$E$258,R$1,'2017'!$H$6:$H$258,$A32) -> 0 | S32: =SUMIFS('2017'!$M$6:$M$258,'2017'!$E$6:$E$258,S$1,'2017'!$H$6:$H$258,$A32) -> 0 | T32: =SUMIFS('2017'!$M$6:$M$258,'2017'!$E$6:$E$258,T$1,'2017'!$H$6:$H$258,$A32) -> 0 | U32: =SUMIFS('2017'!$M$6:$M$258,'2017'!$E$6:$E$258,U$1,'2017'!$H$6:$H$258,$A32) -> 0 | V32: =SUMIFS('2017'!$M$6:$M$258,'2017'!$E$6:$E$258,V$1,'2017'!$H$6:$H$258,$A32) -> 0 | W32: =SUMIFS('2017'!$M$6:$M$258,'2017'!$E$6:$E$258,W$1,'2017'!$H$6:$H$258,$A32) -> 0 | X32: =SUMIFS('2017'!$M$6:$M$258,'2017'!$E$6:$E$258,X$1,'2017'!$H$6:$H$258,$A32) -> 0 | Y32: =SUMIFS('2017'!$M$6:$M$258,'2017'!$E$6:$E$258,Y$1,'2017'!$H$6:$H$258,$A32) -> 0 | Z32: =SUMIFS('2017'!$M$6:$M$258,'2017'!$E$6:$E$258,Z$1,'2017'!$H$6:$H$258,$A32) -> 0 | AA32: =SUMIFS('2017'!$M$6:$M$258,'2017'!$E$6:$E$258,AA$1,'2017'!$H$6:$H$258,$A32) -> 0 | AB32: =SUMIFS('2017'!$M$6:$M$258,'2017'!$E$6:$E$258,AB$1,'2017'!$H$6:$H$258,$A32) -> 0 | AC32: =SUMIFS('2017'!$M$6:$M$258,'2017'!$E$6:$E$258,AC$1,'2017'!$H$6:$H$258,$A32) -> 0 | AD32: =SUMIFS('2017'!$M$6:$M$258,'2017'!$E$6:$E$258,AD$1,'2017'!$H$6:$H$258,$A32) -> 0 | AE32: =SUMIFS('2017'!$M$6:$M$258,'2017'!$E$6:$E$258,AE$1,'2017'!$H$6:$H$258,$A32) -> 0 | AF32: =SUMIFS('2017'!$M$6:$M$258,'2017'!$E$6:$E$258,AF$1,'2017'!$H$6:$H$258,$A32) -> 0 | AG32: =SUMIFS('2017'!$M$6:$M$258,'2017'!$E$6:$E$258,AG$1,'2017'!$H$6:$H$258,$A32) -> 0 | AH32: =SUMIFS('2017'!$M$6:$M$258,'2017'!$E$6:$E$258,AH$1,'2017'!$H$6:$H$258,$A32) -> 0 | AI32: =SUMIFS('2017'!$M$6:$M$258,'2017'!$E$6:$E$258,AI$1,'2017'!$H$6:$H$258,$A32) -> 0 | AJ32: =SUMIFS('2017'!$M$6:$M$258,'2017'!$E$6:$E$258,AJ$1,'2017'!$H$6:$H$258,$A32) -> 0 | AK32: =SUMIFS('2017'!$M$6:$M$258,'2017'!$E$6:$E$258,AK$1,'2017'!$H$6:$H$258,$A32) -> 0 | AL32: =SUMIFS('2017'!$M$6:$M$258,'2017'!$E$6:$E$258,AL$1,'2017'!$H$6:$H$258,$A32) -> 0 | AM32: =SUMIFS('2017'!$M$6:$M$258,'2017'!$E$6:$E$258,AM$1,'2017'!$H$6:$H$258,$A32) -> 0 | AN32: =SUMIFS('2017'!$M$6:$M$258,'2017'!$E$6:$E$258,AN$1,'2017'!$H$6:$H$258,$A32) -> 0 | AO32: =SUMIFS('2017'!$M$6:$M$258,'2017'!$E$6:$E$258,AO$1,'2017'!$H$6:$H$258,$A32) -> 0 | AP32: =SUMIFS('2017'!$M$6:$M$258,'2017'!$E$6:$E$258,AP$1,'2017'!$H$6:$H$258,$A32) -> 0 | AQ32: =SUMIFS('2017'!$M$6:$M$258,'2017'!$E$6:$E$258,AQ$1,'2017'!$H$6:$H$258,$A32) -> 0 | AR32: =SUMIFS('2017'!$M$6:$M$258,'2017'!$E$6:$E$258,AR$1,'2017'!$H$6:$H$258,$A32) -> 0 | AS32: =SUMIFS('2017'!$M$6:$M$258,'2017'!$E$6:$E$258,AS$1,'2017'!$H$6:$H$258,$A32) -> 0
A33: 928000 | B33: 105840 | C33: =SUMIFS('2017'!$M$6:$M$258,'2017'!$E$6:$E$258,C$1,'2017'!$H$6:$H$258,$A33) -> 0 | D33: =SUMIFS('2017'!$M$6:$M$258,'2017'!$E$6:$E$258,D$1,'2017'!$H$6:$H$258,$A33) -> 0 | E33: =SUMIFS('2017'!$M$6:$M$258,'2017'!$E$6:$E$258,E$1,'2017'!$H$6:$H$258,$A33) -> 0 | F33: =SUMIFS('2017'!$M$6:$M$258,'2017'!$E$6:$E$258,F$1,'2017'!$H$6:$H$258,$A33) -> 0 | G33: =SUMIFS('2017'!$M$6:$M$258,'2017'!$E$6:$E$258,G$1,'2017'!$H$6:$H$258,$A33) -> 0 | H33: =SUMIFS('2017'!$M$6:$M$258,'2017'!$E$6:$E$258,H$1,'2017'!$H$6:$H$258,$A33) -> 0 | I33: =SUMIFS('2017'!$M$6:$M$258,'2017'!$E$6:$E$258,I$1,'2017'!$H$6:$H$258,$A33) -> 0 | J33: =SUMIFS('2017'!$M$6:$M$258,'2017'!$E$6:$E$258,J$1,'2017'!$H$6:$H$258,$A33) -> 0 | K33: =SUMIFS('2017'!$M$6:$M$258,'2017'!$E$6:$E$258,K$1,'2017'!$H$6:$H$258,$A33) -> 0 | L33: =SUMIFS('2017'!$M$6:$M$258,'2017'!$E$6:$E$258,L$1,'2017'!$H$6:$H$258,$A33) -> 0 | M33: =SUMIFS('2017'!$M$6:$M$258,'2017'!$E$6:$E$258,M$1,'2017'!$H$6:$H$258,$A33) -> 0 | N33: =SUMIFS('2017'!$M$6:$M$258,'2017'!$E$6:$E$258,N$1,'2017'!$H$6:$H$258,$A33) -> 0 | O33: =SUMIFS('2017'!$M$6:$M$258,'2017'!$E$6:$E$258,O$1,'2017'!$H$6:$H$258,$A33) -> 0 | P33: =SUMIFS('2017'!$M$6:$M$258,'2017'!$E$6:$E$258,P$1,'2017'!$H$6:$H$258,$A33) -> 0 | Q33: =SUMIFS('2017'!$M$6:$M$258,'2017'!$E$6:$E$258,Q$1,'2017'!$H$6:$H$258,$A33) -> 105840 | R33: =SUMIFS('2017'!$M$6:$M$258,'2017'!$E$6:$E$258,R$1,'2017'!$H$6:$H$258,$A33) -> 0 | S33: =SUMIFS('2017'!$M$6:$M$258,'2017'!$E$6:$E$258,S$1,'2017'!$H$6:$H$258,$A33) -> 0 | T33: =SUMIFS('2017'!$M$6:$M$258,'2017'!$E$6:$E$258,T$1,'2017'!$H$6:$H$258,$A33) -> 0 | U33: =SUMIFS('2017'!$M$6:$M$258,'2017'!$E$6:$E$258,U$1,'2017'!$H$6:$H$258,$A33) -> 0 | V33: =SUMIFS('2017'!$M$6:$M$258,'2017'!$E$6:$E$258,V$1,'2017'!$H$6:$H$258,$A33) -> 0 | W33: =SUMIFS('2017'!$M$6:$M$258,'2017'!$E$6:$E$258,W$1,'2017'!$H$6:$H$258,$A33) -> 0 | X33: =SUMIFS('2017'!$M$6:$M$258,'2017'!$E$6:$E$258,X$1,'2017'!$H$6:$H$258,$A33) -> 0 | Y33: =SUMIFS('2017'!$M$6:$M$258,'2017'!$E$6:$E$258,Y$1,'2017'!$H$6:$H$258,$A33) -> 0 | Z33: =SUMIFS('2017'!$M$6:$M$258,'2017'!$E$6:$E$258,Z$1,'2017'!$H$6:$H$258,$A33) -> 0 | AA33: =SUMIFS('2017'!$M$6:$M$258,'2017'!$E$6:$E$258,AA$1,'2017'!$H$6:$H$258,$A33) -> 0 | AB33: =SUMIFS('2017'!$M$6:$M$258,'2017'!$E$6:$E$258,AB$1,'2017'!$H$6:$H$258,$A33) -> 0 | AC33: =SUMIFS('2017'!$M$6:$M$258,'2017'!$E$6:$E$258,AC$1,'2017'!$H$6:$H$258,$A33) -> 0 | AD33: =SUMIFS('2017'!$M$6:$M$258,'2017'!$E$6:$E$258,AD$1,'2017'!$H$6:$H$258,$A33) -> 0 | AE33: =SUMIFS('2017'!$M$6:$M$258,'2017'!$E$6:$E$258,AE$1,'2017'!$H$6:$H$258,$A33) -> 0 | AF33: =SUMIFS('2017'!$M$6:$M$258,'2017'!$E$6:$E$258,AF$1,'2017'!$H$6:$H$258,$A33) -> 0 | AG33: =SUMIFS('2017'!$M$6:$M$258,'2017'!$E$6:$E$258,AG$1,'2017'!$H$6:$H$258,$A33) -> 0 | AH33: =SUMIFS('2017'!$M$6:$M$258,'2017'!$E$6:$E$258,AH$1,'2017'!$H$6:$H$258,$A33) -> 0 | AI33: =SUMIFS('2017'!$M$6:$M$258,'2017'!$E$6:$E$258,AI$1,'2017'!$H$6:$H$258,$A33) -> 0 | AJ33: =SUMIFS('2017'!$M$6:$M$258,'2017'!$E$6:$E$258,AJ$1,'2017'!$H$6:$H$258,$A33) -> 0 | AK33: =SUMIFS('2017'!$M$6:$M$258,'2017'!$E$6:$E$258,AK$1,'2017'!$H$6:$H$258,$A33) -> 0 | AL33: =SUMIFS('2017'!$M$6:$M$258,'2017'!$E$6:$E$258,AL$1,'2017'!$H$6:$H$258,$A33) -> 0 | AM33: =SUMIFS('2017'!$M$6:$M$258,'2017'!$E$6:$E$258,AM$1,'2017'!$H$6:$H$258,$A33) -> 0 | AN33: =SUMIFS('2017'!$M$6:$M$258,'2017'!$E$6:$E$258,AN$1,'2017'!$H$6:$H$258,$A33) -> 0 | AO33: =SUMIFS('2017'!$M$6:$M$258,'2017'!$E$6:$E$258,AO$1,'2017'!$H$6:$H$258,$A33) -> 0 | AP33: =SUMIFS('2017'!$M$6:$M$258,'2017'!$E$6:$E$258,AP$1,'2017'!$H$6:$H$258,$A33) -> 0 | AQ33: =SUMIFS('2017'!$M$6:$M$258,'2017'!$E$6:$E$258,AQ$1,'2017'!$H$6:$H$258,$A33) -> 0 | AR33: =SUMIFS('2017'!$M$6:$M$258,'2017'!$E$6:$E$258,AR$1,'2017'!$H$6:$H$258,$A33) -> 0 | AS33: =SUMIFS('2017'!$M$6:$M$258,'2017'!$E$6:$E$258,AS$1,'2017'!$H$6:$H$258,$A33) -> 0
A34: 930200 | B34: 16538 | C34: =SUMIFS('2017'!$M$6:$M$258,'2017'!$E$6:$E$258,C$1,'2017'!$H$6:$H$258,$A34) -> 0 | D34: =SUMIFS('2017'!$M$6:$M$258,'2017'!$E$6:$E$258,D$1,'2017'!$H$6:$H$258,$A34) -> 0 | E34: =SUMIFS('2017'!$M$6:$M$258,'2017'!$E$6:$E$258,E$1,'2017'!$H$6:$H$258,$A34) -> 0 | F34: =SUMIFS('2017'!$M$6:$M$258,'2017'!$E$6:$E$258,F$1,'2017'!$H$6:$H$258,$A34) -> 0 | G34: =SUMIFS('2017'!$M$6:$M$258,'2017'!$E$6:$E$258,G$1,'2017'!$H$6:$H$258,$A34) -> 0 | H34: =SUMIFS('2017'!$M$6:$M$258,'2017'!$E$6:$E$258,H$1,'2017'!$H$6:$H$258,$A34) -> 0 | I34: =SUMIFS('2017'!$M$6:$M$258,'2017'!$E$6:$E$258,I$1,'2017'!$H$6:$H$258,$A34) -> 0 | J34: =SUMIFS('2017'!$M$6:$M$258,'2017'!$E$6:$E$258,J$1,'2017'!$H$6:$H$258,$A34) -> 0 | K34: =SUMIFS('2017'!$M$6:$M$258,'2017'!$E$6:$E$258,K$1,'2017'!$H$6:$H$258,$A34) -> 0 | L34: =SUMIFS('2017'!$M$6:$M$258,'2017'!$E$6:$E$258,L$1,'2017'!$H$6:$H$258,$A34) -> 0 | M34: =SUMIFS('2017'!$M$6:$M$258,'2017'!$E$6:$E$258,M$1,'2017'!$H$6:$H$258,$A34) -> 0 | N34: =SUMIFS('2017'!$M$6:$M$258,'2017'!$E$6:$E$258,N$1,'2017'!$H$6:$H$258,$A34) -> 0 | O34: =SUMIFS('2017'!$M$6:$M$258,'2017'!$E$6:$E$258,O$1,'2017'!$H$6:$H$258,$A34) -> 0 | P34: =SUMIFS('2017'!$M$6:$M$258,'2017'!$E$6:$E$258,P$1,'2017'!$H$6:$H$258,$A34) -> 0 | Q34: =SUMIFS('2017'!$M$6:$M$258,'2017'!$E$6:$E$258,Q$1,'2017'!$H$6:$H$258,$A34) -> 16538 | R34: =SUMIFS('2017'!$M$6:$M$258,'2017'!$E$6:$E$258,R$1,'2017'!$H$6:$H$258,$A34) -> 0 | S34: =SUMIFS('2017'!$M$6:$M$258,'2017'!$E$6:$E$258,S$1,'2017'!$H$6:$H$258,$A34) -> 0 | T34: =SUMIFS('2017'!$M$6:$M$258,'2017'!$E$6:$E$258,T$1,'2017'!$H$6:$H$258,$A34) -> 0 | U34: =SUMIFS('2017'!$M$6:$M$258,'2017'!$E$6:$E$258,U$1,'2017'!$H$6:$H$258,$A34) -> 0 | V34: =SUMIFS('2017'!$M$6:$M$258,'2017'!$E$6:$E$258,V$1,'2017'!$H$6:$H$258,$A34) -> 0 | W34: =SUMIFS('2017'!$M$6:$M$258,'2017'!$E$6:$E$258,W$1,'2017'!$H$6:$H$258,$A34) -> 0 | X34: =SUMIFS('2017'!$M$6:$M$258,'2017'!$E$6:$E$258,X$1,'2017'!$H$6:$H$258,$A34) -> 0 | Y34: =SUMIFS('2017'!$M$6:$M$258,'2017'!$E$6:$E$258,Y$1,'2017'!$H$6:$H$258,$A34) -> 0 | Z34: =SUMIFS('2017'!$M$6:$M$258,'2017'!$E$6:$E$258,Z$1,'2017'!$H$6:$H$258,$A34) -> 0 | AA34: =SUMIFS('2017'!$M$6:$M$258,'2017'!$E$6:$E$258,AA$1,'2017'!$H$6:$H$258,$A34) -> 0 | AB34: =SUMIFS('2017'!$M$6:$M$258,'2017'!$E$6:$E$258,AB$1,'2017'!$H$6:$H$258,$A34) -> 0 | AC34: =SUMIFS('2017'!$M$6:$M$258,'2017'!$E$6:$E$258,AC$1,'2017'!$H$6:$H$258,$A34) -> 0 | AD34: =SUMIFS('2017'!$M$6:$M$258,'2017'!$E$6:$E$258,AD$1,'2017'!$H$6:$H$258,$A34) -> 0 | AE34: =SUMIFS('2017'!$M$6:$M$258,'2017'!$E$6:$E$258,AE$1,'2017'!$H$6:$H$258,$A34) -> 0 | AF34: =SUMIFS('2017'!$M$6:$M$258,'2017'!$E$6:$E$258,AF$1,'2017'!$H$6:$H$258,$A34) -> 0 | AG34: =SUMIFS('2017'!$M$6:$M$258,'2017'!$E$6:$E$258,AG$1,'2017'!$H$6:$H$258,$A34) -> 0 | AH34: =SUMIFS('2017'!$M$6:$M$258,'2017'!$E$6:$E$258,AH$1,'2017'!$H$6:$H$258,$A34) -> 0 | AI34: =SUMIFS('2017'!$M$6:$M$258,'2017'!$E$6:$E$258,AI$1,'2017'!$H$6:$H$258,$A34) -> 0 | AJ34: =SUMIFS('2017'!$M$6:$M$258,'2017'!$E$6:$E$258,AJ$1,'2017'!$H$6:$H$258,$A34) -> 0 | AK34: =SUMIFS('2017'!$M$6:$M$258,'2017'!$E$6:$E$258,AK$1,'2017'!$H$6:$H$258,$A34) -> 0 | AL34: =SUMIFS('2017'!$M$6:$M$258,'2017'!$E$6:$E$258,AL$1,'2017'!$H$6:$H$258,$A34) -> 0 | AM34: =SUMIFS('2017'!$M$6:$M$258,'2017'!$E$6:$E$258,AM$1,'2017'!$H$6:$H$258,$A34) -> 0 | AN34: =SUMIFS('2017'!$M$6:$M$258,'2017'!$E$6:$E$258,AN$1,'2017'!$H$6:$H$258,$A34) -> 0 | AO34: =SUMIFS('2017'!$M$6:$M$258,'2017'!$E$6:$E$258,AO$1,'2017'!$H$6:$H$258,$A34) -> 0 | AP34: =SUMIFS('2017'!$M$6:$M$258,'2017'!$E$6:$E$258,AP$1,'2017'!$H$6:$H$258,$A34) -> 0 | AQ34: =SUMIFS('2017'!$M$6:$M$258,'2017'!$E$6:$E$258,AQ$1,'2017'!$H$6:$H$258,$A34) -> 0 | AR34: =SUMIFS('2017'!$M$6:$M$258,'2017'!$E$6:$E$258,AR$1,'2017'!$H$6:$H$258,$A34) -> 0 | AS34: =SUMIFS('2017'!$M$6:$M$258,'2017'!$E$6:$E$258,AS$1,'2017'!$H$6:$H$258,$A34) -> 0
A35: 931000 | B35: 324277 | C35: =SUMIFS('2017'!$M$6:$M$258,'2017'!$E$6:$E$258,C$1,'2017'!$H$6:$H$258,$A35) -> 0 | D35: =SUMIFS('2017'!$M$6:$M$258,'2017'!$E$6:$E$258,D$1,'2017'!$H$6:$H$258,$A35) -> 200264 | E35: =SUMIFS('2017'!$M$6:$M$258,'2017'!$E$6:$E$258,E$1,'2017'!$H$6:$H$258,$A35) -> 0 | F35: =SUMIFS('2017'!$M$6:$M$258,'2017'!$E$6:$E$258,F$1,'2017'!$H$6:$H$258,$A35) -> 0 | G35: =SUMIFS('2017'!$M$6:$M$258,'2017'!$E$6:$E$258,G$1,'2017'!$H$6:$H$258,$A35) -> 0 | H35: =SUMIFS('2017'!$M$6:$M$258,'2017'!$E$6:$E$258,H$1,'2017'!$H$6:$H$258,$A35) -> 0 | I35: =SUMIFS('2017'!$M$6:$M$258,'2017'!$E$6:$E$258,I$1,'2017'!$H$6:$H$258,$A35) -> 0 | J35: =SUMIFS('2017'!$M$6:$M$258,'2017'!$E$6:$E$258,J$1,'2017'!$H$6:$H$258,$A35) -> 0 | K35: =SUMIFS('2017'!$M$6:$M$258,'2017'!$E$6:$E$258,K$1,'2017'!$H$6:$H$258,$A35) -> 0 | L35: =SUMIFS('2017'!$M$6:$M$258,'2017'!$E$6:$E$258,L$1,'2017'!$H$6:$H$258,$A35) -> 0 | M35: =SUMIFS('2017'!$M$6:$M$258,'2017'!$E$6:$E$258,M$1,'2017'!$H$6:$H$258,$A35) -> 0 | N35: =SUMIFS('2017'!$M$6:$M$258,'2017'!$E$6:$E$258,N$1,'2017'!$H$6:$H$258,$A35) -> 0 | O35: =SUMIFS('2017'!$M$6:$M$258,'2017'!$E$6:$E$258,O$1,'2017'!$H$6:$H$258,$A35) -> 0 | P35: =SUMIFS('2017'!$M$6:$M$258,'2017'!$E$6:$E$258,P$1,'2017'!$H$6:$H$258,$A35) -> 0 | Q35: =SUMIFS('2017'!$M$6:$M$258,'2017'!$E$6:$E$258,Q$1,'2017'!$H$6:$H$258,$A35) -> 124013 | R35: =SUMIFS('2017'!$M$6:$M$258,'2017'!$E$6:$E$258,R$1,'2017'!$H$6:$H$258,$A35) -> 0 | S35: =SUMIFS('2017'!$M$6:$M$258,'2017'!$E$6:$E$258,S$1,'2017'!$H$6:$H$258,$A35) -> 0 | T35: =SUMIFS('2017'!$M$6:$M$258,'2017'!$E$6:$E$258,T$1,'2017'!$H$6:$H$258,$A35) -> 0 | U35: =SUMIFS('2017'!$M$6:$M$258,'2017'!$E$6:$E$258,U$1,'2017'!$H$6:$H$258,$A35) -> 0 | V35: =SUMIFS('2017'!$M$6:$M$258,'2017'!$E$6:$E$258,V$1,'2017'!$H$6:$H$258,$A35) -> 0 | W35: =SUMIFS('2017'!$M$6:$M$258,'2017'!$E$6:$E$258,W$1,'2017'!$H$6:$H$258,$A35) -> 0 | X35: =SUMIFS('2017'!$M$6:$M$258,'2017'!$E$6:$E$258,X$1,'2017'!$H$6:$H$258,$A35) -> 0 | Y35: =SUMIFS('2017'!$M$6:$M$258,'2017'!$E$6:$E$258,Y$1,'2017'!$H$6:$H$258,$A35) -> 0 | Z35: =SUMIFS('2017'!$M$6:$M$258,'2017'!$E$6:$E$258,Z$1,'2017'!$H$6:$H$258,$A35) -> 0 | AA35: =SUMIFS('2017'!$M$6:$M$258,'2017'!$E$6:$E$258,AA$1,'2017'!$H$6:$H$258,$A35) -> 0 | AB35: =SUMIFS('2017'!$M$6:$M$258,'2017'!$E$6:$E$258,AB$1,'2017'!$H$6:$H$258,$A35) -> 0 | AC35: =SUMIFS('2017'!$M$6:$M$258,'2017'!$E$6:$E$258,AC$1,'2017'!$H$6:$H$258,$A35) -> 0 | AD35: =SUMIFS('2017'!$M$6:$M$258,'2017'!$E$6:$E$258,AD$1,'2017'!$H$6:$H$258,$A35) -> 0 | AE35: =SUMIFS('2017'!$M$6:$M$258,'2017'!$E$6:$E$258,AE$1,'2017'!$H$6:$H$258,$A35) -> 0 | AF35: =SUMIFS('2017'!$M$6:$M$258,'2017'!$E$6:$E$258,AF$1,'2017'!$H$6:$H$258,$A35) -> 0 | AG35: =SUMIFS('2017'!$M$6:$M$258,'2017'!$E$6:$E$258,AG$1,'2017'!$H$6:$H$258,$A35) -> 0 | AH35: =SUMIFS('2017'!$M$6:$M$258,'2017'!$E$6:$E$258,AH$1,'2017'!$H$6:$H$258,$A35) -> 0 | AI35: =SUMIFS('2017'!$M$6:$M$258,'2017'!$E$6:$E$258,AI$1,'2017'!$H$6:$H$258,$A35) -> 0 | AJ35: =SUMIFS('2017'!$M$6:$M$258,'2017'!$E$6:$E$258,AJ$1,'2017'!$H$6:$H$258,$A35) -> 0 | AK35: =SUMIFS('2017'!$M$6:$M$258,'2017'!$E$6:$E$258,AK$1,'2017'!$H$6:$H$258,$A35) -> 0 | AL35: =SUMIFS('2017'!$M$6:$M$258,'2017'!$E$6:$E$258,AL$1,'2017'!$H$6:$H$258,$A35) -> 0 | AM35: =SUMIFS('2017'!$M$6:$M$258,'2017'!$E$6:$E$258,AM$1,'2017'!$H$6:$H$258,$A35) -> 0 | AN35: =SUMIFS('2017'!$M$6:$M$258,'2017'!$E$6:$E$258,AN$1,'2017'!$H$6:$H$258,$A35) -> 0 | AO35: =SUMIFS('2017'!$M$6:$M$258,'2017'!$E$6:$E$258,AO$1,'2017'!$H$6:$H$258,$A35) -> 0 | AP35: =SUMIFS('2017'!$M$6:$M$258,'2017'!$E$6:$E$258,AP$1,'2017'!$H$6:$H$258,$A35) -> 0 | AQ35: =SUMIFS('2017'!$M$6:$M$258,'2017'!$E$6:$E$258,AQ$1,'2017'!$H$6:$H$258,$A35) -> 0 | AR35: =SUMIFS('2017'!$M$6:$M$258,'2017'!$E$6:$E$258,AR$1,'2017'!$H$6:$H$258,$A35) -> 0 | AS35: =SUMIFS('2017'!$M$6:$M$258,'2017'!$E$6:$E$258,AS$1,'2017'!$H$6:$H$258,$A35) -> 0
A36: 935000 | B36: 8610973 | C36: =SUMIFS('2017'!$M$6:$M$258,'2017'!$E$6:$E$258,C$1,'2017'!$H$6:$H$258,$A36) -> 0 | D36: =SUMIFS('2017'!$M$6:$M$258,'2017'!$E$6:$E$258,D$1,'2017'!$H$6:$H$258,$A36) -> 7388437 | E36: =SUMIFS('2017'!$M$6:$M$258,'2017'!$E$6:$E$258,E$1,'2017'!$H$6:$H$258,$A36) -> 0 | F36: =SUMIFS('2017'!$M$6:$M$258,'2017'!$E$6:$E$258,F$1,'2017'!$H$6:$H$258,$A36) -> 0 | G36: =SUMIFS('2017'!$M$6:$M$258,'2017'!$E$6:$E$258,G$1,'2017'!$H$6:$H$258,$A36) -> 0 | H36: =SUMIFS('2017'!$M$6:$M$258,'2017'!$E$6:$E$258,H$1,'2017'!$H$6:$H$258,$A36) -> 0 | I36: =SUMIFS('2017'!$M$6:$M$258,'2017'!$E$6:$E$258,I$1,'2017'!$H$6:$H$258,$A36) -> 0 | J36: =SUMIFS('2017'!$M$6:$M$258,'2017'!$E$6:$E$258,J$1,'2017'!$H$6:$H$258,$A36) -> 45331 | K36: =SUMIFS('2017'!$M$6:$M$258,'2017'!$E$6:$E$258,K$1,'2017'!$H$6:$H$258,$A36) -> 0 | L36: =SUMIFS('2017'!$M$6:$M$258,'2017'!$E$6:$E$258,L$1,'2017'!$H$6:$H$258,$A36) -> 0 | M36: =SUMIFS('2017'!$M$6:$M$258,'2017'!$E$6:$E$258,M$1,'2017'!$H$6:$H$258,$A36) -> 0 | N36: =SUMIFS('2017'!$M$6:$M$258,'2017'!$E$6:$E$258,N$1,'2017'!$H$6:$H$258,$A36) -> 0 | O36: =SUMIFS('2017'!$M$6:$M$258,'2017'!$E$6:$E$258,O$1,'2017'!$H$6:$H$258,$A36) -> 0 | P36: =SUMIFS('2017'!$M$6:$M$258,'2017'!$E$6:$E$258,P$1,'2017'!$H$6:$H$258,$A36) -> 0 | Q36: =SUMIFS('2017'!$M$6:$M$258,'2017'!$E$6:$E$258,Q$1,'2017'!$H$6:$H$258,$A36) -> 144508 | R36: =SUMIFS('2017'!$M$6:$M$258,'2017'!$E$6:$E$258,R$1,'2017'!$H$6:$H$258,$A36) -> 0 | S36: =SUMIFS('2017'!$M$6:$M$258,'2017'!$E$6:$E$258,S$1,'2017'!$H$6:$H$258,$A36) -> 0 | T36: =SUMIFS('2017'!$M$6:$M$258,'2017'!$E$6:$E$258,T$1,'2017'!$H$6:$H$258,$A36) -> 0 | U36: =SUMIFS('2017'!$M$6:$M$258,'2017'!$E$6:$E$258,U$1,'2017'!$H$6:$H$258,$A36) -> 108127 | V36: =SUMIFS('2017'!$M$6:$M$258,'2017'!$E$6:$E$258,V$1,'2017'!$H$6:$H$258,$A36) -> 50052 | W36: =SUMIFS('2017'!$M$6:$M$258,'2017'!$E$6:$E$258,W$1,'2017'!$H$6:$H$258,$A36) -> 31165 | X36: =SUMIFS('2017'!$M$6:$M$258,'2017'!$E$6:$E$258,X$1,'2017'!$H$6:$H$258,$A36) -> 0 | Y36: =SUMIFS('2017'!$M$6:$M$258,'2017'!$E$6:$E$258,Y$1,'2017'!$H$6:$H$258,$A36) -> 843353 | Z36: =SUMIFS('2017'!$M$6:$M$258,'2017'!$E$6:$E$258,Z$1,'2017'!$H$6:$H$258,$A36) -> 0 | AA36: =SUMIFS('2017'!$M$6:$M$258,'2017'!$E$6:$E$258,AA$1,'2017'!$H$6:$H$258,$A36) -> 0 | AB36: =SUMIFS('2017'!$M$6:$M$258,'2017'!$E$6:$E$258,AB$1,'2017'!$H$6:$H$258,$A36) -> 0 | AC36: =SUMIFS('2017'!$M$6:$M$258,'2017'!$E$6:$E$258,AC$1,'2017'!$H$6:$H$258,$A36) -> 0 | AD36: =SUMIFS('2017'!$M$6:$M$258,'2017'!$E$6:$E$258,AD$1,'2017'!$H$6:$H$258,$A36) -> 0 | AE36: =SUMIFS('2017'!$M$6:$M$258,'2017'!$E$6:$E$258,AE$1,'2017'!$H$6:$H$258,$A36) -> 0 | AF36: =SUMIFS('2017'!$M$6:$M$258,'2017'!$E$6:$E$258,AF$1,'2017'!$H$6:$H$258,$A36) -> 0 | AG36: =SUMIFS('2017'!$M$6:$M$258,'2017'!$E$6:$E$258,AG$1,'2017'!$H$6:$H$258,$A36) -> 0 | AH36: =SUMIFS('2017'!$M$6:$M$258,'2017'!$E$6:$E$258,AH$1,'2017'!$H$6:$H$258,$A36) -> 0 | AI36: =SUMIFS('2017'!$M$6:$M$258,'2017'!$E$6:$E$258,AI$1,'2017'!$H$6:$H$258,$A36) -> 0 | AJ36: =SUMIFS('2017'!$M$6:$M$258,'2017'!$E$6:$E$258,AJ$1,'2017'!$H$6:$H$258,$A36) -> 0 | AK36: =SUMIFS('2017'!$M$6:$M$258,'2017'!$E$6:$E$258,AK$1,'2017'!$H$6:$H$258,$A36) -> 0 | AL36: =SUMIFS('2017'!$M$6:$M$258,'2017'!$E$6:$E$258,AL$1,'2017'!$H$6:$H$258,$A36) -> 0 | AM36: =SUMIFS('2017'!$M$6:$M$258,'2017'!$E$6:$E$258,AM$1,'2017'!$H$6:$H$258,$A36) -> 0 | AN36: =SUMIFS('2017'!$M$6:$M$258,'2017'!$E$6:$E$258,AN$1,'2017'!$H$6:$H$258,$A36) -> 0 | AO36: =SUMIFS('2017'!$M$6:$M$258,'2017'!$E$6:$E$258,AO$1,'2017'!$H$6:$H$258,$A36) -> 0 | AP36: =SUMIFS('2017'!$M$6:$M$258,'2017'!$E$6:$E$258,AP$1,'2017'!$H$6:$H$258,$A36) -> 0 | AQ36: =SUMIFS('2017'!$M$6:$M$258,'2017'!$E$6:$E$258,AQ$1,'2017'!$H$6:$H$258,$A36) -> 0 | AR36: =SUMIFS('2017'!$M$6:$M$258,'2017'!$E$6:$E$258,AR$1,'2017'!$H$6:$H$258,$A36) -> 0 | AS36: =SUMIFS('2017'!$M$6:$M$258,'2017'!$E$6:$E$258,AS$1,'2017'!$H$6:$H$258,$A36) -> 0
B38: =SUM(B24:B37) -> 32723264 | C38: =SUM(C24:C37) -> 1183221 | D38: =SUM(D24:D37) -> 9060195 | E38: =SUM(E24:E37) -> 746858 | F38: =SUM(F24:F37) -> 254277 | G38: =SUM(G24:G37) -> 1072296 | H38: =SUM(H24:H37) -> 380865 | I38: =SUM(I24:I37) -> 451793 | J38: =SUM(J24:J37) -> 209731 | K38: =SUM(K24:K37) -> 109936 | L38: =SUM(L24:L37) -> 1370215 | M38: =SUM(M24:M37) -> 503108 | N38: =SUM(N24:N37) -> 557589 | O38: =SUM(O24:O37) -> 305910 | P38: =SUM(P24:P37) -> 237053 | Q38: =SUM(Q24:Q37) -> 2413715 | R38: =SUM(R24:R37) -> 111450 | S38: =SUM(S24:S37) -> 51539 | T38: =SUM(T24:T37) -> 110540 | U38: =SUM(U24:U37) -> 509904 | V38: =SUM(V24:V37) -> 266132 | W38: =SUM(W24:W37) -> 1917951 | X38: =SUM(X24:X37) -> 526668 | Y38: =SUM(Y24:Y37) -> 2289391 | Z38: =SUM(Z24:Z37) -> 0 | AA38: =SUM(AA24:AA37) -> 898627 | AB38: =SUM(AB24:AB37) -> 406584 | AC38: =SUM(AC24:AC37) -> 258152 | AD38: =SUM(AD24:AD37) -> 453043 | AE38: =SUM(AE24:AE37) -> 489783 | AF38: =SUM(AF24:AF37) -> 890548 | AG38: =SUM(AG24:AG37) -> 1099763 | AH38: =SUM(AH24:AH37) -> 711197 | AI38: =SUM(AI24:AI37) -> 743781 | AJ38: =SUM(AJ24:AJ37) -> 214056 | AK38: =SUM(AK24:AK37) -> 170737 | AL38: =SUM(AL24:AL37) -> 68281 | AM38: =SUM(AM24:AM37) -> 43298 | AN38: =SUM(AN24:AN37) -> 505574 | AO38: =SUM(AO24:AO37) -> 53689 | AP38: =SUM(AP24:AP37) -> 126321 | AQ38: =SUM(AQ24:AQ37) -> 171754 | AR38: =SUM(AR24:AR37) -> 495729 | AS38: =SUM(AS24:AS37) -> 282010
B40: ='2017'!M4 -> 32723264
B42: =B40-B38 -> 0
A45: 2018 | B45: Sum | C45: N09 | D45: A09 | E45: P99 | F45: P59 | G45: P09 | H45: C09 | I45: C19 | J45: C29 | K45: C59 | L45: B09 | M45: E19 | N45: M19 | O45: R19 | P45: J09 | Q45: J29 | R45: E09 | S45: M09 | T45: R09 | U45: E29 | V45: M29 | W45: R29 | X45: W09 | Y45: S09 | Z45: X09 | AA45: Q19 | AB45: A19 | AC45: F19 | AD45: K19 | AE45: X19 | AF45: S19 | AG45: T19 | AH45: V19 | AI45: W39 | AJ45: G39 | AK45: Y39 | AL45: K39 | AM45: F39 | AN45: A39 | AO45: L39 | AP45: X39 | AQ45: S39 | AR45: T39 | AS45: V39
A46: 556000 | B46: =SUM(C46:AS46) -> 125340 | C46: =SUMIFS('2018'!$M$6:$M$258,'2018'!$E$6:$E$258,C$1,'2018'!$H$6:$H$258,$A46) -> 0 | D46: =SUMIFS('2018'!$M$6:$M$258,'2018'!$E$6:$E$258,D$1,'2018'!$H$6:$H$258,$A46) -> 0 | E46: =SUMIFS('2018'!$M$6:$M$258,'2018'!$E$6:$E$258,E$1,'2018'!$H$6:$H$258,$A46) -> 0 | F46: =SUMIFS('2018'!$M$6:$M$258,'2018'!$E$6:$E$258,F$1,'2018'!$H$6:$H$258,$A46) -> 0 | G46: =SUMIFS('2018'!$M$6:$M$258,'2018'!$E$6:$E$258,G$1,'2018'!$H$6:$H$258,$A46) -> 0 | H46: =SUMIFS('2018'!$M$6:$M$258,'2018'!$E$6:$E$258,H$1,'2018'!$H$6:$H$258,$A46) -> 0 | I46: =SUMIFS('2018'!$M$6:$M$258,'2018'!$E$6:$E$258,I$1,'2018'!$H$6:$H$258,$A46) -> 0 | J46: =SUMIFS('2018'!$M$6:$M$258,'2018'!$E$6:$E$258,J$1,'2018'!$H$6:$H$258,$A46) -> 0 | K46: =SUMIFS('2018'!$M$6:$M$258,'2018'!$E$6:$E$258,K$1,'2018'!$H$6:$H$258,$A46) -> 0 | L46: =SUMIFS('2018'!$M$6:$M$258,'2018'!$E$6:$E$258,L$1,'2018'!$H$6:$H$258,$A46) -> 0 | M46: =SUMIFS('2018'!$M$6:$M$258,'2018'!$E$6:$E$258,M$1,'2018'!$H$6:$H$258,$A46) -> 0 | N46: =SUMIFS('2018'!$M$6:$M$258,'2018'!$E$6:$E$258,N$1,'2018'!$H$6:$H$258,$A46) -> 0 | O46: =SUMIFS('2018'!$M$6:$M$258,'2018'!$E$6:$E$258,O$1,'2018'!$H$6:$H$258,$A46) -> 0 | P46: =SUMIFS('2018'!$M$6:$M$258,'2018'!$E$6:$E$258,P$1,'2018'!$H$6:$H$258,$A46) -> 0 | Q46: =SUMIFS('2018'!$M$6:$M$258,'2018'!$E$6:$E$258,Q$1,'2018'!$H$6:$H$258,$A46) -> 0 | R46: =SUMIFS('2018'!$M$6:$M$258,'2018'!$E$6:$E$258,R$1,'2018'!$H$6:$H$258,$A46) -> 0 | S46: =SUMIFS('2018'!$M$6:$M$258,'2018'!$E$6:$E$258,S$1,'2018'!$H$6:$H$258,$A46) -> 0 | T46: =SUMIFS('2018'!$M$6:$M$258,'2018'!$E$6:$E$258,T$1,'2018'!$H$6:$H$258,$A46) -> 0 | U46: =SUMIFS('2018'!$M$6:$M$258,'2018'!$E$6:$E$258,U$1,'2018'!$H$6:$H$258,$A46) -> 0 | V46: =SUMIFS('2018'!$M$6:$M$258,'2018'!$E$6:$E$258,V$1,'2018'!$H$6:$H$258,$A46) -> 0 | W46: =SUMIFS('2018'!$M$6:$M$258,'2018'!$E$6:$E$258,W$1,'2018'!$H$6:$H$258,$A46) -> 0 | X46: =SUMIFS('2018'!$M$6:$M$258,'2018'!$E$6:$E$258,X$1,'2018'!$H$6:$H$258,$A46) -> 0 | Y46: =SUMIFS('2018'!$M$6:$M$258,'2018'!$E$6:$E$258,Y$1,'2018'!$H$6:$H$258,$A46) -> 125340 | Z46: =SUMIFS('2018'!$M$6:$M$258,'2018'!$E$6:$E$258,Z$1,'2018'!$H$6:$H$258,$A46) -> 0 | AA46: =SUMIFS('2018'!$M$6:$M$258,'2018'!$E$6:$E$258,AA$1,'2018'!$H$6:$H$258,$A46) -> 0 | AB46: =SUMIFS('2018'!$M$6:$M$258,'2018'!$E$6:$E$258,AB$1,'2018'!$H$6:$H$258,$A46) -> 0 | AC46: =SUMIFS('2018'!$M$6:$M$258,'2018'!$E$6:$E$258,AC$1,'2018'!$H$6:$H$258,$A46) -> 0 | AD46: =SUMIFS('2018'!$M$6:$M$258,'2018'!$E$6:$E$258,AD$1,'2018'!$H$6:$H$258,$A46) -> 0 | AE46: =SUMIFS('2018'!$M$6:$M$258,'2018'!$E$6:$E$258,AE$1,'2018'!$H$6:$H$258,$A46) -> 0 | AF46: =SUMIFS('2018'!$M$6:$M$258,'2018'!$E$6:$E$258,AF$1,'2018'!$H$6:$H$258,$A46) -> 0 | AG46: =SUMIFS('2018'!$M$6:$M$258,'2018'!$E$6:$E$258,AG$1,'2018'!$H$6:$H$258,$A46) -> 0 | AH46: =SUMIFS('2018'!$M$6:$M$258,'2018'!$E$6:$E$258,AH$1,'2018'!$H$6:$H$258,$A46) -> 0 | AI46: =SUMIFS('2018'!$M$6:$M$258,'2018'!$E$6:$E$258,AI$1,'2018'!$H$6:$H$258,$A46) -> 0 | AJ46: =SUMIFS('2018'!$M$6:$M$258,'2018'!$E$6:$E$258,AJ$1,'2018'!$H$6:$H$258,$A46) -> 0 | AK46: =SUMIFS('2018'!$M$6:$M$258,'2018'!$E$6:$E$258,AK$1,'2018'!$H$6:$H$258,$A46) -> 0 | AL46: =SUMIFS('2018'!$M$6:$M$258,'2018'!$E$6:$E$258,AL$1,'2018'!$H$6:$H$258,$A46) -> 0 | AM46: =SUMIFS('2018'!$M$6:$M$258,'2018'!$E$6:$E$258,AM$1,'2018'!$H$6:$H$258,$A46) -> 0 | AN46: =SUMIFS('2018'!$M$6:$M$258,'2018'!$E$6:$E$258,AN$1,'2018'!$H$6:$H$258,$A46) -> 0 | AO46: =SUMIFS('2018'!$M$6:$M$258,'2018'!$E$6:$E$258,AO$1,'2018'!$H$6:$H$258,$A46) -> 0 | AP46: =SUMIFS('2018'!$M$6:$M$258,'2018'!$E$6:$E$258,AP$1,'2018'!$H$6:$H$258,$A46) -> 0 | AQ46: =SUMIFS('2018'!$M$6:$M$258,'2018'!$E$6:$E$258,AQ$1,'2018'!$H$6:$H$258,$A46) -> 0 | AR46: =SUMIFS('2018'!$M$6:$M$258,'2018'!$E$6:$E$258,AR$1,'2018'!$H$6:$H$258,$A46) -> 0 | AS46: =SUMIFS('2018'!$M$6:$M$258,'2018'!$E$6:$E$258,AS$1,'2018'!$H$6:$H$258,$A46) -> 0
A47: 560000 | B47: =SUM(C47:AS47) -> 234484 | C47: =SUMIFS('2018'!$M$6:$M$258,'2018'!$E$6:$E$258,C$1,'2018'!$H$6:$H$258,$A47) -> 0 | D47: =SUMIFS('2018'!$M$6:$M$258,'2018'!$E$6:$E$258,D$1,'2018'!$H$6:$H$258,$A47) -> 0 | E47: =SUMIFS('2018'!$M$6:$M$258,'2018'!$E$6:$E$258,E$1,'2018'!$H$6:$H$258,$A47) -> 0 | F47: =SUMIFS('2018'!$M$6:$M$258,'2018'!$E$6:$E$258,F$1,'2018'!$H$6:$H$258,$A47) -> 0 | G47: =SUMIFS('2018'!$M$6:$M$258,'2018'!$E$6:$E$258,G$1,'2018'!$H$6:$H$258,$A47) -> 0 | H47: =SUMIFS('2018'!$M$6:$M$258,'2018'!$E$6:$E$258,H$1,'2018'!$H$6:$H$258,$A47) -> 0 | I47: =SUMIFS('2018'!$M$6:$M$258,'2018'!$E$6:$E$258,I$1,'2018'!$H$6:$H$258,$A47) -> 0 | J47: =SUMIFS('2018'!$M$6:$M$258,'2018'!$E$6:$E$258,J$1,'2018'!$H$6:$H$258,$A47) -> 0 | K47: =SUMIFS('2018'!$M$6:$M$258,'2018'!$E$6:$E$258,K$1,'2018'!$H$6:$H$258,$A47) -> 0 | L47: =SUMIFS('2018'!$M$6:$M$258,'2018'!$E$6:$E$258,L$1,'2018'!$H$6:$H$258,$A47) -> 0 | M47: =SUMIFS('2018'!$M$6:$M$258,'2018'!$E$6:$E$258,M$1,'2018'!$H$6:$H$258,$A47) -> 0 | N47: =SUMIFS('2018'!$M$6:$M$258,'2018'!$E$6:$E$258,N$1,'2018'!$H$6:$H$258,$A47) -> 0 | O47: =SUMIFS('2018'!$M$6:$M$258,'2018'!$E$6:$E$258,O$1,'2018'!$H$6:$H$258,$A47) -> 0 | P47: =SUMIFS('2018'!$M$6:$M$258,'2018'!$E$6:$E$258,P$1,'2018'!$H$6:$H$258,$A47) -> 0 | Q47: =SUMIFS('2018'!$M$6:$M$258,'2018'!$E$6:$E$258,Q$1,'2018'!$H$6:$H$258,$A47) -> 0 | R47: =SUMIFS('2018'!$M$6:$M$258,'2018'!$E$6:$E$258,R$1,'2018'!$H$6:$H$258,$A47) -> 0 | S47: =SUMIFS('2018'!$M$6:$M$258,'2018'!$E$6:$E$258,S$1,'2018'!$H$6:$H$258,$A47) -> 0 | T47: =SUMIFS('2018'!$M$6:$M$258,'2018'!$E$6:$E$258,T$1,'2018'!$H$6:$H$258,$A47) -> 0 | U47: =SUMIFS('2018'!$M$6:$M$258,'2018'!$E$6:$E$258,U$1,'2018'!$H$6:$H$258,$A47) -> 0 | V47: =SUMIFS('2018'!$M$6:$M$258,'2018'!$E$6:$E$258,V$1,'2018'!$H$6:$H$258,$A47) -> 0 | W47: =SUMIFS('2018'!$M$6:$M$258,'2018'!$E$6:$E$258,W$1,'2018'!$H$6:$H$258,$A47) -> 0 | X47: =SUMIFS('2018'!$M$6:$M$258,'2018'!$E$6:$E$258,X$1,'2018'!$H$6:$H$258,$A47) -> 0 | Y47: =SUMIFS('2018'!$M$6:$M$258,'2018'!$E$6:$E$258,Y$1,'2018'!$H$6:$H$258,$A47) -> 234484 | Z47: =SUMIFS('2018'!$M$6:$M$258,'2018'!$E$6:$E$258,Z$1,'2018'!$H$6:$H$258,$A47) -> 0 | AA47: =SUMIFS('2018'!$M$6:$M$258,'2018'!$E$6:$E$258,AA$1,'2018'!$H$6:$H$258,$A47) -> 0 | AB47: =SUMIFS('2018'!$M$6:$M$258,'2018'!$E$6:$E$258,AB$1,'2018'!$H$6:$H$258,$A47) -> 0 | AC47: =SUMIFS('2018'!$M$6:$M$258,'2018'!$E$6:$E$258,AC$1,'2018'!$H$6:$H$258,$A47) -> 0 | AD47: =SUMIFS('2018'!$M$6:$M$258,'2018'!$E$6:$E$258,AD$1,'2018'!$H$6:$H$258,$A47) -> 0 | AE47: =SUMIFS('2018'!$M$6:$M$258,'2018'!$E$6:$E$258,AE$1,'2018'!$H$6:$H$258,$A47) -> 0 | AF47: =SUMIFS('2018'!$M$6:$M$258,'2018'!$E$6:$E$258,AF$1,'2018'!$H$6:$H$258,$A47) -> 0 | AG47: =SUMIFS('2018'!$M$6:$M$258,'2018'!$E$6:$E$258,AG$1,'2018'!$H$6:$H$258,$A47) -> 0 | AH47: =SUMIFS('2018'!$M$6:$M$258,'2018'!$E$6:$E$258,AH$1,'2018'!$H$6:$H$258,$A47) -> 0 | AI47: =SUMIFS('2018'!$M$6:$M$258,'2018'!$E$6:$E$258,AI$1,'2018'!$H$6:$H$258,$A47) -> 0 | AJ47: =SUMIFS('2018'!$M$6:$M$258,'2018'!$E$6:$E$258,AJ$1,'2018'!$H$6:$H$258,$A47) -> 0 | AK47: =SUMIFS('2018'!$M$6:$M$258,'2018'!$E$6:$E$258,AK$1,'2018'!$H$6:$H$258,$A47) -> 0 | AL47: =SUMIFS('2018'!$M$6:$M$258,'2018'!$E$6:$E$258,AL$1,'2018'!$H$6:$H$258,$A47) -> 0 | AM47: =SUMIFS('2018'!$M$6:$M$258,'2018'!$E$6:$E$258,AM$1,'2018'!$H$6:$H$258,$A47) -> 0 | AN47: =SUMIFS('2018'!$M$6:$M$258,'2018'!$E$6:$E$258,AN$1,'2018'!$H$6:$H$258,$A47) -> 0 | AO47: =SUMIFS('2018'!$M$6:$M$258,'2018'!$E$6:$E$258,AO$1,'2018'!$H$6:$H$258,$A47) -> 0 | AP47: =SUMIFS('2018'!$M$6:$M$258,'2018'!$E$6:$E$258,AP$1,'2018'!$H$6:$H$258,$A47) -> 0 | AQ47: =SUMIFS('2018'!$M$6:$M$258,'2018'!$E$6:$E$258,AQ$1,'2018'!$H$6:$H$258,$A47) -> 0 | AR47: =SUMIFS('2018'!$M$6:$M$258,'2018'!$E$6:$E$258,AR$1,'2018'!$H$6:$H$258,$A47) -> 0 | AS47: =SUMIFS('2018'!$M$6:$M$258,'2018'!$E$6:$E$258,AS$1,'2018'!$H$6:$H$258,$A47) -> 0
A48: 587000 | B48: 40000 | C48: =SUMIFS('2018'!$M$6:$M$258,'2018'!$E$6:$E$258,C$1,'2018'!$H$6:$H$258,$A48) -> 0 | D48: =SUMIFS('2018'!$M$6:$M$258,'2018'!$E$6:$E$258,D$1,'2018'!$H$6:$H$258,$A48) -> 0 | E48: =SUMIFS('2018'!$M$6:$M$258,'2018'!$E$6:$E$258,E$1,'2018'!$H$6:$H$258,$A48) -> 0 | F48: =SUMIFS('2018'!$M$6:$M$258,'2018'!$E$6:$E$258,F$1,'2018'!$H$6:$H$258,$A48) -> 0 | G48: =SUMIFS('2018'!$M$6:$M$258,'2018'!$E$6:$E$258,G$1,'2018'!$H$6:$H$258,$A48) -> 0 | H48: =SUMIFS('2018'!$M$6:$M$258,'2018'!$E$6:$E$258,H$1,'2018'!$H$6:$H$258,$A48) -> 0 | I48: =SUMIFS('2018'!$M$6:$M$258,'2018'!$E$6:$E$258,I$1,'2018'!$H$6:$H$258,$A48) -> 0 | J48: =SUMIFS('2018'!$M$6:$M$258,'2018'!$E$6:$E$258,J$1,'2018'!$H$6:$H$258,$A48) -> 0 | K48: =SUMIFS('2018'!$M$6:$M$258,'2018'!$E$6:$E$258,K$1,'2018'!$H$6:$H$258,$A48) -> 0 | L48: =SUMIFS('2018'!$M$6:$M$258,'2018'!$E$6:$E$258,L$1,'2018'!$H$6:$H$258,$A48) -> 0 | M48: =SUMIFS('2018'!$M$6:$M$258,'2018'!$E$6:$E$258,M$1,'2018'!$H$6:$H$258,$A48) -> 0 | N48: =SUMIFS('2018'!$M$6:$M$258,'2018'!$E$6:$E$258,N$1,'2018'!$H$6:$H$258,$A48) -> 0 | O48: =SUMIFS('2018'!$M$6:$M$258,'2018'!$E$6:$E$258,O$1,'2018'!$H$6:$H$258,$A48) -> 0 | P48: =SUMIFS('2018'!$M$6:$M$258,'2018'!$E$6:$E$258,P$1,'2018'!$H$6:$H$258,$A48) -> 0 | Q48: =SUMIFS('2018'!$M$6:$M$258,'2018'!$E$6:$E$258,Q$1,'2018'!$H$6:$H$258,$A48) -> 40000 | R48: =SUMIFS('2018'!$M$6:$M$258,'2018'!$E$6:$E$258,R$1,'2018'!$H$6:$H$258,$A48) -> 0 | S48: =SUMIFS('2018'!$M$6:$M$258,'2018'!$E$6:$E$258,S$1,'2018'!$H$6:$H$258,$A48) -> 0 | T48: =SUMIFS('2018'!$M$6:$M$258,'2018'!$E$6:$E$258,T$1,'2018'!$H$6:$H$258,$A48) -> 0 | U48: =SUMIFS('2018'!$M$6:$M$258,'2018'!$E$6:$E$258,U$1,'2018'!$H$6:$H$258,$A48) -> 0 | V48: =SUMIFS('2018'!$M$6:$M$258,'2018'!$E$6:$E$258,V$1,'2018'!$H$6:$H$258,$A48) -> 0 | W48: =SUMIFS('2018'!$M$6:$M$258,'2018'!$E$6:$E$258,W$1,'2018'!$H$6:$H$258,$A48) -> 0 | X48: =SUMIFS('2018'!$M$6:$M$258,'2018'!$E$6:$E$258,X$1,'2018'!$H$6:$H$258,$A48) -> 0 | Y48: =SUMIFS('2018'!$M$6:$M$258,'2018'!$E$6:$E$258,Y$1,'2018'!$H$6:$H$258,$A48) -> 0 | Z48: =SUMIFS('2018'!$M$6:$M$258,'2018'!$E$6:$E$258,Z$1,'2018'!$H$6:$H$258,$A48) -> 0 | AA48: =SUMIFS('2018'!$M$6:$M$258,'2018'!$E$6:$E$258,AA$1,'2018'!$H$6:$H$258,$A48) -> 0 | AB48: =SUMIFS('2018'!$M$6:$M$258,'2018'!$E$6:$E$258,AB$1,'2018'!$H$6:$H$258,$A48) -> 0 | AC48: =SUMIFS('2018'!$M$6:$M$258,'2018'!$E$6:$E$258,AC$1,'2018'!$H$6:$H$258,$A48) -> 0 | AD48: =SUMIFS('2018'!$M$6:$M$258,'2018'!$E$6:$E$258,AD$1,'2018'!$H$6:$H$258,$A48) -> 0 | AE48: =SUMIFS('2018'!$M$6:$M$258,'2018'!$E$6:$E$258,AE$1,'2018'!$H$6:$H$258,$A48) -> 0 | AF48: =SUMIFS('2018'!$M$6:$M$258,'2018'!$E$6:$E$258,AF$1,'2018'!$H$6:$H$258,$A48) -> 0 | AG48: =SUMIFS('2018'!$M$6:$M$258,'2018'!$E$6:$E$258,AG$1,'2018'!$H$6:$H$258,$A48) -> 0 | AH48: =SUMIFS('2018'!$M$6:$M$258,'2018'!$E$6:$E$258,AH$1,'2018'!$H$6:$H$258,$A48) -> 0 | AI48: =SUMIFS('2018'!$M$6:$M$258,'2018'!$E$6:$E$258,AI$1,'2018'!$H$6:$H$258,$A48) -> 0 | AJ48: =SUMIFS('2018'!$M$6:$M$258,'2018'!$E$6:$E$258,AJ$1,'2018'!$H$6:$H$258,$A48) -> 0 | AK48: =SUMIFS('2018'!$M$6:$M$258,'2018'!$E$6:$E$258,AK$1,'2018'!$H$6:$H$258,$A48) -> 0 | AL48: =SUMIFS('2018'!$M$6:$M$258,'2018'!$E$6:$E$258,AL$1,'2018'!$H$6:$H$258,$A48) -> 0 | AM48: =SUMIFS('2018'!$M$6:$M$258,'2018'!$E$6:$E$258,AM$1,'2018'!$H$6:$H$258,$A48) -> 0 | AN48: =SUMIFS('2018'!$M$6:$M$258,'2018'!$E$6:$E$258,AN$1,'2018'!$H$6:$H$258,$A48) -> 0 | AO48: =SUMIFS('2018'!$M$6:$M$258,'2018'!$E$6:$E$258,AO$1,'2018'!$H$6:$H$258,$A48) -> 0 | AP48: =SUMIFS('2018'!$M$6:$M$258,'2018'!$E$6:$E$258,AP$1,'2018'!$H$6:$H$258,$A48) -> 0 | AQ48: =SUMIFS('2018'!$M$6:$M$258,'2018'!$E$6:$E$258,AQ$1,'2018'!$H$6:$H$258,$A48) -> 0 | AR48: =SUMIFS('2018'!$M$6:$M$258,'2018'!$E$6:$E$258,AR$1,'2018'!$H$6:$H$258,$A48) -> 0 | AS48: =SUMIFS('2018'!$M$6:$M$258,'2018'!$E$6:$E$258,AS$1,'2018'!$H$6:$H$258,$A48) -> 0
A49: 902000 | B49: 55566 | C49: =SUMIFS('2018'!$M$6:$M$258,'2018'!$E$6:$E$258,C$1,'2018'!$H$6:$H$258,$A49) -> 0 | D49: =SUMIFS('2018'!$M$6:$M$258,'2018'!$E$6:$E$258,D$1,'2018'!$H$6:$H$258,$A49) -> 0 | E49: =SUMIFS('2018'!$M$6:$M$258,'2018'!$E$6:$E$258,E$1,'2018'!$H$6:$H$258,$A49) -> 0 | F49: =SUMIFS('2018'!$M$6:$M$258,'2018'!$E$6:$E$258,F$1,'2018'!$H$6:$H$258,$A49) -> 0 | G49: =SUMIFS('2018'!$M$6:$M$258,'2018'!$E$6:$E$258,G$1,'2018'!$H$6:$H$258,$A49) -> 0 | H49: =SUMIFS('2018'!$M$6:$M$258,'2018'!$E$6:$E$258,H$1,'2018'!$H$6:$H$258,$A49) -> 0 | I49: =SUMIFS('2018'!$M$6:$M$258,'2018'!$E$6:$E$258,I$1,'2018'!$H$6:$H$258,$A49) -> 0 | J49: =SUMIFS('2018'!$M$6:$M$258,'2018'!$E$6:$E$258,J$1,'2018'!$H$6:$H$258,$A49) -> 0 | K49: =SUMIFS('2018'!$M$6:$M$258,'2018'!$E$6:$E$258,K$1,'2018'!$H$6:$H$258,$A49) -> 0 | L49: =SUMIFS('2018'!$M$6:$M$258,'2018'!$E$6:$E$258,L$1,'2018'!$H$6:$H$258,$A49) -> 0 | M49: =SUMIFS('2018'!$M$6:$M$258,'2018'!$E$6:$E$258,M$1,'2018'!$H$6:$H$258,$A49) -> 0 | N49: =SUMIFS('2018'!$M$6:$M$258,'2018'!$E$6:$E$258,N$1,'2018'!$H$6:$H$258,$A49) -> 0 | O49: =SUMIFS('2018'!$M$6:$M$258,'2018'!$E$6:$E$258,O$1,'2018'!$H$6:$H$258,$A49) -> 0 | P49: =SUMIFS('2018'!$M$6:$M$258,'2018'!$E$6:$E$258,P$1,'2018'!$H$6:$H$258,$A49) -> 0 | Q49: =SUMIFS('2018'!$M$6:$M$258,'2018'!$E$6:$E$258,Q$1,'2018'!$H$6:$H$258,$A49) -> 55566 | R49: =SUMIFS('2018'!$M$6:$M$258,'2018'!$E$6:$E$258,R$1,'2018'!$H$6:$H$258,$A49) -> 0 | S49: =SUMIFS('2018'!$M$6:$M$258,'2018'!$E$6:$E$258,S$1,'2018'!$H$6:$H$258,$A49) -> 0 | T49: =SUMIFS('2018'!$M$6:$M$258,'2018'!$E$6:$E$258,T$1,'2018'!$H$6:$H$258,$A49) -> 0 | U49: =SUMIFS('2018'!$M$6:$M$258,'2018'!$E$6:$E$258,U$1,'2018'!$H$6:$H$258,$A49) -> 0 | V49: =SUMIFS('2018'!$M$6:$M$258,'2018'!$E$6:$E$258,V$1,'2018'!$H$6:$H$258,$A49) -> 0 | W49: =SUMIFS('2018'!$M$6:$M$258,'2018'!$E$6:$E$258,W$1,'2018'!$H$6:$H$258,$A49) -> 0 | X49: =SUMIFS('2018'!$M$6:$M$258,'2018'!$E$6:$E$258,X$1,'2018'!$H$6:$H$258,$A49) -> 0 | Y49: =SUMIFS('2018'!$M$6:$M$258,'2018'!$E$6:$E$258,Y$1,'2018'!$H$6:$H$258,$A49) -> 0 | Z49: =SUMIFS('2018'!$M$6:$M$258,'2018'!$E$6:$E$258,Z$1,'2018'!$H$6:$H$258,$A49) -> 0 | AA49: =SUMIFS('2018'!$M$6:$M$258,'2018'!$E$6:$E$258,AA$1,'2018'!$H$6:$H$258,$A49) -> 0 | AB49: =SUMIFS('2018'!$M$6:$M$258,'2018'!$E$6:$E$258,AB$1,'2018'!$H$6:$H$258,$A49) -> 0 | AC49: =SUMIFS('2018'!$M$6:$M$258,'2018'!$E$6:$E$258,AC$1,'2018'!$H$6:$H$258,$A49) -> 0 | AD49: =SUMIFS('2018'!$M$6:$M$258,'2018'!$E$6:$E$258,AD$1,'2018'!$H$6:$H$258,$A49) -> 0 | AE49: =SUMIFS('2018'!$M$6:$M$258,'2018'!$E$6:$E$258,AE$1,'2018'!$H$6:$H$258,$A49) -> 0 | AF49: =SUMIFS('2018'!$M$6:$M$258,'2018'!$E$6:$E$258,AF$1,'2018'!$H$6:$H$258,$A49) -> 0 | AG49: =SUMIFS('2018'!$M$6:$M$258,'2018'!$E$6:$E$258,AG$1,'2018'!$H$6:$H$258,$A49) -> 0 | AH49: =SUMIFS('2018'!$M$6:$M$258,'2018'!$E$6:$E$258,AH$1,'2018'!$H$6:$H$258,$A49) -> 0 | AI49: =SUMIFS('2018'!$M$6:$M$258,'2018'!$E$6:$E$258,AI$1,'2018'!$H$6:$H$258,$A49) -> 0 | AJ49: =SUMIFS('2018'!$M$6:$M$258,'2018'!$E$6:$E$258,AJ$1,'2018'!$H$6:$H$258,$A49) -> 0 | AK49: =SUMIFS('2018'!$M$6:$M$258,'2018'!$E$6:$E$258,AK$1,'2018'!$H$6:$H$258,$A49) -> 0 | AL49: =SUMIFS('2018'!$M$6:$M$258,'2018'!$E$6:$E$258,AL$1,'2018'!$H$6:$H$258,$A49) -> 0 | AM49: =SUMIFS('2018'!$M$6:$M$258,'2018'!$E$6:$E$258,AM$1,'2018'!$H$6:$H$258,$A49) -> 0 | AN49: =SUMIFS('2018'!$M$6:$M$258,'2018'!$E$6:$E$258,AN$1,'2018'!$H$6:$H$258,$A49) -> 0 | AO49: =SUMIFS('2018'!$M$6:$M$258,'2018'!$E$6:$E$258,AO$1,'2018'!$H$6:$H$258,$A49) -> 0 | AP49: =SUMIFS('2018'!$M$6:$M$258,'2018'!$E$6:$E$258,AP$1,'2018'!$H$6:$H$258,$A49) -> 0 | AQ49: =SUMIFS('2018'!$M$6:$M$258,'2018'!$E$6:$E$258,AQ$1,'2018'!$H$6:$H$258,$A49) -> 0 | AR49: =SUMIFS('2018'!$M$6:$M$258,'2018'!$E$6:$E$258,AR$1,'2018'!$H$6:$H$258,$A49) -> 0 | AS49: =SUMIFS('2018'!$M$6:$M$258,'2018'!$E$6:$E$258,AS$1,'2018'!$H$6:$H$258,$A49) -> 0
A50: 903000 | B50: 552663 | C50: =SUMIFS('2018'!$M$6:$M$258,'2018'!$E$6:$E$258,C$1,'2018'!$H$6:$H$258,$A50) -> 0 | D50: =SUMIFS('2018'!$M$6:$M$258,'2018'!$E$6:$E$258,D$1,'2018'!$H$6:$H$258,$A50) -> 0 | E50: =SUMIFS('2018'!$M$6:$M$258,'2018'!$E$6:$E$258,E$1,'2018'!$H$6:$H$258,$A50) -> 0 | F50: =SUMIFS('2018'!$M$6:$M$258,'2018'!$E$6:$E$258,F$1,'2018'!$H$6:$H$258,$A50) -> 0 | G50: =SUMIFS('2018'!$M$6:$M$258,'2018'!$E$6:$E$258,G$1,'2018'!$H$6:$H$258,$A50) -> 0 | H50: =SUMIFS('2018'!$M$6:$M$258,'2018'!$E$6:$E$258,H$1,'2018'!$H$6:$H$258,$A50) -> 0 | I50: =SUMIFS('2018'!$M$6:$M$258,'2018'!$E$6:$E$258,I$1,'2018'!$H$6:$H$258,$A50) -> 0 | J50: =SUMIFS('2018'!$M$6:$M$258,'2018'!$E$6:$E$258,J$1,'2018'!$H$6:$H$258,$A50) -> 0 | K50: =SUMIFS('2018'!$M$6:$M$258,'2018'!$E$6:$E$258,K$1,'2018'!$H$6:$H$258,$A50) -> 0 | L50: =SUMIFS('2018'!$M$6:$M$258,'2018'!$E$6:$E$258,L$1,'2018'!$H$6:$H$258,$A50) -> 0 | M50: =SUMIFS('2018'!$M$6:$M$258,'2018'!$E$6:$E$258,M$1,'2018'!$H$6:$H$258,$A50) -> 0 | N50: =SUMIFS('2018'!$M$6:$M$258,'2018'!$E$6:$E$258,N$1,'2018'!$H$6:$H$258,$A50) -> 552663 | O50: =SUMIFS('2018'!$M$6:$M$258,'2018'!$E$6:$E$258,O$1,'2018'!$H$6:$H$258,$A50) -> 0 | P50: =SUMIFS('2018'!$M$6:$M$258,'2018'!$E$6:$E$258,P$1,'2018'!$H$6:$H$258,$A50) -> 0 | Q50: =SUMIFS('2018'!$M$6:$M$258,'2018'!$E$6:$E$258,Q$1,'2018'!$H$6:$H$258,$A50) -> 0 | R50: =SUMIFS('2018'!$M$6:$M$258,'2018'!$E$6:$E$258,R$1,'2018'!$H$6:$H$258,$A50) -> 0 | S50: =SUMIFS('2018'!$M$6:$M$258,'2018'!$E$6:$E$258,S$1,'2018'!$H$6:$H$258,$A50) -> 0 | T50: =SUMIFS('2018'!$M$6:$M$258,'2018'!$E$6:$E$258,T$1,'2018'!$H$6:$H$258,$A50) -> 0 | U50: =SUMIFS('2018'!$M$6:$M$258,'2018'!$E$6:$E$258,U$1,'2018'!$H$6:$H$258,$A50) -> 0 | V50: =SUMIFS('2018'!$M$6:$M$258,'2018'!$E$6:$E$258,V$1,'2018'!$H$6:$H$258,$A50) -> 0 | W50: =SUMIFS('2018'!$M$6:$M$258,'2018'!$E$6:$E$258,W$1,'2018'!$H$6:$H$258,$A50) -> 0 | X50: =SUMIFS('2018'!$M$6:$M$258,'2018'!$E$6:$E$258,X$1,'2018'!$H$6:$H$258,$A50) -> 0 | Y50: =SUMIFS('2018'!$M$6:$M$258,'2018'!$E$6:$E$258,Y$1,'2018'!$H$6:$H$258,$A50) -> 0 | Z50: =SUMIFS('2018'!$M$6:$M$258,'2018'!$E$6:$E$258,Z$1,'2018'!$H$6:$H$258,$A50) -> 0 | AA50: =SUMIFS('2018'!$M$6:$M$258,'2018'!$E$6:$E$258,AA$1,'2018'!$H$6:$H$258,$A50) -> 0 | AB50: =SUMIFS('2018'!$M$6:$M$258,'2018'!$E$6:$E$258,AB$1,'2018'!$H$6:$H$258,$A50) -> 0 | AC50: =SUMIFS('2018'!$M$6:$M$258,'2018'!$E$6:$E$258,AC$1,'2018'!$H$6:$H$258,$A50) -> 0 | AD50: =SUMIFS('2018'!$M$6:$M$258,'2018'!$E$6:$E$258,AD$1,'2018'!$H$6:$H$258,$A50) -> 0 | AE50: =SUMIFS('2018'!$M$6:$M$258,'2018'!$E$6:$E$258,AE$1,'2018'!$H$6:$H$258,$A50) -> 0 | AF50: =SUMIFS('2018'!$M$6:$M$258,'2018'!$E$6:$E$258,AF$1,'2018'!$H$6:$H$258,$A50) -> 0 | AG50: =SUMIFS('2018'!$M$6:$M$258,'2018'!$E$6:$E$258,AG$1,'2018'!$H$6:$H$258,$A50) -> 0 | AH50: =SUMIFS('2018'!$M$6:$M$258,'2018'!$E$6:$E$258,AH$1,'2018'!$H$6:$H$258,$A50) -> 0 | AI50: =SUMIFS('2018'!$M$6:$M$258,'2018'!$E$6:$E$258,AI$1,'2018'!$H$6:$H$258,$A50) -> 0 | AJ50: =SUMIFS('2018'!$M$6:$M$258,'2018'!$E$6:$E$258,AJ$1,'2018'!$H$6:$H$258,$A50) -> 0 | AK50: =SUMIFS('2018'!$M$6:$M$258,'2018'!$E$6:$E$258,AK$1,'2018'!$H$6:$H$258,$A50) -> 0 | AL50: =SUMIFS('2018'!$M$6:$M$258,'2018'!$E$6:$E$258,AL$1,'2018'!$H$6:$H$258,$A50) -> 0 | AM50: =SUMIFS('2018'!$M$6:$M$258,'2018'!$E$6:$E$258,AM$1,'2018'!$H$6:$H$258,$A50) -> 0 | AN50: =SUMIFS('2018'!$M$6:$M$258,'2018'!$E$6:$E$258,AN$1,'2018'!$H$6:$H$258,$A50) -> 0 | AO50: =SUMIFS('2018'!$M$6:$M$258,'2018'!$E$6:$E$258,AO$1,'2018'!$H$6:$H$258,$A50) -> 0 | AP50: =SUMIFS('2018'!$M$6:$M$258,'2018'!$E$6:$E$258,AP$1,'2018'!$H$6:$H$258,$A50) -> 0 | AQ50: =SUMIFS('2018'!$M$6:$M$258,'2018'!$E$6:$E$258,AQ$1,'2018'!$H$6:$H$258,$A50) -> 0 | AR50: =SUMIFS('2018'!$M$6:$M$258,'2018'!$E$6:$E$258,AR$1,'2018'!$H$6:$H$258,$A50) -> 0 | AS50: =SUMIFS('2018'!$M$6:$M$258,'2018'!$E$6:$E$258,AS$1,'2018'!$H$6:$H$258,$A50) -> 0
A51: 920000 | B51: 8778341 | C51: =SUMIFS('2018'!$M$6:$M$258,'2018'!$E$6:$E$258,C$1,'2018'!$H$6:$H$258,$A51) -> 824620 | D51: =SUMIFS('2018'!$M$6:$M$258,'2018'!$E$6:$E$258,D$1,'2018'!$H$6:$H$258,$A51) -> 0 | E51: =SUMIFS('2018'!$M$6:$M$258,'2018'!$E$6:$E$258,E$1,'2018'!$H$6:$H$258,$A51) -> 769263 | F51: =SUMIFS('2018'!$M$6:$M$258,'2018'!$E$6:$E$258,F$1,'2018'!$H$6:$H$258,$A51) -> 197062 | G51: =SUMIFS('2018'!$M$6:$M$258,'2018'!$E$6:$E$258,G$1,'2018'!$H$6:$H$258,$A51) -> 418282 | H51: =SUMIFS('2018'!$M$6:$M$258,'2018'!$E$6:$E$258,H$1,'2018'!$H$6:$H$258,$A51) -> 332517 | I51: =SUMIFS('2018'!$M$6:$M$258,'2018'!$E$6:$E$258,I$1,'2018'!$H$6:$H$258,$A51) -> 465346 | J51: =SUMIFS('2018'!$M$6:$M$258,'2018'!$E$6:$E$258,J$1,'2018'!$H$6:$H$258,$A51) -> 0 | K51: =SUMIFS('2018'!$M$6:$M$258,'2018'!$E$6:$E$258,K$1,'2018'!$H$6:$H$258,$A51) -> 98814 | L51: =SUMIFS('2018'!$M$6:$M$258,'2018'!$E$6:$E$258,L$1,'2018'!$H$6:$H$258,$A51) -> 1387735 | M51: =SUMIFS('2018'!$M$6:$M$258,'2018'!$E$6:$E$258,M$1,'2018'!$H$6:$H$258,$A51) -> 512536 | N51: =SUMIFS('2018'!$M$6:$M$258,'2018'!$E$6:$E$258,N$1,'2018'!$H$6:$H$258,$A51) -> 20296 | O51: =SUMIFS('2018'!$M$6:$M$258,'2018'!$E$6:$E$258,O$1,'2018'!$H$6:$H$258,$A51) -> 0 | P51: =SUMIFS('2018'!$M$6:$M$258,'2018'!$E$6:$E$258,P$1,'2018'!$H$6:$H$258,$A51) -> 133017 | Q51: =SUMIFS('2018'!$M$6:$M$258,'2018'!$E$6:$E$258,Q$1,'2018'!$H$6:$H$258,$A51) -> 0 | R51: =SUMIFS('2018'!$M$6:$M$258,'2018'!$E$6:$E$258,R$1,'2018'!$H$6:$H$258,$A51) -> 50637 | S51: =SUMIFS('2018'!$M$6:$M$258,'2018'!$E$6:$E$258,S$1,'2018'!$H$6:$H$258,$A51) -> 53085 | T51: =SUMIFS('2018'!$M$6:$M$258,'2018'!$E$6:$E$258,T$1,'2018'!$H$6:$H$258,$A51) -> 53286 | U51: =SUMIFS('2018'!$M$6:$M$258,'2018'!$E$6:$E$258,U$1,'2018'!$H$6:$H$258,$A51) -> 0 | V51: =SUMIFS('2018'!$M$6:$M$258,'2018'!$E$6:$E$258,V$1,'2018'!$H$6:$H$258,$A51) -> 0 | W51: =SUMIFS('2018'!$M$6:$M$258,'2018'!$E$6:$E$258,W$1,'2018'!$H$6:$H$258,$A51) -> 0 | X51: =SUMIFS('2018'!$M$6:$M$258,'2018'!$E$6:$E$258,X$1,'2018'!$H$6:$H$258,$A51) -> 542469 | Y51: =SUMIFS('2018'!$M$6:$M$258,'2018'!$E$6:$E$258,Y$1,'2018'!$H$6:$H$258,$A51) -> 0 | Z51: =SUMIFS('2018'!$M$6:$M$258,'2018'!$E$6:$E$258,Z$1,'2018'!$H$6:$H$258,$A51) -> 0 | AA51: =SUMIFS('2018'!$M$6:$M$258,'2018'!$E$6:$E$258,AA$1,'2018'!$H$6:$H$258,$A51) -> 327257 | AB51: =SUMIFS('2018'!$M$6:$M$258,'2018'!$E$6:$E$258,AB$1,'2018'!$H$6:$H$258,$A51) -> 418781 | AC51: =SUMIFS('2018'!$M$6:$M$258,'2018'!$E$6:$E$258,AC$1,'2018'!$H$6:$H$258,$A51) -> 265896 | AD51: =SUMIFS('2018'!$M$6:$M$258,'2018'!$E$6:$E$258,AD$1,'2018'!$H$6:$H$258,$A51) -> 466634 | AE51: =SUMIFS('2018'!$M$6:$M$258,'2018'!$E$6:$E$258,AE$1,'2018'!$H$6:$H$258,$A51) -> 504476 | AF51: =SUMIFS('2018'!$M$6:$M$258,'2018'!$E$6:$E$258,AF$1,'2018'!$H$6:$H$258,$A51) -> 247795 | AG51: =SUMIFS('2018'!$M$6:$M$258,'2018'!$E$6:$E$258,AG$1,'2018'!$H$6:$H$258,$A51) -> 0 | AH51: =SUMIFS('2018'!$M$6:$M$258,'2018'!$E$6:$E$258,AH$1,'2018'!$H$6:$H$258,$A51) -> 0 | AI51: =SUMIFS('2018'!$M$6:$M$258,'2018'!$E$6:$E$258,AI$1,'2018'!$H$6:$H$258,$A51) -> 342218 | AJ51: =SUMIFS('2018'!$M$6:$M$258,'2018'!$E$6:$E$258,AJ$1,'2018'!$H$6:$H$258,$A51) -> 27956 | AK51: =SUMIFS('2018'!$M$6:$M$258,'2018'!$E$6:$E$258,AK$1,'2018'!$H$6:$H$258,$A51) -> 16388 | AL51: =SUMIFS('2018'!$M$6:$M$258,'2018'!$E$6:$E$258,AL$1,'2018'!$H$6:$H$258,$A51) -> 0 | AM51: =SUMIFS('2018'!$M$6:$M$258,'2018'!$E$6:$E$258,AM$1,'2018'!$H$6:$H$258,$A51) -> 16441 | AN51: =SUMIFS('2018'!$M$6:$M$258,'2018'!$E$6:$E$258,AN$1,'2018'!$H$6:$H$258,$A51) -> 91474 | AO51: =SUMIFS('2018'!$M$6:$M$258,'2018'!$E$6:$E$258,AO$1,'2018'!$H$6:$H$258,$A51) -> 37170 | AP51: =SUMIFS('2018'!$M$6:$M$258,'2018'!$E$6:$E$258,AP$1,'2018'!$H$6:$H$258,$A51) -> 55342 | AQ51: =SUMIFS('2018'!$M$6:$M$258,'2018'!$E$6:$E$258,AQ$1,'2018'!$H$6:$H$258,$A51) -> 0 | AR51: =SUMIFS('2018'!$M$6:$M$258,'2018'!$E$6:$E$258,AR$1,'2018'!$H$6:$H$258,$A51) -> 50774 | AS51: =SUMIFS('2018'!$M$6:$M$258,'2018'!$E$6:$E$258,AS$1,'2018'!$H$6:$H$258,$A51) -> 50774
A52: 921000 | B52: 4330798 | C52: =SUMIFS('2018'!$M$6:$M$258,'2018'!$E$6:$E$258,C$1,'2018'!$H$6:$H$258,$A52) -> 16538 | D52: =SUMIFS('2018'!$M$6:$M$258,'2018'!$E$6:$E$258,D$1,'2018'!$H$6:$H$258,$A52) -> 0 | E52: =SUMIFS('2018'!$M$6:$M$258,'2018'!$E$6:$E$258,E$1,'2018'!$H$6:$H$258,$A52) -> 0 | F52: =SUMIFS('2018'!$M$6:$M$258,'2018'!$E$6:$E$258,F$1,'2018'!$H$6:$H$258,$A52) -> 0 | G52: =SUMIFS('2018'!$M$6:$M$258,'2018'!$E$6:$E$258,G$1,'2018'!$H$6:$H$258,$A52) -> 56890 | H52: =SUMIFS('2018'!$M$6:$M$258,'2018'!$E$6:$E$258,H$1,'2018'!$H$6:$H$258,$A52) -> 0 | I52: =SUMIFS('2018'!$M$6:$M$258,'2018'!$E$6:$E$258,I$1,'2018'!$H$6:$H$258,$A52) -> 0 | J52: =SUMIFS('2018'!$M$6:$M$258,'2018'!$E$6:$E$258,J$1,'2018'!$H$6:$H$258,$A52) -> 9562 | K52: =SUMIFS('2018'!$M$6:$M$258,'2018'!$E$6:$E$258,K$1,'2018'!$H$6:$H$258,$A52) -> 14000 | L52: =SUMIFS('2018'!$M$6:$M$258,'2018'!$E$6:$E$258,L$1,'2018'!$H$6:$H$258,$A52) -> 34450 | M52: =SUMIFS('2018'!$M$6:$M$258,'2018'!$E$6:$E$258,M$1,'2018'!$H$6:$H$258,$A52) -> 5500 | N52: =SUMIFS('2018'!$M$6:$M$258,'2018'!$E$6:$E$258,N$1,'2018'!$H$6:$H$258,$A52) -> 1400 | O52: =SUMIFS('2018'!$M$6:$M$258,'2018'!$E$6:$E$258,O$1,'2018'!$H$6:$H$258,$A52) -> 0 | P52: =SUMIFS('2018'!$M$6:$M$258,'2018'!$E$6:$E$258,P$1,'2018'!$H$6:$H$258,$A52) -> 0 | Q52: =SUMIFS('2018'!$M$6:$M$258,'2018'!$E$6:$E$258,Q$1,'2018'!$H$6:$H$258,$A52) -> 1937003 | R52: =SUMIFS('2018'!$M$6:$M$258,'2018'!$E$6:$E$258,R$1,'2018'!$H$6:$H$258,$A52) -> 0 | S52: =SUMIFS('2018'!$M$6:$M$258,'2018'!$E$6:$E$258,S$1,'2018'!$H$6:$H$258,$A52) -> 0 | T52: =SUMIFS('2018'!$M$6:$M$258,'2018'!$E$6:$E$258,T$1,'2018'!$H$6:$H$258,$A52) -> 0 | U52: =SUMIFS('2018'!$M$6:$M$258,'2018'!$E$6:$E$258,U$1,'2018'!$H$6:$H$258,$A52) -> 315262 | V52: =SUMIFS('2018'!$M$6:$M$258,'2018'!$E$6:$E$258,V$1,'2018'!$H$6:$H$258,$A52) -> 5415 | W52: =SUMIFS('2018'!$M$6:$M$258,'2018'!$E$6:$E$258,W$1,'2018'!$H$6:$H$258,$A52) -> 1929265 | X52: =SUMIFS('2018'!$M$6:$M$258,'2018'!$E$6:$E$258,X$1,'2018'!$H$6:$H$258,$A52) -> 0 | Y52: =SUMIFS('2018'!$M$6:$M$258,'2018'!$E$6:$E$258,Y$1,'2018'!$H$6:$H$258,$A52) -> 5513 | Z52: =SUMIFS('2018'!$M$6:$M$258,'2018'!$E$6:$E$258,Z$1,'2018'!$H$6:$H$258,$A52) -> 0 | AA52: =SUMIFS('2018'!$M$6:$M$258,'2018'!$E$6:$E$258,AA$1,'2018'!$H$6:$H$258,$A52) -> 0 | AB52: =SUMIFS('2018'!$M$6:$M$258,'2018'!$E$6:$E$258,AB$1,'2018'!$H$6:$H$258,$A52) -> 0 | AC52: =SUMIFS('2018'!$M$6:$M$258,'2018'!$E$6:$E$258,AC$1,'2018'!$H$6:$H$258,$A52) -> 0 | AD52: =SUMIFS('2018'!$M$6:$M$258,'2018'!$E$6:$E$258,AD$1,'2018'!$H$6:$H$258,$A52) -> 0 | AE52: =SUMIFS('2018'!$M$6:$M$258,'2018'!$E$6:$E$258,AE$1,'2018'!$H$6:$H$258,$A52) -> 0 | AF52: =SUMIFS('2018'!$M$6:$M$258,'2018'!$E$6:$E$258,AF$1,'2018'!$H$6:$H$258,$A52) -> 0 | AG52: =SUMIFS('2018'!$M$6:$M$258,'2018'!$E$6:$E$258,AG$1,'2018'!$H$6:$H$258,$A52) -> 0 | AH52: =SUMIFS('2018'!$M$6:$M$258,'2018'!$E$6:$E$258,AH$1,'2018'!$H$6:$H$258,$A52) -> 0 | AI52: =SUMIFS('2018'!$M$6:$M$258,'2018'!$E$6:$E$258,AI$1,'2018'!$H$6:$H$258,$A52) -> 0 | AJ52: =SUMIFS('2018'!$M$6:$M$258,'2018'!$E$6:$E$258,AJ$1,'2018'!$H$6:$H$258,$A52) -> 0 | AK52: =SUMIFS('2018'!$M$6:$M$258,'2018'!$E$6:$E$258,AK$1,'2018'!$H$6:$H$258,$A52) -> 0 | AL52: =SUMIFS('2018'!$M$6:$M$258,'2018'!$E$6:$E$258,AL$1,'2018'!$H$6:$H$258,$A52) -> 0 | AM52: =SUMIFS('2018'!$M$6:$M$258,'2018'!$E$6:$E$258,AM$1,'2018'!$H$6:$H$258,$A52) -> 0 | AN52: =SUMIFS('2018'!$M$6:$M$258,'2018'!$E$6:$E$258,AN$1,'2018'!$H$6:$H$258,$A52) -> 0 | AO52: =SUMIFS('2018'!$M$6:$M$258,'2018'!$E$6:$E$258,AO$1,'2018'!$H$6:$H$258,$A52) -> 0 | AP52: =SUMIFS('2018'!$M$6:$M$258,'2018'!$E$6:$E$258,AP$1,'2018'!$H$6:$H$258,$A52) -> 0 | AQ52: =SUMIFS('2018'!$M$6:$M$258,'2018'!$E$6:$E$258,AQ$1,'2018'!$H$6:$H$258,$A52) -> 0 | AR52: =SUMIFS('2018'!$M$6:$M$258,'2018'!$E$6:$E$258,AR$1,'2018'!$H$6:$H$258,$A52) -> 0 | AS52: =SUMIFS('2018'!$M$6:$M$258,'2018'!$E$6:$E$258,AS$1,'2018'!$H$6:$H$258,$A52) -> 0
A53: 923000 | B53: 10466084 | C53: =SUMIFS('2018'!$M$6:$M$258,'2018'!$E$6:$E$258,C$1,'2018'!$H$6:$H$258,$A53) -> 273249 | D53: =SUMIFS('2018'!$M$6:$M$258,'2018'!$E$6:$E$258,D$1,'2018'!$H$6:$H$258,$A53) -> 1552010 | E53: =SUMIFS('2018'!$M$6:$M$258,'2018'!$E$6:$E$258,E$1,'2018'!$H$6:$H$258,$A53) -> 0 | F53: =SUMIFS('2018'!$M$6:$M$258,'2018'!$E$6:$E$258,F$1,'2018'!$H$6:$H$258,$A53) -> 64843 | G53: =SUMIFS('2018'!$M$6:$M$258,'2018'!$E$6:$E$258,G$1,'2018'!$H$6:$H$258,$A53) -> 628472 | H53: =SUMIFS('2018'!$M$6:$M$258,'2018'!$E$6:$E$258,H$1,'2018'!$H$6:$H$258,$A53) -> 59775 | I53: =SUMIFS('2018'!$M$6:$M$258,'2018'!$E$6:$E$258,I$1,'2018'!$H$6:$H$258,$A53) -> 0 | J53: =SUMIFS('2018'!$M$6:$M$258,'2018'!$E$6:$E$258,J$1,'2018'!$H$6:$H$258,$A53) -> 155500 | K53: =SUMIFS('2018'!$M$6:$M$258,'2018'!$E$6:$E$258,K$1,'2018'!$H$6:$H$258,$A53) -> 0 | L53: =SUMIFS('2018'!$M$6:$M$258,'2018'!$E$6:$E$258,L$1,'2018'!$H$6:$H$258,$A53) -> 0 | M53: =SUMIFS('2018'!$M$6:$M$258,'2018'!$E$6:$E$258,M$1,'2018'!$H$6:$H$258,$A53) -> 0 | N53: =SUMIFS('2018'!$M$6:$M$258,'2018'!$E$6:$E$258,N$1,'2018'!$H$6:$H$258,$A53) -> 0 | O53: =SUMIFS('2018'!$M$6:$M$258,'2018'!$E$6:$E$258,O$1,'2018'!$H$6:$H$258,$A53) -> 314188 | P53: =SUMIFS('2018'!$M$6:$M$258,'2018'!$E$6:$E$258,P$1,'2018'!$H$6:$H$258,$A53) -> 111148 | Q53: =SUMIFS('2018'!$M$6:$M$258,'2018'!$E$6:$E$258,Q$1,'2018'!$H$6:$H$258,$A53) -> 89386 | R53: =SUMIFS('2018'!$M$6:$M$258,'2018'!$E$6:$E$258,R$1,'2018'!$H$6:$H$258,$A53) -> 65433 | S53: =SUMIFS('2018'!$M$6:$M$258,'2018'!$E$6:$E$258,S$1,'2018'!$H$6:$H$258,$A53) -> 0 | T53: =SUMIFS('2018'!$M$6:$M$258,'2018'!$E$6:$E$258,T$1,'2018'!$H$6:$H$258,$A53) -> 63436 | U53: =SUMIFS('2018'!$M$6:$M$258,'2018'!$E$6:$E$258,U$1,'2018'!$H$6:$H$258,$A53) -> 93966 | V53: =SUMIFS('2018'!$M$6:$M$258,'2018'!$E$6:$E$258,V$1,'2018'!$H$6:$H$258,$A53) -> 221206 | W53: =SUMIFS('2018'!$M$6:$M$258,'2018'!$E$6:$E$258,W$1,'2018'!$H$6:$H$258,$A53) -> 34961 | X53: =SUMIFS('2018'!$M$6:$M$258,'2018'!$E$6:$E$258,X$1,'2018'!$H$6:$H$258,$A53) -> 0 | Y53: =SUMIFS('2018'!$M$6:$M$258,'2018'!$E$6:$E$258,Y$1,'2018'!$H$6:$H$258,$A53) -> 1150945 | Z53: =SUMIFS('2018'!$M$6:$M$258,'2018'!$E$6:$E$258,Z$1,'2018'!$H$6:$H$258,$A53) -> 0 | AA53: =SUMIFS('2018'!$M$6:$M$258,'2018'!$E$6:$E$258,AA$1,'2018'!$H$6:$H$258,$A53) -> 633472 | AB53: =SUMIFS('2018'!$M$6:$M$258,'2018'!$E$6:$E$258,AB$1,'2018'!$H$6:$H$258,$A53) -> 0 | AC53: =SUMIFS('2018'!$M$6:$M$258,'2018'!$E$6:$E$258,AC$1,'2018'!$H$6:$H$258,$A53) -> 0 | AD53: =SUMIFS('2018'!$M$6:$M$258,'2018'!$E$6:$E$258,AD$1,'2018'!$H$6:$H$258,$A53) -> 0 | AE53: =SUMIFS('2018'!$M$6:$M$258,'2018'!$E$6:$E$258,AE$1,'2018'!$H$6:$H$258,$A53) -> 0 | AF53: =SUMIFS('2018'!$M$6:$M$258,'2018'!$E$6:$E$258,AF$1,'2018'!$H$6:$H$258,$A53) -> 725280 | AG53: =SUMIFS('2018'!$M$6:$M$258,'2018'!$E$6:$E$258,AG$1,'2018'!$H$6:$H$258,$A53) -> 1129723 | AH53: =SUMIFS('2018'!$M$6:$M$258,'2018'!$E$6:$E$258,AH$1,'2018'!$H$6:$H$258,$A53) -> 732924 | AI53: =SUMIFS('2018'!$M$6:$M$258,'2018'!$E$6:$E$258,AI$1,'2018'!$H$6:$H$258,$A53) -> 440498 | AJ53: =SUMIFS('2018'!$M$6:$M$258,'2018'!$E$6:$E$258,AJ$1,'2018'!$H$6:$H$258,$A53) -> 192523 | AK53: =SUMIFS('2018'!$M$6:$M$258,'2018'!$E$6:$E$258,AK$1,'2018'!$H$6:$H$258,$A53) -> 162212 | AL53: =SUMIFS('2018'!$M$6:$M$258,'2018'!$E$6:$E$258,AL$1,'2018'!$H$6:$H$258,$A53) -> 70329 | AM53: =SUMIFS('2018'!$M$6:$M$258,'2018'!$E$6:$E$258,AM$1,'2018'!$H$6:$H$258,$A53) -> 28156 | AN53: =SUMIFS('2018'!$M$6:$M$258,'2018'!$E$6:$E$258,AN$1,'2018'!$H$6:$H$258,$A53) -> 429267 | AO53: =SUMIFS('2018'!$M$6:$M$258,'2018'!$E$6:$E$258,AO$1,'2018'!$H$6:$H$258,$A53) -> 18131 | AP53: =SUMIFS('2018'!$M$6:$M$258,'2018'!$E$6:$E$258,AP$1,'2018'!$H$6:$H$258,$A53) -> 77461 | AQ53: =SUMIFS('2018'!$M$6:$M$258,'2018'!$E$6:$E$258,AQ$1,'2018'!$H$6:$H$258,$A53) -> 186877 | AR53: =SUMIFS('2018'!$M$6:$M$258,'2018'!$E$6:$E$258,AR$1,'2018'!$H$6:$H$258,$A53) -> 500049 | AS53: =SUMIFS('2018'!$M$6:$M$258,'2018'!$E$6:$E$258,AS$1,'2018'!$H$6:$H$258,$A53) -> 260664
A54: 926100 | B54: 105299 | C54: =SUMIFS('2018'!$M$6:$M$258,'2018'!$E$6:$E$258,C$1,'2018'!$H$6:$H$258,$A54) -> 105299 | D54: =SUMIFS('2018'!$M$6:$M$258,'2018'!$E$6:$E$258,D$1,'2018'!$H$6:$H$258,$A54) -> 0 | E54: =SUMIFS('2018'!$M$6:$M$258,'2018'!$E$6:$E$258,E$1,'2018'!$H$6:$H$258,$A54) -> 0 | F54: =SUMIFS('2018'!$M$6:$M$258,'2018'!$E$6:$E$258,F$1,'2018'!$H$6:$H$258,$A54) -> 0 | G54: =SUMIFS('2018'!$M$6:$M$258,'2018'!$E$6:$E$258,G$1,'2018'!$H$6:$H$258,$A54) -> 0 | H54: =SUMIFS('2018'!$M$6:$M$258,'2018'!$E$6:$E$258,H$1,'2018'!$H$6:$H$258,$A54) -> 0 | I54: =SUMIFS('2018'!$M$6:$M$258,'2018'!$E$6:$E$258,I$1,'2018'!$H$6:$H$258,$A54) -> 0 | J54: =SUMIFS('2018'!$M$6:$M$258,'2018'!$E$6:$E$258,J$1,'2018'!$H$6:$H$258,$A54) -> 0 | K54: =SUMIFS('2018'!$M$6:$M$258,'2018'!$E$6:$E$258,K$1,'2018'!$H$6:$H$258,$A54) -> 0 | L54: =SUMIFS('2018'!$M$6:$M$258,'2018'!$E$6:$E$258,L$1,'2018'!$H$6:$H$258,$A54) -> 0 | M54: =SUMIFS('2018'!$M$6:$M$258,'2018'!$E$6:$E$258,M$1,'2018'!$H$6:$H$258,$A54) -> 0 | N54: =SUMIFS('2018'!$M$6:$M$258,'2018'!$E$6:$E$258,N$1,'2018'!$H$6:$H$258,$A54) -> 0 | O54: =SUMIFS('2018'!$M$6:$M$258,'2018'!$E$6:$E$258,O$1,'2018'!$H$6:$H$258,$A54) -> 0 | P54: =SUMIFS('2018'!$M$6:$M$258,'2018'!$E$6:$E$258,P$1,'2018'!$H$6:$H$258,$A54) -> 0 | Q54: =SUMIFS('2018'!$M$6:$M$258,'2018'!$E$6:$E$258,Q$1,'2018'!$H$6:$H$258,$A54) -> 0 | R54: =SUMIFS('2018'!$M$6:$M$258,'2018'!$E$6:$E$258,R$1,'2018'!$H$6:$H$258,$A54) -> 0 | S54: =SUMIFS('2018'!$M$6:$M$258,'2018'!$E$6:$E$258,S$1,'2018'!$H$6:$H$258,$A54) -> 0 | T54: =SUMIFS('2018'!$M$6:$M$258,'2018'!$E$6:$E$258,T$1,'2018'!$H$6:$H$258,$A54) -> 0 | U54: =SUMIFS('2018'!$M$6:$M$258,'2018'!$E$6:$E$258,U$1,'2018'!$H$6:$H$258,$A54) -> 0 | V54: =SUMIFS('2018'!$M$6:$M$258,'2018'!$E$6:$E$258,V$1,'2018'!$H$6:$H$258,$A54) -> 0 | W54: =SUMIFS('2018'!$M$6:$M$258,'2018'!$E$6:$E$258,W$1,'2018'!$H$6:$H$258,$A54) -> 0 | X54: =SUMIFS('2018'!$M$6:$M$258,'2018'!$E$6:$E$258,X$1,'2018'!$H$6:$H$258,$A54) -> 0 | Y54: =SUMIFS('2018'!$M$6:$M$258,'2018'!$E$6:$E$258,Y$1,'2018'!$H$6:$H$258,$A54) -> 0 | Z54: =SUMIFS('2018'!$M$6:$M$258,'2018'!$E$6:$E$258,Z$1,'2018'!$H$6:$H$258,$A54) -> 0 | AA54: =SUMIFS('2018'!$M$6:$M$258,'2018'!$E$6:$E$258,AA$1,'2018'!$H$6:$H$258,$A54) -> 0 | AB54: =SUMIFS('2018'!$M$6:$M$258,'2018'!$E$6:$E$258,AB$1,'2018'!$H$6:$H$258,$A54) -> 0 | AC54: =SUMIFS('2018'!$M$6:$M$258,'2018'!$E$6:$E$258,AC$1,'2018'!$H$6:$H$258,$A54) -> 0 | AD54: =SUMIFS('2018'!$M$6:$M$258,'2018'!$E$6:$E$258,AD$1,'2018'!$H$6:$H$258,$A54) -> 0 | AE54: =SUMIFS('2018'!$M$6:$M$258,'2018'!$E$6:$E$258,AE$1,'2018'!$H$6:$H$258,$A54) -> 0 | AF54: =SUMIFS('2018'!$M$6:$M$258,'2018'!$E$6:$E$258,AF$1,'2018'!$H$6:$H$258,$A54) -> 0 | AG54: =SUMIFS('2018'!$M$6:$M$258,'2018'!$E$6:$E$258,AG$1,'2018'!$H$6:$H$258,$A54) -> 0 | AH54: =SUMIFS('2018'!$M$6:$M$258,'2018'!$E$6:$E$258,AH$1,'2018'!$H$6:$H$258,$A54) -> 0 | AI54: =SUMIFS('2018'!$M$6:$M$258,'2018'!$E$6:$E$258,AI$1,'2018'!$H$6:$H$258,$A54) -> 0 | AJ54: =SUMIFS('2018'!$M$6:$M$258,'2018'!$E$6:$E$258,AJ$1,'2018'!$H$6:$H$258,$A54) -> 0 | AK54: =SUMIFS('2018'!$M$6:$M$258,'2018'!$E$6:$E$258,AK$1,'2018'!$H$6:$H$258,$A54) -> 0 | AL54: =SUMIFS('2018'!$M$6:$M$258,'2018'!$E$6:$E$258,AL$1,'2018'!$H$6:$H$258,$A54) -> 0 | AM54: =SUMIFS('2018'!$M$6:$M$258,'2018'!$E$6:$E$258,AM$1,'2018'!$H$6:$H$258,$A54) -> 0 | AN54: =SUMIFS('2018'!$M$6:$M$258,'2018'!$E$6:$E$258,AN$1,'2018'!$H$6:$H$258,$A54) -> 0 | AO54: =SUMIFS('2018'!$M$6:$M$258,'2018'!$E$6:$E$258,AO$1,'2018'!$H$6:$H$258,$A54) -> 0 | AP54: =SUMIFS('2018'!$M$6:$M$258,'2018'!$E$6:$E$258,AP$1,'2018'!$H$6:$H$258,$A54) -> 0 | AQ54: =SUMIFS('2018'!$M$6:$M$258,'2018'!$E$6:$E$258,AQ$1,'2018'!$H$6:$H$258,$A54) -> 0 | AR54: =SUMIFS('2018'!$M$6:$M$258,'2018'!$E$6:$E$258,AR$1,'2018'!$H$6:$H$258,$A54) -> 0 | AS54: =SUMIFS('2018'!$M$6:$M$258,'2018'!$E$6:$E$258,AS$1,'2018'!$H$6:$H$258,$A54) -> 0
A55: 928000 | B55: 111132 | C55: =SUMIFS('2018'!$M$6:$M$258,'2018'!$E$6:$E$258,C$1,'2018'!$H$6:$H$258,$A55) -> 0 | D55: =SUMIFS('2018'!$M$6:$M$258,'2018'!$E$6:$E$258,D$1,'2018'!$H$6:$H$258,$A55) -> 0 | E55: =SUMIFS('2018'!$M$6:$M$258,'2018'!$E$6:$E$258,E$1,'2018'!$H$6:$H$258,$A55) -> 0 | F55: =SUMIFS('2018'!$M$6:$M$258,'2018'!$E$6:$E$258,F$1,'2018'!$H$6:$H$258,$A55) -> 0 | G55: =SUMIFS('2018'!$M$6:$M$258,'2018'!$E$6:$E$258,G$1,'2018'!$H$6:$H$258,$A55) -> 0 | H55: =SUMIFS('2018'!$M$6:$M$258,'2018'!$E$6:$E$258,H$1,'2018'!$H$6:$H$258,$A55) -> 0 | I55: =SUMIFS('2018'!$M$6:$M$258,'2018'!$E$6:$E$258,I$1,'2018'!$H$6:$H$258,$A55) -> 0 | J55: =SUMIFS('2018'!$M$6:$M$258,'2018'!$E$6:$E$258,J$1,'2018'!$H$6:$H$258,$A55) -> 0 | K55: =SUMIFS('2018'!$M$6:$M$258,'2018'!$E$6:$E$258,K$1,'2018'!$H$6:$H$258,$A55) -> 0 | L55: =SUMIFS('2018'!$M$6:$M$258,'2018'!$E$6:$E$258,L$1,'2018'!$H$6:$H$258,$A55) -> 0 | M55: =SUMIFS('2018'!$M$6:$M$258,'2018'!$E$6:$E$258,M$1,'2018'!$H$6:$H$258,$A55) -> 0 | N55: =SUMIFS('2018'!$M$6:$M$258,'2018'!$E$6:$E$258,N$1,'2018'!$H$6:$H$258,$A55) -> 0 | O55: =SUMIFS('2018'!$M$6:$M$258,'2018'!$E$6:$E$258,O$1,'2018'!$H$6:$H$258,$A55) -> 0 | P55: =SUMIFS('2018'!$M$6:$M$258,'2018'!$E$6:$E$258,P$1,'2018'!$H$6:$H$258,$A55) -> 0 | Q55: =SUMIFS('2018'!$M$6:$M$258,'2018'!$E$6:$E$258,Q$1,'2018'!$H$6:$H$258,$A55) -> 111132 | R55: =SUMIFS('2018'!$M$6:$M$258,'2018'!$E$6:$E$258,R$1,'2018'!$H$6:$H$258,$A55) -> 0 | S55: =SUMIFS('2018'!$M$6:$M$258,'2018'!$E$6:$E$258,S$1,'2018'!$H$6:$H$258,$A55) -> 0 | T55: =SUMIFS('2018'!$M$6:$M$258,'2018'!$E$6:$E$258,T$1,'2018'!$H$6:$H$258,$A55) -> 0 | U55: =SUMIFS('2018'!$M$6:$M$258,'2018'!$E$6:$E$258,U$1,'2018'!$H$6:$H$258,$A55) -> 0 | V55: =SUMIFS('2018'!$M$6:$M$258,'2018'!$E$6:$E$258,V$1,'2018'!$H$6:$H$258,$A55) -> 0 | W55: =SUMIFS('2018'!$M$6:$M$258,'2018'!$E$6:$E$258,W$1,'2018'!$H$6:$H$258,$A55) -> 0 | X55: =SUMIFS('2018'!$M$6:$M$258,'2018'!$E$6:$E$258,X$1,'2018'!$H$6:$H$258,$A55) -> 0 | Y55: =SUMIFS('2018'!$M$6:$M$258,'2018'!$E$6:$E$258,Y$1,'2018'!$H$6:$H$258,$A55) -> 0 | Z55: =SUMIFS('2018'!$M$6:$M$258,'2018'!$E$6:$E$258,Z$1,'2018'!$H$6:$H$258,$A55) -> 0 | AA55: =SUMIFS('2018'!$M$6:$M$258,'2018'!$E$6:$E$258,AA$1,'2018'!$H$6:$H$258,$A55) -> 0 | AB55: =SUMIFS('2018'!$M$6:$M$258,'2018'!$E$6:$E$258,AB$1,'2018'!$H$6:$H$258,$A55) -> 0 | AC55: =SUMIFS('2018'!$M$6:$M$258,'2018'!$E$6:$E$258,AC$1,'2018'!$H$6:$H$258,$A55) -> 0 | AD55: =SUMIFS('2018'!$M$6:$M$258,'2018'!$E$6:$E$258,AD$1,'2018'!$H$6:$H$258,$A55) -> 0 | AE55: =SUMIFS('2018'!$M$6:$M$258,'2018'!$E$6:$E$258,AE$1,'2018'!$H$6:$H$258,$A55) -> 0 | AF55: =SUMIFS('2018'!$M$6:$M$258,'2018'!$E$6:$E$258,AF$1,'2018'!$H$6:$H$258,$A55) -> 0 | AG55: =SUMIFS('2018'!$M$6:$M$258,'2018'!$E$6:$E$258,AG$1,'2018'!$H$6:$H$258,$A55) -> 0 | AH55: =SUMIFS('2018'!$M$6:$M$258,'2018'!$E$6:$E$258,AH$1,'2018'!$H$6:$H$258,$A55) -> 0 | AI55: =SUMIFS('2018'!$M$6:$M$258,'2018'!$E$6:$E$258,AI$1,'2018'!$H$6:$H$258,$A55) -> 0 | AJ55: =SUMIFS('2018'!$M$6:$M$258,'2018'!$E$6:$E$258,AJ$1,'2018'!$H$6:$H$258,$A55) -> 0 | AK55: =SUMIFS('2018'!$M$6:$M$258,'2018'!$E$6:$E$258,AK$1,'2018'!$H$6:$H$258,$A55) -> 0 | AL55: =SUMIFS('2018'!$M$6:$M$258,'2018'!$E$6:$E$258,AL$1,'2018'!$H$6:$H$258,$A55) -> 0 | AM55: =SUMIFS('2018'!$M$6:$M$258,'2018'!$E$6:$E$258,AM$1,'2018'!$H$6:$H$258,$A55) -> 0 | AN55: =SUMIFS('2018'!$M$6:$M$258,'2018'!$E$6:$E$258,AN$1,'2018'!$H$6:$H$258,$A55) -> 0 | AO55: =SUMIFS('2018'!$M$6:$M$258,'2018'!$E$6:$E$258,AO$1,'2018'!$H$6:$H$258,$A55) -> 0 | AP55: =SUMIFS('2018'!$M$6:$M$258,'2018'!$E$6:$E$258,AP$1,'2018'!$H$6:$H$258,$A55) -> 0 | AQ55: =SUMIFS('2018'!$M$6:$M$258,'2018'!$E$6:$E$258,AQ$1,'2018'!$H$6:$H$258,$A55) -> 0 | AR55: =SUMIFS('2018'!$M$6:$M$258,'2018'!$E$6:$E$258,AR$1,'2018'!$H$6:$H$258,$A55) -> 0 | AS55: =SUMIFS('2018'!$M$6:$M$258,'2018'!$E$6:$E$258,AS$1,'2018'!$H$6:$H$258,$A55) -> 0
A56: 930200 | B56: 17364 | C56: =SUMIFS('2018'!$M$6:$M$258,'2018'!$E$6:$E$258,C$1,'2018'!$H$6:$H$258,$A56) -> 0 | D56: =SUMIFS('2018'!$M$6:$M$258,'2018'!$E$6:$E$258,D$1,'2018'!$H$6:$H$258,$A56) -> 0 | E56: =SUMIFS('2018'!$M$6:$M$258,'2018'!$E$6:$E$258,E$1,'2018'!$H$6:$H$258,$A56) -> 0 | F56: =SUMIFS('2018'!$M$6:$M$258,'2018'!$E$6:$E$258,F$1,'2018'!$H$6:$H$258,$A56) -> 0 | G56: =SUMIFS('2018'!$M$6:$M$258,'2018'!$E$6:$E$258,G$1,'2018'!$H$6:$H$258,$A56) -> 0 | H56: =SUMIFS('2018'!$M$6:$M$258,'2018'!$E$6:$E$258,H$1,'2018'!$H$6:$H$258,$A56) -> 0 | I56: =SUMIFS('2018'!$M$6:$M$258,'2018'!$E$6:$E$258,I$1,'2018'!$H$6:$H$258,$A56) -> 0 | J56: =SUMIFS('2018'!$M$6:$M$258,'2018'!$E$6:$E$258,J$1,'2018'!$H$6:$H$258,$A56) -> 0 | K56: =SUMIFS('2018'!$M$6:$M$258,'2018'!$E$6:$E$258,K$1,'2018'!$H$6:$H$258,$A56) -> 0 | L56: =SUMIFS('2018'!$M$6:$M$258,'2018'!$E$6:$E$258,L$1,'2018'!$H$6:$H$258,$A56) -> 0 | M56: =SUMIFS('2018'!$M$6:$M$258,'2018'!$E$6:$E$258,M$1,'2018'!$H$6:$H$258,$A56) -> 0 | N56: =SUMIFS('2018'!$M$6:$M$258,'2018'!$E$6:$E$258,N$1,'2018'!$H$6:$H$258,$A56) -> 0 | O56: =SUMIFS('2018'!$M$6:$M$258,'2018'!$E$6:$E$258,O$1,'2018'!$H$6:$H$258,$A56) -> 0 | P56: =SUMIFS('2018'!$M$6:$M$258,'2018'!$E$6:$E$258,P$1,'2018'!$H$6:$H$258,$A56) -> 0 | Q56: =SUMIFS('2018'!$M$6:$M$258,'2018'!$E$6:$E$258,Q$1,'2018'!$H$6:$H$258,$A56) -> 17364 | R56: =SUMIFS('2018'!$M$6:$M$258,'2018'!$E$6:$E$258,R$1,'2018'!$H$6:$H$258,$A56) -> 0 | S56: =SUMIFS('2018'!$M$6:$M$258,'2018'!$E$6:$E$258,S$1,'2018'!$H$6:$H$258,$A56) -> 0 | T56: =SUMIFS('2018'!$M$6:$M$258,'2018'!$E$6:$E$258,T$1,'2018'!$H$6:$H$258,$A56) -> 0 | U56: =SUMIFS('2018'!$M$6:$M$258,'2018'!$E$6:$E$258,U$1,'2018'!$H$6:$H$258,$A56) -> 0 | V56: =SUMIFS('2018'!$M$6:$M$258,'2018'!$E$6:$E$258,V$1,'2018'!$H$6:$H$258,$A56) -> 0 | W56: =SUMIFS('2018'!$M$6:$M$258,'2018'!$E$6:$E$258,W$1,'2018'!$H$6:$H$258,$A56) -> 0 | X56: =SUMIFS('2018'!$M$6:$M$258,'2018'!$E$6:$E$258,X$1,'2018'!$H$6:$H$258,$A56) -> 0 | Y56: =SUMIFS('2018'!$M$6:$M$258,'2018'!$E$6:$E$258,Y$1,'2018'!$H$6:$H$258,$A56) -> 0 | Z56: =SUMIFS('2018'!$M$6:$M$258,'2018'!$E$6:$E$258,Z$1,'2018'!$H$6:$H$258,$A56) -> 0 | AA56: =SUMIFS('2018'!$M$6:$M$258,'2018'!$E$6:$E$258,AA$1,'2018'!$H$6:$H$258,$A56) -> 0 | AB56: =SUMIFS('2018'!$M$6:$M$258,'2018'!$E$6:$E$258,AB$1,'2018'!$H$6:$H$258,$A56) -> 0 | AC56: =SUMIFS('2018'!$M$6:$M$258,'2018'!$E$6:$E$258,AC$1,'2018'!$H$6:$H$258,$A56) -> 0 | AD56: =SUMIFS('2018'!$M$6:$M$258,'2018'!$E$6:$E$258,AD$1,'2018'!$H$6:$H$258,$A56) -> 0 | AE56: =SUMIFS('2018'!$M$6:$M$258,'2018'!$E$6:$E$258,AE$1,'2018'!$H$6:$H$258,$A56) -> 0 | AF56: =SUMIFS('2018'!$M$6:$M$258,'2018'!$E$6:$E$258,AF$1,'2018'!$H$6:$H$258,$A56) -> 0 | AG56: =SUMIFS('2018'!$M$6:$M$258,'2018'!$E$6:$E$258,AG$1,'2018'!$H$6:$H$258,$A56) -> 0 | AH56: =SUMIFS('2018'!$M$6:$M$258,'2018'!$E$6:$E$258,AH$1,'2018'!$H$6:$H$258,$A56) -> 0 | AI56: =SUMIFS('2018'!$M$6:$M$258,'2018'!$E$6:$E$258,AI$1,'2018'!$H$6:$H$258,$A56) -> 0 | AJ56: =SUMIFS('2018'!$M$6:$M$258,'2018'!$E$6:$E$258,AJ$1,'2018'!$H$6:$H$258,$A56) -> 0 | AK56: =SUMIFS('2018'!$M$6:$M$258,'2018'!$E$6:$E$258,AK$1,'2018'!$H$6:$H$258,$A56) -> 0 | AL56: =SUMIFS('2018'!$M$6:$M$258,'2018'!$E$6:$E$258,AL$1,'2018'!$H$6:$H$258,$A56) -> 0 | AM56: =SUMIFS('2018'!$M$6:$M$258,'2018'!$E$6:$E$258,AM$1,'2018'!$H$6:$H$258,$A56) -> 0 | AN56: =SUMIFS('2018'!$M$6:$M$258,'2018'!$E$6:$E$258,AN$1,'2018'!$H$6:$H$258,$A56) -> 0 | AO56: =SUMIFS('2018'!$M$6:$M$258,'2018'!$E$6:$E$258,AO$1,'2018'!$H$6:$H$258,$A56) -> 0 | AP56: =SUMIFS('2018'!$M$6:$M$258,'2018'!$E$6:$E$258,AP$1,'2018'!$H$6:$H$258,$A56) -> 0 | AQ56: =SUMIFS('2018'!$M$6:$M$258,'2018'!$E$6:$E$258,AQ$1,'2018'!$H$6:$H$258,$A56) -> 0 | AR56: =SUMIFS('2018'!$M$6:$M$258,'2018'!$E$6:$E$258,AR$1,'2018'!$H$6:$H$258,$A56) -> 0 | AS56: =SUMIFS('2018'!$M$6:$M$258,'2018'!$E$6:$E$258,AS$1,'2018'!$H$6:$H$258,$A56) -> 0
A57: 931000 | B57: 340492 | C57: =SUMIFS('2018'!$M$6:$M$258,'2018'!$E$6:$E$258,C$1,'2018'!$H$6:$H$258,$A57) -> 0 | D57: =SUMIFS('2018'!$M$6:$M$258,'2018'!$E$6:$E$258,D$1,'2018'!$H$6:$H$258,$A57) -> 210278 | E57: =SUMIFS('2018'!$M$6:$M$258,'2018'!$E$6:$E$258,E$1,'2018'!$H$6:$H$258,$A57) -> 0 | F57: =SUMIFS('2018'!$M$6:$M$258,'2018'!$E$6:$E$258,F$1,'2018'!$H$6:$H$258,$A57) -> 0 | G57: =SUMIFS('2018'!$M$6:$M$258,'2018'!$E$6:$E$258,G$1,'2018'!$H$6:$H$258,$A57) -> 0 | H57: =SUMIFS('2018'!$M$6:$M$258,'2018'!$E$6:$E$258,H$1,'2018'!$H$6:$H$258,$A57) -> 0 | I57: =SUMIFS('2018'!$M$6:$M$258,'2018'!$E$6:$E$258,I$1,'2018'!$H$6:$H$258,$A57) -> 0 | J57: =SUMIFS('2018'!$M$6:$M$258,'2018'!$E$6:$E$258,J$1,'2018'!$H$6:$H$258,$A57) -> 0 | K57: =SUMIFS('2018'!$M$6:$M$258,'2018'!$E$6:$E$258,K$1,'2018'!$H$6:$H$258,$A57) -> 0 | L57: =SUMIFS('2018'!$M$6:$M$258,'2018'!$E$6:$E$258,L$1,'2018'!$H$6:$H$258,$A57) -> 0 | M57: =SUMIFS('2018'!$M$6:$M$258,'2018'!$E$6:$E$258,M$1,'2018'!$H$6:$H$258,$A57) -> 0 | N57: =SUMIFS('2018'!$M$6:$M$258,'2018'!$E$6:$E$258,N$1,'2018'!$H$6:$H$258,$A57) -> 0 | O57: =SUMIFS('2018'!$M$6:$M$258,'2018'!$E$6:$E$258,O$1,'2018'!$H$6:$H$258,$A57) -> 0 | P57: =SUMIFS('2018'!$M$6:$M$258,'2018'!$E$6:$E$258,P$1,'2018'!$H$6:$H$258,$A57) -> 0 | Q57: =SUMIFS('2018'!$M$6:$M$258,'2018'!$E$6:$E$258,Q$1,'2018'!$H$6:$H$258,$A57) -> 130214 | R57: =SUMIFS('2018'!$M$6:$M$258,'2018'!$E$6:$E$258,R$1,'2018'!$H$6:$H$258,$A57) -> 0 | S57: =SUMIFS('2018'!$M$6:$M$258,'2018'!$E$6:$E$258,S$1,'2018'!$H$6:$H$258,$A57) -> 0 | T57: =SUMIFS('2018'!$M$6:$M$258,'2018'!$E$6:$E$258,T$1,'2018'!$H$6:$H$258,$A57) -> 0 | U57: =SUMIFS('2018'!$M$6:$M$258,'2018'!$E$6:$E$258,U$1,'2018'!$H$6:$H$258,$A57) -> 0 | V57: =SUMIFS('2018'!$M$6:$M$258,'2018'!$E$6:$E$258,V$1,'2018'!$H$6:$H$258,$A57) -> 0 | W57: =SUMIFS('2018'!$M$6:$M$258,'2018'!$E$6:$E$258,W$1,'2018'!$H$6:$H$258,$A57) -> 0 | X57: =SUMIFS('2018'!$M$6:$M$258,'2018'!$E$6:$E$258,X$1,'2018'!$H$6:$H$258,$A57) -> 0 | Y57: =SUMIFS('2018'!$M$6:$M$258,'2018'!$E$6:$E$258,Y$1,'2018'!$H$6:$H$258,$A57) -> 0 | Z57: =SUMIFS('2018'!$M$6:$M$258,'2018'!$E$6:$E$258,Z$1,'2018'!$H$6:$H$258,$A57) -> 0 | AA57: =SUMIFS('2018'!$M$6:$M$258,'2018'!$E$6:$E$258,AA$1,'2018'!$H$6:$H$258,$A57) -> 0 | AB57: =SUMIFS('2018'!$M$6:$M$258,'2018'!$E$6:$E$258,AB$1,'2018'!$H$6:$H$258,$A57) -> 0 | AC57: =SUMIFS('2018'!$M$6:$M$258,'2018'!$E$6:$E$258,AC$1,'2018'!$H$6:$H$258,$A57) -> 0 | AD57: =SUMIFS('2018'!$M$6:$M$258,'2018'!$E$6:$E$258,AD$1,'2018'!$H$6:$H$258,$A57) -> 0 | AE57: =SUMIFS('2018'!$M$6:$M$258,'2018'!$E$6:$E$258,AE$1,'2018'!$H$6:$H$258,$A57) -> 0 | AF57: =SUMIFS('2018'!$M$6:$M$258,'2018'!$E$6:$E$258,AF$1,'2018'!$H$6:$H$258,$A57) -> 0 | AG57: =SUMIFS('2018'!$M$6:$M$258,'2018'!$E$6:$E$258,AG$1,'2018'!$H$6:$H$258,$A57) -> 0 | AH57: =SUMIFS('2018'!$M$6:$M$258,'2018'!$E$6:$E$258,AH$1,'2018'!$H$6:$H$258,$A57) -> 0 | AI57: =SUMIFS('2018'!$M$6:$M$258,'2018'!$E$6:$E$258,AI$1,'2018'!$H$6:$H$258,$A57) -> 0 | AJ57: =SUMIFS('2018'!$M$6:$M$258,'2018'!$E$6:$E$258,AJ$1,'2018'!$H$6:$H$258,$A57) -> 0 | AK57: =SUMIFS('2018'!$M$6:$M$258,'2018'!$E$6:$E$258,AK$1,'2018'!$H$6:$H$258,$A57) -> 0 | AL57: =SUMIFS('2018'!$M$6:$M$258,'2018'!$E$6:$E$258,AL$1,'2018'!$H$6:$H$258,$A57) -> 0 | AM57: =SUMIFS('2018'!$M$6:$M$258,'2018'!$E$6:$E$258,AM$1,'2018'!$H$6:$H$258,$A57) -> 0 | AN57: =SUMIFS('2018'!$M$6:$M$258,'2018'!$E$6:$E$258,AN$1,'2018'!$H$6:$H$258,$A57) -> 0 | AO57: =SUMIFS('2018'!$M$6:$M$258,'2018'!$E$6:$E$258,AO$1,'2018'!$H$6:$H$258,$A57) -> 0 | AP57: =SUMIFS('2018'!$M$6:$M$258,'2018'!$E$6:$E$258,AP$1,'2018'!$H$6:$H$258,$A57) -> 0 | AQ57: =SUMIFS('2018'!$M$6:$M$258,'2018'!$E$6:$E$258,AQ$1,'2018'!$H$6:$H$258,$A57) -> 0 | AR57: =SUMIFS('2018'!$M$6:$M$258,'2018'!$E$6:$E$258,AR$1,'2018'!$H$6:$H$258,$A57) -> 0 | AS57: =SUMIFS('2018'!$M$6:$M$258,'2018'!$E$6:$E$258,AS$1,'2018'!$H$6:$H$258,$A57) -> 0
A58: 935000 | B58: 9224963 | C58: =SUMIFS('2018'!$M$6:$M$258,'2018'!$E$6:$E$258,C$1,'2018'!$H$6:$H$258,$A58) -> 0 | D58: =SUMIFS('2018'!$M$6:$M$258,'2018'!$E$6:$E$258,D$1,'2018'!$H$6:$H$258,$A58) -> 7946787 | E58: =SUMIFS('2018'!$M$6:$M$258,'2018'!$E$6:$E$258,E$1,'2018'!$H$6:$H$258,$A58) -> 0 | F58: =SUMIFS('2018'!$M$6:$M$258,'2018'!$E$6:$E$258,F$1,'2018'!$H$6:$H$258,$A58) -> 0 | G58: =SUMIFS('2018'!$M$6:$M$258,'2018'!$E$6:$E$258,G$1,'2018'!$H$6:$H$258,$A58) -> 0 | H58: =SUMIFS('2018'!$M$6:$M$258,'2018'!$E$6:$E$258,H$1,'2018'!$H$6:$H$258,$A58) -> 0 | I58: =SUMIFS('2018'!$M$6:$M$258,'2018'!$E$6:$E$258,I$1,'2018'!$H$6:$H$258,$A58) -> 0 | J58: =SUMIFS('2018'!$M$6:$M$258,'2018'!$E$6:$E$258,J$1,'2018'!$H$6:$H$258,$A58) -> 47072 | K58: =SUMIFS('2018'!$M$6:$M$258,'2018'!$E$6:$E$258,K$1,'2018'!$H$6:$H$258,$A58) -> 0 | L58: =SUMIFS('2018'!$M$6:$M$258,'2018'!$E$6:$E$258,L$1,'2018'!$H$6:$H$258,$A58) -> 0 | M58: =SUMIFS('2018'!$M$6:$M$258,'2018'!$E$6:$E$258,M$1,'2018'!$H$6:$H$258,$A58) -> 0 | N58: =SUMIFS('2018'!$M$6:$M$258,'2018'!$E$6:$E$258,N$1,'2018'!$H$6:$H$258,$A58) -> 0 | O58: =SUMIFS('2018'!$M$6:$M$258,'2018'!$E$6:$E$258,O$1,'2018'!$H$6:$H$258,$A58) -> 0 | P58: =SUMIFS('2018'!$M$6:$M$258,'2018'!$E$6:$E$258,P$1,'2018'!$H$6:$H$258,$A58) -> 0 | Q58: =SUMIFS('2018'!$M$6:$M$258,'2018'!$E$6:$E$258,Q$1,'2018'!$H$6:$H$258,$A58) -> 151733 | R58: =SUMIFS('2018'!$M$6:$M$258,'2018'!$E$6:$E$258,R$1,'2018'!$H$6:$H$258,$A58) -> 0 | S58: =SUMIFS('2018'!$M$6:$M$258,'2018'!$E$6:$E$258,S$1,'2018'!$H$6:$H$258,$A58) -> 0 | T58: =SUMIFS('2018'!$M$6:$M$258,'2018'!$E$6:$E$258,T$1,'2018'!$H$6:$H$258,$A58) -> 0 | U58: =SUMIFS('2018'!$M$6:$M$258,'2018'!$E$6:$E$258,U$1,'2018'!$H$6:$H$258,$A58) -> 118402 | V58: =SUMIFS('2018'!$M$6:$M$258,'2018'!$E$6:$E$258,V$1,'2018'!$H$6:$H$258,$A58) -> 52555 | W58: =SUMIFS('2018'!$M$6:$M$258,'2018'!$E$6:$E$258,W$1,'2018'!$H$6:$H$258,$A58) -> 31973 | X58: =SUMIFS('2018'!$M$6:$M$258,'2018'!$E$6:$E$258,X$1,'2018'!$H$6:$H$258,$A58) -> 0 | Y58: =SUMIFS('2018'!$M$6:$M$258,'2018'!$E$6:$E$258,Y$1,'2018'!$H$6:$H$258,$A58) -> 876441 | Z58: =SUMIFS('2018'!$M$6:$M$258,'2018'!$E$6:$E$258,Z$1,'2018'!$H$6:$H$258,$A58) -> 0 | AA58: =SUMIFS('2018'!$M$6:$M$258,'2018'!$E$6:$E$258,AA$1,'2018'!$H$6:$H$258,$A58) -> 0 | AB58: =SUMIFS('2018'!$M$6:$M$258,'2018'!$E$6:$E$258,AB$1,'2018'!$H$6:$H$258,$A58) -> 0 | AC58: =SUMIFS('2018'!$M$6:$M$258,'2018'!$E$6:$E$258,AC$1,'2018'!$H$6:$H$258,$A58) -> 0 | AD58: =SUMIFS('2018'!$M$6:$M$258,'2018'!$E$6:$E$258,AD$1,'2018'!$H$6:$H$258,$A58) -> 0 | AE58: =SUMIFS('2018'!$M$6:$M$258,'2018'!$E$6:$E$258,AE$1,'2018'!$H$6:$H$258,$A58) -> 0 | AF58: =SUMIFS('2018'!$M$6:$M$258,'2018'!$E$6:$E$258,AF$1,'2018'!$H$6:$H$258,$A58) -> 0 | AG58: =SUMIFS('2018'!$M$6:$M$258,'2018'!$E$6:$E$258,AG$1,'2018'!$H$6:$H$258,$A58) -> 0 | AH58: =SUMIFS('2018'!$M$6:$M$258,'2018'!$E$6:$E$258,AH$1,'2018'!$H$6:$H$258,$A58) -> 0 | AI58: =SUMIFS('2018'!$M$6:$M$258,'2018'!$E$6:$E$258,AI$1,'2018'!$H$6:$H$258,$A58) -> 0 | AJ58: =SUMIFS('2018'!$M$6:$M$258,'2018'!$E$6:$E$258,AJ$1,'2018'!$H$6:$H$258,$A58) -> 0 | AK58: =SUMIFS('2018'!$M$6:$M$258,'2018'!$E$6:$E$258,AK$1,'2018'!$H$6:$H$258,$A58) -> 0 | AL58: =SUMIFS('2018'!$M$6:$M$258,'2018'!$E$6:$E$258,AL$1,'2018'!$H$6:$H$258,$A58) -> 0 | AM58: =SUMIFS('2018'!$M$6:$M$258,'2018'!$E$6:$E$258,AM$1,'2018'!$H$6:$H$258,$A58) -> 0 | AN58: =SUMIFS('2018'!$M$6:$M$258,'2018'!$E$6:$E$258,AN$1,'2018'!$H$6:$H$258,$A58) -> 0 | AO58: =SUMIFS('2018'!$M$6:$M$258,'2018'!$E$6:$E$258,AO$1,'2018'!$H$6:$H$258,$A58) -> 0 | AP58: =SUMIFS('2018'!$M$6:$M$258,'2018'!$E$6:$E$258,AP$1,'2018'!$H$6:$H$258,$A58) -> 0 | AQ58: =SUMIFS('2018'!$M$6:$M$258,'2018'!$E$6:$E$258,AQ$1,'2018'!$H$6:$H$258,$A58) -> 0 | AR58: =SUMIFS('2018'!$M$6:$M$258,'2018'!$E$6:$E$258,AR$1,'2018'!$H$6:$H$258,$A58) -> 0 | AS58: =SUMIFS('2018'!$M$6:$M$258,'2018'!$E$6:$E$258,AS$1,'2018'!$H$6:$H$258,$A58) -> 0
B60: =SUM(B46:B59) -> 34382526 | C60: =SUM(C46:C59) -> 1219706 | D60: =SUM(D46:D59) -> 9709075 | E60: =SUM(E46:E59) -> 769263 | F60: =SUM(F46:F59) -> 261905 | G60: =SUM(G46:G59) -> 1103644 | H60: =SUM(H46:H59) -> 392292 | I60: =SUM(I46:I59) -> 465346 | J60: =SUM(J46:J59) -> 212134 | K60: =SUM(K46:K59) -> 112814 | L60: =SUM(L46:L59) -> 1422185 | M60: =SUM(M46:M59) -> 518036 | N60: =SUM(N46:N59) -> 574359 | O60: =SUM(O46:O59) -> 314188 | P60: =SUM(P46:P59) -> 244165 | Q60: =SUM(Q46:Q59) -> 2532398 | R60: =SUM(R46:R59) -> 116070 | S60: =SUM(S46:S59) -> 53085 | T60: =SUM(T46:T59) -> 116722 | U60: =SUM(U46:U59) -> 527630 | V60: =SUM(V46:V59) -> 279176 | W60: =SUM(W46:W59) -> 1996199 | X60: =SUM(X46:X59) -> 542469 | Y60: =SUM(Y46:Y59) -> 2392723 | Z60: =SUM(Z46:Z59) -> 0 | AA60: =SUM(AA46:AA59) -> 960729 | AB60: =SUM(AB46:AB59) -> 418781 | AC60: =SUM(AC46:AC59) -> 265896 | AD60: =SUM(AD46:AD59) -> 466634 | AE60: =SUM(AE46:AE59) -> 504476 | AF60: =SUM(AF46:AF59) -> 973075 | AG60: =SUM(AG46:AG59) -> 1129723 | AH60: =SUM(AH46:AH59) -> 732924 | AI60: =SUM(AI46:AI59) -> 782716 | AJ60: =SUM(AJ46:AJ59) -> 220479 | AK60: =SUM(AK46:AK59) -> 178600 | AL60: =SUM(AL46:AL59) -> 70329 | AM60: =SUM(AM46:AM59) -> 44597 | AN60: =SUM(AN46:AN59) -> 520741 | AO60: =SUM(AO46:AO59) -> 55301 | AP60: =SUM(AP46:AP59) -> 132803 | AQ60: =SUM(AQ46:AQ59) -> 186877 | AR60: =SUM(AR46:AR59) -> 550823 | AS60: =SUM(AS46:AS59) -> 311438
B62: ='2018'!M4 -> 34382526
B64: =B62-B60 -> 0

Sheet 2016 (hidden)
A1: ET Annual O&M Budget
A2: As of 12/14/2015
M4: =SUM(M6:M448) -> 27813007 | N4: 0
A5: SCENARIO_NAME | B5: BUDGET_YEAR | C5: SUBYEAR | D5: ORG_NAME | E5: ORG_IDENTIFIER | F5: PROJECT_NUMBER | G5: PROJECT_NAME | H5: TASK_NUMBER | I5: TASK_NAME | J5: Expenditure_Category | K5: SERVICE_CODE | L5: STATE_CODE | M5: BUDGET_AMOUNT | N5: Reconcile | O5: LAST_UPDT_DTTM | P5: LAST_UPDT_USER_REALNAME
A6: New Base | B6: 2016 | C6: 2016 | D6: IS Products & Services | E6: S09 | F6: 09802453 | G6: Electric System Ops-098 | H6: 556000 | I6: Sys Control Dispatch | J6: Non-Labor | K6: ED | L6: AN | M6: 113687 | N6: 0 | O6: 2015-12-05T22:35:58 | P6: Plut, David
A7: New Base | B7: 2016 | C7: 2016 | D7: IS Products & Services | E7: S09 | F7: 09802455 | G7: Trans System Admin - 098 | H7: 560000 | I7: Supv and Engineering | J7: Non-Labor | K7: ED | L7: AN | M7: 212683 | N7: 0 | O7: 2015-12-05T22:36:10 | P7: Plut, David
A8: New Base | B8: 2016 | C8: 2016 | D8: Network Systems Engineering | E8: J09 | F8: 09800712 | G8: TV and Radio Interference | H8: 587000 | I8: Cust Install Expense | J8: Non-Labor | K8: ED | L8: AN | M8: 0 | N8: 0 | O8: 2015-09-09T10:33:37 | P8: Benjamin, Tia
A9: New Base | B9: 2016 | C9: 2016 | D9: Network Systems Engineering | E9: J09 | F9: 03800711 | G9: Idaho Meter Reading | H9: 902000 | I9: Meter Reading | J9: Non-Labor | K9: CD | L9: ID | M9: 0 | N9: 0 | O9: 2015-09-09T10:33:37 | P9: Benjamin, Tia
A10: New Base | B10: 2016 | C10: 2016 | D10: Network Systems Products & Services | E10: J29 | F10: 03800711 | G10: Idaho Meter Reading | H10: 902000 | I10: Meter Reading | J10: Non-Labor | K10: CD | L10: ID | M10: 50400 | N10: 0 | O10: 2015-12-05T20:08:09 | P10: Plut, David
A11: New Base | B11: 2016 | C11: 2016 | D11: Central Systems Operations | E11: M19 | F11: 09905730 | G11: ET Operations Common All | H11: 903000 | I11: cust accounts expens | J11: Labor | K11: CD | L11: AA | M11: 521415 | N11: 0 | O11: 2015-12-02T11:47:02 | P11: Busby, Michael
A12: New Base | B12: 2016 | C12: 2016 | D12: Operating Technology Operations | E12: A19 | F12: 09905730 | G12: ET Operations Common All | H12: 920000 | I12: labor | J12: Labor | K12: CD | L12: AA | M12: 394742 | N12: 0 | O12: 2015-12-05T23:51:27 | P12: Plut, David
A13: New Base | B13: 2016 | C13: 2016 | D13: COTS Development | E13: A39 | F13: 09905813 | G13: Applications Program Expense | H13: 920000 | I13: labor | J13: Labor | K13: CD | L13: AA | M13: 8584 | N13: 0 | O13: 2015-12-06T11:47:59 | P13: Plut, David
A14: New Base | B14: 2016 | C14: 2016 | D14: Network Systems Operations | E14: B09 | F14: 09800180 | G14: IT Operations - WaId Common | H14: 920000 | I14: labor | J14: Labor | K14: CD | L14: AN | M14: 525914 | N14: 0 | O14: 2015-12-02T10:35:14 | P14: Busby, Michael
A15: New Base | B15: 2016 | C15: 2016 | D15: Network Systems Operations | E15: B09 | F15: 09800180 | G15: IT Operations - WaId Common | H15: 920000 | I15: labor | J15: Overtime | K15: CD | L15: AN | M15: 33234 | N15: 0 | O15: 2015-12-02T09:41:16 | P15: Busby, Michael
A16: New Base | B16: 2016 | C16: 2016 | D16: Network Systems Operations | E16: B09 | F16: 09905730 | G16: ET Operations Common All | H16: 920000 | I16: labor | J16: Labor | K16: CD | L16: AA | M16: 178514 | N16: 0 | O16: 2015-12-02T09:43:03 | P16: Busby, Michael
A17: New Base | B17: 2016 | C17: 2016 | D17: Network Systems Operations | E17: B09 | F17: 09905733 | G17: ET Admin Common All | H17: 920000 | I17: labor | J17: Labor | K17: CD | L17: AA | M17: 48579 | N17: 0 | O17: 2015-12-02T09:42:24 | P17: Busby, Michael
A18: New Base | B18: 2016 | C18: 2016 | D18: Network Systems Operations | E18: B09 | F18: 09805448 | G18: WA ID GCN Specific | H18: 920000 | I18: labor | J18: Labor | K18: ED | L18: AN | M18: 18711 | N18: 0 | O18: 2015-12-02T09:43:57 | P18: Busby, Michael
A19: New Base | B19: 2016 | C19: 2016 | D19: Network Systems Operations | E19: B09 | F19: 09905730 | G19: ET Operations Common All | H19: 920000 | I19: labor | J19: Labor | K19: CD | L19: AA | M19: 427936 | N19: 0 | O19: 2015-12-02T09:44:34 | P19: Busby, Michael
A20: New Base | B20: 2016 | C20: 2016 | D20: Security Engineering | E20: C09 | F20: 09905730 | G20: ET Operations Common All | H20: 920000 | I20: labor | J20: Labor | K20: CD | L20: AA | M20: 90393 | N20: 0 | O20: 2015-12-05T16:24:19 | P20: Plut, David
A21: New Base | B21: 2016 | C21: 2016 | D21: Security Engineering | E21: C09 | F21: 09905510 | G21: Security Systems Project | H21: 920000 | I21: labor | J21: Labor | K21: CD | L21: AA | M21: 35813 | N21: 0 | O21: 2015-12-05T16:24:41 | P21: Plut, David
A22: New Base | B22: 2016 | C22: 2016 | D22: Security Engineering | E22: C09 | F22: 09905732 | G22: ET Arch Planning Common All | H22: 920000 | I22: labor | J22: Labor | K22: CD | L22: AA | M22: 187223 | N22: 0 | O22: 2015-12-05T16:24:30 | P22: Plut, David
A23: New Base | B23: 2016 | C23: 2016 | D23: Security Engineering | E23: C09 | F23: 09905733 | G23: ET Admin Common All | H23: 920000 | I23: labor | J23: Labor | K23: CD | L23: AA | M23: 0 | N23: 0 | O23: 2015-09-09T10:33:37 | P23: Benjamin, Tia
A24: New Base | B24: 2016 | C24: 2016 | D24: Security Operations | E24: C19 | F24: 09905730 | G24: ET Operations Common All | H24: 920000 | I24: labor | J24: Labor | K24: CD | L24: AA | M24: 429714 | N24: 0 | O24: 2015-12-05T17:10:25 | P24: Plut, David
A25: New Base | B25: 2016 | C25: 2016 | D25: Security Operations | E25: C19 | F25: 09905730 | G25: ET Operations Common All | H25: 920000 | I25: labor | J25: Overtime | K25: CD | L25: AA | M25: 8920 | N25: 0 | O25: 2015-12-05T17:11:33 | P25: Plut, David
A26: New Base | B26: 2016 | C26: 2016 | D26: Enterprise Business Continuity (EBC) | E26: C59 | F26: 09905732 | G26: ET Arch Planning Common All | H26: 920000 | I26: labor | J26: Labor | K26: CD | L26: AA | M26: 93142 | N26: 0 | O26: 2015-12-05T17:20:31 | P26: Plut, David
A27: New Base | B27: 2016 | C27: 2016 | D27: Distributed Systems Engineering | E27: E09 | F27: 09905507 | G27: Distributed systems project | H27: 920000 | I27: labor | J27: Labor | K27: CD | L27: AA | M27: 7458 | N27: 0 | O27: 2015-12-05T21:26:32 | P27: Plut, David
A28: New Base | B28: 2016 | C28: 2016 | D28: Distributed Systems Engineering | E28: E09 | F28: 09905730 | G28: ET Operations Common All | H28: 920000 | I28: labor | J28: Labor | K28: CD | L28: AA | M28: 0 | N28: 0 | O28: 2015-09-09T10:33:37 | P28: Benjamin, Tia
A29: New Base | B29: 2016 | C29: 2016 | D29: Distributed Systems Engineering | E29: E09 | F29: 09905732 | G29: ET Arch Planning Common All | H29: 920000 | I29: labor | J29: Labor | K29: CD | L29: AA | M29: 40273 | N29: 0 | O29: 2015-12-05T21:26:20 | P29: Plut, David
A30: New Base | B30: 2016 | C30: 2016 | D30: Distributed Systems Engineering | E30: E09 | F30: 09905733 | G30: ET Admin Common All | H30: 920000 | I30: labor | J30: Labor | K30: CD | L30: AA | M30: 0 | N30: 0 | O30: 2015-09-09T10:33:37 | P30: Benjamin, Tia
A31: New Base | B31: 2016 | C31: 2016 | D31: Distributed Systems Operations | E31: E19 | F31: 09905730 | G31: ET Operations Common All | H31: 920000 | I31: labor | J31: Labor | K31: CD | L31: AA | M31: 442741 | N31: 0 | O31: 2015-12-05T18:54:46 | P31: Plut, David
A32: New Base | B32: 2016 | C32: 2016 | D32: Distributed Systems Operations | E32: E19 | F32: 09905730 | G32: ET Operations Common All | H32: 920000 | I32: labor | J32: Overtime | K32: CD | L32: AA | M32: 40374 | N32: 0 | O32: 2015-12-05T18:56:10 | P32: Plut, David
A33: New Base | B33: 2016 | C33: 2016 | D33: Back Office Technology Operations | E33: F19 | F33: 09905730 | G33: ET Operations Common All | H33: 920000 | I33: labor | J33: Labor | K33: CD | L33: AA | M33: 166852 | N33: 0 | O33: 2015-12-05T23:57:56 | P33: Plut, David
A34: New Base | B34: 2016 | C34: 2016 | D34: Oracle Financial Services Development | E34: F39 | F34: 09905813 | G34: Applications Program Expense | H34: 920000 | I34: labor | J34: Labor | K34: CD | L34: AA | M34: 6837 | N34: 0 | O34: 2015-12-06T11:34:02 | P34: Plut, David
A35: New Base | B35: 2016 | C35: 2016 | D35: GIS Development | E35: G39 | F35: 09905813 | G35: Applications Program Expense | H35: 920000 | I35: labor | J35: Labor | K35: CD | L35: AA | M35: 26351 | N35: 0 | O35: 2015-12-06T01:43:35 | P35: Plut, David
A36: New Base | B36: 2016 | C36: 2016 | D36: Network Systems Engineering | E36: J09 | F36: 09905731 | G36: ET Delivery Common All | H36: 920000 | I36: labor | J36: Labor | K36: CD | L36: AA | M36: 7198 | N36: 0 | O36: 2015-12-05T19:33:04 | P36: Plut, David
A37: New Base | B37: 2016 | C37: 2016 | D37: Network Systems Engineering | E37: J09 | F37: 09905509 | G37: Network Systems Project | H37: 920000 | I37: labor | J37: Labor | K37: CD | L37: AA | M37: 0 | N37: 0 | O37: 2015-09-09T10:33:37 | P37: Benjamin, Tia
A38: New Base | B38: 2016 | C38: 2016 | D38: Network Systems Engineering | E38: J09 | F38: 09905732 | G38: ET Arch Planning Common All | H38: 920000 | I38: labor | J38: Labor | K38: CD | L38: AA | M38: 118183 | N38: 0 | O38: 2015-12-05T19:33:15 | P38: Plut, David
A39: New Base | B39: 2016 | C39: 2016 | D39: Network Systems Engineering | E39: J09 | F39: 09905733 | G39: ET Admin Common All | H39: 920000 | I39: labor | J39: Labor | K39: CD | L39: AA | M39: 0 | N39: 0 | O39: 2015-09-09T10:33:37 | P39: Benjamin, Tia
A40: New Base | B40: 2016 | C40: 2016 | D40: Customer Technology Operations | E40: K19 | F40: 09905730 | G40: ET Operations Common All | H40: 920000 | I40: labor | J40: Labor | K40: CD | L40: AA | M40: 226207 | N40: 0 | O40: 2015-12-06T00:14:27 | P40: Plut, David
A41: New Base | B41: 2016 | C41: 2016 | D41: Nucleus Development | E41: L39 | F41: 09905813 | G41: Applications Program Expense | H41: 920000 | I41: labor | J41: Labor | K41: CD | L41: AA | M41: 35036 | N41: 0 | O41: 2015-12-06T12:04:07 | P41: Plut, David
A42: New Base | B42: 2016 | C42: 2016 | D42: Central Systems Engineering | E42: M09 | F42: 09905732 | G42: ET Arch Planning Common All | H42: 920000 | I42: labor | J42: Labor | K42: CD | L42: AA | M42: 45837 | N42: 0 | O42: 2015-12-05T21:40:46 | P42: Plut, David
A43: New Base | B43: 2016 | C43: 2016 | D43: Central Systems Engineering | E43: M09 | F43: 09905733 | G43: ET Admin Common All | H43: 920000 | I43: labor | J43: Labor | K43: CD | L43: AA | M43: 0 | N43: 0 | O43: 2015-09-09T10:33:37 | P43: Benjamin, Tia
A44: New Base | B44: 2016 | C44: 2016 | D44: Central Systems Engineering | E44: M09 | F44: 09905730 | G44: ET Operations Common All | H44: 920000 | I44: labor | J44: Labor | K44: CD | L44: AA | M44: 0 | N44: 0 | O44: 2015-09-09T10:33:37 | P44: Benjamin, Tia
A45: New Base | B45: 2016 | C45: 2016 | D45: Central Systems Engineering | E45: M09 | F45: 09905513 | G45: Central Systems Project | H45: 920000 | I45: labor | J45: Labor | K45: CD | L45: AA | M45: 0 | N45: 0 | O45: 2015-09-09T10:33:37 | P45: Benjamin, Tia
A46: New Base | B46: 2016 | C46: 2016 | D46: Central Systems Operations | E46: M19 | F46: 09805448 | G46: WA ID GCN Specific | H46: 920000 | I46: labor | J46: Labor | K46: ED | L46: AN | M46: 18535 | N46: 0 | O46: 2015-12-02T11:48:36 | P46: Busby, Michael
A47: New Base | B47: 2016 | C47: 2016 | D47: Office of CISO | E47: N09 | F47: 09905732 | G47: ET Arch Planning Common All | H47: 920000 | I47: labor | J47: Labor | K47: CD | L47: AA | M47: 0 | N47: 0 | O47: 2015-09-09T10:33:37 | P47: Benjamin, Tia
A48: New Base | B48: 2016 | C48: 2016 | D48: Office of CISO | E48: N09 | F48: 09905733 | G48: ET Admin Common All | H48: 920000 | I48: labor | J48: Labor | K48: CD | L48: AA | M48: 600039 | N48: 0 | O48: 2015-12-05T12:33:49 | P48: Plut, David
A49: New Base | B49: 2016 | C49: 2016 | D49: Office of CISO | E49: N09 | F49: 09905731 | G49: ET Delivery Common All | H49: 920000 | I49: labor | J49: Labor | K49: CD | L49: AA | M49: 177245 | N49: 0 | O49: 2015-12-05T12:32:29 | P49: Plut, David
A50: New Base | B50: 2016 | C50: 2016 | D50: Project Management (IT Delivery) | E50: P09 | F50: 09905732 | G50: ET Arch Planning Common All | H50: 920000 | I50: labor | J50: Labor | K50: CD | L50: AA | M50: 83515 | N50: 0 | O50: 2015-12-05T15:07:57 | P50: Plut, David
A51: New Base | B51: 2016 | C51: 2016 | D51: Project Management (IT Delivery) | E51: P09 | F51: 09905731 | G51: ET Delivery Common All | H51: 920000 | I51: labor | J51: Labor | K51: CD | L51: AA | M51: 185209 | N51: 0 | O51: 2015-12-05T15:07:40 | P51: Plut, David
A52: New Base | B52: 2016 | C52: 2016 | D52: Project Management (IT Delivery) | E52: P09 | F52: 09905507 | G52: Distributed systems project | H52: 920000 | I52: labor | J52: Labor | K52: CD | L52: AA | M52: 5059 | N52: 0 | O52: 2015-12-05T15:15:42 | P52: Plut, David
A53: New Base | B53: 2016 | C53: 2016 | D53: Project Management (IT Delivery) | E53: P09 | F53: 09905513 | G53: Central Systems Project | H53: 920000 | I53: labor | J53: Labor | K53: CD | L53: AA | M53: 0 | N53: 0 | O53: 2015-09-09T10:33:37 | P53: Benjamin, Tia
A54: New Base | B54: 2016 | C54: 2016 | D54: Project Management (IT Delivery) | E54: P09 | F54: 09905813 | G54: Applications Program Expense | H54: 920000 | I54: labor | J54: Labor | K54: CD | L54: AA | M54: 51178 | N54: 0 | O54: 2015-12-05T15:10:19 | P54: Plut, David
A55: New Base | B55: 2016 | C55: 2016 | D55: Project Management (IT Delivery) | E55: P09 | F55: 09905733 | G55: ET Admin Common All | H55: 920000 | I55: labor | J55: Labor | K55: CD | L55: AA | M55: 15000 | N55: 0 | O55: 2015-12-05T15:09:29 | P55: Plut, David
A56: New Base | B56: 2016 | C56: 2016 | D56: Project Management (IT Delivery) | E56: P09 | F56: 09905789 | G56: License Management | H56: 920000 | I56: labor | J56: Labor | K56: CD | L56: AA | M56: 0 | N56: 0 | O56: 2015-09-09T10:33:37 | P56: Benjamin, Tia
A57: New Base | B57: 2016 | C57: 2016 | D57: Project Management (IT Delivery) | E57: P09 | F57: 09905625 | G57: Resource Management | H57: 920000 | I57: labor | J57: Labor | K57: CD | L57: AA | M57: 0 | N57: 0 | O57: 2015-09-09T10:33:37 | P57: Benjamin, Tia
A58: New Base | B58: 2016 | C58: 2016 | D58: Project Management (IT Delivery) | E58: P09 | F58: 09905508 | G58: Communication Systems Project | H58: 920000 | I58: labor | J58: Labor | K58: CD | L58: AA | M58: 6644 | N58: 0 | O58: 2015-12-05T15:12:10 | P58: Plut, David
A59: New Base | B59: 2016 | C59: 2016 | D59: Project Management (IT Delivery) | E59: P09 | F59: 09905624 | G59: Environmental Systems Project | H59: 920000 | I59: labor | J59: Labor | K59: CD | L59: AA | M59: 4729 | N59: 0 | O59: 2015-12-05T15:13:24 | P59: Plut, David
A60: New Base | B60: 2016 | C60: 2016 | D60: Project Management (IT Delivery) | E60: P09 | F60: 09905510 | G60: Security Systems Project | H60: 920000 | I60: labor | J60: Labor | K60: CD | L60: AA | M60: 22847 | N60: 0 | O60: 2015-12-05T15:15:22 | P60: Plut, David
A61: New Base | B61: 2016 | C61: 2016 | D61: Project Management (IT Delivery) | E61: P09 | F61: 09905512 | G61: Facilities IT Project | H61: 920000 | I61: labor | J61: Labor | K61: CD | L61: AA | M61: 4729 | N61: 0 | O61: 2015-12-05T15:13:34 | P61: Plut, David
A62: New Base | B62: 2016 | C62: 2016 | D62: Project Management (IT Delivery) | E62: P09 | F62: 09905509 | G62: Network Systems Project | H62: 920000 | I62: labor | J62: Labor | K62: CD | L62: AA | M62: 16222 | N62: 0 | O62: 2015-12-05T15:14:35 | P62: Plut, David
A63: New Base | B63: 2016 | C63: 2016 | D63: Technology Service Center | E63: P59 | F63: 09905730 | G63: ET Operations Common All | H63: 920000 | I63: labor | J63: Labor | K63: CD | L63: AA | M63: 16725 | N63: 0 | O63: 2015-12-05T14:22:48 | P63: Plut, David
A64: New Base | B64: 2016 | C64: 2016 | D64: Technology Service Center | E64: P59 | F64: 09905730 | G64: ET Operations Common All | H64: 920000 | I64: labor | J64: Labor | K64: CD | L64: AA | M64: 169024 | N64: 0 | O64: 2015-12-05T14:21:51 | P64: Plut, David
A65: New Base | B65: 2016 | C65: 2016 | D65: IT Director | E65: P99 | F65: 09905733 | G65: ET Admin Common All | H65: 920000 | I65: labor | J65: Labor | K65: CD | L65: AA | M65: 645830 | N65: 0 | O65: 2015-12-05T14:01:56 | P65: Plut, David
A66: New Base | B66: 2016 | C66: 2016 | D66: IT Director | E66: P99 | F66: 09905732 | G66: ET Arch Planning Common All | H66: 920000 | I66: labor | J66: Labor | K66: CD | L66: AA | M66: 79274 | N66: 0 | O66: 2015-12-05T14:01:09 | P66: Plut, David
A67: New Base | B67: 2016 | C67: 2016 | D67: Quality Assurance & Release Management | E67: Q19 | F67: 09905730 | G67: ET Operations Common All | H67: 920000 | I67: labor | J67: Labor | K67: CD | L67: AA | M67: 188533 | N67: 0 | O67: 2015-12-05T22:53:12 | P67: Plut, David
A68: New Base | B68: 2016 | C68: 2016 | D68: Communication Systems Engineering | E68: R09 | F68: 09905731 | G68: ET Delivery Common All | H68: 920000 | I68: labor | J68: Labor | K68: CD | L68: AA | M68: 8077 | N68: 0 | O68: 2015-12-05T21:46:23 | P68: Plut, David
A69: New Base | B69: 2016 | C69: 2016 | D69: Communication Systems Engineering | E69: R09 | F69: 09905732 | G69: ET Arch Planning Common All | H69: 920000 | I69: labor | J69: Labor | K69: CD | L69: AA | M69: 42150 | N69: 0 | O69: 2015-12-05T21:46:34 | P69: Plut, David
A70: New Base | B70: 2016 | C70: 2016 | D70: Communication Systems Engineering | E70: R09 | F70: 09905508 | G70: Communication Systems Project | H70: 920000 | I70: labor | J70: Labor | K70: CD | L70: AA | M70: 0 | N70: 0 | O70: 2015-09-09T10:33:37 | P70: Benjamin, Tia
A71: New Base | B71: 2016 | C71: 2016 | D71: Communication Systems Engineering | E71: R09 | F71: 09905730 | G71: ET Operations Common All | H71: 920000 | I71: labor | J71: Labor | K71: CD | L71: AA | M71: 0 | N71: 0 | O71: 2015-09-09T10:33:37 | P71: Benjamin, Tia
A72: New Base | B72: 2016 | C72: 2016 | D72: IS Products & Services | E72: S09 | F72: 09905733 | G72: ET Admin Common All | H72: 920000 | I72: labor | J72: Labor | K72: CD | L72: AA | M72: 0 | N72: 0 | O72: 2015-09-09T10:33:37 | P72: Benjamin, Tia
A73: New Base | B73: 2016 | C73: 2016 | D73: IS Products & Services | E73: S09 | F73: 09905730 | G73: ET Operations Common All | H73: 920000 | I73: labor | J73: Labor | K73: CD | L73: AA | M73: 0 | N73: 0 | O73: 2015-09-09T10:33:37 | P73: Benjamin, Tia
A74: New Base | B74: 2016 | C74: 2016 | D74: Integrations Operations | E74: S19 | F74: 09905730 | G74: ET Operations Common All | H74: 920000 | I74: labor | J74: Labor | K74: CD | L74: AA | M74: 233570 | N74: 0 | O74: 2015-12-06T00:33:14 | P74: Plut, David
A75: New Base | B75: 2016 | C75: 2016 | D75: IS Director | E75: W09 | F75: 09905732 | G75: ET Arch Planning Common All | H75: 920000 | I75: labor | J75: Labor | K75: CD | L75: AA | M75: 192019 | N75: 0 | O75: 2015-12-05T22:30:57 | P75: Plut, David
A76: New Base | B76: 2016 | C76: 2016 | D76: IS Director | E76: W09 | F76: 09905813 | G76: Applications Program Expense | H76: 920000 | I76: labor | J76: Labor | K76: CD | L76: AA | M76: 0 | N76: 0 | O76: 2015-09-09T10:33:37 | P76: Benjamin, Tia
A77: New Base | B77: 2016 | C77: 2016 | D77: IS Director | E77: W09 | F77: 09905733 | G77: ET Admin Common All | H77: 920000 | I77: labor | J77: Labor | K77: CD | L77: AA | M77: 319310 | N77: 0 | O77: 2015-12-05T22:31:09 | P77: Plut, David
A78: New Base | B78: 2016 | C78: 2016 | D78: IS Director | E78: W09 | F78: 09905731 | G78: ET Delivery Common All | H78: 920000 | I78: labor | J78: Labor | K78: CD | L78: AA | M78: 0 | N78: 0 | O78: 2015-09-09T10:33:37 | P78: Benjamin, Tia
A79: New Base | B79: 2016 | C79: 2016 | D79: IS Delivery | E79: W39 | F79: 09905730 | G79: ET Operations Common All | H79: 920000 | I79: labor | J79: Labor | K79: CD | L79: AA | M79: 98282 | N79: 0 | O79: 2015-12-06T01:03:06 | P79: Plut, David
A80: New Base | B80: 2016 | C80: 2016 | D80: IS Delivery | E80: W39 | F80: 09905813 | G80: Applications Program Expense | H80: 920000 | I80: labor | J80: Labor | K80: CD | L80: AA | M80: 145182 | N80: 0 | O80: 2015-12-06T01:12:12 | P80: Plut, David
A81: New Base | B81: 2016 | C81: 2016 | D81: IS Delivery | E81: W39 | F81: 09905733 | G81: ET Admin Common All | H81: 920000 | I81: labor | J81: Labor | K81: CD | L81: AA | M81: 51007 | N81: 0 | O81: 2015-12-06T01:04:04 | P81: Plut, David
A82: New Base | B82: 2016 | C82: 2016 | D82: Data Operations | E82: X19 | F82: 09905730 | G82: ET Operations Common All | H82: 920000 | I82: labor | J82: Labor | K82: CD | L82: AA | M82: 387548 | N82: 0 | O82: 2015-12-06T00:24:00 | P82: Plut, David
A83: New Base | B83: 2016 | C83: 2016 | D83: Data Development | E83: X39 | F83: 09905813 | G83: Applications Program Expense | H83: 920000 | I83: labor | J83: Labor | K83: CD | L83: AA | M83: 26360 | N83: 0 | O83: 2015-12-06T12:59:11 | P83: Plut, David
A84: New Base | B84: 2016 | C84: 2016 | D84: Data Development | E84: X39 | F84: 09905730 | G84: ET Operations Common All | H84: 920000 | I84: labor | J84: Labor | K84: CD | L84: AA | M84: 15772 | N84: 0 | O84: 2015-12-06T12:52:47 | P84: Plut, David
A85: New Base | B85: 2016 | C85: 2016 | D85: Web Development | E85: Y39 | F85: 09905813 | G85: Applications Program Expense | H85: 920000 | I85: labor | J85: Labor | K85: CD | L85: AA | M85: 6066 | N85: 0 | O85: 2015-12-06T11:16:07 | P85: Plut, David
A86: New Base | B86: 2016 | C86: 2016 | D86: Network Systems Operations | E86: B09 | F86: 09905730 | G86: ET Operations Common All | H86: 921000 | I86: supp & exp | J86: Non-Labor | K86: CD | L86: AA | M86: 1200 | N86: 0 | O86: 2015-12-02T09:48:03 | P86: Busby, Michael
A87: New Base | B87: 2016 | C87: 2016 | D87: Network Systems Operations | E87: B09 | F87: 09800180 | G87: IT Operations - WaId Common | H87: 921000 | I87: supp & exp | J87: Non-Labor | K87: CD | L87: AN | M87: 33250 | N87: 0 | O87: 2015-09-29T12:37:42 | P87: Busby, Michael
A88: New Base | B88: 2016 | C88: 2016 | D88: Security Engineering | E88: C09 | F88: 09905510 | G88: Security Systems Project | H88: 921000 | I88: supp & exp | J88: Non-Labor | K88: CD | L88: AA | M88: 0 | N88: 0 | O88: 2015-09-09T10:33:37 | P88: Benjamin, Tia
A89: New Base | B89: 2016 | C89: 2016 | D89: Security Engineering | E89: C09 | F89: 09905495 | G89: EBC Annual Excercises | H89: 921000 | I89: supp & exp | J89: Non-Labor | K89: CD | L89: AA | M89: 0 | N89: 0 | O89: 2015-09-09T10:33:37 | P89: Benjamin, Tia
A90: New Base | B90: 2016 | C90: 2016 | D90: Security Engineering | E90: C09 | F90: 09905733 | G90: ET Admin Common All | H90: 921000 | I90: supp & exp | J90: Non-Labor | K90: CD | L90: AA | M90: 0 | N90: 0 | O90: 2015-09-09T10:33:37 | P90: Benjamin, Tia
A91: New Base | B91: 2016 | C91: 2016 | D91: Security Engineering | E91: C09 | F91: 09905730 | G91: ET Operations Common All | H91: 921000 | I91: supp & exp | J91: Non-Labor | K91: CD | L91: AA | M91: 0 | N91: 0 | O91: 2015-09-09T10:33:37 | P91: Benjamin, Tia
A92: New Base | B92: 2016 | C92: 2016 | D92: Security Products & Services | E92: C29 | F92: 09905733 | G92: ET Admin Common All | H92: 921000 | I92: supp & exp | J92: Non-Labor | K92: CD | L92: AA | M92: 6004 | N92: 0 | O92: 2015-12-05T17:32:00 | P92: Plut, David
A93: New Base | B93: 2016 | C93: 2016 | D93: Security Products & Services | E93: C29 | F93: 09905730 | G93: ET Operations Common All | H93: 921000 | I93: supp & exp | J93: Non-Labor | K93: CD | L93: AA | M93: 3150 | N93: 0 | O93: 2015-12-05T17:29:33 | P93: Plut, David
A94: New Base | B94: 2016 | C94: 2016 | D94: Enterprise Business Continuity (EBC) | E94: C59 | F94: 09905495 | G94: EBC Annual Excercises | H94: 921000 | I94: supp & exp | J94: Non-Labor | K94: CD | L94: AA | M94: 14000 | N94: 0 | O94: 2015-12-05T17:22:33 | P94: Plut, David
A95: New Base | B95: 2016 | C95: 2016 | D95: Distributed Systems Engineering | E95: E09 | F95: 09905733 | G95: ET Admin Common All | H95: 921000 | I95: supp & exp | J95: Non-Labor | K95: CD | L95: AA | M95: 0 | N95: 0 | O95: 2015-09-09T10:33:37 | P95: Benjamin, Tia
A96: New Base | B96: 2016 | C96: 2016 | D96: Distributed Systems Engineering | E96: E09 | F96: 09905510 | G96: Security Systems Project | H96: 921000 | I96: supp & exp | J96: Non-Labor | K96: CD | L96: AA | M96: 0 | N96: 0 | O96: 2015-09-09T10:33:37 | P96: Benjamin, Tia
A97: New Base | B97: 2016 | C97: 2016 | D97: Distributed Systems Engineering | E97: E09 | F97: 09905730 | G97: ET Operations Common All | H97: 921000 | I97: supp & exp | J97: Non-Labor | K97: CD | L97: AA | M97: 0 | N97: 0 | O97: 2015-09-09T10:33:37 | P97: Benjamin, Tia
A98: New Base | B98: 2016 | C98: 2016 | D98: Distributed Systems Operations | E98: E19 | F98: 09905730 | G98: ET Operations Common All | H98: 921000 | I98: supp & exp | J98: Non-Labor | K98: CD | L98: AA | M98: 5500 | N98: 0 | O98: 2015-12-02T11:33:54 | P98: Busby, Michael
A99: New Base | B99: 2016 | C99: 2016 | D99: Distributed Systems Products & Services | E99: E29 | F99: 09905730 | G99: ET Operations Common All | H99: 921000 | I99: supp & exp | J99: Non-Labor | K99: CD | L99: AA | M99: 222000 | N99: 0 | O99: 2015-12-05T21:57:54 | P99: Plut, David
A100: New Base | B100: 2016 | C100: 2016 | D100: Distributed Systems Products & Services | E100: E29 | F100: 09905733 | G100: ET Admin Common All | H100: 921000 | I100: supp & exp | J100: Non-Labor | K100: CD | L100: AA | M100: 5985 | N100: 0 | O100: 2015-12-05T22:00:35 | P100: Plut, David
A101: New Base | B101: 2016 | C101: 2016 | D101: Distributed Systems Products & Services | E101: E29 | F101: 09905507 | G101: Distributed systems project | H101: 921000 | I101: supp & exp | J101: Non-Labor | K101: CD | L101: AA | M101: 56000 | N101: 0 | O101: 2015-12-05T21:59:50 | P101: Plut, David
A102: New Base | B102: 2016 | C102: 2016 | D102: Network Systems Engineering | E102: J09 | F102: 09905509 | G102: Network Systems Project | H102: 921000 | I102: supp & exp | J102: Non-Labor | K102: CD | L102: AA | M102: 0 | N102: 0 | O102: 2015-09-09T10:33:37 | P102: Benjamin, Tia
A103: New Base | B103: 2016 | C103: 2016 | D103: Network Systems Engineering | E103: J09 | F103: 09905733 | G103: ET Admin Common All | H103: 921000 | I103: supp & exp | J103: Non-Labor | K103: CD | L103: AA | M103: 0 | N103: 0 | O103: 2015-09-09T10:33:37 | P103: Benjamin, Tia
A104: New Base | B104: 2016 | C104: 2016 | D104: Network Systems Engineering | E104: J09 | F104: 09905107 | G104: Telecom Services | H104: 921000 | I104: supp & exp | J104: Non-Labor | K104: CD | L104: AA | M104: 0 | N104: 0 | O104: 2015-09-09T10:33:37 | P104: Benjamin, Tia
A105: New Base | B105: 2016 | C105: 2016 | D105: Network Systems Engineering | E105: J09 | F105: 02806002 | G105: Smart Grid Ongoing O&M | H105: 921000 | I105: supp & exp | J105: Non-Labor | K105: ED | L105: WA | M105: 0 | N105: 0 | O105: 2015-09-09T10:33:37 | P105: Benjamin, Tia
A106: New Base | B106: 2016 | C106: 2016 | D106: Network Systems Engineering | E106: J09 | F106: 09800180 | G106: IT Operations - WaId Common | H106: 921000 | I106: supp & exp | J106: Non-Labor | K106: CD | L106: AN | M106: 0 | N106: 0 | O106: 2015-09-09T10:33:37 | P106: Benjamin, Tia
A107: New Base | B107: 2016 | C107: 2016 | D107: Network Systems Products & Services | E107: J29 | F107: 09905733 | G107: ET Admin Common All | H107: 921000 | I107: supp & exp | J107: Non-Labor | K107: CD | L107: AA | M107: 1141 | N107: 0 | O107: 2015-12-05T21:20:10 | P107: Plut, David
A108: New Base | B108: 2016 | C108: 2016 | D108: Network Systems Products & Services | E108: J29 | F108: 09905107 | G108: Telecom Services | H108: 921000 | I108: supp & exp | J108: Non-Labor | K108: CD | L108: AA | M108: 1545157 | N108: 0 | O108: 2015-12-05T20:12:11 | P108: Plut, David
A109: New Base | B109: 2016 | C109: 2016 | D109: Network Systems Products & Services | E109: J29 | F109: 09800180 | G109: IT Operations - WaId Common | H109: 921000 | I109: supp & exp | J109: Non-Labor | K109: CD | L109: AN | M109: 41077 | N109: 0 | O109: 2015-12-05T20:13:08 | P109: Plut, David
A110: New Base | B110: 2016 | C110: 2016 | D110: Network Systems Products & Services | E110: J29 | F110: 02806002 | G110: Smart Grid Ongoing O&M | H110: 921000 | I110: supp & exp | J110: Non-Labor | K110: ED | L110: WA | M110: 67560 | N110: 0 | O110: 2015-12-05T20:05:13 | P110: Plut, David
A111: New Base | B111: 2016 | C111: 2016 | D111: Network Systems Products & Services | E111: J29 | F111: 09905509 | G111: Network Systems Project | H111: 921000 | I111: supp & exp | J111: Non-Labor | K111: CD | L111: AA | M111: 19950 | N111: 0 | O111: 2015-12-05T20:15:02 | P111: Plut, David
A112: New Base | B112: 2016 | C112: 2016 | D112: Central Systems Engineering | E112: M09 | F112: 09905733 | G112: ET Admin Common All | H112: 921000 | I112: supp & exp | J112: Non-Labor | K112: CD | L112: AA | M112: 0 | N112: 0 | O112: 2015-09-09T10:33:37 | P112: Benjamin, Tia
A113: New Base | B113: 2016 | C113: 2016 | D113: Central Systems Operations | E113: M19 | F113: 09905730 | G113: ET Operations Common All | H113: 921000 | I113: supp & exp | J113: Non-Labor | K113: CD | L113: AA | M113: 1400 | N113: 0 | O113: 2015-12-02T11:49:20 | P113: Busby, Michael
A114: New Base | B114: 2016 | C114: 2016 | D114: Central Systems Products & Services | E114: M29 | F114: 09905733 | G114: ET Admin Common All | H114: 921000 | I114: supp & exp | J114: Non-Labor | K114: CD | L114: AA | M114: 5408 | N114: 0 | O114: 2015-12-05T22:15:15 | P114: Plut, David
A115: New Base | B115: 2016 | C115: 2016 | D115: Office of CISO | E115: N09 | F115: 09905733 | G115: ET Admin Common All | H115: 921000 | I115: supp & exp | J115: Non-Labor | K115: CD | L115: AA | M115: 15000 | N115: 0 | O115: 2015-12-05T12:53:31 | P115: Plut, David
A116: New Base | B116: 2016 | C116: 2016 | D116: Project Management (IT Delivery) | E116: P09 | F116: 09905512 | G116: Facilities IT Project | H116: 921000 | I116: supp & exp | J116: Non-Labor | K116: CD | L116: AA | M116: 6300 | N116: 0 | O116: 2015-12-05T15:32:11 | P116: Plut, David
A117: New Base | B117: 2016 | C117: 2016 | D117: Project Management (IT Delivery) | E117: P09 | F117: 09905733 | G117: ET Admin Common All | H117: 921000 | I117: supp & exp | J117: Non-Labor | K117: CD | L117: AA | M117: 32130 | N117: 0 | O117: 2015-12-05T15:32:35 | P117: Plut, David
A118: New Base | B118: 2016 | C118: 2016 | D118: Project Management (IT Delivery) | E118: P09 | F118: 09905624 | G118: Environmental Systems Project | H118: 921000 | I118: supp & exp | J118: Non-Labor | K118: CD | L118: AA | M118: 15750 | N118: 0 | O118: 2015-12-05T15:32:22 | P118: Plut, David
A119: New Base | B119: 2016 | C119: 2016 | D119: Communication Systems Engineering | E119: R09 | F119: 09905733 | G119: ET Admin Common All | H119: 921000 | I119: supp & exp | J119: Non-Labor | K119: CD | L119: AA | M119: 0 | N119: 0 | O119: 2015-09-09T10:33:37 | P119: Benjamin, Tia
A120: New Base | B120: 2016 | C120: 2016 | D120: Communication Systems Engineering | E120: R09 | F120: 09905730 | G120: ET Operations Common All | H120: 921000 | I120: supp & exp | J120: Non-Labor | K120: CD | L120: AA | M120: 0 | N120: 0 | O120: 2015-09-09T10:33:37 | P120: Benjamin, Tia
A121: New Base | B121: 2016 | C121: 2016 | D121: Communication Systems Engineering | E121: R09 | F121: 09905107 | G121: Telecom Services | H121: 921000 | I121: supp & exp | J121: Non-Labor | K121: CD | L121: AA | M121: 0 | N121: 0 | O121: 2015-09-09T10:33:37 | P121: Benjamin, Tia
A122: New Base | B122: 2016 | C122: 2016 | D122: Communication Systems Engineering | E122: R09 | F122: 09905508 | G122: Communication Systems Project | H122: 921000 | I122: supp & exp | J122: Non-Labor | K122: CD | L122: AA | M122: 0 | N122: 0 | O122: 2015-09-09T10:33:37 | P122: Benjamin, Tia
A123: New Base | B123: 2016 | C123: 2016 | D123: Communication Systems Products & Services | E123: R29 | F123: 09905730 | G123: ET Operations Common All | H123: 921000 | I123: supp & exp | J123: Non-Labor | K123: CD | L123: AA | M123: 332100 | N123: 0 | O123: 2015-12-05T22:19:36 | P123: Plut, David
A124: New Base | B124: 2016 | C124: 2016 | D124: Communication Systems Products & Services | E124: R29 | F124: 09905508 | G124: Communication Systems Project | H124: 921000 | I124: supp & exp | J124: Non-Labor | K124: CD | L124: AA | M124: 51600 | N124: 0 | O124: 2015-12-05T22:22:34 | P124: Plut, David
A125: New Base | B125: 2016 | C125: 2016 | D125: Communication Systems Products & Services | E125: R29 | F125: 09905107 | G125: Telecom Services | H125: 921000 | I125: supp & exp | J125: Non-Labor | K125: CD | L125: AA | M125: 1410844 | N125: 0 | O125: 2015-12-05T22:21:51 | P125: Plut, David
A126: New Base | B126: 2016 | C126: 2016 | D126: Communication Systems Products & Services | E126: R29 | F126: 09905733 | G126: ET Admin Common All | H126: 921000 | I126: supp & exp | J126: Non-Labor | K126: CD | L126: AA | M126: 40200 | N126: 0 | O126: 2015-12-05T22:23:17 | P126: Plut, David
A127: New Base | B127: 2016 | C127: 2016 | D127: IS Products & Services | E127: S09 | F127: 09905733 | G127: ET Admin Common All | H127: 921000 | I127: supp & exp | J127: Non-Labor | K127: CD | L127: AA | M127: 5513 | N127: 0 | O127: 2015-12-05T22:38:59 | P127: Plut, David
A128: New Base | B128: 2016 | C128: 2016 | D128: IS Director | E128: W09 | F128: 09905731 | G128: ET Delivery Common All | H128: 921000 | I128: supp & exp | J128: Non-Labor | K128: CD | L128: AA | M128: 0 | N128: 0 | O128: 2015-09-09T10:33:37 | P128: Benjamin, Tia
A129: New Base | B129: 2016 | C129: 2016 | D129: IS Director | E129: W09 | F129: 09905732 | G129: ET Arch Planning Common All | H129: 921000 | I129: supp & exp | J129: Non-Labor | K129: CD | L129: AA | M129: 0 | N129: 0 | O129: 2015-09-09T10:33:37 | P129: Benjamin, Tia
A130: New Base | B130: 2016 | C130: 2016 | D130: IS Director | E130: W09 | F130: 09905733 | G130: ET Admin Common All | H130: 921000 | I130: supp & exp | J130: Non-Labor | K130: CD | L130: AA | M130: 0 | N130: 0 | O130: 2015-09-09T10:33:37 | P130: Benjamin, Tia
A131: New Base | B131: 2016 | C131: 2016 | D131: ET Shared Services | E131: A09 | F131: 09905813 | G131: Applications Program Expense | H131: 923000 | I131: prof svcs | J131: Non-Labor | K131: CD | L131: AA | M131: 1132044 | N131: 0 | O131: 2015-12-05T13:15:12 | P131: Plut, David
A132: New Base | B132: 2016 | C132: 2016 | D132: ET Shared Services | E132: A09 | F132: 09905510 | G132: Security Systems Project | H132: 923000 | I132: prof svcs | J132: Non-Labor | K132: CD | L132: AA | M132: 116660 | N132: 0 | O132: 2015-12-05T13:18:50 | P132: Plut, David
A133: New Base | B133: 2016 | C133: 2016 | D133: ET Shared Services | E133: A09 | F133: 09905508 | G133: Communication Systems Project | H133: 923000 | I133: prof svcs | J133: Non-Labor | K133: CD | L133: AA | M133: 90790 | N133: 0 | O133: 2015-12-05T13:26:43 | P133: Plut, David
A134: New Base | B134: 2016 | C134: 2016 | D134: ET Shared Services | E134: A09 | F134: 09905507 | G134: Distributed systems project | H134: 923000 | I134: prof svcs | J134: Non-Labor | K134: CD | L134: AA | M134: 14717 | N134: 0 | O134: 2015-12-05T13:21:59 | P134: Plut, David
A135: New Base | B135: 2016 | C135: 2016 | D135: COTS Development | E135: A39 | F135: 09905813 | G135: Applications Program Expense | H135: 923000 | I135: prof svcs | J135: Non-Labor | K135: CD | L135: AA | M135: 40463 | N135: 0 | O135: 2015-12-06T11:49:28 | P135: Plut, David
A136: New Base | B136: 2016 | C136: 2016 | D136: Security Engineering | E136: C09 | F136: 09905732 | G136: ET Arch Planning Common All | H136: 923000 | I136: prof svcs | J136: Non-Labor | K136: CD | L136: AA | M136: 0 | N136: 0 | O136: 2015-09-09T10:33:37 | P136: Benjamin, Tia
A137: New Base | B137: 2016 | C137: 2016 | D137: Security Engineering | E137: C09 | F137: 09905813 | G137: Applications Program Expense | H137: 923000 | I137: prof svcs | J137: Non-Labor | K137: CD | L137: AA | M137: 27472 | N137: 0 | O137: 2015-12-05T16:45:40 | P137: Plut, David
A138: New Base | B138: 2016 | C138: 2016 | D138: Security Engineering | E138: C09 | F138: 09905730 | G138: ET Operations Common All | H138: 923000 | I138: prof svcs | J138: Non-Labor | K138: CD | L138: AA | M138: 0 | N138: 0 | O138: 2015-09-09T10:33:37 | P138: Benjamin, Tia
A139: New Base | B139: 2016 | C139: 2016 | D139: Security Engineering | E139: C09 | F139: 09905730 | G139: ET Operations Common All | H139: 923000 | I139: prof svcs | J139: Non-Labor | K139: CD | L139: AA | M139: 0 | N139: 0 | O139: 2015-09-09T10:33:37 | P139: Benjamin, Tia
A140: New Base | B140: 2016 | C140: 2016 | D140: Security Engineering | E140: C09 | F140: 09905731 | G140: ET Delivery Common All | H140: 923000 | I140: prof svcs | J140: Non-Labor | K140: CD | L140: AA | M140: 0 | N140: 0 | O140: 2015-09-09T10:33:37 | P140: Benjamin, Tia
A141: New Base | B141: 2016 | C141: 2016 | D141: Security Engineering | E141: C09 | F141: 09905510 | G141: Security Systems Project | H141: 923000 | I141: prof svcs | J141: Non-Labor | K141: CD | L141: AA | M141: 27425 | N141: 0 | O141: 2015-12-05T16:46:45 | P141: Plut, David
A142: New Base | B142: 2016 | C142: 2016 | D142: Security Products & Services | E142: C29 | F142: 09905731 | G142: ET Delivery Common All | H142: 923000 | I142: prof svcs | J142: Non-Labor | K142: CD | L142: AA | M142: 120000 | N142: 0 | O142: 2015-12-05T17:30:25 | P142: Plut, David
A143: New Base | B143: 2016 | C143: 2016 | D143: Security Products & Services | E143: C29 | F143: 09905730 | G143: ET Operations Common All | H143: 923000 | I143: prof svcs | J143: Non-Labor | K143: CD | L143: AA | M143: 60000 | N143: 0 | O143: 2015-12-05T17:28:42 | P143: Plut, David
A144: New Base | B144: 2016 | C144: 2016 | D144: Distributed Systems Engineering | E144: E09 | F144: 09905732 | G144: ET Arch Planning Common All | H144: 923000 | I144: prof svcs | J144: Non-Labor | K144: CD | L144: AA | M144: 12617 | N144: 0 | O144: 2015-12-05T21:28:29 | P144: Plut, David
A145: New Base | B145: 2016 | C145: 2016 | D145: Distributed Systems Engineering | E145: E09 | F145: 09905731 | G145: ET Delivery Common All | H145: 923000 | I145: prof svcs | J145: Non-Labor | K145: CD | L145: AA | M145: 13824 | N145: 0 | O145: 2015-12-05T21:27:31 | P145: Plut, David
A146: New Base | B146: 2016 | C146: 2016 | D146: Distributed Systems Engineering | E146: E09 | F146: 09905733 | G146: ET Admin Common All | H146: 923000 | I146: prof svcs | J146: Non-Labor | K146: CD | L146: AA | M146: 0 | N146: 0 | O146: 2015-09-09T10:33:37 | P146: Benjamin, Tia
A147: New Base | B147: 2016 | C147: 2016 | D147: Distributed Systems Engineering | E147: E09 | F147: 09905730 | G147: ET Operations Common All | H147: 923000 | I147: prof svcs | J147: Non-Labor | K147: CD | L147: AA | M147: 0 | N147: 0 | O147: 2015-09-09T10:33:37 | P147: Benjamin, Tia
A148: New Base | B148: 2016 | C148: 2016 | D148: Distributed Systems Engineering | E148: E09 | F148: 09905730 | G148: ET Operations Common All | H148: 923000 | I148: prof svcs | J148: Non-Labor | K148: CD | L148: AA | M148: 0 | N148: 0 | O148: 2015-09-09T10:33:37 | P148: Benjamin, Tia
A149: New Base | B149: 2016 | C149: 2016 | D149: Distributed Systems Engineering | E149: E09 | F149: 09905507 | G149: Distributed systems project | H149: 923000 | I149: prof svcs | J149: Non-Labor | K149: CD | L149: AA | M149: 20811 | N149: 0 | O149: 2015-12-05T21:29:28 | P149: Plut, David
A150: New Base | B150: 2016 | C150: 2016 | D150: Distributed Systems Products & Services | E150: E29 | F150: 09905730 | G150: ET Operations Common All | H150: 923000 | I150: prof svcs | J150: Non-Labor | K150: CD | L150: AA | M150: 85230 | N150: 0 | O150: 2015-12-05T21:57:08 | P150: Plut, David
A151: New Base | B151: 2016 | C151: 2016 | D151: Oracle Financial Services Development | E151: F39 | F151: 09905813 | G151: Applications Program Expense | H151: 923000 | I151: prof svcs | J151: Non-Labor | K151: CD | L151: AA | M151: 26539 | N151: 0 | O151: 2015-12-06T11:35:00 | P151: Plut, David
A152: New Base | B152: 2016 | C152: 2016 | D152: GIS Development | E152: G39 | F152: 09905813 | G152: Applications Program Expense | H152: 923000 | I152: prof svcs | J152: Non-Labor | K152: CD | L152: AA | M152: 101049 | N152: 0 | O152: 2015-12-06T01:44:40 | P152: Plut, David
A153: New Base | B153: 2016 | C153: 2016 | D153: Network Systems Engineering | E153: J09 | F153: 09905730 | G153: ET Operations Common All | H153: 923000 | I153: prof svcs | J153: Non-Labor | K153: CD | L153: AA | M153: 0 | N153: 0 | O153: 2015-09-09T10:33:37 | P153: Benjamin, Tia
A154: New Base | B154: 2016 | C154: 2016 | D154: Network Systems Engineering | E154: J09 | F154: 09905731 | G154: ET Delivery Common All | H154: 923000 | I154: prof svcs | J154: Non-Labor | K154: CD | L154: AA | M154: 104918 | N154: 0 | O154: 2015-12-06T13:45:52 | P154: Plut, David
A155: New Base | B155: 2016 | C155: 2016 | D155: Network Systems Products & Services | E155: J29 | F155: 09905730 | G155: ET Operations Common All | H155: 923000 | I155: prof svcs | J155: Non-Labor | K155: CD | L155: AA | M155: 81207 | N155: 0 | O155: 2015-12-05T20:10:09 | P155: Plut, David
A156: New Base | B156: 2016 | C156: 2016 | D156: General Custom Application Development | E156: K39 | F156: 09905813 | G156: Applications Program Expense | H156: 923000 | I156: prof svcs | J156: Non-Labor | K156: CD | L156: AA | M156: 15079 | N156: 0 | O156: 2015-12-06T11:26:54 | P156: Plut, David
A157: New Base | B157: 2016 | C157: 2016 | D157: Nucleus Development | E157: L39 | F157: 09905813 | G157: Applications Program Expense | H157: 923000 | I157: prof svcs | J157: Non-Labor | K157: CD | L157: AA | M157: 17090 | N157: 0 | O157: 2015-12-06T12:05:25 | P157: Plut, David
A158: New Base | B158: 2016 | C158: 2016 | D158: Central Systems Engineering | E158: M09 | F158: 09905730 | G158: ET Operations Common All | H158: 923000 | I158: prof svcs | J158: Non-Labor | K158: CD | L158: AA | M158: 0 | N158: 0 | O158: 2015-09-09T10:33:37 | P158: Benjamin, Tia
A159: New Base | B159: 2016 | C159: 2016 | D159: Central Systems Engineering | E159: M09 | F159: 09905513 | G159: Central Systems Project | H159: 923000 | I159: prof svcs | J159: Non-Labor | K159: CD | L159: AA | M159: 0 | N159: 0 | O159: 2015-09-09T10:33:37 | P159: Benjamin, Tia
A160: New Base | B160: 2016 | C160: 2016 | D160: Central Systems Engineering | E160: M09 | F160: 09805448 | G160: WA ID GCN Specific | H160: 923000 | I160: prof svcs | J160: Non-Labor | K160: ED | L160: AN | M160: 0 | N160: 0 | O160: 2015-09-09T10:33:37 | P160: Benjamin, Tia
A161: New Base | B161: 2016 | C161: 2016 | D161: Central Systems Engineering | E161: M09 | F161: 09905733 | G161: ET Admin Common All | H161: 923000 | I161: prof svcs | J161: Non-Labor | K161: CD | L161: AA | M161: 0 | N161: 0 | O161: 2015-09-09T10:33:37 | P161: Benjamin, Tia
A162: New Base | B162: 2016 | C162: 2016 | D162: Central Systems Engineering | E162: M09 | F162: 09905730 | G162: ET Operations Common All | H162: 923000 | I162: prof svcs | J162: Non-Labor | K162: CD | L162: AA | M162: 0 | N162: 0 | O162: 2015-09-09T10:33:37 | P162: Benjamin, Tia
A163: New Base | B163: 2016 | C163: 2016 | D163: Central Systems Products & Services | E163: M29 | F163: 09905730 | G163: ET Operations Common All | H163: 923000 | I163: prof svcs | J163: Non-Labor | K163: CD | L163: AA | M163: 210672 | N163: 0 | O163: 2015-12-05T22:13:36 | P163: Plut, David
A164: New Base | B164: 2016 | C164: 2016 | D164: Office of CISO | E164: N09 | F164: 09905733 | G164: ET Admin Common All | H164: 923000 | I164: prof svcs | J164: Non-Labor | K164: CD | L164: AA | M164: 67957 | N164: 0 | O164: 2015-12-05T12:37:41 | P164: Plut, David
A165: New Base | B165: 2016 | C165: 2016 | D165: Office of CISO | E165: N09 | F165: 09905731 | G165: ET Delivery Common All | H165: 923000 | I165: prof svcs | J165: Non-Labor | K165: CD | L165: AA | M165: 0 | N165: 0 | O165: 2015-09-09T10:33:37 | P165: Benjamin, Tia
A166: New Base | B166: 2016 | C166: 2016 | D166: Office of CISO | E166: N09 | F166: 09905730 | G166: ET Operations Common All | H166: 923000 | I166: prof svcs | J166: Non-Labor | K166: CD | L166: AA | M166: 130000 | N166: 0 | O166: 2015-12-05T12:49:20 | P166: Plut, David
A167: New Base | B167: 2016 | C167: 2016 | D167: Office of CISO | E167: N09 | F167: 09905732 | G167: ET Arch Planning Common All | H167: 923000 | I167: prof svcs | J167: Non-Labor | K167: CD | L167: AA | M167: 182452 | N167: 0 | O167: 2015-12-05T12:51:17 | P167: Plut, David
A168: New Base | B168: 2016 | C168: 2016 | D168: Project Management (IT Delivery) | E168: P09 | F168: 09905731 | G168: ET Delivery Common All | H168: 923000 | I168: prof svcs | J168: Non-Labor | K168: CD | L168: AA | M168: 293124 | N168: 0 | O168: 2015-12-05T15:19:41 | P168: Plut, David
A169: New Base | B169: 2016 | C169: 2016 | D169: Project Management (IT Delivery) | E169: P09 | F169: 09905731 | G169: ET Delivery Common All | H169: 923000 | I169: prof svcs | J169: Non-Labor | K169: CD | L169: AA | M169: 20000 | N169: 0 | O169: 2015-12-05T15:31:29 | P169: Plut, David
A170: New Base | B170: 2016 | C170: 2016 | D170: Project Management (IT Delivery) | E170: P09 | F170: 09905625 | G170: Resource Management | H170: 923000 | I170: prof svcs | J170: Non-Labor | K170: CD | L170: AA | M170: 0 | N170: 0 | O170: 2015-09-09T10:33:37 | P170: Benjamin, Tia
A171: New Base | B171: 2016 | C171: 2016 | D171: Project Management (IT Delivery) | E171: P09 | F171: 09905624 | G171: Environmental Systems Project | H171: 923000 | I171: prof svcs | J171: Non-Labor | K171: CD | L171: AA | M171: 3574 | N171: 0 | O171: 2015-12-05T15:26:52 | P171: Plut, David
A172: New Base | B172: 2016 | C172: 2016 | D172: Project Management (IT Delivery) | E172: P09 | F172: 09905477 | G172: Enterprise Business Contin prg | H172: 923000 | I172: prof svcs | J172: Non-Labor | K172: CD | L172: AA | M172: 12553 | N172: 0 | O172: 2015-12-05T15:24:46 | P172: Plut, David
A173: New Base | B173: 2016 | C173: 2016 | D173: Project Management (IT Delivery) | E173: P09 | F173: 09905513 | G173: Central Systems Project | H173: 923000 | I173: prof svcs | J173: Non-Labor | K173: CD | L173: AA | M173: 0 | N173: 0 | O173: 2015-09-09T10:33:37 | P173: Benjamin, Tia
A174: New Base | B174: 2016 | C174: 2016 | D174: Project Management (IT Delivery) | E174: P09 | F174: 09905512 | G174: Facilities IT Project | H174: 923000 | I174: prof svcs | J174: Non-Labor | K174: CD | L174: AA | M174: 15869 | N174: 0 | O174: 2015-12-05T15:28:05 | P174: Plut, David
A175: New Base | B175: 2016 | C175: 2016 | D175: Project Management (IT Delivery) | E175: P09 | F175: 09905512 | G175: Facilities IT Project | H175: 923000 | I175: prof svcs | J175: Non-Labor | K175: CD | L175: AA | M175: 2321 | N175: 0 | O175: 2015-12-05T15:31:45 | P175: Plut, David
A176: New Base | B176: 2016 | C176: 2016 | D176: Project Management (IT Delivery) | E176: P09 | F176: 09905510 | G176: Security Systems Project | H176: 923000 | I176: prof svcs | J176: Non-Labor | K176: CD | L176: AA | M176: 16946 | N176: 0 | O176: 2015-12-05T15:29:32 | P176: Plut, David
A177: New Base | B177: 2016 | C177: 2016 | D177: Project Management (IT Delivery) | E177: P09 | F177: 09905508 | G177: Communication Systems Project | H177: 923000 | I177: prof svcs | J177: Non-Labor | K177: CD | L177: AA | M177: 51834 | N177: 0 | O177: 2015-12-05T15:22:18 | P177: Plut, David
A178: New Base | B178: 2016 | C178: 2016 | D178: Project Management (IT Delivery) | E178: P09 | F178: 09905813 | G178: Applications Program Expense | H178: 923000 | I178: prof svcs | J178: Non-Labor | K178: CD | L178: AA | M178: 0 | N178: 0 | O178: 2015-09-09T10:33:37 | P178: Benjamin, Tia
A179: New Base | B179: 2016 | C179: 2016 | D179: Project Management (IT Delivery) | E179: P09 | F179: 09905507 | G179: Distributed systems project | H179: 923000 | I179: prof svcs | J179: Non-Labor | K179: CD | L179: AA | M179: 29202 | N179: 0 | O179: 2015-12-05T15:23:26 | P179: Plut, David
A180: New Base | B180: 2016 | C180: 2016 | D180: Project Management (IT Delivery) | E180: P09 | F180: 09905813 | G180: Applications Program Expense | H180: 923000 | I180: prof svcs | J180: Non-Labor | K180: CD | L180: AA | M180: 135271 | N180: 0 | O180: 2015-12-05T15:20:51 | P180: Plut, David
A181: New Base | B181: 2016 | C181: 2016 | D181: Project Management (IT Delivery) | E181: P09 | F181: 09905789 | G181: License Management | H181: 923000 | I181: prof svcs | J181: Non-Labor | K181: CD | L181: AA | M181: 0 | N181: 0 | O181: 2015-09-09T10:33:37 | P181: Benjamin, Tia
A182: New Base | B182: 2016 | C182: 2016 | D182: Technology Service Center | E182: P59 | F182: 09905730 | G182: ET Operations Common All | H182: 923000 | I182: prof svcs | J182: Non-Labor | K182: CD | L182: AA | M182: 61121 | N182: 0 | O182: 2015-12-05T14:27:19 | P182: Plut, David
A183: New Base | B183: 2016 | C183: 2016 | D183: Quality Assurance & Release Management | E183: Q19 | F183: 09905730 | G183: ET Operations Common All | H183: 923000 | I183: prof svcs | J183: Non-Labor | K183: CD | L183: AA | M183: 332356 | N183: 0 | O183: 2015-12-05T23:01:53 | P183: Plut, David
A184: New Base | B184: 2016 | C184: 2016 | D184: Communication Systems Engineering | E184: R09 | F184: 09905512 | G184: Facilities IT Project | H184: 923000 | I184: prof svcs | J184: Non-Labor | K184: CD | L184: AA | M184: 0 | N184: 0 | O184: 2015-09-09T10:33:37 | P184: Benjamin, Tia
A185: New Base | B185: 2016 | C185: 2016 | D185: Communication Systems Engineering | E185: R09 | F185: 09905508 | G185: Communication Systems Project | H185: 923000 | I185: prof svcs | J185: Non-Labor | K185: CD | L185: AA | M185: 782 | N185: 0 | O185: 2015-12-05T21:49:33 | P185: Plut, David
A186: New Base | B186: 2016 | C186: 2016 | D186: Communication Systems Engineering | E186: R09 | F186: 09905731 | G186: ET Delivery Common All | H186: 923000 | I186: prof svcs | J186: Non-Labor | K186: CD | L186: AA | M186: 0 | N186: 0 | O186: 2015-09-09T10:33:37 | P186: Benjamin, Tia
A187: New Base | B187: 2016 | C187: 2016 | D187: Communication Systems Engineering | E187: R09 | F187: 09905731 | G187: ET Delivery Common All | H187: 923000 | I187: prof svcs | J187: Non-Labor | K187: CD | L187: AA | M187: 23884 | N187: 0 | O187: 2015-12-05T21:48:38 | P187: Plut, David
A188: New Base | B188: 2016 | C188: 2016 | D188: Communication Systems Engineering | E188: R09 | F188: 09905730 | G188: ET Operations Common All | H188: 923000 | I188: prof svcs | J188: Non-Labor | K188: CD | L188: AA | M188: 0 | N188: 0 | O188: 2015-09-09T10:33:37 | P188: Benjamin, Tia
A189: New Base | B189: 2016 | C189: 2016 | D189: Communication Systems Engineering | E189: R09 | F189: 09905730 | G189: ET Operations Common All | H189: 923000 | I189: prof svcs | J189: Non-Labor | K189: CD | L189: AA | M189: 3126 | N189: 0 | O189: 2015-12-05T21:47:38 | P189: Plut, David
A190: New Base | B190: 2016 | C190: 2016 | D190: Communication Systems Operations | E190: R19 | F190: 09905730 | G190: ET Operations Common All | H190: 923000 | I190: prof svcs | J190: Non-Labor | K190: CD | L190: AA | M190: 30000 | N190: 0 | O190: 2015-12-02T11:56:50 | P190: Busby, Michael
A191: New Base | B191: 2016 | C191: 2016 | D191: Communication Systems Operations | E191: R19 | F191: 09905730 | G191: ET Operations Common All | H191: 923000 | I191: prof svcs | J191: Non-Labor | K191: CD | L191: AA | M191: 262619 | N191: 0 | O191: 2015-12-05T19:23:06 | P191: Plut, David
A192: New Base | B192: 2016 | C192: 2016 | D192: Communication Systems Operations | E192: R19 | F192: 09905730 | G192: ET Operations Common All | H192: 923000 | I192: prof svcs | J192: Overtime | K192: CD | L192: AA | M192: 5255 | N192: 0 | O192: 2015-12-05T19:17:33 | P192: Plut, David
A193: New Base | B193: 2016 | C193: 2016 | D193: Communication Systems Products & Services | E193: R29 | F193: 09905730 | G193: ET Operations Common All | H193: 923000 | I193: prof svcs | J193: Non-Labor | K193: CD | L193: AA | M193: 34725 | N193: 0 | O193: 2015-12-05T22:18:54 | P193: Plut, David
A194: New Base | B194: 2016 | C194: 2016 | D194: IS Products & Services | E194: S09 | F194: 09905730 | G194: ET Operations Common All | H194: 923000 | I194: prof svcs | J194: Non-Labor | K194: CD | L194: AA | M194: 0 | N194: 0 | O194: 2015-09-09T10:33:37 | P194: Benjamin, Tia
A195: New Base | B195: 2016 | C195: 2016 | D195: IS Products & Services | E195: S09 | F195: 02806002 | G195: Smart Grid Ongoing O&M | H195: 923000 | I195: prof svcs | J195: Non-Labor | K195: ED | L195: WA | M195: 0 | N195: 0 | O195: 2015-09-09T10:33:37 | P195: Benjamin, Tia
A196: New Base | B196: 2016 | C196: 2016 | D196: IS Products & Services | E196: S09 | F196: 09905733 | G196: ET Admin Common All | H196: 923000 | I196: prof svcs | J196: Non-Labor | K196: CD | L196: AA | M196: 0 | N196: 0 | O196: 2015-09-09T10:33:37 | P196: Benjamin, Tia
A197: New Base | B197: 2016 | C197: 2016 | D197: IS Products & Services | E197: S09 | F197: 09905730 | G197: ET Operations Common All | H197: 923000 | I197: prof svcs | J197: Non-Labor | K197: CD | L197: AA | M197: 1050686 | N197: 0 | O197: 2015-12-05T22:37:28 | P197: Plut, David
A198: New Base | B198: 2016 | C198: 2016 | D198: Integrations Development | E198: S39 | F198: 09905813 | G198: Applications Program Expense | H198: 923000 | I198: prof svcs | J198: Non-Labor | K198: CD | L198: AA | M198: 59312 | N198: 0 | O198: 2015-12-06T13:09:16 | P198: Plut, David
A199: New Base | B199: 2016 | C199: 2016 | D199: CC&B Operations | E199: T19 | F199: 09905730 | G199: ET Operations Common All | H199: 923000 | I199: prof svcs | J199: Non-Labor | K199: CD | L199: AA | M199: 960980 | N199: 0 | O199: 2015-12-06T00:52:09 | P199: Plut, David
A200: New Base | B200: 2016 | C200: 2016 | D200: CC&B Operations | E200: T19 | F200: 09905730 | G200: ET Operations Common All | H200: 923000 | I200: prof svcs | J200: Non-Labor | K200: CD | L200: AA | M200: 25000 | N200: 0 | O200: 2015-12-06T00:54:11 | P200: Plut, David
A201: New Base | B201: 2016 | C201: 2016 | D201: EAM/Maximo Operations | E201: V19 | F201: 09905730 | G201: ET Operations Common All | H201: 923000 | I201: prof svcs | J201: Non-Labor | K201: CD | L201: AA | M201: 600093 | N201: 0 | O201: 2015-12-06T00:57:17 | P201: Plut, David
... 50 more rows

Sheet 2016 Pivot (hidden)
A3: Sum of BUDGET_AMOUNT | D3: Column Labels
A4: Row Labels | B4: SERVICE_CODE | C4: STATE_CODE | D4: A09 | E4: A19 | F4: A39 | G4: B09 | H4: C09 | I4: C19 | J4: C29 | K4: C59 | L4: E09 | M4: E19 | N4: E29 | O4: F19 | P4: F39 | Q4: G39 | R4: J09 | S4: J29 | T4: K19 | U4: K39 | V4: L39 | W4: M09 | X4: M19 | Y4: M29 | Z4: N09 | AA4: P09 | AB4: P59 | AC4: P99 | AD4: Q19 | AE4: R09 | AF4: R19 | AG4: R29 | AH4: S09 | AI4: S19 | AJ4: S39 | AK4: T19 | AL4: V19 | AM4: W09 | AN4: W39 | AO4: X19 | AP4: X39 | AQ4: Y39 | AR4: Grand Total
A5: 556000 | B5: ED | C5: AN | AH5: 113687 | AR5: 113687
B6: ED Total | AH6: 113687 | AR6: 113687
A7: 556000 Total | AH7: 113687 | AR7: 113687
A8: 560000 | B8: ED | C8: AN | AH8: 212683 | AR8: 212683
B9: ED Total | AH9: 212683 | AR9: 212683
A10: 560000 Total | AH10: 212683 | AR10: 212683
A11: 587000 | B11: ED | C11: AN | R11: 0 | AR11: 0
B12: ED Total | R12: 0 | AR12: 0
A13: 587000 Total | R13: 0 | AR13: 0
A14: 902000 | B14: CD | C14: ID | R14: 0 | S14: 50400 | AR14: 50400
B15: CD Total | R15: 0 | S15: 50400 | AR15: 50400
A16: 902000 Total | R16: 0 | S16: 50400 | AR16: 50400
A17: 903000 | B17: CD | C17: AA | X17: 521415 | AR17: 521415
B18: CD Total | X18: 521415 | AR18: 521415
A19: 903000 Total | X19: 521415 | AR19: 521415
A20: 920000 | B20: CD | C20: AA | E20: 394742 | F20: 8584 | G20: 655029 | H20: 313429 | I20: 438634 | K20: 93142 | L20: 47731 | M20: 483115 | O20: 166852 | P20: 6837 | Q20: 26351 | R20: 125381 | T20: 226207 | V20: 35036 | W20: 45837 | Z20: 777284 | AA20: 395132 | AB20: 185749 | AC20: 725104 | AD20: 188533 | AE20: 50227 | AH20: 0 | AI20: 233570 | AM20: 511329 | AN20: 294471 | AO20: 387548 | AP20: 42132 | AQ20: 6066 | AR20: 6864052
C21: AN | G21: 559148 | AR21: 559148
B22: CD Total | E22: 394742 | F22: 8584 | G22: 1214177 | H22: 313429 | I22: 438634 | K22: 93142 | L22: 47731 | M22: 483115 | O22: 166852 | P22: 6837 | Q22: 26351 | R22: 125381 | T22: 226207 | V22: 35036 | W22: 45837 | Z22: 777284 | AA22: 395132 | AB22: 185749 | AC22: 725104 | AD22: 188533 | AE22: 50227 | AH22: 0 | AI22: 233570 | AM22: 511329 | AN22: 294471 | AO22: 387548 | AP22: 42132 | AQ22: 6066 | AR22: 7423200
B23: ED | C23: AN | G23: 18711 | X23: 18535 | AR23: 37246
B24: ED Total | G24: 18711 | X24: 18535 | AR24: 37246
A25: 920000 Total | E25: 394742 | F25: 8584 | G25: 1232888 | H25: 313429 | I25: 438634 | K25: 93142 | L25: 47731 | M25: 483115 | O25: 166852 | P25: 6837 | Q25: 26351 | R25: 125381 | T25: 226207 | V25: 35036 | W25: 45837 | X25: 18535 | Z25: 777284 | AA25: 395132 | AB25: 185749 | AC25: 725104 | AD25: 188533 | AE25: 50227 | AH25: 0 | AI25: 233570 | AM25: 511329 | AN25: 294471 | AO25: 387548 | AP25: 42132 | AQ25: 6066 | AR25: 7460446
A26: 921000 | B26: CD | C26: AA | G26: 1200 | H26: 0 | J26: 9154 | K26: 14000 | L26: 0 | M26: 5500 | N26: 283985 | R26: 0 | S26: 1566248 | W26: 0 | X26: 1400 | Y26: 5408 | Z26: 15000 | AA26: 54180 | AE26: 0 | AG26: 1834744 | AH26: 5513 | AM26: 0 | AR26: 3796332
C27: AN | G27: 33250 | R27: 0 | S27: 41077 | AR27: 74327
B28: CD Total | G28: 34450 | H28: 0 | J28: 9154 | K28: 14000 | L28: 0 | M28: 5500 | N28: 283985 | R28: 0 | S28: 1607325 | W28: 0 | X28: 1400 | Y28: 5408 | Z28: 15000 | AA28: 54180 | AE28: 0 | AG28: 1834744 | AH28: 5513 | AM28: 0 | AR28: 3870659
B29: ED | C29: WA | R29: 0 | S29: 67560 | AR29: 67560
B30: ED Total | R30: 0 | S30: 67560 | AR30: 67560
A31: 921000 Total | G31: 34450 | H31: 0 | J31: 9154 | K31: 14000 | L31: 0 | M31: 5500 | N31: 283985 | R31: 0 | S31: 1674885 | W31: 0 | X31: 1400 | Y31: 5408 | Z31: 15000 | AA31: 54180 | AE31: 0 | AG31: 1834744 | AH31: 5513 | AM31: 0 | AR31: 3938219
A32: 923000 | B32: CD | C32: AA | D32: 1354211 | F32: 40463 | H32: 54897 | J32: 180000 | L32: 47252 | N32: 85230 | P32: 26539 | Q32: 101049 | R32: 104918 | S32: 81207 | U32: 15079 | V32: 17090 | W32: 0 | Y32: 210672 | Z32: 380409 | AA32: 580694 | AB32: 61121 | AD32: 332356 | AE32: 27792 | AF32: 297874 | AG32: 34725 | AH32: 1050686 | AJ32: 59312 | AK32: 985980 | AL32: 600093 | AM32: 0 | AN32: 62854 | AP32: 35909 | AQ32: 27925 | AR32: 6856337
B33: CD Total | D33: 1354211 | F33: 40463 | H33: 54897 | J33: 180000 | L33: 47252 | N33: 85230 | P33: 26539 | Q33: 101049 | R33: 104918 | S33: 81207 | U33: 15079 | V33: 17090 | W33: 0 | Y33: 210672 | Z33: 380409 | AA33: 580694 | AB33: 61121 | AD33: 332356 | AE33: 27792 | AF33: 297874 | AG33: 34725 | AH33: 1050686 | AJ33: 59312 | AK33: 985980 | AL33: 600093 | AM33: 0 | AN33: 62854 | AP33: 35909 | AQ33: 27925 | AR33: 6856337
B34: ED | C34: AN | W34: 0 | AR34: 0
C35: WA | AH35: 0 | AR35: 0
B36: ED Total | W36: 0 | AH36: 0 | AR36: 0
A37: 923000 Total | D37: 1354211 | F37: 40463 | H37: 54897 | J37: 180000 | L37: 47252 | N37: 85230 | P37: 26539 | Q37: 101049 | R37: 104918 | S37: 81207 | U37: 15079 | V37: 17090 | W37: 0 | Y37: 210672 | Z37: 380409 | AA37: 580694 | AB37: 61121 | AD37: 332356 | AE37: 27792 | AF37: 297874 | AG37: 34725 | AH37: 1050686 | AJ37: 59312 | AK37: 985980 | AL37: 600093 | AM37: 0 | AN37: 62854 | AP37: 35909 | AQ37: 27925 | AR37: 6856337
A38: 926100 | B38: CD | C38: AA | H38: 0 | L38: 0 | R38: 0 | W38: 0 | Z38: 105299 | AA38: 0 | AE38: 0 | AH38: 0 | AM38: 0 | AR38: 105299
B39: CD Total | H39: 0 | L39: 0 | R39: 0 | W39: 0 | Z39: 105299 | AA39: 0 | AE39: 0 | AH39: 0 | AM39: 0 | AR39: 105299
A40: 926100 Total | H40: 0 | L40: 0 | R40: 0 | W40: 0 | Z40: 105299 | AA40: 0 | AE40: 0 | AH40: 0 | AM40: 0 | AR40: 105299
A41: 928000 | B41: ED | C41: AN | R41: 0 | S41: 100800 | AR41: 100800
B42: ED Total | R42: 0 | S42: 100800 | AR42: 100800
A43: 928000 Total | R43: 0 | S43: 100800 | AR43: 100800
A44: 930200 | B44: CD | C44: AA | R44: 0 | S44: 15750 | AR44: 15750
B45: CD Total | R45: 0 | S45: 15750 | AR45: 15750
A46: 930200 Total | R46: 0 | S46: 15750 | AR46: 15750
A47: 931000 | B47: CD | C47: AN | D47: 190728 | R47: 0 | S47: 118108 | AR47: 308836
B48: CD Total | D48: 190728 | R48: 0 | S48: 118108 | AR48: 308836
A49: 931000 Total | D49: 190728 | R49: 0 | S49: 118108 | AR49: 308836
A50: 935000 | B50: CD | C50: AA | D50: 6790515 | H50: 0 | J50: 44806 | L50: 0 | N50: 83094 | R50: 0 | S50: 84470 | W50: 0 | Y50: 48017 | AE50: 0 | AG50: 23076 | AH50: 559928 | AM50: 0 | AR50: 7633906
C51: AN | D51: 83000 | R51: 0 | AR51: 83000
B52: CD Total | D52: 6873515 | H52: 0 | J52: 44806 | L52: 0 | N52: 83094 | R52: 0 | S52: 84470 | W52: 0 | Y52: 48017 | AE52: 0 | AG52: 23076 | AH52: 559928 | AM52: 0 | AR52: 7716906
B53: ED | C53: AN | D53: 7187 | R53: 0 | AR53: 7187
C54: WA | D54: 351886 | H54: 0 | R54: 0 | S54: 53156 | AR54: 405042
B55: ED Total | D55: 359073 | H55: 0 | R55: 0 | S55: 53156 | AR55: 412229
A56: 935000 Total | D56: 7232588 | H56: 0 | J56: 44806 | L56: 0 | N56: 83094 | R56: 0 | S56: 137626 | W56: 0 | Y56: 48017 | AE56: 0 | AG56: 23076 | AH56: 559928 | AM56: 0 | AR56: 8129135
A57: Grand Total | D57: 8777527 | E57: 394742 | F57: 49047 | G57: 1267338 | H57: 368326 | I57: 438634 | J57: 233960 | K57: 107142 | L57: 94983 | M57: 488615 | N57: 452309 | O57: 166852 | P57: 33376 | Q57: 127400 | R57: 230299 | S57: 2178776 | T57: 226207 | U57: 15079 | V57: 52126 | W57: 45837 | X57: 541350 | Y57: 264097 | Z57: 1277992 | AA57: 1030006 | AB57: 246870 | AC57: 725104 | AD57: 520889 | AE57: 78019 | AF57: 297874 | AG57: 1892545 | AH57: 1942497 | AI57: 233570 | AJ57: 59312 | AK57: 985980 | AL57: 600093 | AM57: 511329 | AN57: 357325 | AO57: 387548 | AP57: 78041 | AQ57: 33991 | AR57: 27813007

Sheet 2017 (hidden)
M4: =SUM(M6:M448) -> 32723264 | N4: =SUM(N6:N448) -> 0
A5: SCENARIO_NAME | B5: BUDGET_YEAR | C5: SUBYEAR | D5: ORG_NAME | E5: ORG_IDENTIFIER | F5: PROJECT_NUMBER | G5: PROJECT_NAME | H5: TASK_NUMBER | I5: TASK_NAME | J5: Expenditure_Category | K5: SERVICE_CODE | L5: STATE_CODE | M5: BUDGET_AMOUNT | N5: Reconcile | O5: LAST_UPDT_DTTM | P5: LAST_UPDT_USER_REALNAME
A6: New Base | B6: 2016 | C6: 2017 | D6: ET Shared Services | E6: A09 | F6: 09905813 | G6: Applications Program Expense | H6: 923000 | I6: prof svcs | J6: Non-Labor | K6: CD | L6: AA | M6: 1252602 | N6: 0 | O6: 2015-12-05T13:38:19 | P6: Plut, David
A7: New Base | B7: 2016 | C7: 2017 | D7: ET Shared Services | E7: A09 | F7: 09905510 | G7: Security Systems Project | H7: 923000 | I7: prof svcs | J7: Non-Labor | K7: CD | L7: AA | M7: 118942 | N7: 0 | O7: 2015-12-05T13:40:17 | P7: Plut, David
A8: New Base | B8: 2016 | C8: 2017 | D8: ET Shared Services | E8: A09 | F8: 09905508 | G8: Communication Systems Project | H8: 923000 | I8: prof svcs | J8: Non-Labor | K8: CD | L8: AA | M8: 84497 | N8: 0 | O8: 2015-12-05T13:46:41 | P8: Plut, David
A9: New Base | B9: 2016 | C9: 2017 | D9: ET Shared Services | E9: A09 | F9: 09905507 | G9: Distributed systems project | H9: 923000 | I9: prof svcs | J9: Non-Labor | K9: CD | L9: AA | M9: 15453 | N9: 0 | O9: 2015-12-05T13:45:07 | P9: Plut, David
A10: New Base | B10: 2016 | C10: 2017 | D10: ET Shared Services | E10: A09 | F10: 09800180 | G10: IT Operations - WaId Common | H10: 931000 | I10: misc general-rents | J10: Non-Labor | K10: CD | L10: AN | M10: 200264 | N10: 0 | O10: 2015-12-05T13:50:53 | P10: Plut, David
A11: New Base | B11: 2016 | C11: 2017 | D11: ET Shared Services | E11: A09 | F11: 09905508 | G11: Communication Systems Project | H11: 935000 | I11: maint structures and | J11: Non-Labor | K11: CD | L11: AA | M11: 764999 | N11: 0 | O11: 2015-12-05T13:47:28 | P11: Plut, David
A12: New Base | B12: 2016 | C12: 2017 | D12: ET Shared Services | E12: A09 | F12: 09905509 | G12: Network Systems Project | H12: 935000 | I12: maint structures and | J12: Non-Labor | K12: CD | L12: AA | M12: 580739 | N12: 0 | O12: 2015-12-05T13:52:03 | P12: Plut, David
A13: New Base | B13: 2016 | C13: 2017 | D13: ET Shared Services | E13: A09 | F13: 09905813 | G13: Applications Program Expense | H13: 935000 | I13: maint structures and | J13: Non-Labor | K13: CD | L13: AA | M13: 4451286 | N13: 0 | O13: 2015-12-05T13:37:22 | P13: Plut, David
A14: New Base | B14: 2016 | C14: 2017 | D14: ET Shared Services | E14: A09 | F14: 09905510 | G14: Security Systems Project | H14: 935000 | I14: maint structures and | J14: Non-Labor | K14: CD | L14: AA | M14: 343829 | N14: 0 | O14: 2015-12-05T13:39:55 | P14: Plut, David
A15: New Base | B15: 2016 | C15: 2017 | D15: ET Shared Services | E15: A09 | F15: 09905513 | G15: Central Systems Project | H15: 935000 | I15: maint structures and | J15: Non-Labor | K15: CD | L15: AA | M15: 479981 | N15: 0 | O15: 2015-12-05T13:48:14 | P15: Plut, David
A16: New Base | B16: 2016 | C16: 2017 | D16: ET Shared Services | E16: A09 | F16: 09805448 | G16: WA ID GCN Specific | H16: 935000 | I16: maint structures and | J16: Non-Labor | K16: ED | L16: AN | M16: 7517 | N16: 0 | O16: 2015-12-05T13:49:37 | P16: Plut, David
A17: New Base | B17: 2016 | C17: 2017 | D17: ET Shared Services | E17: A09 | F17: 09800222 | G17: Telecommunications Operations | H17: 935000 | I17: maint structures and | J17: Non-Labor | K17: CD | L17: AN | M17: 83000 | N17: 0 | O17: 2015-12-05T13:36:26 | P17: Plut, David
A18: New Base | B18: 2016 | C18: 2017 | D18: ET Shared Services | E18: A09 | F18: 02806002 | G18: Smart Grid Ongoing O&M | H18: 935000 | I18: maint structures and | J18: Non-Labor | K18: ED | L18: WA | M18: 145652 | N18: 0 | O18: 2015-12-05T13:39:07 | P18: Plut, David
A19: New Base | B19: 2016 | C19: 2017 | D19: ET Shared Services | E19: A09 | F19: 09905507 | G19: Distributed systems project | H19: 935000 | I19: maint structures and | J19: Non-Labor | K19: CD | L19: AA | M19: 309104 | N19: 0 | O19: 2015-12-05T13:45:54 | P19: Plut, David
A20: New Base | B20: 2016 | C20: 2017 | D20: ET Shared Services | E20: A09 | F20: 02806002 | G20: Smart Grid Ongoing O&M | H20: 935000 | I20: maint structures and | J20: Non-Labor | K20: ED | L20: WA | M20: 187377 | N20: 0 | O20: 2015-12-05T13:49:08 | P20: Plut, David
A21: New Base | B21: 2016 | C21: 2017 | D21: ET Shared Services | E21: A09 | F21: 02806002 | G21: Smart Grid Ongoing O&M | H21: 935000 | I21: maint structures and | J21: Non-Labor | K21: ED | L21: WA | M21: 34953 | N21: 0 | O21: 2015-12-05T13:41:04 | P21: Plut, David
A22: New Base | B22: 2016 | C22: 2017 | D22: Operating Technology Operations | E22: A19 | F22: 09905730 | G22: ET Operations Common All | H22: 920000 | I22: labor | J22: Labor | K22: CD | L22: AA | M22: 406584 | N22: 0 | O22: 2015-12-05T23:53:03 | P22: Plut, David
A23: New Base | B23: 2016 | C23: 2017 | D23: COTS Development | E23: A39 | F23: 09905813 | G23: Applications Program Expense | H23: 920000 | I23: labor | J23: Labor | K23: CD | L23: AA | M23: 88810 | N23: 0 | O23: 2015-12-06T11:52:51 | P23: Plut, David
A24: New Base | B24: 2016 | C24: 2017 | D24: COTS Development | E24: A39 | F24: 09905813 | G24: Applications Program Expense | H24: 923000 | I24: prof svcs | J24: Non-Labor | K24: CD | L24: AA | M24: 416764 | N24: 0 | O24: 2015-12-06T11:52:37 | P24: Plut, David
A25: New Base | B25: 2016 | C25: 2017 | D25: Network Systems Operations | E25: B09 | F25: 09800180 | G25: IT Operations - WaId Common | H25: 920000 | I25: labor | J25: Labor | K25: CD | L25: AN | M25: 543356 | N25: 0 | O25: 2015-12-05T18:35:53 | P25: Plut, David
A26: New Base | B26: 2016 | C26: 2017 | D26: Network Systems Operations | E26: B09 | F26: 09800180 | G26: IT Operations - WaId Common | H26: 920000 | I26: labor | J26: Overtime | K26: CD | L26: AN | M26: 34231 | N26: 0 | O26: 2015-12-05T18:35:44 | P26: Plut, David
A27: New Base | B27: 2016 | C27: 2017 | D27: Network Systems Operations | E27: B09 | F27: 09905730 | G27: ET Operations Common All | H27: 920000 | I27: labor | J27: Labor | K27: CD | L27: AA | M27: 247858 | N27: 0 | O27: 2015-12-05T18:36:11 | P27: Plut, David
A28: New Base | B28: 2016 | C28: 2017 | D28: Network Systems Operations | E28: B09 | F28: 09905733 | G28: ET Admin Common All | H28: 920000 | I28: labor | J28: Labor | K28: CD | L28: AA | M28: 50037 | N28: 0 | O28: 2015-12-05T18:36:01 | P28: Plut, David
A29: New Base | B29: 2016 | C29: 2017 | D29: Network Systems Operations | E29: B09 | F29: 09805448 | G29: WA ID GCN Specific | H29: 920000 | I29: labor | J29: Labor | K29: ED | L29: AN | M29: 20456 | N29: 0 | O29: 2015-12-05T18:35:36 | P29: Plut, David
A30: New Base | B30: 2016 | C30: 2017 | D30: Network Systems Operations | E30: B09 | F30: 09905730 | G30: ET Operations Common All | H30: 920000 | I30: labor | J30: Labor | K30: CD | L30: AA | M30: 439827 | N30: 0 | O30: 2015-12-05T18:35:26 | P30: Plut, David
A31: New Base | B31: 2016 | C31: 2017 | D31: Network Systems Operations | E31: B09 | F31: 09905730 | G31: ET Operations Common All | H31: 921000 | I31: supp & exp | J31: Non-Labor | K31: CD | L31: AA | M31: 1200 | N31: 0 | O31: 2015-12-05T18:35:06 | P31: Plut, David
A32: New Base | B32: 2016 | C32: 2017 | D32: Network Systems Operations | E32: B09 | F32: 09800180 | G32: IT Operations - WaId Common | H32: 921000 | I32: supp & exp | J32: Non-Labor | K32: CD | L32: AN | M32: 33250 | N32: 0 | O32: 2015-12-05T18:35:06 | P32: Plut, David
A33: New Base | B33: 2016 | C33: 2017 | D33: Security Engineering | E33: C09 | F33: 09905730 | G33: ET Operations Common All | H33: 920000 | I33: labor | J33: Labor | K33: CD | L33: AA | M33: 93104 | N33: 0 | O33: 2015-12-05T16:49:13 | P33: Plut, David
A34: New Base | B34: 2016 | C34: 2017 | D34: Security Engineering | E34: C09 | F34: 09905510 | G34: Security Systems Project | H34: 920000 | I34: labor | J34: Labor | K34: CD | L34: AA | M34: 36887 | N34: 0 | O34: 2015-12-05T16:49:33 | P34: Plut, David
A35: New Base | B35: 2016 | C35: 2017 | D35: Security Engineering | E35: C09 | F35: 09905732 | G35: ET Arch Planning Common All | H35: 920000 | I35: labor | J35: Labor | K35: CD | L35: AA | M35: 192840 | N35: 0 | O35: 2015-12-05T16:49:23 | P35: Plut, David
A36: New Base | B36: 2016 | C36: 2017 | D36: Security Engineering | E36: C09 | F36: 09905733 | G36: ET Admin Common All | H36: 920000 | I36: labor | J36: Labor | K36: CD | L36: AA | M36: 0 | N36: 0 | O36: 2015-12-05T16:47:20 | P36: Plut, David
A37: New Base | B37: 2016 | C37: 2017 | D37: Security Engineering | E37: C09 | F37: 09905510 | G37: Security Systems Project | H37: 921000 | I37: supp & exp | J37: Non-Labor | K37: CD | L37: AA | M37: 0 | N37: 0 | O37: 2015-12-05T16:47:20 | P37: Plut, David
A38: New Base | B38: 2016 | C38: 2017 | D38: Security Engineering | E38: C09 | F38: 09905495 | G38: EBC Annual Excercises | H38: 921000 | I38: supp & exp | J38: Non-Labor | K38: CD | L38: AA | M38: 0 | N38: 0 | O38: 2015-12-05T16:47:20 | P38: Plut, David
A39: New Base | B39: 2016 | C39: 2017 | D39: Security Engineering | E39: C09 | F39: 09905733 | G39: ET Admin Common All | H39: 921000 | I39: supp & exp | J39: Non-Labor | K39: CD | L39: AA | M39: 0 | N39: 0 | O39: 2015-12-05T16:47:20 | P39: Plut, David
A40: New Base | B40: 2016 | C40: 2017 | D40: Security Engineering | E40: C09 | F40: 09905730 | G40: ET Operations Common All | H40: 921000 | I40: supp & exp | J40: Non-Labor | K40: CD | L40: AA | M40: 0 | N40: 0 | O40: 2015-12-05T16:47:20 | P40: Plut, David
A41: New Base | B41: 2016 | C41: 2017 | D41: Security Engineering | E41: C09 | F41: 09905732 | G41: ET Arch Planning Common All | H41: 923000 | I41: prof svcs | J41: Non-Labor | K41: CD | L41: AA | M41: 0 | N41: 0 | O41: 2015-12-05T16:47:20 | P41: Plut, David
A42: New Base | B42: 2016 | C42: 2017 | D42: Security Engineering | E42: C09 | F42: 09905813 | G42: Applications Program Expense | H42: 923000 | I42: prof svcs | J42: Non-Labor | K42: CD | L42: AA | M42: 28272 | N42: 0 | O42: 2015-12-05T16:48:13 | P42: Plut, David
A43: New Base | B43: 2016 | C43: 2017 | D43: Security Engineering | E43: C09 | F43: 09905730 | G43: ET Operations Common All | H43: 923000 | I43: prof svcs | J43: Non-Labor | K43: CD | L43: AA | M43: 0 | N43: 0 | O43: 2015-12-05T16:47:20 | P43: Plut, David
A44: New Base | B44: 2016 | C44: 2017 | D44: Security Engineering | E44: C09 | F44: 09905730 | G44: ET Operations Common All | H44: 923000 | I44: prof svcs | J44: Non-Labor | K44: CD | L44: AA | M44: 0 | N44: 0 | O44: 2015-12-05T16:47:20 | P44: Plut, David
A45: New Base | B45: 2016 | C45: 2017 | D45: Security Engineering | E45: C09 | F45: 09905731 | G45: ET Delivery Common All | H45: 923000 | I45: prof svcs | J45: Non-Labor | K45: CD | L45: AA | M45: 0 | N45: 0 | O45: 2015-12-05T16:47:20 | P45: Plut, David
A46: New Base | B46: 2016 | C46: 2017 | D46: Security Engineering | E46: C09 | F46: 09905510 | G46: Security Systems Project | H46: 923000 | I46: prof svcs | J46: Non-Labor | K46: CD | L46: AA | M46: 29762 | N46: 0 | O46: 2015-12-05T16:48:59 | P46: Plut, David
A47: New Base | B47: 2016 | C47: 2017 | D47: Security Engineering | E47: C09 | F47: 09902811 | G47: A and G Common Training | H47: 926100 | I47: training | J47: Non-Labor | K47: CD | L47: AA | M47: 0 | N47: 0 | O47: 2015-12-05T16:47:20 | P47: Plut, David
A48: New Base | B48: 2016 | C48: 2017 | D48: Security Engineering | E48: C09 | F48: 09900182 | G48: Common IT Operations - Maint | H48: 935000 | I48: maint structures and | J48: Non-Labor | K48: CD | L48: AA | M48: 0 | N48: 0 | O48: 2015-12-05T16:47:20 | P48: Plut, David
A49: New Base | B49: 2016 | C49: 2017 | D49: Security Engineering | E49: C09 | F49: 02806002 | G49: Smart Grid Ongoing O&M | H49: 935000 | I49: maint structures and | J49: Non-Labor | K49: ED | L49: WA | M49: 0 | N49: 0 | O49: 2015-12-05T16:47:20 | P49: Plut, David
A50: New Base | B50: 2016 | C50: 2017 | D50: Security Operations | E50: C19 | F50: 09905730 | G50: ET Operations Common All | H50: 920000 | I50: labor | J50: Labor | K50: CD | L50: AA | M50: 442605 | N50: 0 | O50: 2015-12-05T17:14:36 | P50: Plut, David
A51: New Base | B51: 2016 | C51: 2017 | D51: Security Operations | E51: C19 | F51: 09905730 | G51: ET Operations Common All | H51: 920000 | I51: labor | J51: Overtime | K51: CD | L51: AA | M51: 9188 | N51: 0 | O51: 2015-12-05T17:14:44 | P51: Plut, David
A52: New Base | B52: 2016 | C52: 2017 | D52: Security Products & Services | E52: C29 | F52: 09905733 | G52: ET Admin Common All | H52: 921000 | I52: supp & exp | J52: Non-Labor | K52: CD | L52: AA | M52: 6250 | N52: 0 | O52: 2015-12-05T17:35:16 | P52: Plut, David
A53: New Base | B53: 2016 | C53: 2017 | D53: Security Products & Services | E53: C29 | F53: 09905730 | G53: ET Operations Common All | H53: 921000 | I53: supp & exp | J53: Non-Labor | K53: CD | L53: AA | M53: 3150 | N53: 0 | O53: 2015-12-05T17:32:40 | P53: Plut, David
A54: New Base | B54: 2016 | C54: 2017 | D54: Security Products & Services | E54: C29 | F54: 09905731 | G54: ET Delivery Common All | H54: 923000 | I54: prof svcs | J54: Non-Labor | K54: CD | L54: AA | M54: 120000 | N54: 0 | O54: 2015-12-05T17:32:40 | P54: Plut, David
A55: New Base | B55: 2016 | C55: 2017 | D55: Security Products & Services | E55: C29 | F55: 09905730 | G55: ET Operations Common All | H55: 923000 | I55: prof svcs | J55: Non-Labor | K55: CD | L55: AA | M55: 35000 | N55: 0 | O55: 2015-12-05T17:35:03 | P55: Plut, David
A56: New Base | B56: 2016 | C56: 2017 | D56: Security Products & Services | E56: C29 | F56: 09900182 | G56: Common IT Operations - Maint | H56: 935000 | I56: maint structures and | J56: Non-Labor | K56: CD | L56: AA | M56: 45331 | N56: 0 | O56: 2015-12-05T17:34:01 | P56: Plut, David
A57: New Base | B57: 2016 | C57: 2017 | D57: Enterprise Business Continuity (EBC) | E57: C59 | F57: 09905732 | G57: ET Arch Planning Common All | H57: 920000 | I57: labor | J57: Labor | K57: CD | L57: AA | M57: 95936 | N57: 0 | O57: 2015-12-05T17:23:23 | P57: Plut, David
A58: New Base | B58: 2016 | C58: 2017 | D58: Enterprise Business Continuity (EBC) | E58: C59 | F58: 09905495 | G58: EBC Annual Excercises | H58: 921000 | I58: supp & exp | J58: Non-Labor | K58: CD | L58: AA | M58: 14000 | N58: 0 | O58: 2015-12-05T17:22:59 | P58: Plut, David
A59: New Base | B59: 2016 | C59: 2017 | D59: Distributed Systems Engineering | E59: E09 | F59: 09905507 | G59: Distributed systems project | H59: 920000 | I59: labor | J59: Labor | K59: CD | L59: AA | M59: 7682 | N59: 0 | O59: 2015-12-05T21:31:58 | P59: Plut, David
A60: New Base | B60: 2016 | C60: 2017 | D60: Distributed Systems Engineering | E60: E09 | F60: 09905730 | G60: ET Operations Common All | H60: 920000 | I60: labor | J60: Labor | K60: CD | L60: AA | M60: 9410 | N60: 0 | O60: 2015-12-05T21:32:30 | P60: Plut, David
A61: New Base | B61: 2016 | C61: 2017 | D61: Distributed Systems Engineering | E61: E09 | F61: 09905732 | G61: ET Arch Planning Common All | H61: 920000 | I61: labor | J61: Labor | K61: CD | L61: AA | M61: 32071 | N61: 0 | O61: 2015-12-05T21:32:21 | P61: Plut, David
A62: New Base | B62: 2016 | C62: 2017 | D62: Distributed Systems Engineering | E62: E09 | F62: 09905733 | G62: ET Admin Common All | H62: 920000 | I62: labor | J62: Labor | K62: CD | L62: AA | M62: 0 | N62: 0 | O62: 2015-12-05T21:31:46 | P62: Plut, David
A63: New Base | B63: 2016 | C63: 2017 | D63: Distributed Systems Engineering | E63: E09 | F63: 09905733 | G63: ET Admin Common All | H63: 921000 | I63: supp & exp | J63: Non-Labor | K63: CD | L63: AA | M63: 0 | N63: 0 | O63: 2015-12-05T21:31:46 | P63: Plut, David
A64: New Base | B64: 2016 | C64: 2017 | D64: Distributed Systems Engineering | E64: E09 | F64: 09905510 | G64: Security Systems Project | H64: 921000 | I64: supp & exp | J64: Non-Labor | K64: CD | L64: AA | M64: 0 | N64: 0 | O64: 2015-12-05T21:31:46 | P64: Plut, David
A65: New Base | B65: 2016 | C65: 2017 | D65: Distributed Systems Engineering | E65: E09 | F65: 09905730 | G65: ET Operations Common All | H65: 921000 | I65: supp & exp | J65: Non-Labor | K65: CD | L65: AA | M65: 0 | N65: 0 | O65: 2015-12-05T21:31:46 | P65: Plut, David
A66: New Base | B66: 2016 | C66: 2017 | D66: Distributed Systems Engineering | E66: E09 | F66: 09905732 | G66: ET Arch Planning Common All | H66: 923000 | I66: prof svcs | J66: Non-Labor | K66: CD | L66: AA | M66: 18933 | N66: 0 | O66: 2015-12-05T21:34:01 | P66: Plut, David
A67: New Base | B67: 2016 | C67: 2017 | D67: Distributed Systems Engineering | E67: E09 | F67: 09905731 | G67: ET Delivery Common All | H67: 923000 | I67: prof svcs | J67: Non-Labor | K67: CD | L67: AA | M67: 21603 | N67: 0 | O67: 2015-12-05T21:33:18 | P67: Plut, David
A68: New Base | B68: 2016 | C68: 2017 | D68: Distributed Systems Engineering | E68: E09 | F68: 09905733 | G68: ET Admin Common All | H68: 923000 | I68: prof svcs | J68: Non-Labor | K68: CD | L68: AA | M68: 0 | N68: 0 | O68: 2015-12-05T21:31:46 | P68: Plut, David
A69: New Base | B69: 2016 | C69: 2017 | D69: Distributed Systems Engineering | E69: E09 | F69: 09905730 | G69: ET Operations Common All | H69: 923000 | I69: prof svcs | J69: Non-Labor | K69: CD | L69: AA | M69: 0 | N69: 0 | O69: 2015-12-05T21:31:46 | P69: Plut, David
A70: New Base | B70: 2016 | C70: 2017 | D70: Distributed Systems Engineering | E70: E09 | F70: 09905730 | G70: ET Operations Common All | H70: 923000 | I70: prof svcs | J70: Non-Labor | K70: CD | L70: AA | M70: 0 | N70: 0 | O70: 2015-12-05T21:31:46 | P70: Plut, David
A71: New Base | B71: 2016 | C71: 2017 | D71: Distributed Systems Engineering | E71: E09 | F71: 09905507 | G71: Distributed systems project | H71: 923000 | I71: prof svcs | J71: Non-Labor | K71: CD | L71: AA | M71: 21751 | N71: 0 | O71: 2015-12-05T21:34:45 | P71: Plut, David
A72: New Base | B72: 2016 | C72: 2017 | D72: Distributed Systems Engineering | E72: E09 | F72: 09902811 | G72: A and G Common Training | H72: 926100 | I72: training | J72: Non-Labor | K72: CD | L72: AA | M72: 0 | N72: 0 | O72: 2015-12-05T21:31:46 | P72: Plut, David
A73: New Base | B73: 2016 | C73: 2017 | D73: Distributed Systems Engineering | E73: E09 | F73: 09900182 | G73: Common IT Operations - Maint | H73: 935000 | I73: maint structures and | J73: Non-Labor | K73: CD | L73: AA | M73: 0 | N73: 0 | O73: 2015-12-05T21:31:46 | P73: Plut, David
A74: New Base | B74: 2016 | C74: 2017 | D74: Distributed Systems Operations | E74: E19 | F74: 09905730 | G74: ET Operations Common All | H74: 920000 | I74: labor | J74: Labor | K74: CD | L74: AA | M74: 456023 | N74: 0 | O74: 2015-12-05T18:58:48 | P74: Plut, David
A75: New Base | B75: 2016 | C75: 2017 | D75: Distributed Systems Operations | E75: E19 | F75: 09905730 | G75: ET Operations Common All | H75: 920000 | I75: labor | J75: Overtime | K75: CD | L75: AA | M75: 41585 | N75: 0 | O75: 2015-12-05T18:58:57 | P75: Plut, David
A76: New Base | B76: 2016 | C76: 2017 | D76: Distributed Systems Operations | E76: E19 | F76: 09905730 | G76: ET Operations Common All | H76: 921000 | I76: supp & exp | J76: Non-Labor | K76: CD | L76: AA | M76: 5500 | N76: 0 | O76: 2015-12-05T18:58:14 | P76: Plut, David
A77: New Base | B77: 2016 | C77: 2017 | D77: Distributed Systems Products & Services | E77: E29 | F77: 09905730 | G77: ET Operations Common All | H77: 921000 | I77: supp & exp | J77: Non-Labor | K77: CD | L77: AA | M77: 247500 | N77: 0 | O77: 2015-12-05T22:01:25 | P77: Plut, David
A78: New Base | B78: 2016 | C78: 2017 | D78: Distributed Systems Products & Services | E78: E29 | F78: 09905733 | G78: ET Admin Common All | H78: 921000 | I78: supp & exp | J78: Non-Labor | K78: CD | L78: AA | M78: 5985 | N78: 0 | O78: 2015-12-05T22:01:00 | P78: Plut, David
A79: New Base | B79: 2016 | C79: 2017 | D79: Distributed Systems Products & Services | E79: E29 | F79: 09905507 | G79: Distributed systems project | H79: 921000 | I79: supp & exp | J79: Non-Labor | K79: CD | L79: AA | M79: 58800 | N79: 0 | O79: 2015-12-05T22:02:14 | P79: Plut, David
A80: New Base | B80: 2016 | C80: 2017 | D80: Distributed Systems Products & Services | E80: E29 | F80: 09905730 | G80: ET Operations Common All | H80: 923000 | I80: prof svcs | J80: Non-Labor | K80: CD | L80: AA | M80: 89492 | N80: 0 | O80: 2015-12-05T22:05:55 | P80: Plut, David
A81: New Base | B81: 2016 | C81: 2017 | D81: Distributed Systems Products & Services | E81: E29 | F81: 09900182 | G81: Common IT Operations - Maint | H81: 935000 | I81: maint structures and | J81: Non-Labor | K81: CD | L81: AA | M81: 108127 | N81: 0 | O81: 2015-12-05T22:02:05 | P81: Plut, David
A82: New Base | B82: 2016 | C82: 2017 | D82: Back Office Technology Operations | E82: F19 | F82: 09905730 | G82: ET Operations Common All | H82: 920000 | I82: labor | J82: Labor | K82: CD | L82: AA | M82: 258152 | N82: 0 | O82: 2015-12-05T23:59:27 | P82: Plut, David
A83: New Base | B83: 2016 | C83: 2017 | D83: Oracle Financial Services Development | E83: F39 | F83: 09905813 | G83: Applications Program Expense | H83: 920000 | I83: labor | J83: Labor | K83: CD | L83: AA | M83: 7042 | N83: 0 | O83: 2015-12-06T11:38:07 | P83: Plut, David
A84: New Base | B84: 2016 | C84: 2017 | D84: Oracle Financial Services Development | E84: F39 | F84: 09905731 | G84: ET Delivery Common All | H84: 920000 | I84: labor | J84: Labor | K84: CD | L84: AA | M84: 8920 | N84: 0 | O84: 2015-12-06T11:39:38 | P84: Plut, David
A85: New Base | B85: 2016 | C85: 2017 | D85: Oracle Financial Services Development | E85: F39 | F85: 09905813 | G85: Applications Program Expense | H85: 923000 | I85: prof svcs | J85: Non-Labor | K85: CD | L85: AA | M85: 27336 | N85: 0 | O85: 2015-12-06T11:38:00 | P85: Plut, David
A86: New Base | B86: 2016 | C86: 2017 | D86: GIS Development | E86: G39 | F86: 09905813 | G86: Applications Program Expense | H86: 920000 | I86: labor | J86: Labor | K86: CD | L86: AA | M86: 27141 | N86: 0 | O86: 2015-12-06T01:47:27 | P86: Plut, David
A87: New Base | B87: 2016 | C87: 2017 | D87: GIS Development | E87: G39 | F87: 09905813 | G87: Applications Program Expense | H87: 923000 | I87: prof svcs | J87: Non-Labor | K87: CD | L87: AA | M87: 186915 | N87: 0 | O87: 2015-12-06T01:47:37 | P87: Plut, David
A88: New Base | B88: 2016 | C88: 2017 | D88: Network Systems Engineering | E88: J09 | F88: 09800712 | G88: TV and Radio Interference | H88: 587000 | I88: Cust Install Expense | J88: Non-Labor | K88: ED | L88: AN | M88: 0 | N88: 0 | O88: 2015-12-05T19:58:38 | P88: Plut, David
A89: New Base | B89: 2016 | C89: 2017 | D89: Network Systems Engineering | E89: J09 | F89: 03800711 | G89: Idaho Meter Reading | H89: 902000 | I89: Meter Reading | J89: Non-Labor | K89: CD | L89: ID | M89: 0 | N89: 0 | O89: 2015-12-05T19:58:38 | P89: Plut, David
A90: New Base | B90: 2016 | C90: 2017 | D90: Network Systems Engineering | E90: J09 | F90: 09905733 | G90: ET Admin Common All | H90: 920000 | I90: labor | J90: Labor | K90: CD | L90: AA | M90: 0 | N90: 0 | O90: 2015-12-05T19:58:38 | P90: Plut, David
A91: New Base | B91: 2016 | C91: 2017 | D91: Network Systems Engineering | E91: J09 | F91: 09905509 | G91: Network Systems Project | H91: 920000 | I91: labor | J91: Labor | K91: CD | L91: AA | M91: 0 | N91: 0 | O91: 2015-12-05T19:58:38 | P91: Plut, David
A92: New Base | B92: 2016 | C92: 2017 | D92: Network Systems Engineering | E92: J09 | F92: 09905732 | G92: ET Arch Planning Common All | H92: 920000 | I92: labor | J92: Labor | K92: CD | L92: AA | M92: 121729 | N92: 0 | O92: 2015-12-05T19:59:44 | P92: Plut, David
A93: New Base | B93: 2016 | C93: 2017 | D93: Network Systems Engineering | E93: J09 | F93: 09905731 | G93: ET Delivery Common All | H93: 920000 | I93: labor | J93: Labor | K93: CD | L93: AA | M93: 7414 | N93: 0 | O93: 2015-12-05T19:59:36 | P93: Plut, David
A94: New Base | B94: 2016 | C94: 2017 | D94: Network Systems Engineering | E94: J09 | F94: 09800180 | G94: IT Operations - WaId Common | H94: 921000 | I94: supp & exp | J94: Non-Labor | K94: CD | L94: AN | M94: 0 | N94: 0 | O94: 2015-12-05T19:58:38 | P94: Plut, David
A95: New Base | B95: 2016 | C95: 2017 | D95: Network Systems Engineering | E95: J09 | F95: 09905509 | G95: Network Systems Project | H95: 921000 | I95: supp & exp | J95: Non-Labor | K95: CD | L95: AA | M95: 0 | N95: 0 | O95: 2015-12-05T19:58:38 | P95: Plut, David
A96: New Base | B96: 2016 | C96: 2017 | D96: Network Systems Engineering | E96: J09 | F96: 02806002 | G96: Smart Grid Ongoing O&M | H96: 921000 | I96: supp & exp | J96: Non-Labor | K96: ED | L96: WA | M96: 0 | N96: 0 | O96: 2015-12-05T19:58:38 | P96: Plut, David
A97: New Base | B97: 2016 | C97: 2017 | D97: Network Systems Engineering | E97: J09 | F97: 09905733 | G97: ET Admin Common All | H97: 921000 | I97: supp & exp | J97: Non-Labor | K97: CD | L97: AA | M97: 0 | N97: 0 | O97: 2015-12-05T19:58:38 | P97: Plut, David
A98: New Base | B98: 2016 | C98: 2017 | D98: Network Systems Engineering | E98: J09 | F98: 09905107 | G98: Telecom Services | H98: 921000 | I98: supp & exp | J98: Non-Labor | K98: CD | L98: AA | M98: 0 | N98: 0 | O98: 2015-12-05T19:58:38 | P98: Plut, David
A99: New Base | B99: 2016 | C99: 2017 | D99: Network Systems Engineering | E99: J09 | F99: 09905731 | G99: ET Delivery Common All | H99: 923000 | I99: prof svcs | J99: Non-Labor | K99: CD | L99: AA | M99: 107910 | N99: 0 | O99: 2015-12-05T19:59:27 | P99: Plut, David
A100: New Base | B100: 2016 | C100: 2017 | D100: Network Systems Engineering | E100: J09 | F100: 09905730 | G100: ET Operations Common All | H100: 923000 | I100: prof svcs | J100: Non-Labor | K100: CD | L100: AA | M100: 0 | N100: 0 | O100: 2015-12-05T19:58:38 | P100: Plut, David
A101: New Base | B101: 2016 | C101: 2017 | D101: Network Systems Engineering | E101: J09 | F101: 09902811 | G101: A and G Common Training | H101: 926100 | I101: training | J101: Non-Labor | K101: CD | L101: AA | M101: 0 | N101: 0 | O101: 2015-12-05T19:58:38 | P101: Plut, David
A102: New Base | B102: 2016 | C102: 2017 | D102: Network Systems Engineering | E102: J09 | F102: 09805161 | G102: Whole Building Load Research | H102: 928000 | I102: regulatory activity | J102: Non-Labor | K102: ED | L102: AN | M102: 0 | N102: 0 | O102: 2015-12-05T19:58:38 | P102: Plut, David
A103: New Base | B103: 2016 | C103: 2017 | D103: Network Systems Engineering | E103: J09 | F103: 09900310 | G103: Com - Trade/Professional Assoc | H103: 930200 | I103: misc general expense | J103: Non-Labor | K103: CD | L103: AA | M103: 0 | N103: 0 | O103: 2015-12-05T19:58:38 | P103: Plut, David
A104: New Base | B104: 2016 | C104: 2017 | D104: Network Systems Engineering | E104: J09 | F104: 09800180 | G104: IT Operations - WaId Common | H104: 931000 | I104: misc general-rents | J104: Non-Labor | K104: CD | L104: AN | M104: 0 | N104: 0 | O104: 2015-12-05T19:58:38 | P104: Plut, David
A105: New Base | B105: 2016 | C105: 2017 | D105: Network Systems Engineering | E105: J09 | F105: 09900182 | G105: Common IT Operations - Maint | H105: 935000 | I105: maint structures and | J105: Non-Labor | K105: CD | L105: AA | M105: 0 | N105: 0 | O105: 2015-12-05T19:58:38 | P105: Plut, David
A106: New Base | B106: 2016 | C106: 2017 | D106: Network Systems Engineering | E106: J09 | F106: 09800222 | G106: Telecommunications Operations | H106: 935000 | I106: maint structures and | J106: Non-Labor | K106: CD | L106: AN | M106: 0 | N106: 0 | O106: 2015-12-05T19:58:38 | P106: Plut, David
A107: New Base | B107: 2016 | C107: 2017 | D107: Network Systems Engineering | E107: J09 | F107: 02806002 | G107: Smart Grid Ongoing O&M | H107: 935000 | I107: maint structures and | J107: Non-Labor | K107: ED | L107: WA | M107: 0 | N107: 0 | O107: 2015-12-05T19:58:38 | P107: Plut, David
A108: New Base | B108: 2016 | C108: 2017 | D108: Network Systems Engineering | E108: J09 | F108: 09805448 | G108: WA ID GCN Specific | H108: 935000 | I108: maint structures and | J108: Non-Labor | K108: ED | L108: AN | M108: 0 | N108: 0 | O108: 2015-12-05T19:58:38 | P108: Plut, David
A109: New Base | B109: 2016 | C109: 2017 | D109: Network Systems Products & Services | E109: J29 | F109: 09800712 | G109: TV and Radio Interference | H109: 587000 | I109: Cust Install Expense | J109: Non-Labor | K109: ED | L109: AN | M109: 40000 | N109: 0 | O109: 2015-12-05T20:53:33 | P109: Plut, David
A110: New Base | B110: 2016 | C110: 2017 | D110: Network Systems Products & Services | E110: J29 | F110: 03800711 | G110: Idaho Meter Reading | H110: 902000 | I110: Meter Reading | J110: Non-Labor | K110: CD | L110: ID | M110: 52920 | N110: 0 | O110: 2015-12-05T20:48:32 | P110: Plut, David
A111: New Base | B111: 2016 | C111: 2017 | D111: Network Systems Products & Services | E111: J29 | F111: 09800180 | G111: IT Operations - WaId Common | H111: 921000 | I111: supp & exp | J111: Non-Labor | K111: CD | L111: AN | M111: 43131 | N111: 0 | O111: 2015-12-05T20:51:11 | P111: Plut, David
A112: New Base | B112: 2016 | C112: 2017 | D112: Network Systems Products & Services | E112: J29 | F112: 09905509 | G112: Network Systems Project | H112: 921000 | I112: supp & exp | J112: Non-Labor | K112: CD | L112: AA | M112: 20948 | N112: 0 | O112: 2015-12-05T20:53:43 | P112: Plut, David
A113: New Base | B113: 2016 | C113: 2017 | D113: Network Systems Products & Services | E113: J29 | F113: 09905107 | G113: Telecom Services | H113: 921000 | I113: supp & exp | J113: Non-Labor | K113: CD | L113: AA | M113: 1708309 | N113: 0 | O113: 2015-12-05T20:50:30 | P113: Plut, David
A114: New Base | B114: 2016 | C114: 2017 | D114: Network Systems Products & Services | E114: J29 | F114: 02806002 | G114: Smart Grid Ongoing O&M | H114: 921000 | I114: supp & exp | J114: Non-Labor | K114: ED | L114: WA | M114: 70938 | N114: 0 | O114: 2015-12-05T20:47:36 | P114: Plut, David
A115: New Base | B115: 2016 | C115: 2017 | D115: Network Systems Products & Services | E115: J29 | F115: 09905733 | G115: ET Admin Common All | H115: 921000 | I115: supp & exp | J115: Non-Labor | K115: CD | L115: AA | M115: 1440 | N115: 0 | O115: 2015-12-05T20:53:51 | P115: Plut, David
A116: New Base | B116: 2016 | C116: 2017 | D116: Network Systems Products & Services | E116: J29 | F116: 09905730 | G116: ET Operations Common All | H116: 923000 | I116: prof svcs | J116: Non-Labor | K116: CD | L116: AA | M116: 85130 | N116: 0 | O116: 2015-12-05T20:49:28 | P116: Plut, David
A117: New Base | B117: 2016 | C117: 2017 | D117: Network Systems Products & Services | E117: J29 | F117: 09805161 | G117: Whole Building Load Research | H117: 928000 | I117: regulatory activity | J117: Non-Labor | K117: ED | L117: AN | M117: 105840 | N117: 0 | O117: 2015-12-05T20:48:46 | P117: Plut, David
A118: New Base | B118: 2016 | C118: 2017 | D118: Network Systems Products & Services | E118: J29 | F118: 09900310 | G118: Com - Trade/Professional Assoc | H118: 930200 | I118: misc general expense | J118: Non-Labor | K118: CD | L118: AA | M118: 16538 | N118: 0 | O118: 2015-12-05T20:54:36 | P118: Plut, David
A119: New Base | B119: 2016 | C119: 2017 | D119: Network Systems Products & Services | E119: J29 | F119: 09800180 | G119: IT Operations - WaId Common | H119: 931000 | I119: misc general-rents | J119: Non-Labor | K119: CD | L119: AN | M119: 124013 | N119: 0 | O119: 2015-12-05T20:52:04 | P119: Plut, David
A120: New Base | B120: 2016 | C120: 2017 | D120: Network Systems Products & Services | E120: J29 | F120: 02806002 | G120: Smart Grid Ongoing O&M | H120: 935000 | I120: maint structures and | J120: Non-Labor | K120: ED | L120: WA | M120: 55814 | N120: 0 | O120: 2015-12-05T20:48:22 | P120: Plut, David
A121: New Base | B121: 2016 | C121: 2017 | D121: Network Systems Products & Services | E121: J29 | F121: 09900182 | G121: Common IT Operations - Maint | H121: 935000 | I121: maint structures and | J121: Non-Labor | K121: CD | L121: AA | M121: 88694 | N121: 0 | O121: 2015-12-05T20:50:17 | P121: Plut, David
A122: New Base | B122: 2016 | C122: 2017 | D122: Customer Technology Operations | E122: K19 | F122: 09905730 | G122: ET Operations Common All | H122: 920000 | I122: labor | J122: Labor | K122: CD | L122: AA | M122: 453043 | N122: 0 | O122: 2015-12-06T00:19:59 | P122: Plut, David
A123: New Base | B123: 2016 | C123: 2017 | D123: General Custom Application Development | E123: K39 | F123: 09905813 | G123: Applications Program Expense | H123: 923000 | I123: prof svcs | J123: Non-Labor | K123: CD | L123: AA | M123: 68281 | N123: 0 | O123: 2015-12-06T11:28:45 | P123: Plut, David
A124: New Base | B124: 2016 | C124: 2017 | D124: Nucleus Development | E124: L39 | F124: 09905813 | G124: Applications Program Expense | H124: 920000 | I124: labor | J124: Labor | K124: CD | L124: AA | M124: 36087 | N124: 0 | O124: 2015-12-06T12:08:20 | P124: Plut, David
A125: New Base | B125: 2016 | C125: 2017 | D125: Nucleus Development | E125: L39 | F125: 09905813 | G125: Applications Program Expense | H125: 923000 | I125: prof svcs | J125: Non-Labor | K125: CD | L125: AA | M125: 17602 | N125: 0 | O125: 2015-12-06T12:08:10 | P125: Plut, David
A126: New Base | B126: 2016 | C126: 2017 | D126: Central Systems Engineering | E126: M09 | F126: 09905513 | G126: Central Systems Project | H126: 920000 | I126: labor | J126: Labor | K126: CD | L126: AA | M126: 0 | N126: 0 | O126: 2015-12-05T21:42:08 | P126: Plut, David
A127: New Base | B127: 2016 | C127: 2017 | D127: Central Systems Engineering | E127: M09 | F127: 09905730 | G127: ET Operations Common All | H127: 920000 | I127: labor | J127: Labor | K127: CD | L127: AA | M127: 10355 | N127: 0 | O127: 2015-12-05T21:43:38 | P127: Plut, David
A128: New Base | B128: 2016 | C128: 2017 | D128: Central Systems Engineering | E128: M09 | F128: 09905732 | G128: ET Arch Planning Common All | H128: 920000 | I128: labor | J128: Labor | K128: CD | L128: AA | M128: 41184 | N128: 0 | O128: 2015-12-05T21:42:33 | P128: Plut, David
A129: New Base | B129: 2016 | C129: 2017 | D129: Central Systems Engineering | E129: M09 | F129: 09905733 | G129: ET Admin Common All | H129: 920000 | I129: labor | J129: Labor | K129: CD | L129: AA | M129: 0 | N129: 0 | O129: 2015-12-05T21:42:08 | P129: Plut, David
A130: New Base | B130: 2016 | C130: 2017 | D130: Central Systems Engineering | E130: M09 | F130: 09905733 | G130: ET Admin Common All | H130: 921000 | I130: supp & exp | J130: Non-Labor | K130: CD | L130: AA | M130: 0 | N130: 0 | O130: 2015-12-05T21:42:08 | P130: Plut, David
A131: New Base | B131: 2016 | C131: 2017 | D131: Central Systems Engineering | E131: M09 | F131: 09905513 | G131: Central Systems Project | H131: 923000 | I131: prof svcs | J131: Non-Labor | K131: CD | L131: AA | M131: 0 | N131: 0 | O131: 2015-12-05T21:42:08 | P131: Plut, David
A132: New Base | B132: 2016 | C132: 2017 | D132: Central Systems Engineering | E132: M09 | F132: 09905733 | G132: ET Admin Common All | H132: 923000 | I132: prof svcs | J132: Non-Labor | K132: CD | L132: AA | M132: 0 | N132: 0 | O132: 2015-12-05T21:42:08 | P132: Plut, David
A133: New Base | B133: 2016 | C133: 2017 | D133: Central Systems Engineering | E133: M09 | F133: 09905730 | G133: ET Operations Common All | H133: 923000 | I133: prof svcs | J133: Non-Labor | K133: CD | L133: AA | M133: 0 | N133: 0 | O133: 2015-12-05T21:42:08 | P133: Plut, David
A134: New Base | B134: 2016 | C134: 2017 | D134: Central Systems Engineering | E134: M09 | F134: 09805448 | G134: WA ID GCN Specific | H134: 923000 | I134: prof svcs | J134: Non-Labor | K134: ED | L134: AN | M134: 0 | N134: 0 | O134: 2015-12-05T21:42:08 | P134: Plut, David
A135: New Base | B135: 2016 | C135: 2017 | D135: Central Systems Engineering | E135: M09 | F135: 09905730 | G135: ET Operations Common All | H135: 923000 | I135: prof svcs | J135: Non-Labor | K135: CD | L135: AA | M135: 0 | N135: 0 | O135: 2015-12-05T21:42:08 | P135: Plut, David
A136: New Base | B136: 2016 | C136: 2017 | D136: Central Systems Engineering | E136: M09 | F136: 09902811 | G136: A and G Common Training | H136: 926100 | I136: training | J136: Non-Labor | K136: CD | L136: AA | M136: 0 | N136: 0 | O136: 2015-12-05T21:42:08 | P136: Plut, David
A137: New Base | B137: 2016 | C137: 2017 | D137: Central Systems Engineering | E137: M09 | F137: 09900182 | G137: Common IT Operations - Maint | H137: 935000 | I137: maint structures and | J137: Non-Labor | K137: CD | L137: AA | M137: 0 | N137: 0 | O137: 2015-12-05T21:42:08 | P137: Plut, David
A138: New Base | B138: 2016 | C138: 2017 | D138: Central Systems Operations | E138: M19 | F138: 09905730 | G138: ET Operations Common All | H138: 903000 | I138: cust accounts expens | J138: Labor | K138: CD | L138: AA | M138: 536893 | N138: 0 | O138: 2015-12-05T19:11:18 | P138: Plut, David
A139: New Base | B139: 2016 | C139: 2017 | D139: Central Systems Operations | E139: M19 | F139: 09805448 | G139: WA ID GCN Specific | H139: 920000 | I139: labor | J139: Labor | K139: ED | L139: AN | M139: 19296 | N139: 0 | O139: 2015-12-05T19:11:27 | P139: Plut, David
A140: New Base | B140: 2016 | C140: 2017 | D140: Central Systems Operations | E140: M19 | F140: 09905730 | G140: ET Operations Common All | H140: 921000 | I140: supp & exp | J140: Non-Labor | K140: CD | L140: AA | M140: 1400 | N140: 0 | O140: 2015-12-05T19:11:01 | P140: Plut, David
A141: New Base | B141: 2016 | C141: 2017 | D141: Central Systems Products & Services | E141: M29 | F141: 09905733 | G141: ET Admin Common All | H141: 921000 | I141: supp & exp | J141: Non-Labor | K141: CD | L141: AA | M141: 5408 | N141: 0 | O141: 2015-12-05T22:15:28 | P141: Plut, David
A142: New Base | B142: 2016 | C142: 2017 | D142: Central Systems Products & Services | E142: M29 | F142: 09905730 | G142: ET Operations Common All | H142: 923000 | I142: prof svcs | J142: Non-Labor | K142: CD | L142: AA | M142: 210672 | N142: 0 | O142: 2015-12-05T22:15:28 | P142: Plut, David
A143: New Base | B143: 2016 | C143: 2017 | D143: Central Systems Products & Services | E143: M29 | F143: 09900182 | G143: Common IT Operations - Maint | H143: 935000 | I143: maint structures and | J143: Non-Labor | K143: CD | L143: AA | M143: 50052 | N143: 0 | O143: 2015-12-05T22:16:08 | P143: Plut, David
A144: New Base | B144: 2016 | C144: 2017 | D144: Office of CISO | E144: N09 | F144: 09905732 | G144: ET Arch Planning Common All | H144: 920000 | I144: labor | J144: Labor | K144: CD | L144: AA | M144: 0 | N144: 0 | O144: 2015-09-09T10:33:37 | P144: Benjamin, Tia
A145: New Base | B145: 2016 | C145: 2017 | D145: Office of CISO | E145: N09 | F145: 09905733 | G145: ET Admin Common All | H145: 920000 | I145: labor | J145: Labor | K145: CD | L145: AA | M145: 618040 | N145: 0 | O145: 2015-12-05T12:58:19 | P145: Plut, David
A146: New Base | B146: 2016 | C146: 2017 | D146: Office of CISO | E146: N09 | F146: 09905731 | G146: ET Delivery Common All | H146: 920000 | I146: labor | J146: Labor | K146: CD | L146: AA | M146: 182562 | N146: 0 | O146: 2015-12-05T12:58:02 | P146: Plut, David
A147: New Base | B147: 2016 | C147: 2017 | D147: Office of CISO | E147: N09 | F147: 09905733 | G147: ET Admin Common All | H147: 921000 | I147: supp & exp | J147: Non-Labor | K147: CD | L147: AA | M147: 15750 | N147: 0 | O147: 2015-12-05T13:08:24 | P147: Plut, David
A148: New Base | B148: 2016 | C148: 2017 | D148: Office of CISO | E148: N09 | F148: 09905733 | G148: ET Admin Common All | H148: 923000 | I148: prof svcs | J148: Non-Labor | K148: CD | L148: AA | M148: 69996 | N148: 0 | O148: 2015-12-05T12:58:39 | P148: Plut, David
A149: New Base | B149: 2016 | C149: 2017 | D149: Office of CISO | E149: N09 | F149: 09905731 | G149: ET Delivery Common All | H149: 923000 | I149: prof svcs | J149: Non-Labor | K149: CD | L149: AA | M149: 0 | N149: 0 | O149: 2015-09-09T10:33:37 | P149: Benjamin, Tia
A150: New Base | B150: 2016 | C150: 2017 | D150: Office of CISO | E150: N09 | F150: 09905730 | G150: ET Operations Common All | H150: 923000 | I150: prof svcs | J150: Non-Labor | K150: CD | L150: AA | M150: 0 | N150: 0 | O150: 2015-09-09T10:33:37 | P150: Benjamin, Tia
A151: New Base | B151: 2016 | C151: 2017 | D151: Office of CISO | E151: N09 | F151: 09905732 | G151: ET Arch Planning Common All | H151: 923000 | I151: prof svcs | J151: Non-Labor | K151: CD | L151: AA | M151: 191574 | N151: 0 | O151: 2015-12-05T13:08:02 | P151: Plut, David
A152: New Base | B152: 2016 | C152: 2017 | D152: Office of CISO | E152: N09 | F152: 09902811 | G152: A and G Common Training | H152: 926100 | I152: training | J152: Non-Labor | K152: CD | L152: AA | M152: 105299 | N152: 0 | O152: 2015-12-05T13:08:34 | P152: Plut, David
A153: New Base | B153: 2016 | C153: 2017 | D153: Project Management (IT Delivery) | E153: P09 | F153: 09905732 | G153: ET Arch Planning Common All | H153: 920000 | I153: labor | J153: Labor | K153: CD | L153: AA | M153: 86021 | N153: 0 | O153: 2015-12-05T15:42:16 | P153: Plut, David
A154: New Base | B154: 2016 | C154: 2017 | D154: Project Management (IT Delivery) | E154: P09 | F154: 09905731 | G154: ET Delivery Common All | H154: 920000 | I154: labor | J154: Labor | K154: CD | L154: AA | M154: 190765 | N154: 0 | O154: 2015-12-05T15:41:05 | P154: Plut, David
A155: New Base | B155: 2016 | C155: 2017 | D155: Project Management (IT Delivery) | E155: P09 | F155: 09905507 | G155: Distributed systems project | H155: 920000 | I155: labor | J155: Labor | K155: CD | L155: AA | M155: 5210 | N155: 0 | O155: 2015-12-05T15:42:51 | P155: Plut, David
A156: New Base | B156: 2016 | C156: 2017 | D156: Project Management (IT Delivery) | E156: P09 | F156: 09905513 | G156: Central Systems Project | H156: 920000 | I156: labor | J156: Labor | K156: CD | L156: AA | M156: 0 | N156: 0 | O156: 2015-12-05T15:33:32 | P156: Plut, David
A157: New Base | B157: 2016 | C157: 2017 | D157: Project Management (IT Delivery) | E157: P09 | F157: 09905813 | G157: Applications Program Expense | H157: 920000 | I157: labor | J157: Labor | K157: CD | L157: AA | M157: 52713 | N157: 0 | O157: 2015-12-05T15:42:31 | P157: Plut, David
A158: New Base | B158: 2016 | C158: 2017 | D158: Project Management (IT Delivery) | E158: P09 | F158: 09905733 | G158: ET Admin Common All | H158: 920000 | I158: labor | J158: Labor | K158: CD | L158: AA | M158: 15000 | N158: 0 | O158: 2015-12-05T15:33:32 | P158: Plut, David
A159: New Base | B159: 2016 | C159: 2017 | D159: Project Management (IT Delivery) | E159: P09 | F159: 09905789 | G159: License Management | H159: 920000 | I159: labor | J159: Labor | K159: CD | L159: AA | M159: 0 | N159: 0 | O159: 2015-12-05T15:33:32 | P159: Plut, David
A160: New Base | B160: 2016 | C160: 2017 | D160: Project Management (IT Delivery) | E160: P09 | F160: 09905625 | G160: Resource Management | H160: 920000 | I160: labor | J160: Labor | K160: CD | L160: AA | M160: 0 | N160: 0 | O160: 2015-12-05T15:33:32 | P160: Plut, David
A161: New Base | B161: 2016 | C161: 2017 | D161: Project Management (IT Delivery) | E161: P09 | F161: 09905508 | G161: Communication Systems Project | H161: 920000 | I161: labor | J161: Labor | K161: CD | L161: AA | M161: 6844 | N161: 0 | O161: 2015-12-05T15:42:41 | P161: Plut, David
A162: New Base | B162: 2016 | C162: 2017 | D162: Project Management (IT Delivery) | E162: P09 | F162: 09905624 | G162: Environmental Systems Project | H162: 920000 | I162: labor | J162: Labor | K162: CD | L162: AA | M162: 4871 | N162: 0 | O162: 2015-12-05T15:43:11 | P162: Plut, David
A163: New Base | B163: 2016 | C163: 2017 | D163: Project Management (IT Delivery) | E163: P09 | F163: 09905510 | G163: Security Systems Project | H163: 920000 | I163: labor | J163: Labor | K163: CD | L163: AA | M163: 23533 | N163: 0 | O163: 2015-12-05T15:43:28 | P163: Plut, David
A164: New Base | B164: 2016 | C164: 2017 | D164: Project Management (IT Delivery) | E164: P09 | F164: 09905512 | G164: Facilities IT Project | H164: 920000 | I164: labor | J164: Labor | K164: CD | L164: AA | M164: 4871 | N164: 0 | O164: 2015-12-05T15:43:03 | P164: Plut, David
A165: New Base | B165: 2016 | C165: 2017 | D165: Project Management (IT Delivery) | E165: P09 | F165: 09905509 | G165: Network Systems Project | H165: 920000 | I165: labor | J165: Labor | K165: CD | L165: AA | M165: 16709 | N165: 0 | O165: 2015-12-05T15:43:20 | P165: Plut, David
A166: New Base | B166: 2016 | C166: 2017 | D166: Project Management (IT Delivery) | E166: P09 | F166: 09905512 | G166: Facilities IT Project | H166: 921000 | I166: supp & exp | J166: Non-Labor | K166: CD | L166: AA | M166: 6300 | N166: 0 | O166: 2015-12-05T15:33:32 | P166: Plut, David
A167: New Base | B167: 2016 | C167: 2017 | D167: Project Management (IT Delivery) | E167: P09 | F167: 09905733 | G167: ET Admin Common All | H167: 921000 | I167: supp & exp | J167: Non-Labor | K167: CD | L167: AA | M167: 32130 | N167: 0 | O167: 2015-12-05T15:33:32 | P167: Plut, David
A168: New Base | B168: 2016 | C168: 2017 | D168: Project Management (IT Delivery) | E168: P09 | F168: 09905624 | G168: Environmental Systems Project | H168: 921000 | I168: supp & exp | J168: Non-Labor | K168: CD | L168: AA | M168: 15750 | N168: 0 | O168: 2015-12-05T15:33:32 | P168: Plut, David
A169: New Base | B169: 2016 | C169: 2017 | D169: Project Management (IT Delivery) | E169: P09 | F169: 09905731 | G169: ET Delivery Common All | H169: 923000 | I169: prof svcs | J169: Non-Labor | K169: CD | L169: AA | M169: 294800 | N169: 0 | O169: 2015-12-05T15:35:07 | P169: Plut, David
A170: New Base | B170: 2016 | C170: 2017 | D170: Project Management (IT Delivery) | E170: P09 | F170: 09905731 | G170: ET Delivery Common All | H170: 923000 | I170: prof svcs | J170: Non-Labor | K170: CD | L170: AA | M170: 50000 | N170: 0 | O170: 2015-12-05T15:34:02 | P170: Plut, David
A171: New Base | B171: 2016 | C171: 2017 | D171: Project Management (IT Delivery) | E171: P09 | F171: 09905625 | G171: Resource Management | H171: 923000 | I171: prof svcs | J171: Non-Labor | K171: CD | L171: AA | M171: 0 | N171: 0 | O171: 2015-12-05T15:33:32 | P171: Plut, David
A172: New Base | B172: 2016 | C172: 2017 | D172: Project Management (IT Delivery) | E172: P09 | F172: 09905624 | G172: Environmental Systems Project | H172: 923000 | I172: prof svcs | J172: Non-Labor | K172: CD | L172: AA | M172: 3704 | N172: 0 | O172: 2015-12-05T15:39:23 | P172: Plut, David
A173: New Base | B173: 2016 | C173: 2017 | D173: Project Management (IT Delivery) | E173: P09 | F173: 09905477 | G173: Enterprise Business Contin prg | H173: 923000 | I173: prof svcs | J173: Non-Labor | K173: CD | L173: AA | M173: 11879 | N173: 0 | O173: 2015-12-05T15:38:37 | P173: Plut, David
A174: New Base | B174: 2016 | C174: 2017 | D174: Project Management (IT Delivery) | E174: P09 | F174: 09905513 | G174: Central Systems Project | H174: 923000 | I174: prof svcs | J174: Non-Labor | K174: CD | L174: AA | M174: 0 | N174: 0 | O174: 2015-12-05T15:33:32 | P174: Plut, David
A175: New Base | B175: 2016 | C175: 2017 | D175: Project Management (IT Delivery) | E175: P09 | F175: 09905512 | G175: Facilities IT Project | H175: 923000 | I175: prof svcs | J175: Non-Labor | K175: CD | L175: AA | M175: 16450 | N175: 0 | O175: 2015-12-05T15:40:06 | P175: Plut, David
A176: New Base | B176: 2016 | C176: 2017 | D176: Project Management (IT Delivery) | E176: P09 | F176: 09905512 | G176: Facilities IT Project | H176: 923000 | I176: prof svcs | J176: Non-Labor | K176: CD | L176: AA | M176: 2321 | N176: 0 | O176: 2015-12-05T15:33:32 | P176: Plut, David
A177: New Base | B177: 2016 | C177: 2017 | D177: Project Management (IT Delivery) | E177: P09 | F177: 09905510 | G177: Security Systems Project | H177: 923000 | I177: prof svcs | J177: Non-Labor | K177: CD | L177: AA | M177: 17566 | N177: 0 | O177: 2015-12-05T15:40:48 | P177: Plut, David
A178: New Base | B178: 2016 | C178: 2017 | D178: Project Management (IT Delivery) | E178: P09 | F178: 09905508 | G178: Communication Systems Project | H178: 923000 | I178: prof svcs | J178: Non-Labor | K178: CD | L178: AA | M178: 53731 | N178: 0 | O178: 2015-12-05T15:37:02 | P178: Plut, David
A179: New Base | B179: 2016 | C179: 2017 | D179: Project Management (IT Delivery) | E179: P09 | F179: 09905813 | G179: Applications Program Expense | H179: 923000 | I179: prof svcs | J179: Non-Labor | K179: CD | L179: AA | M179: 0 | N179: 0 | O179: 2015-12-05T15:33:32 | P179: Plut, David
A180: New Base | B180: 2016 | C180: 2017 | D180: Project Management (IT Delivery) | E180: P09 | F180: 09905507 | G180: Distributed systems project | H180: 923000 | I180: prof svcs | J180: Non-Labor | K180: CD | L180: AA | M180: 30270 | N180: 0 | O180: 2015-12-05T15:37:47 | P180: Plut, David
A181: New Base | B181: 2016 | C181: 2017 | D181: Project Management (IT Delivery) | E181: P09 | F181: 09905813 | G181: Applications Program Expense | H181: 923000 | I181: prof svcs | J181: Non-Labor | K181: CD | L181: AA | M181: 130858 | N181: 0 | O181: 2015-12-05T15:36:03 | P181: Plut, David
A182: New Base | B182: 2016 | C182: 2017 | D182: Project Management (IT Delivery) | E182: P09 | F182: 09905789 | G182: License Management | H182: 923000 | I182: prof svcs | J182: Non-Labor | K182: CD | L182: AA | M182: 0 | N182: 0 | O182: 2015-12-05T15:33:32 | P182: Plut, David
A183: New Base | B183: 2016 | C183: 2017 | D183: Project Management (IT Delivery) | E183: P09 | F183: 09902811 | G183: A and G Common Training | H183: 926100 | I183: training | J183: Non-Labor | K183: CD | L183: AA | M183: 0 | N183: 0 | O183: 2015-12-05T15:33:32 | P183: Plut, David
A184: New Base | B184: 2016 | C184: 2017 | D184: Technology Service Center | E184: P59 | F184: 09905730 | G184: ET Operations Common All | H184: 920000 | I184: labor | J184: Labor | K184: CD | L184: AA | M184: 17227 | N184: 0 | O184: 2015-12-05T15:00:54 | P184: Plut, David
A185: New Base | B185: 2016 | C185: 2017 | D185: Technology Service Center | E185: P59 | F185: 09905730 | G185: ET Operations Common All | H185: 920000 | I185: labor | J185: Labor | K185: CD | L185: AA | M185: 174095 | N185: 0 | O185: 2015-12-05T15:00:47 | P185: Plut, David
A186: New Base | B186: 2016 | C186: 2017 | D186: Technology Service Center | E186: P59 | F186: 09905730 | G186: ET Operations Common All | H186: 923000 | I186: prof svcs | J186: Non-Labor | K186: CD | L186: AA | M186: 62955 | N186: 0 | O186: 2015-12-05T15:01:38 | P186: Plut, David
A187: New Base | B187: 2016 | C187: 2017 | D187: IT Director | E187: P99 | F187: 09905733 | G187: ET Admin Common All | H187: 920000 | I187: labor | J187: Labor | K187: CD | L187: AA | M187: 665205 | N187: 0 | O187: 2015-12-05T14:03:06 | P187: Plut, David
A188: New Base | B188: 2016 | C188: 2017 | D188: IT Director | E188: P99 | F188: 09905732 | G188: ET Arch Planning Common All | H188: 920000 | I188: labor | J188: Labor | K188: CD | L188: AA | M188: 81653 | N188: 0 | O188: 2015-12-05T14:09:07 | P188: Plut, David
A189: New Base | B189: 2016 | C189: 2017 | D189: Quality Assurance & Release Management | E189: Q19 | F189: 09905730 | G189: ET Operations Common All | H189: 920000 | I189: labor | J189: Labor | K189: CD | L189: AA | M189: 317725 | N189: 0 | O189: 2015-12-05T23:39:07 | P189: Plut, David
A190: New Base | B190: 2016 | C190: 2017 | D190: Quality Assurance & Release Management | E190: Q19 | F190: 09905730 | G190: ET Operations Common All | H190: 923000 | I190: prof svcs | J190: Non-Labor | K190: CD | L190: AA | M190: 580902 | N190: 0 | O190: 2015-12-05T23:46:21 | P190: Plut, David
A191: New Base | B191: 2016 | C191: 2017 | D191: Communication Systems Engineering | E191: R09 | F191: 09905731 | G191: ET Delivery Common All | H191: 920000 | I191: labor | J191: Labor | K191: CD | L191: AA | M191: 8320 | N191: 0 | O191: 2015-12-05T21:51:14 | P191: Plut, David
A192: New Base | B192: 2016 | C192: 2017 | D192: Communication Systems Engineering | E192: R09 | F192: 09905732 | G192: ET Arch Planning Common All | H192: 920000 | I192: labor | J192: Labor | K192: CD | L192: AA | M192: 37988 | N192: 0 | O192: 2015-12-05T21:51:22 | P192: Plut, David
A193: New Base | B193: 2016 | C193: 2017 | D193: Communication Systems Engineering | E193: R09 | F193: 09905508 | G193: Communication Systems Project | H193: 920000 | I193: labor | J193: Labor | K193: CD | L193: AA | M193: 0 | N193: 0 | O193: 2015-09-09T10:33:37 | P193: Benjamin, Tia
A194: New Base | B194: 2016 | C194: 2017 | D194: Communication Systems Engineering | E194: R09 | F194: 09905730 | G194: ET Operations Common All | H194: 920000 | I194: labor | J194: Labor | K194: CD | L194: AA | M194: 5427 | N194: 0 | O194: 2015-12-05T21:51:05 | P194: Plut, David
A195: New Base | B195: 2016 | C195: 2017 | D195: Communication Systems Engineering | E195: R09 | F195: 09905733 | G195: ET Admin Common All | H195: 921000 | I195: supp & exp | J195: Non-Labor | K195: CD | L195: AA | M195: 0 | N195: 0 | O195: 2015-09-09T10:33:37 | P195: Benjamin, Tia
A196: New Base | B196: 2016 | C196: 2017 | D196: Communication Systems Engineering | E196: R09 | F196: 09905730 | G196: ET Operations Common All | H196: 921000 | I196: supp & exp | J196: Non-Labor | K196: CD | L196: AA | M196: 0 | N196: 0 | O196: 2015-09-09T10:33:37 | P196: Benjamin, Tia
A197: New Base | B197: 2016 | C197: 2017 | D197: Communication Systems Engineering | E197: R09 | F197: 09905107 | G197: Telecom Services | H197: 921000 | I197: supp & exp | J197: Non-Labor | K197: CD | L197: AA | M197: 0 | N197: 0 | O197: 2015-09-09T10:33:37 | P197: Benjamin, Tia
A198: New Base | B198: 2016 | C198: 2017 | D198: Communication Systems Engineering | E198: R09 | F198: 09905508 | G198: Communication Systems Project | H198: 921000 | I198: supp & exp | J198: Non-Labor | K198: CD | L198: AA | M198: 0 | N198: 0 | O198: 2015-09-09T10:33:37 | P198: Benjamin, Tia
A199: New Base | B199: 2016 | C199: 2017 | D199: Communication Systems Engineering | E199: R09 | F199: 09905512 | G199: Facilities IT Project | H199: 923000 | I199: prof svcs | J199: Non-Labor | K199: CD | L199: AA | M199: 0 | N199: 0 | O199: 2015-09-09T10:33:37 | P199: Benjamin, Tia
A200: New Base | B200: 2016 | C200: 2017 | D200: Communication Systems Engineering | E200: R09 | F200: 09905508 | G200: Communication Systems Project | H200: 923000 | I200: prof svcs | J200: Non-Labor | K200: CD | L200: AA | M200: 8767 | N200: 0 | O200: 2015-12-05T21:51:59 | P200: Plut, David
A201: New Base | B201: 2016 | C201: 2017 | D201: Communication Systems Engineering | E201: R09 | F201: 09905731 | G201: ET Delivery Common All | H201: 923000 | I201: prof svcs | J201: Non-Labor | K201: CD | L201: AA | M201: 14969 | N201: 0 | O201: 2015-12-05T21:51:48 | P201: Plut, David
A202: New Base | B202: 2016 | C202: 2017 | D202: Communication Systems Engineering | E202: R09 | F202: 09905731 | G202: ET Delivery Common All | H202: 923000 | I202: prof svcs | J202: Non-Labor | K202: CD | L202: AA | M202: 0 | N202: 0 | O202: 2015-09-09T10:33:37 | P202: Benjamin, Tia
A203: New Base | B203: 2016 | C203: 2017 | D203: Communication Systems Engineering | E203: R09 | F203: 09905730 | G203: ET Operations Common All | H203: 923000 | I203: prof svcs | J203: Non-Labor | K203: CD | L203: AA | M203: 0 | N203: 0 | O203: 2015-09-09T10:33:37 | P203: Benjamin, Tia
... 55 more rows

Sheet 2018 (hidden)
M4: =SUM(M6:M448) -> 34382526 | N4: =SUM(N6:N448) -> 0
A5: SCENARIO_NAME | B5: BUDGET_YEAR | C5: SUBYEAR | D5: ORG_NAME | E5: ORG_IDENTIFIER | F5: PROJECT_NUMBER | G5: PROJECT_NAME | H5: TASK_NUMBER | I5: TASK_NAME | J5: Expenditure_Category | K5: SERVICE_CODE | L5: STATE_CODE | M5: BUDGET_AMOUNT | N5: Reconcile | O5: LAST_UPDT_DTTM | P5: LAST_UPDT_USER_REALNAME
A6: New Base | B6: 2016 | C6: 2018 | D6: ET Shared Services | E6: A09 | F6: 09905813 | G6: Applications Program Expense | H6: 923000 | I6: prof svcs | J6: Non-Labor | K6: CD | L6: AA | M6: 1315403 | N6: 0 | O6: 2015-12-05T13:53:02 | P6: Plut, David
A7: New Base | B7: 2016 | C7: 2018 | D7: ET Shared Services | E7: A09 | F7: 09905510 | G7: Security Systems Project | H7: 923000 | I7: prof svcs | J7: Non-Labor | K7: CD | L7: AA | M7: 121074 | N7: 0 | O7: 2015-12-05T13:53:47 | P7: Plut, David
A8: New Base | B8: 2016 | C8: 2018 | D8: ET Shared Services | E8: A09 | F8: 09905508 | G8: Communication Systems Project | H8: 923000 | I8: prof svcs | J8: Non-Labor | K8: CD | L8: AA | M8: 99307 | N8: 0 | O8: 2015-12-05T13:54:38 | P8: Plut, David
A9: New Base | B9: 2016 | C9: 2018 | D9: ET Shared Services | E9: A09 | F9: 09905507 | G9: Distributed systems project | H9: 923000 | I9: prof svcs | J9: Non-Labor | K9: CD | L9: AA | M9: 16226 | N9: 0 | O9: 2015-12-05T13:54:12 | P9: Plut, David
A10: New Base | B10: 2016 | C10: 2018 | D10: ET Shared Services | E10: A09 | F10: 09800180 | G10: IT Operations - WaId Common | H10: 931000 | I10: misc general-rents | J10: Non-Labor | K10: CD | L10: AN | M10: 210278 | N10: 0 | O10: 2015-12-05T13:55:42 | P10: Plut, David
A11: New Base | B11: 2016 | C11: 2018 | D11: ET Shared Services | E11: A09 | F11: 09905508 | G11: Communication Systems Project | H11: 935000 | I11: maint structures and | J11: Non-Labor | K11: CD | L11: AA | M11: 802293 | N11: 0 | O11: 2015-12-05T13:54:48 | P11: Plut, David
A12: New Base | B12: 2016 | C12: 2018 | D12: ET Shared Services | E12: A09 | F12: 09905509 | G12: Network Systems Project | H12: 935000 | I12: maint structures and | J12: Non-Labor | K12: CD | L12: AA | M12: 610600 | N12: 0 | O12: 2015-12-05T13:55:52 | P12: Plut, David
A13: New Base | B13: 2016 | C13: 2018 | D13: ET Shared Services | E13: A09 | F13: 09905813 | G13: Applications Program Expense | H13: 935000 | I13: maint structures and | J13: Non-Labor | K13: CD | L13: AA | M13: 4825673 | N13: 0 | O13: 2015-12-05T13:52:52 | P13: Plut, David
A14: New Base | B14: 2016 | C14: 2018 | D14: ET Shared Services | E14: A09 | F14: 09905510 | G14: Security Systems Project | H14: 935000 | I14: maint structures and | J14: Non-Labor | K14: CD | L14: AA | M14: 356705 | N14: 0 | O14: 2015-12-05T13:53:36 | P14: Plut, David
A15: New Base | B15: 2016 | C15: 2018 | D15: ET Shared Services | E15: A09 | F15: 09905513 | G15: Central Systems Project | H15: 935000 | I15: maint structures and | J15: Non-Labor | K15: CD | L15: AA | M15: 556550 | N15: 0 | O15: 2015-12-05T13:55:01 | P15: Plut, David
A16: New Base | B16: 2016 | C16: 2018 | D16: ET Shared Services | E16: A09 | F16: 09805448 | G16: WA ID GCN Specific | H16: 935000 | I16: maint structures and | J16: Non-Labor | K16: ED | L16: AN | M16: 7893 | N16: 0 | O16: 2015-12-05T13:55:25 | P16: Plut, David
A17: New Base | B17: 2016 | C17: 2018 | D17: ET Shared Services | E17: A09 | F17: 09800222 | G17: Telecommunications Operations | H17: 935000 | I17: maint structures and | J17: Non-Labor | K17: CD | L17: AN | M17: 83000 | N17: 0 | O17: 2015-12-05T13:52:37 | P17: Plut, David
A18: New Base | B18: 2016 | C18: 2018 | D18: ET Shared Services | E18: A09 | F18: 02806002 | G18: Smart Grid Ongoing O&M | H18: 935000 | I18: maint structures and | J18: Non-Labor | K18: ED | L18: WA | M18: 151506 | N18: 0 | O18: 2015-12-05T13:53:19 | P18: Plut, David
A19: New Base | B19: 2016 | C19: 2018 | D19: ET Shared Services | E19: A09 | F19: 09905507 | G19: Distributed systems project | H19: 935000 | I19: maint structures and | J19: Non-Labor | K19: CD | L19: AA | M19: 320289 | N19: 0 | O19: 2015-12-05T13:54:27 | P19: Plut, David
A20: New Base | B20: 2016 | C20: 2018 | D20: ET Shared Services | E20: A09 | F20: 02806002 | G20: Smart Grid Ongoing O&M | H20: 935000 | I20: maint structures and | J20: Non-Labor | K20: ED | L20: WA | M20: 195577 | N20: 0 | O20: 2015-12-05T13:55:16 | P20: Plut, David
A21: New Base | B21: 2016 | C21: 2018 | D21: ET Shared Services | E21: A09 | F21: 02806002 | G21: Smart Grid Ongoing O&M | H21: 935000 | I21: maint structures and | J21: Non-Labor | K21: ED | L21: WA | M21: 36701 | N21: 0 | O21: 2015-12-05T13:54:00 | P21: Plut, David
A22: New Base | B22: 2016 | C22: 2018 | D22: Operating Technology Operations | E22: A19 | F22: 09905730 | G22: ET Operations Common All | H22: 920000 | I22: labor | J22: Labor | K22: CD | L22: AA | M22: 418781 | N22: 0 | O22: 2015-12-05T23:53:36 | P22: Plut, David
A23: New Base | B23: 2016 | C23: 2018 | D23: COTS Development | E23: A39 | F23: 09905813 | G23: Applications Program Expense | H23: 920000 | I23: labor | J23: Labor | K23: CD | L23: AA | M23: 91474 | N23: 0 | O23: 2015-12-06T11:53:55 | P23: Plut, David
A24: New Base | B24: 2016 | C24: 2018 | D24: COTS Development | E24: A39 | F24: 09905813 | G24: Applications Program Expense | H24: 923000 | I24: prof svcs | J24: Non-Labor | K24: CD | L24: AA | M24: 429267 | N24: 0 | O24: 2015-12-06T11:54:02 | P24: Plut, David
A25: New Base | B25: 2016 | C25: 2018 | D25: Network Systems Operations | E25: B09 | F25: 09800180 | G25: IT Operations - WaId Common | H25: 920000 | I25: labor | J25: Labor | K25: CD | L25: AN | M25: 561392 | N25: 0 | O25: 2015-12-05T18:41:33 | P25: Plut, David
A26: New Base | B26: 2016 | C26: 2018 | D26: Network Systems Operations | E26: B09 | F26: 09800180 | G26: IT Operations - WaId Common | H26: 920000 | I26: labor | J26: Overtime | K26: CD | L26: AN | M26: 35258 | N26: 0 | O26: 2015-12-05T18:41:22 | P26: Plut, David
A27: New Base | B27: 2016 | C27: 2018 | D27: Network Systems Operations | E27: B09 | F27: 09905730 | G27: ET Operations Common All | H27: 920000 | I27: labor | J27: Labor | K27: CD | L27: AA | M27: 265493 | N27: 0 | O27: 2015-12-05T18:41:58 | P27: Plut, David
A28: New Base | B28: 2016 | C28: 2018 | D28: Network Systems Operations | E28: B09 | F28: 09905733 | G28: ET Admin Common All | H28: 920000 | I28: labor | J28: Labor | K28: CD | L28: AA | M28: 51538 | N28: 0 | O28: 2015-12-05T18:41:43 | P28: Plut, David
A29: New Base | B29: 2016 | C29: 2018 | D29: Network Systems Operations | E29: B09 | F29: 09805448 | G29: WA ID GCN Specific | H29: 920000 | I29: labor | J29: Labor | K29: ED | L29: AN | M29: 20883 | N29: 0 | O29: 2015-12-05T18:41:07 | P29: Plut, David
A30: New Base | B30: 2016 | C30: 2018 | D30: Network Systems Operations | E30: B09 | F30: 09905730 | G30: ET Operations Common All | H30: 920000 | I30: labor | J30: Labor | K30: CD | L30: AA | M30: 453171 | N30: 0 | O30: 2015-12-05T18:40:57 | P30: Plut, David
A31: New Base | B31: 2016 | C31: 2018 | D31: Network Systems Operations | E31: B09 | F31: 09905730 | G31: ET Operations Common All | H31: 921000 | I31: supp & exp | J31: Non-Labor | K31: CD | L31: AA | M31: 1200 | N31: 0 | O31: 2015-12-05T18:40:39 | P31: Plut, David
A32: New Base | B32: 2016 | C32: 2018 | D32: Network Systems Operations | E32: B09 | F32: 09800180 | G32: IT Operations - WaId Common | H32: 921000 | I32: supp & exp | J32: Non-Labor | K32: CD | L32: AN | M32: 33250 | N32: 0 | O32: 2015-12-05T18:40:39 | P32: Plut, David
A33: New Base | B33: 2016 | C33: 2018 | D33: Security Engineering | E33: C09 | F33: 09905730 | G33: ET Operations Common All | H33: 920000 | I33: labor | J33: Labor | K33: CD | L33: AA | M33: 95898 | N33: 0 | O33: 2015-12-05T16:51:24 | P33: Plut, David
A34: New Base | B34: 2016 | C34: 2018 | D34: Security Engineering | E34: C09 | F34: 09905510 | G34: Security Systems Project | H34: 920000 | I34: labor | J34: Labor | K34: CD | L34: AA | M34: 37994 | N34: 0 | O34: 2015-12-05T16:51:45 | P34: Plut, David
A35: New Base | B35: 2016 | C35: 2018 | D35: Security Engineering | E35: C09 | F35: 09905732 | G35: ET Arch Planning Common All | H35: 920000 | I35: labor | J35: Labor | K35: CD | L35: AA | M35: 198625 | N35: 0 | O35: 2015-12-05T16:51:35 | P35: Plut, David
A36: New Base | B36: 2016 | C36: 2018 | D36: Security Engineering | E36: C09 | F36: 09905733 | G36: ET Admin Common All | H36: 920000 | I36: labor | J36: Labor | K36: CD | L36: AA | M36: 0 | N36: 0 | O36: 2015-12-05T16:51:08 | P36: Plut, David
A37: New Base | B37: 2016 | C37: 2018 | D37: Security Engineering | E37: C09 | F37: 09905510 | G37: Security Systems Project | H37: 921000 | I37: supp & exp | J37: Non-Labor | K37: CD | L37: AA | M37: 0 | N37: 0 | O37: 2015-12-05T16:51:08 | P37: Plut, David
A38: New Base | B38: 2016 | C38: 2018 | D38: Security Engineering | E38: C09 | F38: 09905495 | G38: EBC Annual Excercises | H38: 921000 | I38: supp & exp | J38: Non-Labor | K38: CD | L38: AA | M38: 0 | N38: 0 | O38: 2015-12-05T16:51:08 | P38: Plut, David
A39: New Base | B39: 2016 | C39: 2018 | D39: Security Engineering | E39: C09 | F39: 09905733 | G39: ET Admin Common All | H39: 921000 | I39: supp & exp | J39: Non-Labor | K39: CD | L39: AA | M39: 0 | N39: 0 | O39: 2015-12-05T16:51:08 | P39: Plut, David
A40: New Base | B40: 2016 | C40: 2018 | D40: Security Engineering | E40: C09 | F40: 09905730 | G40: ET Operations Common All | H40: 921000 | I40: supp & exp | J40: Non-Labor | K40: CD | L40: AA | M40: 0 | N40: 0 | O40: 2015-12-05T16:51:08 | P40: Plut, David
A41: New Base | B41: 2016 | C41: 2018 | D41: Security Engineering | E41: C09 | F41: 09905732 | G41: ET Arch Planning Common All | H41: 923000 | I41: prof svcs | J41: Non-Labor | K41: CD | L41: AA | M41: 0 | N41: 0 | O41: 2015-12-05T16:51:08 | P41: Plut, David
A42: New Base | B42: 2016 | C42: 2018 | D42: Security Engineering | E42: C09 | F42: 09905813 | G42: Applications Program Expense | H42: 923000 | I42: prof svcs | J42: Non-Labor | K42: CD | L42: AA | M42: 29120 | N42: 0 | O42: 2015-12-05T16:52:08 | P42: Plut, David
A43: New Base | B43: 2016 | C43: 2018 | D43: Security Engineering | E43: C09 | F43: 09905730 | G43: ET Operations Common All | H43: 923000 | I43: prof svcs | J43: Non-Labor | K43: CD | L43: AA | M43: 0 | N43: 0 | O43: 2015-12-05T16:51:08 | P43: Plut, David
A44: New Base | B44: 2016 | C44: 2018 | D44: Security Engineering | E44: C09 | F44: 09905730 | G44: ET Operations Common All | H44: 923000 | I44: prof svcs | J44: Non-Labor | K44: CD | L44: AA | M44: 0 | N44: 0 | O44: 2015-12-05T16:51:08 | P44: Plut, David
A45: New Base | B45: 2016 | C45: 2018 | D45: Security Engineering | E45: C09 | F45: 09905731 | G45: ET Delivery Common All | H45: 923000 | I45: prof svcs | J45: Non-Labor | K45: CD | L45: AA | M45: 0 | N45: 0 | O45: 2015-12-05T16:51:08 | P45: Plut, David
A46: New Base | B46: 2016 | C46: 2018 | D46: Security Engineering | E46: C09 | F46: 09905510 | G46: Security Systems Project | H46: 923000 | I46: prof svcs | J46: Non-Labor | K46: CD | L46: AA | M46: 30655 | N46: 0 | O46: 2015-12-05T16:52:00 | P46: Plut, David
A47: New Base | B47: 2016 | C47: 2018 | D47: Security Engineering | E47: C09 | F47: 09902811 | G47: A and G Common Training | H47: 926100 | I47: training | J47: Non-Labor | K47: CD | L47: AA | M47: 0 | N47: 0 | O47: 2015-12-05T16:51:08 | P47: Plut, David
A48: New Base | B48: 2016 | C48: 2018 | D48: Security Engineering | E48: C09 | F48: 09900182 | G48: Common IT Operations - Maint | H48: 935000 | I48: maint structures and | J48: Non-Labor | K48: CD | L48: AA | M48: 0 | N48: 0 | O48: 2015-12-05T16:51:08 | P48: Plut, David
A49: New Base | B49: 2016 | C49: 2018 | D49: Security Engineering | E49: C09 | F49: 02806002 | G49: Smart Grid Ongoing O&M | H49: 935000 | I49: maint structures and | J49: Non-Labor | K49: ED | L49: WA | M49: 0 | N49: 0 | O49: 2015-12-05T16:51:08 | P49: Plut, David
A50: New Base | B50: 2016 | C50: 2018 | D50: Security Operations | E50: C19 | F50: 09905730 | G50: ET Operations Common All | H50: 920000 | I50: labor | J50: Labor | K50: CD | L50: AA | M50: 455883 | N50: 0 | O50: 2015-12-05T17:16:04 | P50: Plut, David
A51: New Base | B51: 2016 | C51: 2018 | D51: Security Operations | E51: C19 | F51: 09905730 | G51: ET Operations Common All | H51: 920000 | I51: labor | J51: Overtime | K51: CD | L51: AA | M51: 9463 | N51: 0 | O51: 2015-12-05T17:16:13 | P51: Plut, David
A52: New Base | B52: 2016 | C52: 2018 | D52: Security Products & Services | E52: C29 | F52: 09905733 | G52: ET Admin Common All | H52: 921000 | I52: supp & exp | J52: Non-Labor | K52: CD | L52: AA | M52: 6254 | N52: 0 | O52: 2015-12-05T17:36:40 | P52: Plut, David
A53: New Base | B53: 2016 | C53: 2018 | D53: Security Products & Services | E53: C29 | F53: 09905730 | G53: ET Operations Common All | H53: 921000 | I53: supp & exp | J53: Non-Labor | K53: CD | L53: AA | M53: 3308 | N53: 0 | O53: 2015-12-05T17:36:30 | P53: Plut, David
A54: New Base | B54: 2016 | C54: 2018 | D54: Security Products & Services | E54: C29 | F54: 09905731 | G54: ET Delivery Common All | H54: 923000 | I54: prof svcs | J54: Non-Labor | K54: CD | L54: AA | M54: 120000 | N54: 0 | O54: 2015-12-05T17:35:26 | P54: Plut, David
A55: New Base | B55: 2016 | C55: 2018 | D55: Security Products & Services | E55: C29 | F55: 09905730 | G55: ET Operations Common All | H55: 923000 | I55: prof svcs | J55: Non-Labor | K55: CD | L55: AA | M55: 35500 | N55: 0 | O55: 2015-12-05T17:35:45 | P55: Plut, David
A56: New Base | B56: 2016 | C56: 2018 | D56: Security Products & Services | E56: C29 | F56: 09900182 | G56: Common IT Operations - Maint | H56: 935000 | I56: maint structures and | J56: Non-Labor | K56: CD | L56: AA | M56: 47072 | N56: 0 | O56: 2015-12-05T17:35:37 | P56: Plut, David
A57: New Base | B57: 2016 | C57: 2018 | D57: Enterprise Business Continuity (EBC) | E57: C59 | F57: 09905732 | G57: ET Arch Planning Common All | H57: 920000 | I57: labor | J57: Labor | K57: CD | L57: AA | M57: 98814 | N57: 0 | O57: 2015-12-05T17:23:50 | P57: Plut, David
A58: New Base | B58: 2016 | C58: 2018 | D58: Enterprise Business Continuity (EBC) | E58: C59 | F58: 09905495 | G58: EBC Annual Excercises | H58: 921000 | I58: supp & exp | J58: Non-Labor | K58: CD | L58: AA | M58: 14000 | N58: 0 | O58: 2015-12-05T17:23:41 | P58: Plut, David
A59: New Base | B59: 2016 | C59: 2018 | D59: Distributed Systems Engineering | E59: E09 | F59: 09905507 | G59: Distributed systems project | H59: 920000 | I59: labor | J59: Labor | K59: CD | L59: AA | M59: 7912 | N59: 0 | O59: 2015-12-05T21:39:23 | P59: Plut, David
A60: New Base | B60: 2016 | C60: 2018 | D60: Distributed Systems Engineering | E60: E09 | F60: 09905730 | G60: ET Operations Common All | H60: 920000 | I60: labor | J60: Labor | K60: CD | L60: AA | M60: 9692 | N60: 0 | O60: 2015-12-05T21:39:07 | P60: Plut, David
A61: New Base | B61: 2016 | C61: 2018 | D61: Distributed Systems Engineering | E61: E09 | F61: 09905732 | G61: ET Arch Planning Common All | H61: 920000 | I61: labor | J61: Labor | K61: CD | L61: AA | M61: 33033 | N61: 0 | O61: 2015-12-05T21:39:15 | P61: Plut, David
A62: New Base | B62: 2016 | C62: 2018 | D62: Distributed Systems Engineering | E62: E09 | F62: 09905733 | G62: ET Admin Common All | H62: 920000 | I62: labor | J62: Labor | K62: CD | L62: AA | M62: 0 | N62: 0 | O62: 2015-12-05T21:38:11 | P62: Plut, David
A63: New Base | B63: 2016 | C63: 2018 | D63: Distributed Systems Engineering | E63: E09 | F63: 09905733 | G63: ET Admin Common All | H63: 921000 | I63: supp & exp | J63: Non-Labor | K63: CD | L63: AA | M63: 0 | N63: 0 | O63: 2015-12-05T21:38:11 | P63: Plut, David
A64: New Base | B64: 2016 | C64: 2018 | D64: Distributed Systems Engineering | E64: E09 | F64: 09905510 | G64: Security Systems Project | H64: 921000 | I64: supp & exp | J64: Non-Labor | K64: CD | L64: AA | M64: 0 | N64: 0 | O64: 2015-12-05T21:38:11 | P64: Plut, David
A65: New Base | B65: 2016 | C65: 2018 | D65: Distributed Systems Engineering | E65: E09 | F65: 09905730 | G65: ET Operations Common All | H65: 921000 | I65: supp & exp | J65: Non-Labor | K65: CD | L65: AA | M65: 0 | N65: 0 | O65: 2015-12-05T21:38:11 | P65: Plut, David
A66: New Base | B66: 2016 | C66: 2018 | D66: Distributed Systems Engineering | E66: E09 | F66: 09905732 | G66: ET Arch Planning Common All | H66: 923000 | I66: prof svcs | J66: Non-Labor | K66: CD | L66: AA | M66: 20202 | N66: 0 | O66: 2015-12-05T21:38:31 | P66: Plut, David
A67: New Base | B67: 2016 | C67: 2018 | D67: Distributed Systems Engineering | E67: E09 | F67: 09905731 | G67: ET Delivery Common All | H67: 923000 | I67: prof svcs | J67: Non-Labor | K67: CD | L67: AA | M67: 22828 | N67: 0 | O67: 2015-12-05T21:38:21 | P67: Plut, David
A68: New Base | B68: 2016 | C68: 2018 | D68: Distributed Systems Engineering | E68: E09 | F68: 09905733 | G68: ET Admin Common All | H68: 923000 | I68: prof svcs | J68: Non-Labor | K68: CD | L68: AA | M68: 0 | N68: 0 | O68: 2015-12-05T21:38:11 | P68: Plut, David
A69: New Base | B69: 2016 | C69: 2018 | D69: Distributed Systems Engineering | E69: E09 | F69: 09905730 | G69: ET Operations Common All | H69: 923000 | I69: prof svcs | J69: Non-Labor | K69: CD | L69: AA | M69: 0 | N69: 0 | O69: 2015-12-05T21:38:11 | P69: Plut, David
A70: New Base | B70: 2016 | C70: 2018 | D70: Distributed Systems Engineering | E70: E09 | F70: 09905730 | G70: ET Operations Common All | H70: 923000 | I70: prof svcs | J70: Non-Labor | K70: CD | L70: AA | M70: 0 | N70: 0 | O70: 2015-12-05T21:38:11 | P70: Plut, David
A71: New Base | B71: 2016 | C71: 2018 | D71: Distributed Systems Engineering | E71: E09 | F71: 09905507 | G71: Distributed systems project | H71: 923000 | I71: prof svcs | J71: Non-Labor | K71: CD | L71: AA | M71: 22403 | N71: 0 | O71: 2015-12-05T21:38:41 | P71: Plut, David
A72: New Base | B72: 2016 | C72: 2018 | D72: Distributed Systems Engineering | E72: E09 | F72: 09902811 | G72: A and G Common Training | H72: 926100 | I72: training | J72: Non-Labor | K72: CD | L72: AA | M72: 0 | N72: 0 | O72: 2015-12-05T21:38:11 | P72: Plut, David
A73: New Base | B73: 2016 | C73: 2018 | D73: Distributed Systems Engineering | E73: E09 | F73: 09900182 | G73: Common IT Operations - Maint | H73: 935000 | I73: maint structures and | J73: Non-Labor | K73: CD | L73: AA | M73: 0 | N73: 0 | O73: 2015-12-05T21:38:11 | P73: Plut, David
A74: New Base | B74: 2016 | C74: 2018 | D74: Distributed Systems Operations | E74: E19 | F74: 09905730 | G74: ET Operations Common All | H74: 920000 | I74: labor | J74: Labor | K74: CD | L74: AA | M74: 469703 | N74: 0 | O74: 2015-12-05T19:08:18 | P74: Plut, David
A75: New Base | B75: 2016 | C75: 2018 | D75: Distributed Systems Operations | E75: E19 | F75: 09905730 | G75: ET Operations Common All | H75: 920000 | I75: labor | J75: Overtime | K75: CD | L75: AA | M75: 42833 | N75: 0 | O75: 2015-12-05T19:05:39 | P75: Plut, David
A76: New Base | B76: 2016 | C76: 2018 | D76: Distributed Systems Operations | E76: E19 | F76: 09905730 | G76: ET Operations Common All | H76: 921000 | I76: supp & exp | J76: Non-Labor | K76: CD | L76: AA | M76: 5500 | N76: 0 | O76: 2015-12-05T19:05:06 | P76: Plut, David
A77: New Base | B77: 2016 | C77: 2018 | D77: Distributed Systems Products & Services | E77: E29 | F77: 09905730 | G77: ET Operations Common All | H77: 921000 | I77: supp & exp | J77: Non-Labor | K77: CD | L77: AA | M77: 247500 | N77: 0 | O77: 2015-12-05T22:06:38 | P77: Plut, David
A78: New Base | B78: 2016 | C78: 2018 | D78: Distributed Systems Products & Services | E78: E29 | F78: 09905733 | G78: ET Admin Common All | H78: 921000 | I78: supp & exp | J78: Non-Labor | K78: CD | L78: AA | M78: 6022 | N78: 0 | O78: 2015-12-05T22:06:58 | P78: Plut, David
A79: New Base | B79: 2016 | C79: 2018 | D79: Distributed Systems Products & Services | E79: E29 | F79: 09905507 | G79: Distributed systems project | H79: 921000 | I79: supp & exp | J79: Non-Labor | K79: CD | L79: AA | M79: 61740 | N79: 0 | O79: 2015-12-05T22:06:16 | P79: Plut, David
A80: New Base | B80: 2016 | C80: 2018 | D80: Distributed Systems Products & Services | E80: E29 | F80: 09905730 | G80: ET Operations Common All | H80: 923000 | I80: prof svcs | J80: Non-Labor | K80: CD | L80: AA | M80: 93966 | N80: 0 | O80: 2015-12-05T22:06:30 | P80: Plut, David
A81: New Base | B81: 2016 | C81: 2018 | D81: Distributed Systems Products & Services | E81: E29 | F81: 09900182 | G81: Common IT Operations - Maint | H81: 935000 | I81: maint structures and | J81: Non-Labor | K81: CD | L81: AA | M81: 118402 | N81: 0 | O81: 2015-12-05T22:06:46 | P81: Plut, David
A82: New Base | B82: 2016 | C82: 2018 | D82: Back Office Technology Operations | E82: F19 | F82: 09905730 | G82: ET Operations Common All | H82: 920000 | I82: labor | J82: Labor | K82: CD | L82: AA | M82: 265896 | N82: 0 | O82: 2015-12-06T00:00:16 | P82: Plut, David
A83: New Base | B83: 2016 | C83: 2018 | D83: Oracle Financial Services Development | E83: F39 | F83: 09905813 | G83: Applications Program Expense | H83: 920000 | I83: labor | J83: Labor | K83: CD | L83: AA | M83: 7253 | N83: 0 | O83: 2015-12-06T11:40:29 | P83: Plut, David
A84: New Base | B84: 2016 | C84: 2018 | D84: Oracle Financial Services Development | E84: F39 | F84: 09905731 | G84: ET Delivery Common All | H84: 920000 | I84: labor | J84: Labor | K84: CD | L84: AA | M84: 9188 | N84: 0 | O84: 2015-12-06T11:40:22 | P84: Plut, David
A85: New Base | B85: 2016 | C85: 2018 | D85: Oracle Financial Services Development | E85: F39 | F85: 09905813 | G85: Applications Program Expense | H85: 923000 | I85: prof svcs | J85: Non-Labor | K85: CD | L85: AA | M85: 28156 | N85: 0 | O85: 2015-12-06T11:40:39 | P85: Plut, David
A86: New Base | B86: 2016 | C86: 2018 | D86: GIS Development | E86: G39 | F86: 09905813 | G86: Applications Program Expense | H86: 920000 | I86: labor | J86: Labor | K86: CD | L86: AA | M86: 27956 | N86: 0 | O86: 2015-12-06T01:48:27 | P86: Plut, David
A87: New Base | B87: 2016 | C87: 2018 | D87: GIS Development | E87: G39 | F87: 09905813 | G87: Applications Program Expense | H87: 923000 | I87: prof svcs | J87: Non-Labor | K87: CD | L87: AA | M87: 192523 | N87: 0 | O87: 2015-12-06T01:48:38 | P87: Plut, David
A88: New Base | B88: 2016 | C88: 2018 | D88: Network Systems Engineering | E88: J09 | F88: 09800712 | G88: TV and Radio Interference | H88: 587000 | I88: Cust Install Expense | J88: Non-Labor | K88: ED | L88: AN | M88: 0 | N88: 0 | O88: 2015-12-05T20:00:10 | P88: Plut, David
A89: New Base | B89: 2016 | C89: 2018 | D89: Network Systems Engineering | E89: J09 | F89: 03800711 | G89: Idaho Meter Reading | H89: 902000 | I89: Meter Reading | J89: Non-Labor | K89: CD | L89: ID | M89: 0 | N89: 0 | O89: 2015-12-05T20:00:10 | P89: Plut, David
A90: New Base | B90: 2016 | C90: 2018 | D90: Network Systems Engineering | E90: J09 | F90: 09905733 | G90: ET Admin Common All | H90: 920000 | I90: labor | J90: Labor | K90: CD | L90: AA | M90: 0 | N90: 0 | O90: 2015-12-05T20:00:10 | P90: Plut, David
A91: New Base | B91: 2016 | C91: 2018 | D91: Network Systems Engineering | E91: J09 | F91: 09905509 | G91: Network Systems Project | H91: 920000 | I91: labor | J91: Labor | K91: CD | L91: AA | M91: 0 | N91: 0 | O91: 2015-12-05T20:00:10 | P91: Plut, David
A92: New Base | B92: 2016 | C92: 2018 | D92: Network Systems Engineering | E92: J09 | F92: 09905732 | G92: ET Arch Planning Common All | H92: 920000 | I92: labor | J92: Labor | K92: CD | L92: AA | M92: 125381 | N92: 0 | O92: 2015-12-05T20:00:41 | P92: Plut, David
A93: New Base | B93: 2016 | C93: 2018 | D93: Network Systems Engineering | E93: J09 | F93: 09905731 | G93: ET Delivery Common All | H93: 920000 | I93: labor | J93: Labor | K93: CD | L93: AA | M93: 7636 | N93: 0 | O93: 2015-12-05T20:00:32 | P93: Plut, David
A94: New Base | B94: 2016 | C94: 2018 | D94: Network Systems Engineering | E94: J09 | F94: 09800180 | G94: IT Operations - WaId Common | H94: 921000 | I94: supp & exp | J94: Non-Labor | K94: CD | L94: AN | M94: 0 | N94: 0 | O94: 2015-12-05T20:00:10 | P94: Plut, David
A95: New Base | B95: 2016 | C95: 2018 | D95: Network Systems Engineering | E95: J09 | F95: 09905509 | G95: Network Systems Project | H95: 921000 | I95: supp & exp | J95: Non-Labor | K95: CD | L95: AA | M95: 0 | N95: 0 | O95: 2015-12-05T20:00:10 | P95: Plut, David
A96: New Base | B96: 2016 | C96: 2018 | D96: Network Systems Engineering | E96: J09 | F96: 02806002 | G96: Smart Grid Ongoing O&M | H96: 921000 | I96: supp & exp | J96: Non-Labor | K96: ED | L96: WA | M96: 0 | N96: 0 | O96: 2015-12-05T20:00:10 | P96: Plut, David
A97: New Base | B97: 2016 | C97: 2018 | D97: Network Systems Engineering | E97: J09 | F97: 09905733 | G97: ET Admin Common All | H97: 921000 | I97: supp & exp | J97: Non-Labor | K97: CD | L97: AA | M97: 0 | N97: 0 | O97: 2015-12-05T20:00:10 | P97: Plut, David
A98: New Base | B98: 2016 | C98: 2018 | D98: Network Systems Engineering | E98: J09 | F98: 09905107 | G98: Telecom Services | H98: 921000 | I98: supp & exp | J98: Non-Labor | K98: CD | L98: AA | M98: 0 | N98: 0 | O98: 2015-12-05T20:00:10 | P98: Plut, David
A99: New Base | B99: 2016 | C99: 2018 | D99: Network Systems Engineering | E99: J09 | F99: 09905731 | G99: ET Delivery Common All | H99: 923000 | I99: prof svcs | J99: Non-Labor | K99: CD | L99: AA | M99: 111148 | N99: 0 | O99: 2015-12-05T20:00:49 | P99: Plut, David
A100: New Base | B100: 2016 | C100: 2018 | D100: Network Systems Engineering | E100: J09 | F100: 09905730 | G100: ET Operations Common All | H100: 923000 | I100: prof svcs | J100: Non-Labor | K100: CD | L100: AA | M100: 0 | N100: 0 | O100: 2015-12-05T20:00:10 | P100: Plut, David
A101: New Base | B101: 2016 | C101: 2018 | D101: Network Systems Engineering | E101: J09 | F101: 09902811 | G101: A and G Common Training | H101: 926100 | I101: training | J101: Non-Labor | K101: CD | L101: AA | M101: 0 | N101: 0 | O101: 2015-12-05T20:00:10 | P101: Plut, David
A102: New Base | B102: 2016 | C102: 2018 | D102: Network Systems Engineering | E102: J09 | F102: 09805161 | G102: Whole Building Load Research | H102: 928000 | I102: regulatory activity | J102: Non-Labor | K102: ED | L102: AN | M102: 0 | N102: 0 | O102: 2015-12-05T20:00:10 | P102: Plut, David
A103: New Base | B103: 2016 | C103: 2018 | D103: Network Systems Engineering | E103: J09 | F103: 09900310 | G103: Com - Trade/Professional Assoc | H103: 930200 | I103: misc general expense | J103: Non-Labor | K103: CD | L103: AA | M103: 0 | N103: 0 | O103: 2015-12-05T20:00:10 | P103: Plut, David
